Workbook

Sheet Cover Page
C3: Barking and Dagenham - Practice Clinical Trends (LDP) Report
B19: General Health | C19: The number and percentage of patients on GP register aged over 16 with BMI and smoking status recorded
B20: Hypertension | C20: The number and percentage of patients on hypertension registers. The number and percentage of patients on register with blood pressure measured within last 9 months is less than 150/90
B21: CHD | C21: The number and percentage of patients on CHD register. Indicators included: cholesterol, BP ≤ 150/90
B22: Stroke/TIA | C22: The number and percentage of patients on Stroke/TIA register. Indicators included: BP recorded - BP <140/90.
B23: CVD Risk | C23: The number and percentage of patients eligible for CVD risk score (aged 25 -84). Indicators included: QRISK score, QRISK greater than 20% and proxy review
B24: Diabetes | C24: The number and percentage of patients on diabetes register. Indicators include: blood pressure; cholesterol; HbA1c; flu vaccination
B25: Mental Health | C25: The number and percentage of patients on Mental Health register. Indicators included: severe mental illness review and smoking status
B26: CKD | C26: The number and percentage of patients on CKD register. Indicators included: blood pressure and new diagnosis within 6 months
B27: COPD | C27: The number and percentage of patients on COPD register. Indicators included: severe or very severe COPD (FEV1<50) and smoking status
C30: N/A indicates either that no usable data has been returned or that calculation of a proportion is impossible

Sheet Full Explanatory Notes
A5: Worksheet | B5: Description of column contents
A6: General Health | B6: Patients aged 16 and over on the GP register
B7: Patients aged 16 and over on the GP register, with a BMI recorded in the last 12 months
B8: Patients aged 16 and over on the GP register, with a BMI ≥30 & <35
B9: Patients aged 16 and over on the GP register, with a BMI ≥ 35 & <40
B10: Patients aged 16 and over on the GP register, with a BMI ≥ 40
B11: Patients aged 16 and over on the GP register with smoking status recorded in the last 12 months
B12: Patients aged 16 and over on the GP register with smoking status recorded in the last 12 months, recorded as being a smoker.
A14: Hypertension | B14: Patients on the Hypertension register.
B15: Patients on the Hypertension register with BP recorded in the last 12 months.
B16: Patients on the Hypertension register with BP < 140/90 (Patients aged under 80) < 150/90 ( Aged 80 and over) (last 12m)
A18: CHD | B18: Patients on the CHD register
B19: Patients on the CHD register with cholesterol recorded in the last 12 months.
B20: Patients on the CHD register with last measured cholesterol < 5mmol in the last 12 months
B21: Patients on the CHD register with BP ≤ 150/90 (last 9m)
A23: Stroke/TIA | B23: Patients on the Stroke/TIA register
B24: Patients on the Stroke/TIA register with a BP recorded in last 12 months
B25: Patients on the Stroke/TIA register with BP recorded in the last 12 months with BP < 140/90
A27: CVD Risk | B27: Patients eligible for a CVD risk score (aged 25 - 84 excluding CVD)
B28: Patients with a QRISK or Framingham risk score done.
B29: Patients with a Q Risk score of 20% or higher
B30: Patients with a Q Risk score of 20% or higher and an annual review or proxy annual review
A32: Diabetes | B32: Patients on the diabetes register
B33: Patients on the diabetes register with BP recorded in the last 12 months
B34: Patients on the diabetes register with latest BP < 145/85 in the last 12 months
B35: Patients on the diabetes register with last measured cholesterol, measured within the last 15 months < 5mmol/l
B36: Patients on the diabetes register with last HbA1c < 59in the last 12 months
B37: Patients on the diabetes register with a Flu Jab within the last 12 months.
A40: Mental Health | B40: Patients on the Mental Health register
B41: Patients on the Mental Health register with a review recorded within the last 12 months.
B42: Patients on the Mental Health register with smoking status recorded within the last 12 months
B43: Patients on the Mental Health register with smoking status recorded within the last 12 months recorded as a smoker
B44: Patients on the Mental Health register with smoking status recorded within the last 12 months referred to the stop smoking clinic
B45: Patients on the Mental Health register with smoking status recorded within the last 12 months who are recorded as quitters
B46: Patients with Mental Health with blood pressure recorded in the last 12m
B47: Patients with Mental Health with QRISK recorded in the last 12m
B48: Patients with Mental Health with QRISK 20% or higher in the last 12m
A50: CKD | B50: Patients on CKD register
B51: Patients on the CKD register with blood pressure recorded
B52: Patients on the CKD register with blood pressure < 140/90
B53: Patients on the CKD register with new diagnosis of CKD in the last 6 months
A55: COPD | B55: Patients on COPD register
B56: No of patients with severe or very severe COPD (FEV1<50)
B57: No. of COPD Patients with smoking status recorded (last 12m) or never smoked
B58: No. of COPD patients recorded as a Smoker
B59: No. of COPD Patients who are current smokers & referred to the Stop Smoking Clinic (12m)
B60: No of COPD with flu vaccination (12m)
B61: No of COPD with pneumococcal vaccination ever
B62: No of COPD patients referred to pulmonary rehab ever

Sheet 2019-20 Changes (hidden)
A1: OLD (2017-2018) | C1: NEW (2018-2019) | E1: NEW (2019-20)
A2: List Size | C2: List Size | E2: List Size
A3: Age 16+ | C3: Age 16+ | E3: Age 16+
A4: % list size | C4: % list size | E4: % list size
A5: 16+ and BMI (last 15m) | C5: 16+ and BMI (last 12m) | E5: 16+ and BMI (last 12m)
A6: % 16+ | C6: % 16+ | E6: % 16+
A7: BMI 25 to 29 | C7: BMI ≥30 & <35 | E7: BMI ≥30 & <35
A8: % 16+ | C8: % 16+ | E8: % 16+
A9: BMI ≥ 30 | C9: BMI ≥ 35 & <40 | E9: BMI ≥ 35 & <40
A10: %16+ | C10: %16+ | E10: %16+
A11: BMI ≥ 40 | C11: BMI ≥ 40 | E11: BMI ≥ 40
A12: %16+ | C12: %16+ | E12: %16+
A13: Smoking status (last 15m) incl. never smoked | C13: Smoking status (last 12m) incl. never smoked | E13: Smoking status (last 12m) incl. never smoked
A14: % 16+ | C14: % 16+ | E14: % 16+
A15: Age 16+ and current smoker (last 15m) | C15: Age 16+ and current smoker (last 12m) | E15: Age 16+ and current smoker (last 12m)
A16: % 16+ | C16: % 16+ | E16: % 16+
A18: Hypertension Register | C18: Hypertension Register | E18: Hypertension Register
A19: % list size | C19: % list size | E19: % list size
A20: Hypertension and BP (last 9m) | C20: Hypertension and BP (last 12m) | E20: Hypertension and BP (last 12m)
A21: % Hypertension Register | C21: % Hypertension Register | E21: % Hypertension Register
A22: Hypertension and BP ≤ 150/90 (last 9m) | C22: Hypertension and BP < 140/90 (Patients aged under 80) < 150/90 ( Aged 80 and over) (last 12m) | E22: Hypertension and BP < 140/90 (Patients aged under 80) < 150/90 ( Aged 80 and over) (last 12m)
A23: % Hypertension Register | C23: % Hypertension Register | E23: % Hypertension Register
A25: CHD register | C25: CHD register | E25: CHD register
A26: % list size | C26: % list size | E26: % list size
A27: Cholesterol (last 15m) | C27: Cholesterol (last 12m) | E27: Cholesterol (last 12m)
A28: % CHD register | C28: % CHD register | E28: % CHD register
A29: Cholesterol ≤ 5 (last 15m) | C29: Cholesterol < 5 (last 12m) | E29: Cholesterol < 5 (last 12m)
A30: % CHD register | C30: % CHD register | E30: % CHD register
A31: BP (last 9m) | C31: BP ≤ 150/90 (last 9m) | E31: BP ≤ 150/90 (last 9m)
A32: % CHD register | C32: % CHD register | E32: % CHD register
A33: BP ≤ 150/90 (last 9m)
A34: % CHD register | E34: Stroke/TIA register
A35: CHD annual review or proxy review | E35: % list size
A36: % CHD register | E36: BP Recorded
A37: CHD diagnosed in last 6 months | E37: % Stroke/TIA register
A38: % CHD register | E38: BP <140/90 (last 12m)
E39: % Stroke/TIA register
A41: Aged 35 to 74 (exc CVD) | C41: Aged 25 to 84 (exc CVD) | E41: Aged 25 to 84 (exc CVD)
A42: CVD (QRISK or Framingham) risk score done | C42: QRISK recorded (5 years) | E42: QRISK recorded (5 years)
A43: % of patients aged 35 to 74 (exc CVD) | C43: % of patients aged 25 to 84 (exc CVD) | E43: % of patients aged 25 to 84 (exc CVD)
A44: QRISK ≥ 20% | C44: QRISK ≥ 20% | E44: QRISK ≥ 20%
A45: % QRISK Score recorded | C45: % QRISK Score recorded | E45: % QRISK Score recorded
A46: QRISK ≥ 20% and proxy review (BP and Chol last 15m) | C46: QRISK ≥ 20% and proxy review (BP and Chol last 12m) | E46: QRISK ≥ 20% and proxy review (BP and Chol last 12m)
A47: % Patients with QRISK ≥ 20% | C47: % Patients with QRISK ≥ 20% | E47: % Patients with QRISK ≥ 20%
A49: Diabetes register | C49: Diabetes register | E49: Diabetes register
A50: % List size | C50: % List size | E50: % List size
A51: BP (last 15m) | C51: BP (last 12m) | E51: BP (last 12m)
A52: % Diabetes Register | C52: % Diabetes Register | E52: % Diabetes Register
A53: BP ≤ 145/85 (last 15m) | C53: BP < 145/85 (last 12m) | E53: BP < 145/85 (last 12m)
A54: % Diabetes Register | C54: % Diabetes Register | E54: % Diabetes Register
A55: Cholesterol < 5mmols (last 15m) | C55: Cholesterol < 5mmols (last 12m) | E55: Cholesterol < 5mmols (last 12m)
A56: % Diabetes Register | C56: % Diabetes Register | E56: % Diabetes Register
A57: HbA1c ≤ 59(last 15m) | C57: HbA1c < 59 (last 12m) | E57: HbA1c < 59 (last 12m)
A58: % Diabetes register | C58: % Diabetes register | E58: % Diabetes register
A59: Flu jab (last 15m) | C59: Flu jab (last 12m) | E59: Flu jab (From August 2019)
A60: % Diabetes Register | C60: % Diabetes Register | E60: % Diabetes Register
A61: Annual review/ called or proxy (last 15m)
A62: % Diabetes register
A63: Cholesterol (last 15m)
A64: % Diabetes Register
A65: HbA1c ≤ 86 (last 15m)
A66: % Diabetes Register
A67: Diabetes retinal screening (last 15m)
A68: % Diabetes register
A69: Retinal screening (last 15m)
A70: % Diabetes register
A71: Neuropathy testing (last 15m)
A72: % Diabetes Register
A73: Microalbuminuria (last 15m)
A74: % Diabetes Register
A75: Type 1 Diabetes
A76: % Diabetes Register
A77: Type 2 Diabetes
A78: % Diabetes Register
A79: No Type Recorded
A80: % Diabetes Register
A81: Type 2 diabetes excluding insulin prescriptions (last 15 m)
A82: % Type 2 Diabetes
A83: Newly Diagnosed Diabetes (Last 1m)
A84: Newly Diagnosed Diabetes - Type 1
A85: Newly Diagnosed Diabetes - Type 2
A86: Newly Diagnosed Diabetes - Type Not Recorded
A87: Diabetics under 18 years old
A88: Diabetics Under 18 with HbA1c ≤ 59 (last 15m)
A89: % of Diabetics under 18
A90: No. of patients with diabetes diagnosed with CKD in the last 15m
A91: % Diabetes Register
A92: No. of patients with diabetes diagnosed with CHD and/or Stroke/TIA in the last 12 months
A93: % Diabetes Register
A94: No. of patients with diabetes diagnosed with Depression in the last 12 months
A95: %Diabetes Register
A96: No. of patients who have ever had gestational diabetes
A97: No. of patients who have ever had gestational diabetes who are also on diabetes register
A98: % of patients with gestational diabetes
A100: SMI register (QOF) | C100: Mental Health register | E100: Mental Health register
A101: % list size | C101: % list size | E101: % list size
A102: No. of SMI Patients with smoking status recorded (last 12m) or never smoked | C102: No. of Mental Health Patients with smoking status recorded (last 12m) or never smoked | E102: No. of Mental Health Patients with smoking status recorded (last 12m) or never smoked
A103: % SMI Register | C103: % Mental Health Register | E103: % Mental Health Register
A104: No. of SMI patients recorded as a Smoker | C104: No. of Mental Health patients recorded as a Smoker | E104: No. of Mental Health patients recorded as a Smoker
A105: % SMI Register | C105: % Mental Health Register | E105: % Mental Health Register
A106: No. of SMI Patients who are current smokers & referred to the Stop Smoking Clinic | C106: No. of Mental Health Patients who are current smokers & referred to the Stop Smoking Clinic | E106: No. of Mental Health Patients who are current smokers & referred to the Stop Smoking Clinic
A107: % SMI Register | C107: % Mental Health Register | E107: % Mental Health Register
A108: No. Of SMI Patients who are recorded as quitters | C108: No. Of Mental Health Patients who are recorded as quitters | E108: No. Of Mental Health Patients who are recorded as quitters
A109: % SMI Register | C109: % Mental Health Register | E109: % Mental Health Register
A110: Patients with SMI with QRISK recorded in the last 12m | C110: Patients with Mental Health with QRISK recorded in the last 12m | E110: Patients with Mental Health with QRISK recorded in the last 12m
A111: % SMI Register | C111: % Mental Health Register | E111: % Mental Health Register
A112: Patients with SMI with QRISK 20% or higher in the last 12m | C112: Patients with Mental Health with QRISK 20% or higher in the last 12m | E112: Patients with Mental Health with QRISK 20% or higher in the last 12m
A113: % patients with QRISK recorded 20% or higher | C113: % patients with QRISK recorded | E113: % patients with QRISK recorded
A114: Patients with SMI with BP & QRisk on the same day in the last 12m | C114: Patients with Mental Health with BP & QRisk on the same day in the last 12m | E114: Patients with Mental Health with BP & QRisk on the same day in the last 12m
A115: % Patients with SMI with BP & QRisk on the same day in the last 12m | C115: % Mental Health Register | E115: % Mental Health Register
A117: No. of patients on CKD register (QOF definition) | C117: No. of patients on CKD register | E117: No. of patients on CKD register
A118: % List Size | C118: % List Size | E118: % List Size
A119: BP Recorded (last 15m) | C119: BP Recorded (last 12m) | E119: BP Recorded (last 12m)
A120: % CKD register | C120: % CKD register | E120: % CKD register
A121: BP ≤ 140/90 | C121: BP < 140/90 | E121: BP < 140/90
A122: % CKD register | C122: % CKD register | E122: % CKD register
A123: No of patients with new diagnosis of CKD (last 6m) | C123: No of patients with new diagnosis of CKD (last 6m) | E123: No of patients with new diagnosis of CKD (last 6m)
A124: % CKD register | C124: % CKD register | E124: % CKD register
C126: No. of patients on COPD register | E126: No. of patients on COPD register
C127: % List Size | E127: % List Size
C128: No of patients with severe or very severe COPD (FEV1<50) | E128: No of patients with severe or very severe COPD (FEV1<50)
C129: % COPD register | E129: % COPD register
C130: No. of COPD Patients with smoking status recorded (last 12m) or never smoked | E130: No. of COPD Patients with smoking status recorded (last 12m) or never smoked
C131: % COPD | E131: % COPD
C132: No. of COPD patients recorded as a Smoker | E132: No. of COPD patients recorded as a Smoker
C133: % COPD | E133: % COPD
C134: No. of COPD Patients who are current smokers & referred to the Stop Smoking Clinic | E134: No. of COPD Patients who are current smokers & referred to the Stop Smoking Clinic
C135: % of current COPD smokers | E135: % of current COPD smokers
C136: No of COPD with flu vaccination (12m) | E136: No of COPD with flu vaccination (From August 2019)
C137: % of COPD register | E137: % of COPD register
C138: No of COPD with pneumococcal vaccination ever | E138: No of COPD with pneumococcal vaccination ever
C139: % of COPD register | E139: % of COPD register
C140: No of COPD patients referred to pulmonary rehab ever | E140: No of COPD patients referred to pulmonary rehab ever
C141: % of COPD register | E141: % of COPD register

Sheet Control Panel (hidden)
B1: Control Panel | C1: 2018-06-30 | G1: Select Dates
B2: General Health | G2: 2023-04-01 | I2: - | J2: Select Practice | K2: DN Team | L2: Patch | M2: Network | O2: OrgID | P2: 4 | Q2: =$P$6&ADDRESS(1,P2)&":"&ADDRESS($P$7,P2) -> 'LDP TABLE'!$D$1:$D$100000 | T2: OrgID_A | U2: 10 | V2: =$U$6&ADDRESS(1,U2)&":"&ADDRESS($U$7,U2) -> 'Data 17-18'!$J$1:$J$1000
A3: List Size | B3: 01. Listsize | C3: List Size | G3: 2023-05-01 | H3: Bethnal Green Health Centre | I3: F84083 | J3: Bethnal Green Health Centre | M3: NW1 | O3: REL_D | P3: 2 | Q3: =$P$6&ADDRESS(1,P3)&":"&ADDRESS($P$7,P3) -> 'LDP TABLE'!$B$1:$B$100000 | T3: REL_DA | U3: 1 | V3: =$U$6&ADDRESS(1,U3)&":"&ADDRESS($U$7,U3) -> 'Data 17-18'!$A$1:$A$1000
A4: Age 16+ | B4: LDP.01: Aged 16yrs+ | C4: Age 16+ | D4: Age 16+ | G4: 2023-06-01 | H4: The Mission Practice | I4: F84016 | J4: The Mission Practice | M4: NW1 | O4: IND | P4: - | Q4: =$P$6&ADDRESS(P11,1)&":"&ADDRESS(P11,P8) -> 'LDP TABLE'!$A$1:$BU$1 | T4: IND_A | U4: - | V4: =$U$6&ADDRESS(U11,1)&":"&ADDRESS(U11,U8) -> 'Data 17-18'!$A$1:$BU$1
A5: % list size | B5: ="%"&B4 -> %LDP.01: Aged 16yrs+ | C5: % list size | D5: % list size | G5: 2023-07-01 | H5: Globe Town Surgery | I5: F84123 | J5: Globe Town Surgery | M5: NW1 | O5: NwID | P5: 55 | Q5: =$P$6&ADDRESS(1,P5)&":"&ADDRESS($P$7,P5) -> 'LDP TABLE'!$BC$1:$BC$100000 | T5: NwID_A | U5: 2 | V5: =$U$6&ADDRESS(1,U5)&":"&ADDRESS($U$7,U5) -> 'Data 17-18'!$B$1:$B$1000
A6: 16+ and BMI (last 12m) | B6: LDP.01.01: Obesity BMI recorded (last 12m) | C6: 16+ and BMI (last 12m) | D6: 16+ and BMI (last 12m) | G6: 2023-08-01 | H6: Pollard Row Surgery | I6: Y00212 | J6: Pollard Row Surgery | M6: NW1 | O6: Data | P6: =IF(P9="N","BLANK!","'"&P10&"'!") -> 'LDP TABLE'! | T6: Data | U6: =IF(U9="N","BLANK!","'"&U10&"'!") -> 'Data 17-18'!
A7: % 16+ | B7: ="%"&B6 -> %LDP.01.01: Obesity BMI recorded (last 12m) | C7: % 16+ | D7: % 16+ | G7: 2023-09-01 | H7: Strouts Place Medical Centre | I7: F84051 | J7: Strouts Place Medical Centre | M7: NW1 | O7: Rows | P7: 100000 | T7: Rows | U7: 1000
A8: BMI 25 to 29 | B8: LDP.01.01.02: Obesity BMI between 30-35 (last 12m) | C8: BMI 25 to 29 | D8: BMI ≥30 & <35 | G8: 2023-10-01 | H8: Spitalfields Practice | I8: F84081 | J8: Spitalfields Practice | M8: NW2 | O8: Columns | P8: 73 | T8: Columns | U8: 73
A9: % 16+ | B9: ="%"&B8 -> %LDP.01.01.02: Obesity BMI between 30-35 (last 12m) | C9: % 16+ | D9: % 16+ | G9: 2023-11-01 | H9: Blithehale Medical Centre | I9: F84718 | J9: Blithehale Medical Centre | M9: NW2 | O9: Data (Y/N) | P9: Y | T9: Data (Y/N) | U9: Y
A10: BMI ≥ 30 | B10: LDP.01.01.01: Obesity BMI more than or equal to 35 less than 40 (last 12m) | C10: BMI ≥ 30 | D10: BMI ≥ 35 & <40 | G10: 2023-12-01 | H10: Health E1 | I10: F84733 | J10: Health E1 | M10: NW2 | O10: Q Work Sheet | P10: LDP TABLE | Q10: =$P$6&ADDRESS(1,1)&":"&ADDRESS(P7,P8) -> 'LDP TABLE'!$A$1:$BU$100000 | T10: Q Work Sheet | U10: Data 17-18 | V10: =$U$6&ADDRESS(1,1)&":"&ADDRESS(U7,U8) -> 'Data 17-18'!$A$1:$BU$1000
A11: %16+ | B11: ="%"&B10 -> %LDP.01.01.01: Obesity BMI more than or equal to 35 less than 40 (last 12m) | C11: %16+ | D11: %16+ | G11: 2024-01-01 | H11: Albion Health Centre | I11: F84012 | J11: Albion Health Centre | M11: NW2 | O11: Header Row | P11: 1 | T11: Header Row | U11: 1
A12: BMI ≥ 40 | B12: LDP.01.01.03: Obesity BMI equal to or over 40 (last 12m) | C12: BMI ≥ 40 | D12: BMI ≥ 40 | G12: 2024-02-01 | H12: XX Place Surgery | I12: F84122 | J12: XX Place Surgery | M12: NW2 | O12: Header Row 2 | P12: 3 | T12: Header Row 2 | U12: 3
A13: %16+ | B13: ="%"&B12 -> %LDP.01.01.03: Obesity BMI equal to or over 40 (last 12m) | C13: %16+ | D13: %16+ | G13: 2024-03-01 | H13: Harford Health Centre | I13: F84087 | J13: Harford Health Centre | M13: NW3
A14: Smoking status (last 12m) incl. never smoked | B14: LDP.01.02: Smoking Status (last 12m) or Never Smoked (25yrs+) | C14: Smoking status (last 12m) incl. never smoked | D14: Smoking status (last 12m) incl. never smoked | H14: Brayford Square (Dr Varma) | I14: F84046 | J14: Brayford Square (Dr Varma) | M14: NW3
A15: % 16+ | B15: ="%"&B14 -> %LDP.01.02: Smoking Status (last 12m) or Never Smoked (25yrs+) | C15: % 16+ | D15: % 16+ | H15: Whitechapel Health (Shah Jalal) | I15: F84039 | J15: Whitechapel Health (Shah Jalal) | M15: NW3
A16: Age 16+ and current smoker (last 12m) | B16: LDP.01.03: Current Smoker (last 12m) | C16: Age 16+ and current smoker (last 12m) | D16: Age 16+ and current smoker (last 12m) | H16: City Wellbeing Practice (Tower Medical) | I16: F84114 | J16: City Wellbeing Practice (Tower Medical) | M16: NW3 | O16: April 2023 | P16: 2023-05-01
A17: % 16+ | B17: ="%"&B16 -> %LDP.01.03: Current Smoker (last 12m) | C17: % 16+ | D17: % 16+ | H17: Wapping Group Practice | I17: F84079 | J17: Wapping Group Practice | M17: NW4 | O17: May 2023 | P17: 2023-06-01
B18: Hypertension | H18: Jubilee Street Practice | I18: F84031 | J18: Jubilee Street Practice | M18: NW4 | O18: June 2023 | P18: 2023-07-01
A19: Hypertension Register | B19: LDP.02: Hypertension Register | C19: Hypertension Register | D19: Hypertension Register | H19: St Katharine Docks Practice | I19: F84731 | J19: St Katharine Docks Practice | M19: NW4 | O19: July 2023 | P19: 2023-08-01
A20: % list size | B20: ="%"&B19 -> %LDP.02: Hypertension Register | C20: % list size | D20: % list size | H20: East One Health | I20: F84682 | J20: East One Health | M20: NW4 | O20: August 2023 | P20: 2023-09-01
A21: Hypertension and BP (last 9m) | B21: LDP.02.02: Hypertension BP recorded (last 12m) | C21: Hypertension and BP (last 9m) | D21: Hypertension and BP (last 12m) | H21: Harley Grove Medical Centre | I21: F84044 | J21: Harley Grove Medical Centre | M21: NW5 | O21: September 2023 | P21: 2023-10-01
A22: % Hypertension Register | B22: ="%"&B21 -> %LDP.02.02: Hypertension BP recorded (last 12m) | C22: % Hypertension Register | D22: % Hypertension Register | H22: St Stephens Health Centre | I22: F84034 | J22: St Stephens Health Centre | M22: NW5 | O22: October 2023 | P22: 2023-11-01
A23: Hypertension and BP ≤ 150/90 (last 9m) | B23: LDP.02.01: Hypertension and BP < 140/90 (age under 80) < 150/90 (Age 80+) | C23: Hypertension and BP ≤ 150/90 (last 9m) | D23: Hypertension and BP < 140/90 (Patients aged under 80) < 150/90 ( Aged 80 and over) (last 12m) | H23: Ruston Street Clinic (Dr Amin) | I23: F84030 | J23: Ruston Street Clinic (Dr Amin) | M23: NW5 | O23: November 2023 | P23: 2023-12-01
A24: % Hypertension Register | B24: ="%"&B23 -> %LDP.02.01: Hypertension and BP < 140/90 (age under 80) < 150/90 (Age 80+) | C24: % Hypertension Register | D24: % Hypertension Register | H24: Grove Road Surgery (Dr Shah) | I24: F84055 | J24: Grove Road Surgery (Dr Shah) | M24: NW5 | O24: December 2023 | P24: 2024-01-01
B25: CHD | H25: The Tredegar Practice | I25: F84696 | J25: The Tredegar Practice | M25: NW5 | O25: January 2024 | P25: 2024-02-01
A26: CHD register | B26: LDP.03: CHD Register | C26: CHD register | D26: CHD register | H26: Stroudley Walk Centre | I26: F84676 | J26: Stroudley Walk Centre | M26: NW6 | O26: February 2024 | P26: 2024-03-01
A27: % list size | B27: ="%"&B26 -> %LDP.03: CHD Register | C27: % list size | D27: % list size | H27: St Andrews Health Centre | I27: Y03023 | J27: St Andrews Health Centre | M27: NW6 | O27: March 2024 | P27: 2024-04-01
A28: Cholesterol (last 12m) | B28: LDP.03.04: CHD Cholesterol recorded (last 12m) | C28: Cholesterol (last 12m) | D28: Cholesterol (last 12m) | H28: Merchant Street (Dr Rana) | I28: F84118 | J28: Merchant Street (Dr Rana) | M28: NW6
A29: % CHD register | B29: ="%"&B28 -> %LDP.03.04: CHD Cholesterol recorded (last 12m) | C29: % CHD register | D29: % CHD register | H29: St Pauls Way Medical Centre | I29: F84714 | J29: St Pauls Way Medical Centre | M29: NW6
A30: Cholesterol ≤ 5 (last 12m) | B30: LDP.03.01: CHD Chol less than 5mmol (last 12m) | C30: Cholesterol ≤ 5 (last 12m) | D30: Cholesterol < 5 (last 12m) | H30: Bromley-By-Bow Health Centre | I30: F84122 | J30: Bromley-By-Bow Health Centre | M30: NW6
A31: % CHD register | B31: ="%"&B30 -> %LDP.03.01: CHD Chol less than 5mmol (last 12m) | C31: % CHD register | D31: % CHD register | H31: Limehouse Practice (Gill Street) | I31: F84054 | J31: Limehouse Practice (Gill Street) | M31: NW7
A32: BP (last 9m) | B32: LDP.03.02: CHD BP less than or equal 150/90 (last 9m) | C32: BP (last 9m) | D32: BP ≤ 150/90 (last 12m) | H32: Chrisp Street Health Centre | I32: F84062 | J32: Chrisp Street Health Centre | M32: NW7
A33: % CHD register | B33: ="%"&B32 -> %LDP.03.02: CHD BP less than or equal 150/90 (last 9m) | C33: % CHD register | D33: % CHD register | H33: Aberfeldy Practice | I33: F84698 | J33: Aberfeldy Practice | M33: NW7
A34: BP ≤ 150/90 (last 9m) | B34: LDP.03.05: CHD BP recorded (last 9m) | C34: BP ≤ 150/90 (last 9m) | H34: All Saints Practice | I34: F84702 | J34: All Saints Practice | M34: NW7
A35: % CHD register | B35: ="%"&B34 -> %LDP.03.05: CHD BP recorded (last 9m) | C35: % CHD register | H35: Gough Walk (Dr Selvan) | I35: F84025 | J35: Gough Walk (Dr Selvan) | M35: NW7
A36: CHD annual review or proxy review | B36: LDP.03.03: CHD Annual Review & Proxy (last 12m) | C36: CHD annual review or proxy review | H36: Island Health | I36: F84710 | J36: Island Health | M36: NW8
A37: % CHD register | B37: ="%"&B36 -> %LDP.03.03: CHD Annual Review & Proxy (last 12m) | C37: % CHD register | H37: Docklands Medical Centre | I37: F84656 | J37: Docklands Medical Centre | M37: NW8
A38: CHD diagnosed in last 6 months | B38: LDP.03.06: CHD Diagnosed (Last 6 months) | C38: CHD diagnosed in last 6 months | H38: Island Medical Centre | I38: F84647 | J38: Island Medical Centre | M38: NW8
A39: % CHD register | B39: ="%"&B38 -> %LDP.03.06: CHD Diagnosed (Last 6 months) | C39: % CHD register | H39: Barkantine Practice | I39: F84747 | J39: Barkantine Practice | M39: NW8
H40: Tower Hamlets | I40: Total | J40: Tower Hamlets
B41: Stroke/TIA
B42: LDP.10 Stroke or TIA register | D42: Stroke/TIA register
B43: %LDP.10 Stroke or TIA register | D43: % list size
B44: LDP.10.01: Stroke/TIA BP recorded (last 12m) | D44: Patients on Stroke/TIA register with BP recorded
B45: %LDP.10.01: Stroke/TIA BP recorded (last 12m) | D45: % of stroke register
B46: LDP.10.02 Patients on Stroke/TIA register with BP <140/90 (12m) | D46: Patients on Stroke/TIA register with BP <140/90 (12m)
B47: %LDP.10.02 Patients on Stroke/TIA register with BP <140/90 (12m) | D47: % of stroke register
B48: CVD Risk | H48: The One Network | I48: NW1 | J48: The One Network | M48: NW1
A49: Aged 35 to 74 (exc CVD) | B49: LDP.05: CVD 25-84yrs (excl CVD) | C49: Aged 35 to 74 (exc CVD) | D49: Aged 25 to 84 (exc CVD) | H49: East End Health Network | I49: NW2 | J49: East End Health Network | M49: NW2
A50: CVD (QRISK or Framingham) risk score done | B50: LDP.05.02: Cardiovascular Risk Score Done (5y) | C50: CVD (QRISK or Framingham) risk score done | D50: QRISK recorded (5 years) | H50: Stepney and Whitechapel Network | I50: NW3 | J50: Stepney and Whitechapel Network | M50: NW3
A51: % of patients aged 35 to 74 (exc CVD) | B51: ="%"&B50 -> %LDP.05.02: Cardiovascular Risk Score Done (5y) | C51: % of patients aged 35 to 74 (exc CVD) | D51: % of patients aged 25 to 84 (exc CVD) | H51: The Highway Network | I51: NW4 | J51: The Highway Network | M51: NW4
A52: QRISK ≥ 20% | B52: LDP.05.01: CVD QRISK greater than or equal 20% | C52: QRISK ≥ 20% | D52: QRISK ≥ 20% | H52: Bow Health Network | I52: NW5 | J52: Bow Health Network | M52: NW5
A53: % QRISK Score recorded | B53: ="%"&B52 -> %LDP.05.01: CVD QRISK greater than or equal 20% | C53: % QRISK Score recorded | D53: % QRISK Score recorded | H53: Mile End East and Bromley by Bow Network | I53: NW6 | J53: Mile End East and Bromley by Bow Network | M53: NW6
A54: QRISK ≥ 20% and proxy review (BP and Chol last 12m) | B54: LDP.05.01.01: CVD Proxy Annual Review (last 12m) | C54: QRISK ≥ 20% and proxy review (BP and Chol last 12m) | D54: QRISK ≥ 20% and proxy review (BP and Chol last 12m) | H54: Poplar and Limehouse Network | I54: NW7 | J54: Poplar and Limehouse Network | M54: NW7
A55: % Patients with QRISK ≥ 20% | B55: ="%"&B54 -> %LDP.05.01.01: CVD Proxy Annual Review (last 12m) | C55: % Patients with QRISK ≥ 20% | D55: % Patients with QRISK ≥ 20% | H55: Healthy Island Network | I55: NW8 | J55: Healthy Island Network | M55: NW8
B56: Diabetes
A57: Diabetes register | B57: LDP.04: Diabetes Register | C57: Diabetes register | D57: Diabetes register
A58: % List size | B58: ="%"&B57 -> %LDP.04: Diabetes Register | C58: % List size | D58: % List size
A59: Annual review/ called or proxy (last 12m) | B59: LDP.04.02: Diabetes Called & Annual Review or Proxy (last 12m) | C59: Annual review/ called or proxy (last 12m) | D59: BP (last 12m)
A60: % Diabetes register | B60: ="%"&B59 -> %LDP.04.02: Diabetes Called & Annual Review or Proxy (last 12m) | C60: % Diabetes register | D60: % Diabetes Register
A61: BP (last 12m) | B61: LDP.04.11: Diabetes and BP in last 12 months | C61: BP (last 12m) | D61: BP < 145/85 (last 12m)
A62: % Diabetes Register | B62: ="%"&B61 -> %LDP.04.11: Diabetes and BP in last 12 months | C62: % Diabetes Register | D62: % Diabetes Register
A63: BP ≤ 145/85 (last 12m) | B63: LDP.04.09: Diabetes BP less than 145/85 (last 12m) | C63: BP ≤ 145/85 (last 12m) | D63: Cholesterol < 5mmols (last 12m) | H63: Halbutt Street Surgery | I63: F82001
A64: % Diabetes Register | B64: ="%"&B63 -> %LDP.04.09: Diabetes BP less than 145/85 (last 12m) | C64: % Diabetes Register | D64: % Diabetes Register | H64: Church Elm Lane Medical Practice | I64: F82005
A65: Cholesterol (last 12m) | B65: LDP.04.12: Diabetes and cholesterol in last 15 mths | C65: Cholesterol (last 12m) | D65: HbA1c < 59 (last 12m) | H65: Broad Street Medical Centre | I65: Y01719
A66: % Diabetes Register | B66: ="%"&B65 -> %LDP.04.12: Diabetes and cholesterol in last 15 mths | C66: % Diabetes Register | D66: % Diabetes register | H66: Porters Avenue Doctors Surgery | I66: Y02575
A67: Cholesterol < 5mmols (last 12m) | B67: LDP.04.08: Diabetes Chol less than 5mmol (last 12m) | C67: Cholesterol < 5mmols (last 12m) | D67: Flu jab (From August 2021) | H67: First Avenue Surgery | I67: F82003
A68: % Diabetes Register | B68: ="%"&B67 -> %LDP.04.08: Diabetes Chol less than 5mmol (last 12m) | C68: % Diabetes Register | D68: % Diabetes Register | H68: Hedgemans Surgery | I68: F82015
A69: HbA1c ≤ 59(last 12m) | B69: LDP.04.01: Diabetes HbA1c <7.5% OR <59mmol (last 12m) | C69: HbA1c ≤ 59(last 12m) | H69: St Albans Surgery | I69: F82017
A70: % Diabetes register | B70: ="%"&B69 -> %LDP.04.01: Diabetes HbA1c <7.5% OR <59mmol (last 12m) | C70: % Diabetes register | H70: The Dewey Practice | I70: F82621
A71: HbA1c ≤ 86 (last 12m) | B71: LDP.04.10: Diabetes HbA1c <=10% OR <=86mmol (last 12m) | C71: HbA1c ≤ 86 (last 12m) | H71: Heathway Medical Centre | I71: F82634
A72: % Diabetes Register | B72: ="%"&B71 -> %LDP.04.10: Diabetes HbA1c <=10% OR <=86mmol (last 12m) | C72: % Diabetes Register | H72: Dr Alkaisy Surgery | I72: F82678
A73: Diabetes retinal screening (last 12m) | B73: LDP.04.03: Diabetes Digital retinal screening or Seen by retinal screener | C73: Diabetes retinal screening (last 12m) | H73: Parkview Medical Practice | I73: F82679
A74: % Diabetes register | B74: ="%"&B73 -> %LDP.04.03: Diabetes Digital retinal screening or Seen by retinal screener | C74: % Diabetes register | H74: Victoria Medical Centre | I74: F82034
A75: Retinal screening (last 12m) | B75: LDP.04.04: Diabetes Retinal Screening (QoF) (last 12m) | C75: Retinal screening (last 12m) | H75: Aurora Medcare | I75: F82042
A76: % Diabetes register | B76: ="%"&B75 -> %LDP.04.04: Diabetes Retinal Screening (QoF) (last 12m) | C76: % Diabetes register | H76: Abbey Medical centre | I76: F82625
A77: Neuropathy testing (last 12m) | B77: LDP.04.05: Diabetes Neuropathy Test (last 12m) | C77: Neuropathy testing (last 12m) | H77: Shifa Medical Practice | I77: Y01280
A78: % Diabetes Register | B78: ="%"&B77 -> %LDP.04.05: Diabetes Neuropathy Test (last 12m) | C78: % Diabetes Register | H78: Barking Medical Group Practice | I78: F82018
A79: Microalbuminuria (last 12m) | B79: LDP.04.06: Diabetes Microalbuminuria Test (latest last 12m) | C79: Microalbuminuria (last 12m) | H79: John Smith House | I79: F82040
A80: % Diabetes Register | B80: ="%"&B79 -> %LDP.04.06: Diabetes Microalbuminuria Test (latest last 12m) | C80: % Diabetes Register | H80: The White House | I80: F82612
A81: Flu jab (last 12m) | B81: LDP.04.07: Diabetes Influenza Vaccinations (From August 2018) | C81: Flu jab (last 12m) | H81: Dr Gupta & Partner | I81: F82647
A82: % Diabetes Register | B82: ="%"&B81 -> %LDP.04.07: Diabetes Influenza Vaccinations (From August 2018) | C82: % Diabetes Register | H82: Ripple Road Medical Centre | I82: F82650
A83: Type 1 Diabetes | B83: LDP.04.13. Type 1 Diabetes | C83: Type 1 Diabetes | H83: Highgrove Surgery | I83: F82680
A84: % Diabetes Register | B84: ="%"&B83 -> %LDP.04.13. Type 1 Diabetes | C84: % Diabetes Register | H84: Faircross Health Centre | I84: F82027
A85: Type 2 Diabetes | B85: LDP.04.14. Type 2 Diabetes | C85: Type 2 Diabetes | H85: Five Elms | I85: F82012
A86: % Diabetes Register | B86: ="%"&B85 -> %LDP.04.14. Type 2 Diabetes | C86: % Diabetes Register | H86: Julia Engwell Surgery | I86: F82025
A87: No Type Recorded | B87: No Type Recorded | C87: No Type Recorded | H87: Laburnum Health centre | I87: F82051
A88: % Diabetes Register | B88: ="%"&B87 -> %No Type Recorded | C88: % Diabetes Register | H88: Gables Surgery | I88: F82642
A89: Type 2 diabetes excluding insulin prescriptions (last 15 m) | B89: LDP 04.14.01 Excl Insulin Prescription (12m) | C89: Type 2 diabetes excluding insulin prescriptions (last 15 m) | H89: Green Lane Surgery | I89: F82661
A90: % Type 2 Diabetes | B90: ="%"&B89 -> %LDP 04.14.01 Excl Insulin Prescription (12m) | C90: % Type 2 Diabetes | H90: The Surgery | I90: F86040
A91: Newly Diagnosed Diabetes (Last 1m) | B91: LDP.04.19 Newly Diagnosed Diabetes (last 1m) | C91: Newly Diagnosed Diabetes (Last 1m) | H91: The Oval Practice | I91: Y01795
A92: Newly Diagnosed Diabetes - Type 1 | B92: LDP.04.19.01 Newly Diagnosed Type 1 | C92: Newly Diagnosed Diabetes - Type 1 | H92: Valence Medical Centre | I92: F82038
A93: Newly Diagnosed Diabetes - Type 2 | B93: LDP.04.19.02 Newly Diagnosed Type 2 | C93: Newly Diagnosed Diabetes - Type 2 | H93: Marks Gate Medical Practice | I93: F82604
A94: Newly Diagnosed Diabetes - Type Not Recorded | B94: ="%"&B93 -> %LDP.04.19.02 Newly Diagnosed Type 2 | C94: Newly Diagnosed Diabetes - Type Not Recorded | H94: Tulasi Medical Centre | I94: F82660
A95: Diabetics under 18 years old | B95: LDP.04.15 Diabetes (under 18) | C95: Diabetics under 18 years old | H95: Becontree Medical Centre | I95: F82677
A96: Diabetics Under 18 with HbA1c ≤ 59 (last 12m) | B96: LDP.04.15.01 Diabetes HbA1C <=7.5% OR <=59mmol (12m) | C96: Diabetics Under 18 with HbA1c ≤ 59 (last 12m) | H96: Barking and Dagenham | I96: Total
A97: % of Diabetics under 18 | B97: ="%"&B96 -> %LDP.04.15.01 Diabetes HbA1C <=7.5% OR <=59mmol (12m) | C97: % of Diabetics under 18
A98: No. of patients with diabetes diagnosed with CKD in the last 12m | B98: LDP.04.16 Diabetes and CKD Diagnosed (12m) | C98: No. of patients with diabetes diagnosed with CKD in the last 12m
A99: % Diabetes Register | B99: ="%"&B98 -> %LDP.04.16 Diabetes and CKD Diagnosed (12m) | C99: % Diabetes Register
A100: No. of patients with diabetes diagnosed with CHD and/or Stroke/TIA in the last 12 months | B100: LDP.04.17 Diabetes and Stroke or CHD Diagnosed (12m) | C100: No. of patients with diabetes diagnosed with CHD and/or Stroke/TIA in the last 12 months
A101: % Diabetes Register | B101: ="%"&B100 -> %LDP.04.17 Diabetes and Stroke or CHD Diagnosed (12m) | C101: % Diabetes Register
A102: No. of patients with diabetes diagnosed with Depression in the last 12 months | B102: LDP.04.18 Diabetes and Depression (last 12m) | C102: No. of patients with diabetes diagnosed with Depression in the last 12 months
A103: %Diabetes Register | B103: ="%"&B102 -> %LDP.04.18 Diabetes and Depression (last 12m) | C103: %Diabetes Register
A104: No. of patients who have ever had gestational diabetes | B104: LDP.07 Gestational Diabetes | C104: No. of patients who have ever had gestational diabetes
A105: No. of patients who have ever had gestational diabetes who are also on diabetes register | B105: LDP.07.01 Diabetes dx after Gestational Diabetes | C105: No. of patients who have ever had gestational diabetes who are also on diabetes register
A106: % of patients with gestational diabetes | B106: ="%"&B105 -> %LDP.07.01 Diabetes dx after Gestational Diabetes | C106: % of patients with gestational diabetes
B107: Mental Health
A108: SMI register (QOF) | B108: CSPMH.01 SMI Register | C108: SMI register (QOF) | D108: Mental Health register
A109: % list size | B109: ="%"&B108 -> %CSPMH.01 SMI Register | C109: % list size | D109: % list size
A110: No. of SMI Patients with smoking status recorded (last 12m) or never smoked | B110: CSPMH.01.02 Smoking Status Recorded (12m) | C110: No. of SMI Patients with smoking status recorded (last 12m) or never smoked | D110: No. of Mental Health Patients with smoking status recorded (last 12m) or never smoked
A111: % SMI Register | B111: ="%"&B110 -> %CSPMH.01.02 Smoking Status Recorded (12m) | C111: % SMI Register | D111: % Mental Health Register
A112: No. of SMI patients recorded as a Smoker | B112: CSPMH.01.02.01 Current Smoker (12m) | C112: No. of SMI patients recorded as a Smoker | D112: No. of Mental Health patients recorded as a Smoker
A113: % SMI Register | B113: ="%"&B112 -> %CSPMH.01.02.01 Current Smoker (12m) | C113: % SMI Register | D113: % Mental Health Register
A114: No. of SMI Patients who are current smokers & referred to the Stop Smoking Clinic | B114: CSPMH 01.02.01.01 Ref to clinic 12m | C114: No. of SMI Patients who are current smokers & referred to the Stop Smoking Clinic | D114: No. of Mental Health Patients who are current smokers & referred to the Stop Smoking Clinic
A115: % SMI Register | B115: ="%"&B114 -> %CSPMH 01.02.01.01 Ref to clinic 12m | C115: % SMI Register | D115: % Mental Health Register
A116: No. Of SMI Patients who are recorded as quitters | B116: CSPMH.01.02.02 Ex-smoker Recorded (latest 12m) | C116: No. Of SMI Patients who are recorded as quitters | D116: No. Of Mental Health Patients who are recorded as quitters
A117: % SMI Register | B117: ="%"&B116 -> %CSPMH.01.02.02 Ex-smoker Recorded (latest 12m) | C117: % SMI Register | D117: % Mental Health Register
A118: Patients with SMI with QRISK recorded in the last 12m | B118: CSPMH. 01.03 QRisk Recorded (12m) | C118: Patients with SMI with QRISK recorded in the last 12m | D118: Patients with Mental Health with QRISK recorded in the last 12m
A119: % SMI Register | B119: ="%"&B118 -> %CSPMH. 01.03 QRisk Recorded (12m) | C119: % SMI Register | D119: % Mental Health Register
A120: Patients with SMI with QRISK 20% or higher in the last 12m | B120: CSPMH. 01.03.02 Qrisk>=20 (12m) | C120: Patients with SMI with QRISK 20% or higher in the last 12m | D120: Patients with Mental Health with QRISK 20% or higher in the last 12m
A121: % patients with QRISK recorded 20% or higher | B121: ="%"&B120 -> %CSPMH. 01.03.02 Qrisk>=20 (12m) | C121: % patients with QRISK recorded 20% or higher | D121: % patients with QRISK recorded
A122: Patients with SMI with BP & QRisk on the same day in the last 12m | B122: CSPMH. 01.03.01 BP recorded on same day as QRisk (12m) | C122: Patients with SMI with BP & QRisk on the same day in the last 12m | D122: Patients with Mental Health with BP & QRisk on the same day in the last 12m
A123: % Patients with SMI with BP & QRisk on the same day in the last 12m | B123: ="%"&B122 -> %CSPMH. 01.03.01 BP recorded on same day as QRisk (12m) | C123: % Patients with SMI with BP & QRisk on the same day in the last 12m | D123: % Mental Health Register
B124: CKD
A125: No. of patients on CKD register | B125: LDP.08 CKD Register | C125: No. of patients on CKD register | D125: No. of patients on CKD register
A126: % List Size | B126: ="%"&B125 -> %LDP.08 CKD Register | C126: % List Size | D126: % List Size
A127: BP Recorded (last 12m) | B127: LDP.08.03 CKD and BP Recorded (last 12 m) | C127: BP Recorded (last 12m) | D127: BP Recorded (last 12m)
A128: % CKD register | B128: ="%"&B127 -> %LDP.08.03 CKD and BP Recorded (last 12 m) | C128: % CKD register | D128: % CKD register
A129: BP ≤ 140/90 | B129: LDP.08.01 CKD and BP less than 140/90 (last 12 m) | C129: BP ≤ 140/90 | D129: BP < 140/90
A130: % CKD register | B130: ="%"&B129 -> %LDP.08.01 CKD and BP less than 140/90 (last 12 m) | C130: % CKD register | D130: % CKD register
A131: No of patients with new diagnosis of CKD (last 6m) | B131: LDP.08.02 CKD Diagnosed (Last 6m) | C131: No of patients with new diagnosis of CKD (last 6m) | D131: No of patients with new diagnosis of CKD (last 6m)
A132: % CKD register | B132: ="%"&B131 -> %LDP.08.02 CKD Diagnosed (Last 6m) | C132: % CKD register | D132: % CKD register
B133: COPD
B134: LDP.09 COPD Register | C134: No. of patients on COPD register
B135: ="%"&B134 -> %LDP.09 COPD Register | C135: % List Size
B136: LDP.09.01 Patients with severe or very severe COPD (FEV1<50) | C136: No of patients with severe or very severe COPD (FEV1<50)
B137: ="%"&B136 -> %LDP.09.01 Patients with severe or very severe COPD (FEV1<50) | C137: % COPD register
B138: LDP.09.02 Patients with smoking status recorded (last 12m) or never smoked | C138: No. of COPD Patients with smoking status recorded (last 12m) or never smoked
B139: ="%"&B138 -> %LDP.09.02 Patients with smoking status recorded (last 12m) or never smoked | C139: % COPD
B140: LDP.09.03 COPD patients recorded as a Smoker | C140: No. of COPD patients recorded as a Smoker
B141: ="%"&B140 -> %LDP.09.03 COPD patients recorded as a Smoker | C141: % COPD
B142: LDP.09.04 COPD Patients who are current smokers & referred to the Stop Smoking C | C142: No. of COPD Patients who are current smokers & referred to the Stop Smoking Clinic (12m)
B143: ="%"&B142 -> %LDP.09.04 COPD Patients who are current smokers & referred to the Stop Smoking C | C143: % of current COPD smokers
B144: LDP.09.05 No of COPD with flu vaccination (From August 2018) | C144: No of COPD with flu vaccination (From August 2023)
B145: ="%"&B144 -> %LDP.09.05 No of COPD with flu vaccination (From August 2018) | C145: % of COPD register
B146: LDP.09.06 No of COPD with pneumococcal vaccination ever | C146: No of COPD with pneumococcal vaccination ever
B147: ="%"&B146 -> %LDP.09.06 No of COPD with pneumococcal vaccination ever | C147: % of COPD register
B148: LDP.09.07 No of COPD patients referred to pulmonary rehab ever | C148: No of COPD patients referred to pulmonary rehab ever
B149: ="%"&B148 -> %LDP.09.07 No of COPD patients referred to pulmonary rehab ever | C149: % of COPD register

Sheet Month by month
C2: Barking and Dagenham | H2: Practice Clinical Trends (LDP) Report Summary 2023 / 2024
C3: ** SystmOne data was added in March 2023, no data availble before this date.**
C4: BK | D4: 2022-04-01 | E4: 2023-04-01 | F4: 2023-05-01 | G4: 2023-06-01 | H4: 2023-07-01 | I4: 2023-08-01 | J4: 2023-09-01 | K4: 2023-10-01 | L4: 2023-11-01 | M4: 2023-12-01 | N4: 2024-01-01 | O4: 2024-02-01 | P4: 2024-03-01 | Q4: 2024-04-01 | R4: 2019-05-01
C5: =VLOOKUP(C2,'Control Panel'!H62:I113,2,FALSE) -> Total | D5: 2022-03-01 | E5: 2023-03-01 | F5: 2023-04-01 | G5: 2023-05-01 | H5: 2023-06-01 | I5: 2023-07-01 | J5: 2023-08-01 | K5: 2023-09-01 | L5: 2023-10-01 | M5: 2023-11-01 | N5: 2023-12-01 | O5: 2024-01-01 | P5: 2024-02-01 | Q5: 2024-03-01 | R5: 2019-04-01
C7: ='Control Panel'!B2 -> General Health
A8: ='Control Panel'!B3 -> 01. Listsize | B8: 01. Listsize | C8: ='Control Panel'!C3 -> List Size | D8: =IF($C$5="Total",SUMIFS(OFFSET(REL_D,,MATCH($A8,IND,0)-2),REL_D,D$4,NwID,$C$4),SUMIFS(OFFSET(REL_D,,MATCH($A8,IND,0)-2),REL_D,D$4,OrgID,$C$5)) -> 225099 | E8: =IF($C$5="Total",SUMIFS(OFFSET(REL_D,,MATCH($A8,IND,0)-2),REL_D,E$4,NwID,$C$4),SUMIFS(OFFSET(REL_D,,MATCH($A8,IND,0)-2),REL_D,E$4,OrgID,$C$5)) -> 239986 | F8: =IF($C$5="Total",SUMIFS(OFFSET(REL_D,,MATCH($A8,IND,0)-2),REL_D,F$4,NwID,$C$4),SUMIFS(OFFSET(REL_D,,MATCH($A8,IND,0)-2),REL_D,F$4,OrgID,$C$5)) -> 241218 | G8: =IF($C$5="Total",SUMIFS(OFFSET(REL_D,,MATCH($A8,IND,0)-2),REL_D,G$4,NwID,$C$4),SUMIFS(OFFSET(REL_D,,MATCH($A8,IND,0)-2),REL_D,G$4,OrgID,$C$5)) -> 243475 | H8: =IF($C$5="Total",SUMIFS(OFFSET(REL_D,,MATCH($A8,IND,0)-2),REL_D,H$4,NwID,$C$4),SUMIFS(OFFSET(REL_D,,MATCH($A8,IND,0)-2),REL_D,H$4,OrgID,$C$5)) -> 246141 | I8: =IF($C$5="Total",SUMIFS(OFFSET(REL_D,,MATCH($A8,IND,0)-2),REL_D,I$4,NwID,$C$4),SUMIFS(OFFSET(REL_D,,MATCH($A8,IND,0)-2),REL_D,I$4,OrgID,$C$5)) -> 246893 | J8: =IF($C$5="Total",SUMIFS(OFFSET(REL_D,,MATCH($A8,IND,0)-2),REL_D,J$4,NwID,$C$4),SUMIFS(OFFSET(REL_D,,MATCH($A8,IND,0)-2),REL_D,J$4,OrgID,$C$5)) -> 247527 | K8: =IF($C$5="Total",SUMIFS(OFFSET(REL_D,,MATCH($A8,IND,0)-2),REL_D,K$4,NwID,$C$4),SUMIFS(OFFSET(REL_D,,MATCH($A8,IND,0)-2),REL_D,K$4,OrgID,$C$5)) -> 248024 | L8: =IF($C$5="Total",SUMIFS(OFFSET(REL_D,,MATCH($A8,IND,0)-2),REL_D,L$4,NwID,$C$4),SUMIFS(OFFSET(REL_D,,MATCH($A8,IND,0)-2),REL_D,L$4,OrgID,$C$5)) -> 248925 | M8: =IF($C$5="Total",SUMIFS(OFFSET(REL_D,,MATCH($A8,IND,0)-2),REL_D,M$4,NwID,$C$4),SUMIFS(OFFSET(REL_D,,MATCH($A8,IND,0)-2),REL_D,M$4,OrgID,$C$5)) -> 250077 | N8: =IF($C$5="Total",SUMIFS(OFFSET(REL_D,,MATCH($A8,IND,0)-2),REL_D,N$4,NwID,$C$4),SUMIFS(OFFSET(REL_D,,MATCH($A8,IND,0)-2),REL_D,N$4,OrgID,$C$5)) -> 250784 | O8: =IF($C$5="Total",SUMIFS(OFFSET(REL_D,,MATCH($A8,IND,0)-2),REL_D,O$4,NwID,$C$4),SUMIFS(OFFSET(REL_D,,MATCH($A8,IND,0)-2),REL_D,O$4,OrgID,$C$5)) -> 251345 | P8: =IF($C$5="Total",SUMIFS(OFFSET(REL_D,,MATCH($A8,IND,0)-2),REL_D,P$4,NwID,$C$4),SUMIFS(OFFSET(REL_D,,MATCH($A8,IND,0)-2),REL_D,P$4,OrgID,$C$5)) -> 256658 | Q8: =IF($C$5="Total",SUMIFS(OFFSET(REL_D,,MATCH($A8,IND,0)-2),REL_D,Q$4,NwID,$C$4),SUMIFS(OFFSET(REL_D,,MATCH($A8,IND,0)-2),REL_D,Q$4,OrgID,$C$5)) -> 256485 | R8: =SUMIFS(OFFSET(REL_D,,MATCH($A8,IND,0)-1),REL_D,R$4,IF(LEFT($C$5,1)="N",NwID,OrgID),$C$5) -> 0
A9: ='Control Panel'!B4 -> LDP.01: Aged 16yrs+ | B9: LDP.01: Aged 16yrs+ | C9: ='Control Panel'!D4 -> Age 16+ | D9: =IF($C$5="Total",SUMIFS(OFFSET(REL_D,,MATCH($A9,IND,0)-2),REL_D,D$4,NwID,$C$4),SUMIFS(OFFSET(REL_D,,MATCH($A9,IND,0)-2),REL_D,D$4,OrgID,$C$5)) -> 169392 | E9: =IF($C$5="Total",SUMIFS(OFFSET(REL_D,,MATCH($A9,IND,0)-2),REL_D,E$4,NwID,$C$4),SUMIFS(OFFSET(REL_D,,MATCH($A9,IND,0)-2),REL_D,E$4,OrgID,$C$5)) -> 182753 | F9: =IF($C$5="Total",SUMIFS(OFFSET(REL_D,,MATCH($A9,IND,0)-2),REL_D,F$4,NwID,$C$4),SUMIFS(OFFSET(REL_D,,MATCH($A9,IND,0)-2),REL_D,F$4,OrgID,$C$5)) -> 183824 | G9: =IF($C$5="Total",SUMIFS(OFFSET(REL_D,,MATCH($A9,IND,0)-2),REL_D,G$4,NwID,$C$4),SUMIFS(OFFSET(REL_D,,MATCH($A9,IND,0)-2),REL_D,G$4,OrgID,$C$5)) -> 185578 | H9: =IF($C$5="Total",SUMIFS(OFFSET(REL_D,,MATCH($A9,IND,0)-2),REL_D,H$4,NwID,$C$4),SUMIFS(OFFSET(REL_D,,MATCH($A9,IND,0)-2),REL_D,H$4,OrgID,$C$5)) -> 187811 | I9: =IF($C$5="Total",SUMIFS(OFFSET(REL_D,,MATCH($A9,IND,0)-2),REL_D,I$4,NwID,$C$4),SUMIFS(OFFSET(REL_D,,MATCH($A9,IND,0)-2),REL_D,I$4,OrgID,$C$5)) -> 188521 | J9: =IF($C$5="Total",SUMIFS(OFFSET(REL_D,,MATCH($A9,IND,0)-2),REL_D,J$4,NwID,$C$4),SUMIFS(OFFSET(REL_D,,MATCH($A9,IND,0)-2),REL_D,J$4,OrgID,$C$5)) -> 189123 | K9: =IF($C$5="Total",SUMIFS(OFFSET(REL_D,,MATCH($A9,IND,0)-2),REL_D,K$4,NwID,$C$4),SUMIFS(OFFSET(REL_D,,MATCH($A9,IND,0)-2),REL_D,K$4,OrgID,$C$5)) -> 189669 | L9: =IF($C$5="Total",SUMIFS(OFFSET(REL_D,,MATCH($A9,IND,0)-2),REL_D,L$4,NwID,$C$4),SUMIFS(OFFSET(REL_D,,MATCH($A9,IND,0)-2),REL_D,L$4,OrgID,$C$5)) -> 190550 | M9: =IF($C$5="Total",SUMIFS(OFFSET(REL_D,,MATCH($A9,IND,0)-2),REL_D,M$4,NwID,$C$4),SUMIFS(OFFSET(REL_D,,MATCH($A9,IND,0)-2),REL_D,M$4,OrgID,$C$5)) -> 191562 | N9: =IF($C$5="Total",SUMIFS(OFFSET(REL_D,,MATCH($A9,IND,0)-2),REL_D,N$4,NwID,$C$4),SUMIFS(OFFSET(REL_D,,MATCH($A9,IND,0)-2),REL_D,N$4,OrgID,$C$5)) -> 192293 | O9: =IF($C$5="Total",SUMIFS(OFFSET(REL_D,,MATCH($A9,IND,0)-2),REL_D,O$4,NwID,$C$4),SUMIFS(OFFSET(REL_D,,MATCH($A9,IND,0)-2),REL_D,O$4,OrgID,$C$5)) -> 192764 | P9: =IF($C$5="Total",SUMIFS(OFFSET(REL_D,,MATCH($A9,IND,0)-2),REL_D,P$4,NwID,$C$4),SUMIFS(OFFSET(REL_D,,MATCH($A9,IND,0)-2),REL_D,P$4,OrgID,$C$5)) -> 196951 | Q9: =IF($C$5="Total",SUMIFS(OFFSET(REL_D,,MATCH($A9,IND,0)-2),REL_D,Q$4,NwID,$C$4),SUMIFS(OFFSET(REL_D,,MATCH($A9,IND,0)-2),REL_D,Q$4,OrgID,$C$5)) -> 196891 | R9: =SUMIFS(OFFSET(REL_D,,MATCH($A9,IND,0)-1),REL_D,R$4,IF(LEFT($C$5,1)="N",NwID,OrgID),$C$5) -> 0
A10: ='Control Panel'!B5 -> %LDP.01: Aged 16yrs+ | B10: %LDP.01: Aged 16yrs+ | C10: ='Control Panel'!D5 -> % list size | D10: =IFERROR(D9/D8,"N/A") -> 0.753 | E10: 0.762 | F10: =IFERROR(F9/F8,"N/A") -> 0.762 | G10: =IFERROR(G9/G8,"N/A") -> 0.762 | H10: 0.763 | I10: 0.764 | J10: 0.764 | K10: 0.765 | L10: 0.765 | M10: 0.766 | N10: 0.767 | O10: 0.767 | P10: 0.767 | Q10: 0.768 | R10: =IFERROR(R9/R8,"N/A") -> N/A
A11: ='Control Panel'!B6 -> LDP.01.01: Obesity BMI recorded (last 12m) | B11: LDP.01.01: Obesity BMI recorded (last 12m) | C11: ='Control Panel'!D6 -> 16+ and BMI (last 12m) | D11: =IF($C$5="Total",SUMIFS(OFFSET(REL_D,,MATCH($A11,IND,0)-2),REL_D,D$4,NwID,$C$4),SUMIFS(OFFSET(REL_D,,MATCH($A11,IND,0)-2),REL_D,D$4,OrgID,$C$5)) -> 44008 | E11: =IF($C$5="Total",SUMIFS(OFFSET(REL_D,,MATCH($A11,IND,0)-2),REL_D,E$4,NwID,$C$4),SUMIFS(OFFSET(REL_D,,MATCH($A11,IND,0)-2),REL_D,E$4,OrgID,$C$5)) -> 58543 | F11: =IF($C$5="Total",SUMIFS(OFFSET(REL_D,,MATCH($A11,IND,0)-2),REL_D,F$4,NwID,$C$4),SUMIFS(OFFSET(REL_D,,MATCH($A11,IND,0)-2),REL_D,F$4,OrgID,$C$5)) -> 58852 | G11: =IF($C$5="Total",SUMIFS(OFFSET(REL_D,,MATCH($A11,IND,0)-2),REL_D,G$4,NwID,$C$4),SUMIFS(OFFSET(REL_D,,MATCH($A11,IND,0)-2),REL_D,G$4,OrgID,$C$5)) -> 59109 | H11: =IF($C$5="Total",SUMIFS(OFFSET(REL_D,,MATCH($A11,IND,0)-2),REL_D,H$4,NwID,$C$4),SUMIFS(OFFSET(REL_D,,MATCH($A11,IND,0)-2),REL_D,H$4,OrgID,$C$5)) -> 60184 | I11: =IF($C$5="Total",SUMIFS(OFFSET(REL_D,,MATCH($A11,IND,0)-2),REL_D,I$4,NwID,$C$4),SUMIFS(OFFSET(REL_D,,MATCH($A11,IND,0)-2),REL_D,I$4,OrgID,$C$5)) -> 61316 | J11: =IF($C$5="Total",SUMIFS(OFFSET(REL_D,,MATCH($A11,IND,0)-2),REL_D,J$4,NwID,$C$4),SUMIFS(OFFSET(REL_D,,MATCH($A11,IND,0)-2),REL_D,J$4,OrgID,$C$5)) -> 62673 | K11: =IF($C$5="Total",SUMIFS(OFFSET(REL_D,,MATCH($A11,IND,0)-2),REL_D,K$4,NwID,$C$4),SUMIFS(OFFSET(REL_D,,MATCH($A11,IND,0)-2),REL_D,K$4,OrgID,$C$5)) -> 63885 | L11: =IF($C$5="Total",SUMIFS(OFFSET(REL_D,,MATCH($A11,IND,0)-2),REL_D,L$4,NwID,$C$4),SUMIFS(OFFSET(REL_D,,MATCH($A11,IND,0)-2),REL_D,L$4,OrgID,$C$5)) -> 65491 | M11: =IF($C$5="Total",SUMIFS(OFFSET(REL_D,,MATCH($A11,IND,0)-2),REL_D,M$4,NwID,$C$4),SUMIFS(OFFSET(REL_D,,MATCH($A11,IND,0)-2),REL_D,M$4,OrgID,$C$5)) -> 66212 | N11: =IF($C$5="Total",SUMIFS(OFFSET(REL_D,,MATCH($A11,IND,0)-2),REL_D,N$4,NwID,$C$4),SUMIFS(OFFSET(REL_D,,MATCH($A11,IND,0)-2),REL_D,N$4,OrgID,$C$5)) -> 66685 | O11: =IF($C$5="Total",SUMIFS(OFFSET(REL_D,,MATCH($A11,IND,0)-2),REL_D,O$4,NwID,$C$4),SUMIFS(OFFSET(REL_D,,MATCH($A11,IND,0)-2),REL_D,O$4,OrgID,$C$5)) -> 67531 | P11: =IF($C$5="Total",SUMIFS(OFFSET(REL_D,,MATCH($A11,IND,0)-2),REL_D,P$4,NwID,$C$4),SUMIFS(OFFSET(REL_D,,MATCH($A11,IND,0)-2),REL_D,P$4,OrgID,$C$5)) -> 69524 | Q11: =IF($C$5="Total",SUMIFS(OFFSET(REL_D,,MATCH($A11,IND,0)-2),REL_D,Q$4,NwID,$C$4),SUMIFS(OFFSET(REL_D,,MATCH($A11,IND,0)-2),REL_D,Q$4,OrgID,$C$5)) -> 69960 | R11: =SUMIFS(OFFSET(REL_D,,MATCH($A11,IND,0)-1),REL_D,R$4,IF(LEFT($C$5,1)="N",NwID,OrgID),$C$5) -> 0
A12: ='Control Panel'!B7 -> %LDP.01.01: Obesity BMI recorded (last 12m) | B12: %LDP.01.01: Obesity BMI recorded (last 12m) | C12: ='Control Panel'!D7 -> % 16+ | D12: =IFERROR(D11/D9,"N/A") -> 0.26 | E12: 0.32 | F12: =IFERROR(F11/F9,"N/A") -> 0.32 | G12: =IFERROR(G11/G9,"N/A") -> 0.319 | H12: 0.32 | I12: 0.325 | J12: 0.331 | K12: 0.337 | L12: 0.344 | M12: 0.346 | N12: 0.347 | O12: 0.35 | P12: 0.353 | Q12: 0.355 | R12: =IFERROR(R11/R9,"N/A") -> N/A
A13: ='Control Panel'!B8 -> LDP.01.01.02: Obesity BMI between 30-35 (last 12m) | B13: LDP.01.01.02: Obesity BMI between 30-35 (last 12m) | C13: ='Control Panel'!D8 -> BMI ≥30 & <35 | D13: =IF($C$5="Total",SUMIFS(OFFSET(REL_D,,MATCH($A13,IND,0)-2),REL_D,D$4,NwID,$C$4),SUMIFS(OFFSET(REL_D,,MATCH($A13,IND,0)-2),REL_D,D$4,OrgID,$C$5)) -> 9713 | E13: =IF($C$5="Total",SUMIFS(OFFSET(REL_D,,MATCH($A13,IND,0)-2),REL_D,E$4,NwID,$C$4),SUMIFS(OFFSET(REL_D,,MATCH($A13,IND,0)-2),REL_D,E$4,OrgID,$C$5)) -> 13122 | F13: =IF($C$5="Total",SUMIFS(OFFSET(REL_D,,MATCH($A13,IND,0)-2),REL_D,F$4,NwID,$C$4),SUMIFS(OFFSET(REL_D,,MATCH($A13,IND,0)-2),REL_D,F$4,OrgID,$C$5)) -> 13208 | G13: =IF($C$5="Total",SUMIFS(OFFSET(REL_D,,MATCH($A13,IND,0)-2),REL_D,G$4,NwID,$C$4),SUMIFS(OFFSET(REL_D,,MATCH($A13,IND,0)-2),REL_D,G$4,OrgID,$C$5)) -> 13221 | H13: =IF($C$5="Total",SUMIFS(OFFSET(REL_D,,MATCH($A13,IND,0)-2),REL_D,H$4,NwID,$C$4),SUMIFS(OFFSET(REL_D,,MATCH($A13,IND,0)-2),REL_D,H$4,OrgID,$C$5)) -> 13396 | I13: =IF($C$5="Total",SUMIFS(OFFSET(REL_D,,MATCH($A13,IND,0)-2),REL_D,I$4,NwID,$C$4),SUMIFS(OFFSET(REL_D,,MATCH($A13,IND,0)-2),REL_D,I$4,OrgID,$C$5)) -> 13639 | J13: =IF($C$5="Total",SUMIFS(OFFSET(REL_D,,MATCH($A13,IND,0)-2),REL_D,J$4,NwID,$C$4),SUMIFS(OFFSET(REL_D,,MATCH($A13,IND,0)-2),REL_D,J$4,OrgID,$C$5)) -> 13913 | K13: =IF($C$5="Total",SUMIFS(OFFSET(REL_D,,MATCH($A13,IND,0)-2),REL_D,K$4,NwID,$C$4),SUMIFS(OFFSET(REL_D,,MATCH($A13,IND,0)-2),REL_D,K$4,OrgID,$C$5)) -> 14123 | L13: =IF($C$5="Total",SUMIFS(OFFSET(REL_D,,MATCH($A13,IND,0)-2),REL_D,L$4,NwID,$C$4),SUMIFS(OFFSET(REL_D,,MATCH($A13,IND,0)-2),REL_D,L$4,OrgID,$C$5)) -> 14434 | M13: =IF($C$5="Total",SUMIFS(OFFSET(REL_D,,MATCH($A13,IND,0)-2),REL_D,M$4,NwID,$C$4),SUMIFS(OFFSET(REL_D,,MATCH($A13,IND,0)-2),REL_D,M$4,OrgID,$C$5)) -> 14583 | N13: =IF($C$5="Total",SUMIFS(OFFSET(REL_D,,MATCH($A13,IND,0)-2),REL_D,N$4,NwID,$C$4),SUMIFS(OFFSET(REL_D,,MATCH($A13,IND,0)-2),REL_D,N$4,OrgID,$C$5)) -> 14667 | O13: =IF($C$5="Total",SUMIFS(OFFSET(REL_D,,MATCH($A13,IND,0)-2),REL_D,O$4,NwID,$C$4),SUMIFS(OFFSET(REL_D,,MATCH($A13,IND,0)-2),REL_D,O$4,OrgID,$C$5)) -> 14931 | P13: =IF($C$5="Total",SUMIFS(OFFSET(REL_D,,MATCH($A13,IND,0)-2),REL_D,P$4,NwID,$C$4),SUMIFS(OFFSET(REL_D,,MATCH($A13,IND,0)-2),REL_D,P$4,OrgID,$C$5)) -> 15253 | Q13: =IF($C$5="Total",SUMIFS(OFFSET(REL_D,,MATCH($A13,IND,0)-2),REL_D,Q$4,NwID,$C$4),SUMIFS(OFFSET(REL_D,,MATCH($A13,IND,0)-2),REL_D,Q$4,OrgID,$C$5)) -> 15381 | R13: =SUMIFS(OFFSET(REL_D,,MATCH($A13,IND,0)-1),REL_D,R$4,IF(LEFT($C$5,1)="N",NwID,OrgID),$C$5) -> 0
A14: ='Control Panel'!B9 -> %LDP.01.01.02: Obesity BMI between 30-35 (last 12m) | B14: %LDP.01.01.02: Obesity BMI between 30-35 (last 12m) | C14: ='Control Panel'!D9 -> % 16+ | D14: =IFERROR(D13/D9,"N/A") -> 0.057 | E14: 0.072 | F14: =IFERROR(F13/F9,"N/A") -> 0.072 | G14: =IFERROR(G13/G9,"N/A") -> 0.071 | H14: 0.071 | I14: 0.072 | J14: 0.074 | K14: 0.074 | L14: 0.076 | M14: 0.076 | N14: 0.076 | O14: 0.077 | P14: 0.077 | Q14: 0.078 | R14: =IFERROR(R13/R9,"N/A") -> N/A
A15: ='Control Panel'!B10 -> LDP.01.01.01: Obesity BMI more than or equal to 35 less than 40 (last 12m) | B15: LDP.01.01.01: Obesity BMI more than or equal to 35 less than 40 (last 12m) | C15: ='Control Panel'!D10 -> BMI ≥ 35 & <40 | D15: =IF($C$5="Total",SUMIFS(OFFSET(REL_D,,MATCH($A15,IND,0)-2),REL_D,D$4,NwID,$C$4),SUMIFS(OFFSET(REL_D,,MATCH($A15,IND,0)-2),REL_D,D$4,OrgID,$C$5)) -> 4380 | E15: =IF($C$5="Total",SUMIFS(OFFSET(REL_D,,MATCH($A15,IND,0)-2),REL_D,E$4,NwID,$C$4),SUMIFS(OFFSET(REL_D,,MATCH($A15,IND,0)-2),REL_D,E$4,OrgID,$C$5)) -> 5669 | F15: =IF($C$5="Total",SUMIFS(OFFSET(REL_D,,MATCH($A15,IND,0)-2),REL_D,F$4,NwID,$C$4),SUMIFS(OFFSET(REL_D,,MATCH($A15,IND,0)-2),REL_D,F$4,OrgID,$C$5)) -> 5736 | G15: =IF($C$5="Total",SUMIFS(OFFSET(REL_D,,MATCH($A15,IND,0)-2),REL_D,G$4,NwID,$C$4),SUMIFS(OFFSET(REL_D,,MATCH($A15,IND,0)-2),REL_D,G$4,OrgID,$C$5)) -> 5797 | H15: =IF($C$5="Total",SUMIFS(OFFSET(REL_D,,MATCH($A15,IND,0)-2),REL_D,H$4,NwID,$C$4),SUMIFS(OFFSET(REL_D,,MATCH($A15,IND,0)-2),REL_D,H$4,OrgID,$C$5)) -> 5853 | I15: =IF($C$5="Total",SUMIFS(OFFSET(REL_D,,MATCH($A15,IND,0)-2),REL_D,I$4,NwID,$C$4),SUMIFS(OFFSET(REL_D,,MATCH($A15,IND,0)-2),REL_D,I$4,OrgID,$C$5)) -> 5951 | J15: =IF($C$5="Total",SUMIFS(OFFSET(REL_D,,MATCH($A15,IND,0)-2),REL_D,J$4,NwID,$C$4),SUMIFS(OFFSET(REL_D,,MATCH($A15,IND,0)-2),REL_D,J$4,OrgID,$C$5)) -> 6042 | K15: =IF($C$5="Total",SUMIFS(OFFSET(REL_D,,MATCH($A15,IND,0)-2),REL_D,K$4,NwID,$C$4),SUMIFS(OFFSET(REL_D,,MATCH($A15,IND,0)-2),REL_D,K$4,OrgID,$C$5)) -> 6102 | L15: =IF($C$5="Total",SUMIFS(OFFSET(REL_D,,MATCH($A15,IND,0)-2),REL_D,L$4,NwID,$C$4),SUMIFS(OFFSET(REL_D,,MATCH($A15,IND,0)-2),REL_D,L$4,OrgID,$C$5)) -> 6277 | M15: =IF($C$5="Total",SUMIFS(OFFSET(REL_D,,MATCH($A15,IND,0)-2),REL_D,M$4,NwID,$C$4),SUMIFS(OFFSET(REL_D,,MATCH($A15,IND,0)-2),REL_D,M$4,OrgID,$C$5)) -> 6372 | N15: =IF($C$5="Total",SUMIFS(OFFSET(REL_D,,MATCH($A15,IND,0)-2),REL_D,N$4,NwID,$C$4),SUMIFS(OFFSET(REL_D,,MATCH($A15,IND,0)-2),REL_D,N$4,OrgID,$C$5)) -> 6453 | O15: =IF($C$5="Total",SUMIFS(OFFSET(REL_D,,MATCH($A15,IND,0)-2),REL_D,O$4,NwID,$C$4),SUMIFS(OFFSET(REL_D,,MATCH($A15,IND,0)-2),REL_D,O$4,OrgID,$C$5)) -> 6513 | P15: =IF($C$5="Total",SUMIFS(OFFSET(REL_D,,MATCH($A15,IND,0)-2),REL_D,P$4,NwID,$C$4),SUMIFS(OFFSET(REL_D,,MATCH($A15,IND,0)-2),REL_D,P$4,OrgID,$C$5)) -> 6698 | Q15: =IF($C$5="Total",SUMIFS(OFFSET(REL_D,,MATCH($A15,IND,0)-2),REL_D,Q$4,NwID,$C$4),SUMIFS(OFFSET(REL_D,,MATCH($A15,IND,0)-2),REL_D,Q$4,OrgID,$C$5)) -> 6765 | R15: =SUMIFS(OFFSET(REL_D,,MATCH($A15,IND,0)-1),REL_D,R$4,IF(LEFT($C$5,1)="N",NwID,OrgID),$C$5) -> 0
A16: ='Control Panel'!B11 -> %LDP.01.01.01: Obesity BMI more than or equal to 35 less than 40 (last 12m) | B16: %LDP.01.01.01: Obesity BMI more than or equal to 35 less than 40 (last 12m) | C16: ='Control Panel'!D11 -> %16+ | D16: =IFERROR(D15/D9,"N/A") -> 0.026 | E16: 0.031 | F16: =IFERROR(F15/F9,"N/A") -> 0.031 | G16: =IFERROR(G15/G9,"N/A") -> 0.031 | H16: 0.031 | I16: 0.032 | J16: 0.032 | K16: 0.032 | L16: 0.033 | M16: 0.033 | N16: 0.034 | O16: 0.034 | P16: 0.034 | Q16: 0.034 | R16: =IFERROR(R15/R9,"N/A") -> N/A
A17: ='Control Panel'!B12 -> LDP.01.01.03: Obesity BMI equal to or over 40 (last 12m) | B17: LDP.01.01.03: Obesity BMI equal to or over 40 (last 12m) | C17: ='Control Panel'!D12 -> BMI ≥ 40 | D17: =IF($C$5="Total",SUMIFS(OFFSET(REL_D,,MATCH($A17,IND,0)-2),REL_D,D$4,NwID,$C$4),SUMIFS(OFFSET(REL_D,,MATCH($A17,IND,0)-2),REL_D,D$4,OrgID,$C$5)) -> 2942 | E17: =IF($C$5="Total",SUMIFS(OFFSET(REL_D,,MATCH($A17,IND,0)-2),REL_D,E$4,NwID,$C$4),SUMIFS(OFFSET(REL_D,,MATCH($A17,IND,0)-2),REL_D,E$4,OrgID,$C$5)) -> 3738 | F17: =IF($C$5="Total",SUMIFS(OFFSET(REL_D,,MATCH($A17,IND,0)-2),REL_D,F$4,NwID,$C$4),SUMIFS(OFFSET(REL_D,,MATCH($A17,IND,0)-2),REL_D,F$4,OrgID,$C$5)) -> 3748 | G17: =IF($C$5="Total",SUMIFS(OFFSET(REL_D,,MATCH($A17,IND,0)-2),REL_D,G$4,NwID,$C$4),SUMIFS(OFFSET(REL_D,,MATCH($A17,IND,0)-2),REL_D,G$4,OrgID,$C$5)) -> 3763 | H17: =IF($C$5="Total",SUMIFS(OFFSET(REL_D,,MATCH($A17,IND,0)-2),REL_D,H$4,NwID,$C$4),SUMIFS(OFFSET(REL_D,,MATCH($A17,IND,0)-2),REL_D,H$4,OrgID,$C$5)) -> 3850 | I17: =IF($C$5="Total",SUMIFS(OFFSET(REL_D,,MATCH($A17,IND,0)-2),REL_D,I$4,NwID,$C$4),SUMIFS(OFFSET(REL_D,,MATCH($A17,IND,0)-2),REL_D,I$4,OrgID,$C$5)) -> 3899 | J17: =IF($C$5="Total",SUMIFS(OFFSET(REL_D,,MATCH($A17,IND,0)-2),REL_D,J$4,NwID,$C$4),SUMIFS(OFFSET(REL_D,,MATCH($A17,IND,0)-2),REL_D,J$4,OrgID,$C$5)) -> 3987 | K17: =IF($C$5="Total",SUMIFS(OFFSET(REL_D,,MATCH($A17,IND,0)-2),REL_D,K$4,NwID,$C$4),SUMIFS(OFFSET(REL_D,,MATCH($A17,IND,0)-2),REL_D,K$4,OrgID,$C$5)) -> 4045 | L17: =IF($C$5="Total",SUMIFS(OFFSET(REL_D,,MATCH($A17,IND,0)-2),REL_D,L$4,NwID,$C$4),SUMIFS(OFFSET(REL_D,,MATCH($A17,IND,0)-2),REL_D,L$4,OrgID,$C$5)) -> 4051 | M17: =IF($C$5="Total",SUMIFS(OFFSET(REL_D,,MATCH($A17,IND,0)-2),REL_D,M$4,NwID,$C$4),SUMIFS(OFFSET(REL_D,,MATCH($A17,IND,0)-2),REL_D,M$4,OrgID,$C$5)) -> 4081 | N17: =IF($C$5="Total",SUMIFS(OFFSET(REL_D,,MATCH($A17,IND,0)-2),REL_D,N$4,NwID,$C$4),SUMIFS(OFFSET(REL_D,,MATCH($A17,IND,0)-2),REL_D,N$4,OrgID,$C$5)) -> 4133 | O17: =IF($C$5="Total",SUMIFS(OFFSET(REL_D,,MATCH($A17,IND,0)-2),REL_D,O$4,NwID,$C$4),SUMIFS(OFFSET(REL_D,,MATCH($A17,IND,0)-2),REL_D,O$4,OrgID,$C$5)) -> 4188 | P17: =IF($C$5="Total",SUMIFS(OFFSET(REL_D,,MATCH($A17,IND,0)-2),REL_D,P$4,NwID,$C$4),SUMIFS(OFFSET(REL_D,,MATCH($A17,IND,0)-2),REL_D,P$4,OrgID,$C$5)) -> 4287 | Q17: =IF($C$5="Total",SUMIFS(OFFSET(REL_D,,MATCH($A17,IND,0)-2),REL_D,Q$4,NwID,$C$4),SUMIFS(OFFSET(REL_D,,MATCH($A17,IND,0)-2),REL_D,Q$4,OrgID,$C$5)) -> 4351 | R17: =SUMIFS(OFFSET(REL_D,,MATCH($A17,IND,0)-1),REL_D,R$4,IF(LEFT($C$5,1)="N",NwID,OrgID),$C$5) -> 0
A18: ='Control Panel'!B13 -> %LDP.01.01.03: Obesity BMI equal to or over 40 (last 12m) | B18: %LDP.01.01.03: Obesity BMI equal to or over 40 (last 12m) | C18: ='Control Panel'!D13 -> %16+ | D18: =IFERROR(D17/D9,"N/A") -> 0.017 | E18: 0.02 | F18: =IFERROR(F17/F9,"N/A") -> 0.02 | G18: =IFERROR(G17/G9,"N/A") -> 0.02 | H18: 0.02 | I18: 0.021 | J18: 0.021 | K18: 0.021 | L18: 0.021 | M18: 0.021 | N18: 0.021 | O18: 0.022 | P18: 0.022 | Q18: 0.022 | R18: =IFERROR(R17/R9,"N/A") -> N/A
A19: ='Control Panel'!B14 -> LDP.01.02: Smoking Status (last 12m) or Never Smoked (25yrs+) | B19: LDP.01.02: Smoking Status (last 12m) or Never Smoked (25yrs+) | C19: ='Control Panel'!D14 -> Smoking status (last 12m) incl. never smoked | D19: =IF($C$5="Total",SUMIFS(OFFSET(REL_D,,MATCH($A19,IND,0)-2),REL_D,D$4,NwID,$C$4),SUMIFS(OFFSET(REL_D,,MATCH($A19,IND,0)-2),REL_D,D$4,OrgID,$C$5)) -> 110517 | E19: =IF($C$5="Total",SUMIFS(OFFSET(REL_D,,MATCH($A19,IND,0)-2),REL_D,E$4,NwID,$C$4),SUMIFS(OFFSET(REL_D,,MATCH($A19,IND,0)-2),REL_D,E$4,OrgID,$C$5)) -> 122141 | F19: =IF($C$5="Total",SUMIFS(OFFSET(REL_D,,MATCH($A19,IND,0)-2),REL_D,F$4,NwID,$C$4),SUMIFS(OFFSET(REL_D,,MATCH($A19,IND,0)-2),REL_D,F$4,OrgID,$C$5)) -> 122493 | G19: =IF($C$5="Total",SUMIFS(OFFSET(REL_D,,MATCH($A19,IND,0)-2),REL_D,G$4,NwID,$C$4),SUMIFS(OFFSET(REL_D,,MATCH($A19,IND,0)-2),REL_D,G$4,OrgID,$C$5)) -> 123347 | H19: =IF($C$5="Total",SUMIFS(OFFSET(REL_D,,MATCH($A19,IND,0)-2),REL_D,H$4,NwID,$C$4),SUMIFS(OFFSET(REL_D,,MATCH($A19,IND,0)-2),REL_D,H$4,OrgID,$C$5)) -> 124648 | I19: =IF($C$5="Total",SUMIFS(OFFSET(REL_D,,MATCH($A19,IND,0)-2),REL_D,I$4,NwID,$C$4),SUMIFS(OFFSET(REL_D,,MATCH($A19,IND,0)-2),REL_D,I$4,OrgID,$C$5)) -> 124374 | J19: =IF($C$5="Total",SUMIFS(OFFSET(REL_D,,MATCH($A19,IND,0)-2),REL_D,J$4,NwID,$C$4),SUMIFS(OFFSET(REL_D,,MATCH($A19,IND,0)-2),REL_D,J$4,OrgID,$C$5)) -> 124556 | K19: =IF($C$5="Total",SUMIFS(OFFSET(REL_D,,MATCH($A19,IND,0)-2),REL_D,K$4,NwID,$C$4),SUMIFS(OFFSET(REL_D,,MATCH($A19,IND,0)-2),REL_D,K$4,OrgID,$C$5)) -> 125147 | L19: =IF($C$5="Total",SUMIFS(OFFSET(REL_D,,MATCH($A19,IND,0)-2),REL_D,L$4,NwID,$C$4),SUMIFS(OFFSET(REL_D,,MATCH($A19,IND,0)-2),REL_D,L$4,OrgID,$C$5)) -> 125933 | M19: =IF($C$5="Total",SUMIFS(OFFSET(REL_D,,MATCH($A19,IND,0)-2),REL_D,M$4,NwID,$C$4),SUMIFS(OFFSET(REL_D,,MATCH($A19,IND,0)-2),REL_D,M$4,OrgID,$C$5)) -> 126676 | N19: =IF($C$5="Total",SUMIFS(OFFSET(REL_D,,MATCH($A19,IND,0)-2),REL_D,N$4,NwID,$C$4),SUMIFS(OFFSET(REL_D,,MATCH($A19,IND,0)-2),REL_D,N$4,OrgID,$C$5)) -> 127062 | O19: =IF($C$5="Total",SUMIFS(OFFSET(REL_D,,MATCH($A19,IND,0)-2),REL_D,O$4,NwID,$C$4),SUMIFS(OFFSET(REL_D,,MATCH($A19,IND,0)-2),REL_D,O$4,OrgID,$C$5)) -> 127576 | P19: =IF($C$5="Total",SUMIFS(OFFSET(REL_D,,MATCH($A19,IND,0)-2),REL_D,P$4,NwID,$C$4),SUMIFS(OFFSET(REL_D,,MATCH($A19,IND,0)-2),REL_D,P$4,OrgID,$C$5)) -> 130299 | Q19: =IF($C$5="Total",SUMIFS(OFFSET(REL_D,,MATCH($A19,IND,0)-2),REL_D,Q$4,NwID,$C$4),SUMIFS(OFFSET(REL_D,,MATCH($A19,IND,0)-2),REL_D,Q$4,OrgID,$C$5)) -> 130198 | R19: =SUMIFS(OFFSET(REL_D,,MATCH($A19,IND,0)-1),REL_D,R$4,IF(LEFT($C$5,1)="N",NwID,OrgID),$C$5) -> 0
A20: ='Control Panel'!B15 -> %LDP.01.02: Smoking Status (last 12m) or Never Smoked (25yrs+) | B20: %LDP.01.02: Smoking Status (last 12m) or Never Smoked (25yrs+) | C20: ='Control Panel'!D15 -> % 16+ | D20: =IFERROR(D19/D9,"N/A") -> 0.652 | E20: 0.668 | F20: =IFERROR(F19/F9,"N/A") -> 0.666 | G20: =IFERROR(G19/G9,"N/A") -> 0.665 | H20: 0.664 | I20: 0.66 | J20: 0.659 | K20: 0.66 | L20: 0.661 | M20: 0.661 | N20: 0.661 | O20: 0.662 | P20: 0.662 | Q20: 0.661 | R20: =IFERROR(R19/R9,"N/A") -> N/A
A21: ='Control Panel'!B16 -> LDP.01.03: Current Smoker (last 12m) | B21: LDP.01.03: Current Smoker (last 12m) | C21: ='Control Panel'!D16 -> Age 16+ and current smoker (last 12m) | D21: =IF($C$5="Total",SUMIFS(OFFSET(REL_D,,MATCH($A21,IND,0)-2),REL_D,D$4,NwID,$C$4),SUMIFS(OFFSET(REL_D,,MATCH($A21,IND,0)-2),REL_D,D$4,OrgID,$C$5)) -> 10964 | E21: =IF($C$5="Total",SUMIFS(OFFSET(REL_D,,MATCH($A21,IND,0)-2),REL_D,E$4,NwID,$C$4),SUMIFS(OFFSET(REL_D,,MATCH($A21,IND,0)-2),REL_D,E$4,OrgID,$C$5)) -> 13231 | F21: =IF($C$5="Total",SUMIFS(OFFSET(REL_D,,MATCH($A21,IND,0)-2),REL_D,F$4,NwID,$C$4),SUMIFS(OFFSET(REL_D,,MATCH($A21,IND,0)-2),REL_D,F$4,OrgID,$C$5)) -> 13162 | G21: =IF($C$5="Total",SUMIFS(OFFSET(REL_D,,MATCH($A21,IND,0)-2),REL_D,G$4,NwID,$C$4),SUMIFS(OFFSET(REL_D,,MATCH($A21,IND,0)-2),REL_D,G$4,OrgID,$C$5)) -> 12912 | H21: =IF($C$5="Total",SUMIFS(OFFSET(REL_D,,MATCH($A21,IND,0)-2),REL_D,H$4,NwID,$C$4),SUMIFS(OFFSET(REL_D,,MATCH($A21,IND,0)-2),REL_D,H$4,OrgID,$C$5)) -> 12910 | I21: =IF($C$5="Total",SUMIFS(OFFSET(REL_D,,MATCH($A21,IND,0)-2),REL_D,I$4,NwID,$C$4),SUMIFS(OFFSET(REL_D,,MATCH($A21,IND,0)-2),REL_D,I$4,OrgID,$C$5)) -> 12613 | J21: =IF($C$5="Total",SUMIFS(OFFSET(REL_D,,MATCH($A21,IND,0)-2),REL_D,J$4,NwID,$C$4),SUMIFS(OFFSET(REL_D,,MATCH($A21,IND,0)-2),REL_D,J$4,OrgID,$C$5)) -> 12441 | K21: =IF($C$5="Total",SUMIFS(OFFSET(REL_D,,MATCH($A21,IND,0)-2),REL_D,K$4,NwID,$C$4),SUMIFS(OFFSET(REL_D,,MATCH($A21,IND,0)-2),REL_D,K$4,OrgID,$C$5)) -> 12506 | L21: =IF($C$5="Total",SUMIFS(OFFSET(REL_D,,MATCH($A21,IND,0)-2),REL_D,L$4,NwID,$C$4),SUMIFS(OFFSET(REL_D,,MATCH($A21,IND,0)-2),REL_D,L$4,OrgID,$C$5)) -> 12733 | M21: =IF($C$5="Total",SUMIFS(OFFSET(REL_D,,MATCH($A21,IND,0)-2),REL_D,M$4,NwID,$C$4),SUMIFS(OFFSET(REL_D,,MATCH($A21,IND,0)-2),REL_D,M$4,OrgID,$C$5)) -> 12768 | N21: =IF($C$5="Total",SUMIFS(OFFSET(REL_D,,MATCH($A21,IND,0)-2),REL_D,N$4,NwID,$C$4),SUMIFS(OFFSET(REL_D,,MATCH($A21,IND,0)-2),REL_D,N$4,OrgID,$C$5)) -> 12771 | O21: =IF($C$5="Total",SUMIFS(OFFSET(REL_D,,MATCH($A21,IND,0)-2),REL_D,O$4,NwID,$C$4),SUMIFS(OFFSET(REL_D,,MATCH($A21,IND,0)-2),REL_D,O$4,OrgID,$C$5)) -> 12773 | P21: =IF($C$5="Total",SUMIFS(OFFSET(REL_D,,MATCH($A21,IND,0)-2),REL_D,P$4,NwID,$C$4),SUMIFS(OFFSET(REL_D,,MATCH($A21,IND,0)-2),REL_D,P$4,OrgID,$C$5)) -> 12936 | Q21: =IF($C$5="Total",SUMIFS(OFFSET(REL_D,,MATCH($A21,IND,0)-2),REL_D,Q$4,NwID,$C$4),SUMIFS(OFFSET(REL_D,,MATCH($A21,IND,0)-2),REL_D,Q$4,OrgID,$C$5)) -> 12763 | R21: =SUMIFS(OFFSET(REL_D,,MATCH($A21,IND,0)-1),REL_D,R$4,IF(LEFT($C$5,1)="N",NwID,OrgID),$C$5) -> 0
A22: ='Control Panel'!B17 -> %LDP.01.03: Current Smoker (last 12m) | B22: %LDP.01.03: Current Smoker (last 12m) | C22: ='Control Panel'!D17 -> % 16+ | D22: =IFERROR(D21/D9,"N/A") -> 0.065 | E22: 0.072 | F22: =IFERROR(F21/F9,"N/A") -> 0.072 | G22: =IFERROR(G21/G9,"N/A") -> 0.07 | H22: 0.069 | I22: 0.067 | J22: 0.066 | K22: 0.066 | L22: 0.067 | M22: 0.067 | N22: 0.066 | O22: 0.066 | P22: 0.066 | Q22: 0.065 | R22: =IFERROR(R21/R9,"N/A") -> N/A
A23: ='Control Panel'!B18 -> Hypertension | B23: Hypertension | C23: ='Control Panel'!B18 -> Hypertension
A24: ='Control Panel'!B19 -> LDP.02: Hypertension Register | B24: LDP.02: Hypertension Register | C24: ='Control Panel'!D19 -> Hypertension Register | D24: =IF($C$5="Total",SUMIFS(OFFSET(REL_D,,MATCH($A24,IND,0)-2),REL_D,D$4,NwID,$C$4),SUMIFS(OFFSET(REL_D,,MATCH($A24,IND,0)-2),REL_D,D$4,OrgID,$C$5)) -> 25094 | E24: =IF($C$5="Total",SUMIFS(OFFSET(REL_D,,MATCH($A24,IND,0)-2),REL_D,E$4,NwID,$C$4),SUMIFS(OFFSET(REL_D,,MATCH($A24,IND,0)-2),REL_D,E$4,OrgID,$C$5)) -> 28286 | F24: =IF($C$5="Total",SUMIFS(OFFSET(REL_D,,MATCH($A24,IND,0)-2),REL_D,F$4,NwID,$C$4),SUMIFS(OFFSET(REL_D,,MATCH($A24,IND,0)-2),REL_D,F$4,OrgID,$C$5)) -> 28437 | G24: =IF($C$5="Total",SUMIFS(OFFSET(REL_D,,MATCH($A24,IND,0)-2),REL_D,G$4,NwID,$C$4),SUMIFS(OFFSET(REL_D,,MATCH($A24,IND,0)-2),REL_D,G$4,OrgID,$C$5)) -> 28716 | H24: =IF($C$5="Total",SUMIFS(OFFSET(REL_D,,MATCH($A24,IND,0)-2),REL_D,H$4,NwID,$C$4),SUMIFS(OFFSET(REL_D,,MATCH($A24,IND,0)-2),REL_D,H$4,OrgID,$C$5)) -> 29018 | I24: =IF($C$5="Total",SUMIFS(OFFSET(REL_D,,MATCH($A24,IND,0)-2),REL_D,I$4,NwID,$C$4),SUMIFS(OFFSET(REL_D,,MATCH($A24,IND,0)-2),REL_D,I$4,OrgID,$C$5)) -> 29230 | J24: =IF($C$5="Total",SUMIFS(OFFSET(REL_D,,MATCH($A24,IND,0)-2),REL_D,J$4,NwID,$C$4),SUMIFS(OFFSET(REL_D,,MATCH($A24,IND,0)-2),REL_D,J$4,OrgID,$C$5)) -> 29300 | K24: =IF($C$5="Total",SUMIFS(OFFSET(REL_D,,MATCH($A24,IND,0)-2),REL_D,K$4,NwID,$C$4),SUMIFS(OFFSET(REL_D,,MATCH($A24,IND,0)-2),REL_D,K$4,OrgID,$C$5)) -> 29380 | L24: =IF($C$5="Total",SUMIFS(OFFSET(REL_D,,MATCH($A24,IND,0)-2),REL_D,L$4,NwID,$C$4),SUMIFS(OFFSET(REL_D,,MATCH($A24,IND,0)-2),REL_D,L$4,OrgID,$C$5)) -> 29507 | M24: =IF($C$5="Total",SUMIFS(OFFSET(REL_D,,MATCH($A24,IND,0)-2),REL_D,M$4,NwID,$C$4),SUMIFS(OFFSET(REL_D,,MATCH($A24,IND,0)-2),REL_D,M$4,OrgID,$C$5)) -> 29604 | N24: =IF($C$5="Total",SUMIFS(OFFSET(REL_D,,MATCH($A24,IND,0)-2),REL_D,N$4,NwID,$C$4),SUMIFS(OFFSET(REL_D,,MATCH($A24,IND,0)-2),REL_D,N$4,OrgID,$C$5)) -> 29695 | O24: =IF($C$5="Total",SUMIFS(OFFSET(REL_D,,MATCH($A24,IND,0)-2),REL_D,O$4,NwID,$C$4),SUMIFS(OFFSET(REL_D,,MATCH($A24,IND,0)-2),REL_D,O$4,OrgID,$C$5)) -> 29729 | P24: =IF($C$5="Total",SUMIFS(OFFSET(REL_D,,MATCH($A24,IND,0)-2),REL_D,P$4,NwID,$C$4),SUMIFS(OFFSET(REL_D,,MATCH($A24,IND,0)-2),REL_D,P$4,OrgID,$C$5)) -> 30299 | Q24: =IF($C$5="Total",SUMIFS(OFFSET(REL_D,,MATCH($A24,IND,0)-2),REL_D,Q$4,NwID,$C$4),SUMIFS(OFFSET(REL_D,,MATCH($A24,IND,0)-2),REL_D,Q$4,OrgID,$C$5)) -> 30654 | R24: =SUMIFS(OFFSET(REL_D,,MATCH($A24,IND,0)-1),REL_D,R$4,IF(LEFT($C$5,1)="N",NwID,OrgID),$C$5) -> 0
A25: ='Control Panel'!B20 -> %LDP.02: Hypertension Register | B25: %LDP.02: Hypertension Register | C25: ='Control Panel'!D20 -> % list size | D25: =IFERROR(D24/D8,"N/A") -> 0.111 | E25: 0.118 | F25: =IFERROR(F24/F8,"N/A") -> 0.118 | G25: =IFERROR(G24/G8,"N/A") -> 0.118 | H25: 0.118 | I25: 0.118 | J25: 0.118 | K25: 0.118 | L25: 0.119 | M25: 0.118 | N25: 0.118 | O25: 0.118 | P25: 0.118 | Q25: 0.12 | R25: =IFERROR(R24/R8,"N/A") -> N/A
A26: ='Control Panel'!B21 -> LDP.02.02: Hypertension BP recorded (last 12m) | B26: LDP.02.02: Hypertension BP recorded (last 12m) | C26: ='Control Panel'!D21 -> Hypertension and BP (last 12m) | D26: =IF($C$5="Total",SUMIFS(OFFSET(REL_D,,MATCH($A26,IND,0)-2),REL_D,D$4,NwID,$C$4),SUMIFS(OFFSET(REL_D,,MATCH($A26,IND,0)-2),REL_D,D$4,OrgID,$C$5)) -> 18213 | E26: =IF($C$5="Total",SUMIFS(OFFSET(REL_D,,MATCH($A26,IND,0)-2),REL_D,E$4,NwID,$C$4),SUMIFS(OFFSET(REL_D,,MATCH($A26,IND,0)-2),REL_D,E$4,OrgID,$C$5)) -> 24364 | F26: =IF($C$5="Total",SUMIFS(OFFSET(REL_D,,MATCH($A26,IND,0)-2),REL_D,F$4,NwID,$C$4),SUMIFS(OFFSET(REL_D,,MATCH($A26,IND,0)-2),REL_D,F$4,OrgID,$C$5)) -> 24414 | G26: =IF($C$5="Total",SUMIFS(OFFSET(REL_D,,MATCH($A26,IND,0)-2),REL_D,G$4,NwID,$C$4),SUMIFS(OFFSET(REL_D,,MATCH($A26,IND,0)-2),REL_D,G$4,OrgID,$C$5)) -> 24270 | H26: =IF($C$5="Total",SUMIFS(OFFSET(REL_D,,MATCH($A26,IND,0)-2),REL_D,H$4,NwID,$C$4),SUMIFS(OFFSET(REL_D,,MATCH($A26,IND,0)-2),REL_D,H$4,OrgID,$C$5)) -> 24413 | I26: =IF($C$5="Total",SUMIFS(OFFSET(REL_D,,MATCH($A26,IND,0)-2),REL_D,I$4,NwID,$C$4),SUMIFS(OFFSET(REL_D,,MATCH($A26,IND,0)-2),REL_D,I$4,OrgID,$C$5)) -> 24607 | J26: =IF($C$5="Total",SUMIFS(OFFSET(REL_D,,MATCH($A26,IND,0)-2),REL_D,J$4,NwID,$C$4),SUMIFS(OFFSET(REL_D,,MATCH($A26,IND,0)-2),REL_D,J$4,OrgID,$C$5)) -> 24669 | K26: =IF($C$5="Total",SUMIFS(OFFSET(REL_D,,MATCH($A26,IND,0)-2),REL_D,K$4,NwID,$C$4),SUMIFS(OFFSET(REL_D,,MATCH($A26,IND,0)-2),REL_D,K$4,OrgID,$C$5)) -> 24677 | L26: =IF($C$5="Total",SUMIFS(OFFSET(REL_D,,MATCH($A26,IND,0)-2),REL_D,L$4,NwID,$C$4),SUMIFS(OFFSET(REL_D,,MATCH($A26,IND,0)-2),REL_D,L$4,OrgID,$C$5)) -> 24771 | M26: =IF($C$5="Total",SUMIFS(OFFSET(REL_D,,MATCH($A26,IND,0)-2),REL_D,M$4,NwID,$C$4),SUMIFS(OFFSET(REL_D,,MATCH($A26,IND,0)-2),REL_D,M$4,OrgID,$C$5)) -> 25159 | N26: =IF($C$5="Total",SUMIFS(OFFSET(REL_D,,MATCH($A26,IND,0)-2),REL_D,N$4,NwID,$C$4),SUMIFS(OFFSET(REL_D,,MATCH($A26,IND,0)-2),REL_D,N$4,OrgID,$C$5)) -> 25500 | O26: =IF($C$5="Total",SUMIFS(OFFSET(REL_D,,MATCH($A26,IND,0)-2),REL_D,O$4,NwID,$C$4),SUMIFS(OFFSET(REL_D,,MATCH($A26,IND,0)-2),REL_D,O$4,OrgID,$C$5)) -> 25765 | P26: =IF($C$5="Total",SUMIFS(OFFSET(REL_D,,MATCH($A26,IND,0)-2),REL_D,P$4,NwID,$C$4),SUMIFS(OFFSET(REL_D,,MATCH($A26,IND,0)-2),REL_D,P$4,OrgID,$C$5)) -> 26631 | Q26: =IF($C$5="Total",SUMIFS(OFFSET(REL_D,,MATCH($A26,IND,0)-2),REL_D,Q$4,NwID,$C$4),SUMIFS(OFFSET(REL_D,,MATCH($A26,IND,0)-2),REL_D,Q$4,OrgID,$C$5)) -> 26629 | R26: =SUMIFS(OFFSET(REL_D,,MATCH($A26,IND,0)-1),REL_D,R$4,IF(LEFT($C$5,1)="N",NwID,OrgID),$C$5) -> 0
A27: ='Control Panel'!B22 -> %LDP.02.02: Hypertension BP recorded (last 12m) | B27: %LDP.02.02: Hypertension BP recorded (last 12m) | C27: ='Control Panel'!D22 -> % Hypertension Register | D27: =IFERROR(D26/D24,"N/A") -> 0.726 | E27: 0.861 | F27: =IFERROR(F26/F24,"N/A") -> 0.859 | G27: =IFERROR(G26/G24,"N/A") -> 0.845 | H27: 0.841 | I27: 0.842 | J27: 0.842 | K27: 0.84 | L27: 0.839 | M27: 0.85 | N27: 0.859 | O27: 0.867 | P27: 0.879 | Q27: 0.869 | R27: =IFERROR(R26/R24,"N/A") -> N/A
A28: ='Control Panel'!B23 -> LDP.02.01: Hypertension and BP < 140/90 (age under 80) < 150/90 (Age 80+) | B28: LDP.02.01: Hypertension and BP < 140/90 (age under 80) < 150/90 (Age 80+) | C28: ='Control Panel'!D23 -> Hypertension and BP < 140/90 (Patients aged under 80) < 150/90 ( Aged 80 and over) (last 12m) | D28: =IF($C$5="Total",SUMIFS(OFFSET(REL_D,,MATCH($A28,IND,0)-2),REL_D,D$4,NwID,$C$4),SUMIFS(OFFSET(REL_D,,MATCH($A28,IND,0)-2),REL_D,D$4,OrgID,$C$5)) -> 12250 | E28: =IF($C$5="Total",SUMIFS(OFFSET(REL_D,,MATCH($A28,IND,0)-2),REL_D,E$4,NwID,$C$4),SUMIFS(OFFSET(REL_D,,MATCH($A28,IND,0)-2),REL_D,E$4,OrgID,$C$5)) -> 17316 | F28: =IF($C$5="Total",SUMIFS(OFFSET(REL_D,,MATCH($A28,IND,0)-2),REL_D,F$4,NwID,$C$4),SUMIFS(OFFSET(REL_D,,MATCH($A28,IND,0)-2),REL_D,F$4,OrgID,$C$5)) -> 17265 | G28: =IF($C$5="Total",SUMIFS(OFFSET(REL_D,,MATCH($A28,IND,0)-2),REL_D,G$4,NwID,$C$4),SUMIFS(OFFSET(REL_D,,MATCH($A28,IND,0)-2),REL_D,G$4,OrgID,$C$5)) -> 17070 | H28: =IF($C$5="Total",SUMIFS(OFFSET(REL_D,,MATCH($A28,IND,0)-2),REL_D,H$4,NwID,$C$4),SUMIFS(OFFSET(REL_D,,MATCH($A28,IND,0)-2),REL_D,H$4,OrgID,$C$5)) -> 17204 | I28: =IF($C$5="Total",SUMIFS(OFFSET(REL_D,,MATCH($A28,IND,0)-2),REL_D,I$4,NwID,$C$4),SUMIFS(OFFSET(REL_D,,MATCH($A28,IND,0)-2),REL_D,I$4,OrgID,$C$5)) -> 17392 | J28: =IF($C$5="Total",SUMIFS(OFFSET(REL_D,,MATCH($A28,IND,0)-2),REL_D,J$4,NwID,$C$4),SUMIFS(OFFSET(REL_D,,MATCH($A28,IND,0)-2),REL_D,J$4,OrgID,$C$5)) -> 17490 | K28: =IF($C$5="Total",SUMIFS(OFFSET(REL_D,,MATCH($A28,IND,0)-2),REL_D,K$4,NwID,$C$4),SUMIFS(OFFSET(REL_D,,MATCH($A28,IND,0)-2),REL_D,K$4,OrgID,$C$5)) -> 17473 | L28: =IF($C$5="Total",SUMIFS(OFFSET(REL_D,,MATCH($A28,IND,0)-2),REL_D,L$4,NwID,$C$4),SUMIFS(OFFSET(REL_D,,MATCH($A28,IND,0)-2),REL_D,L$4,OrgID,$C$5)) -> 17444 | M28: =IF($C$5="Total",SUMIFS(OFFSET(REL_D,,MATCH($A28,IND,0)-2),REL_D,M$4,NwID,$C$4),SUMIFS(OFFSET(REL_D,,MATCH($A28,IND,0)-2),REL_D,M$4,OrgID,$C$5)) -> 17695 | N28: =IF($C$5="Total",SUMIFS(OFFSET(REL_D,,MATCH($A28,IND,0)-2),REL_D,N$4,NwID,$C$4),SUMIFS(OFFSET(REL_D,,MATCH($A28,IND,0)-2),REL_D,N$4,OrgID,$C$5)) -> 17953 | O28: =IF($C$5="Total",SUMIFS(OFFSET(REL_D,,MATCH($A28,IND,0)-2),REL_D,O$4,NwID,$C$4),SUMIFS(OFFSET(REL_D,,MATCH($A28,IND,0)-2),REL_D,O$4,OrgID,$C$5)) -> 18210 | P28: =IF($C$5="Total",SUMIFS(OFFSET(REL_D,,MATCH($A28,IND,0)-2),REL_D,P$4,NwID,$C$4),SUMIFS(OFFSET(REL_D,,MATCH($A28,IND,0)-2),REL_D,P$4,OrgID,$C$5)) -> 18908 | Q28: =IF($C$5="Total",SUMIFS(OFFSET(REL_D,,MATCH($A28,IND,0)-2),REL_D,Q$4,NwID,$C$4),SUMIFS(OFFSET(REL_D,,MATCH($A28,IND,0)-2),REL_D,Q$4,OrgID,$C$5)) -> 18991 | R28: =SUMIFS(OFFSET(REL_D,,MATCH($A28,IND,0)-1),REL_D,R$4,IF(LEFT($C$5,1)="N",NwID,OrgID),$C$5) -> 0
A29: ='Control Panel'!B24 -> %LDP.02.01: Hypertension and BP < 140/90 (age under 80) < 150/90 (Age 80+) | B29: %LDP.02.01: Hypertension and BP < 140/90 (age under 80) < 150/90 (Age 80+) | C29: ='Control Panel'!D24 -> % Hypertension Register | D29: =IFERROR(D28/D24,"N/A") -> 0.488 | E29: 0.612 | F29: =IFERROR(F28/F24,"N/A") -> 0.607 | G29: =IFERROR(G28/G24,"N/A") -> 0.594 | H29: 0.593 | I29: 0.595 | J29: 0.597 | K29: 0.595 | L29: 0.591 | M29: 0.598 | N29: 0.605 | O29: 0.613 | P29: 0.624 | Q29: 0.62 | R29: =IFERROR(R28/R24,"N/A") -> N/A
A30: ='Control Panel'!B25 -> CHD | B30: CHD | C30: ='Control Panel'!B25 -> CHD
A31: ='Control Panel'!B26 -> LDP.03: CHD Register | B31: LDP.03: CHD Register | C31: ='Control Panel'!D26 -> CHD register | D31: =IF($C$5="Total",SUMIFS(OFFSET(REL_D,,MATCH($A31,IND,0)-2),REL_D,D$4,NwID,$C$4),SUMIFS(OFFSET(REL_D,,MATCH($A31,IND,0)-2),REL_D,D$4,OrgID,$C$5)) -> 3691 | E31: =IF($C$5="Total",SUMIFS(OFFSET(REL_D,,MATCH($A31,IND,0)-2),REL_D,E$4,NwID,$C$4),SUMIFS(OFFSET(REL_D,,MATCH($A31,IND,0)-2),REL_D,E$4,OrgID,$C$5)) -> 3811 | F31: =IF($C$5="Total",SUMIFS(OFFSET(REL_D,,MATCH($A31,IND,0)-2),REL_D,F$4,NwID,$C$4),SUMIFS(OFFSET(REL_D,,MATCH($A31,IND,0)-2),REL_D,F$4,OrgID,$C$5)) -> 3830 | G31: =IF($C$5="Total",SUMIFS(OFFSET(REL_D,,MATCH($A31,IND,0)-2),REL_D,G$4,NwID,$C$4),SUMIFS(OFFSET(REL_D,,MATCH($A31,IND,0)-2),REL_D,G$4,OrgID,$C$5)) -> 3887 | H31: =IF($C$5="Total",SUMIFS(OFFSET(REL_D,,MATCH($A31,IND,0)-2),REL_D,H$4,NwID,$C$4),SUMIFS(OFFSET(REL_D,,MATCH($A31,IND,0)-2),REL_D,H$4,OrgID,$C$5)) -> 3944 | I31: =IF($C$5="Total",SUMIFS(OFFSET(REL_D,,MATCH($A31,IND,0)-2),REL_D,I$4,NwID,$C$4),SUMIFS(OFFSET(REL_D,,MATCH($A31,IND,0)-2),REL_D,I$4,OrgID,$C$5)) -> 3961 | J31: =IF($C$5="Total",SUMIFS(OFFSET(REL_D,,MATCH($A31,IND,0)-2),REL_D,J$4,NwID,$C$4),SUMIFS(OFFSET(REL_D,,MATCH($A31,IND,0)-2),REL_D,J$4,OrgID,$C$5)) -> 3974 | K31: =IF($C$5="Total",SUMIFS(OFFSET(REL_D,,MATCH($A31,IND,0)-2),REL_D,K$4,NwID,$C$4),SUMIFS(OFFSET(REL_D,,MATCH($A31,IND,0)-2),REL_D,K$4,OrgID,$C$5)) -> 3974 | L31: =IF($C$5="Total",SUMIFS(OFFSET(REL_D,,MATCH($A31,IND,0)-2),REL_D,L$4,NwID,$C$4),SUMIFS(OFFSET(REL_D,,MATCH($A31,IND,0)-2),REL_D,L$4,OrgID,$C$5)) -> 3985 | M31: =IF($C$5="Total",SUMIFS(OFFSET(REL_D,,MATCH($A31,IND,0)-2),REL_D,M$4,NwID,$C$4),SUMIFS(OFFSET(REL_D,,MATCH($A31,IND,0)-2),REL_D,M$4,OrgID,$C$5)) -> 3977 | N31: =IF($C$5="Total",SUMIFS(OFFSET(REL_D,,MATCH($A31,IND,0)-2),REL_D,N$4,NwID,$C$4),SUMIFS(OFFSET(REL_D,,MATCH($A31,IND,0)-2),REL_D,N$4,OrgID,$C$5)) -> 3976 | O31: =IF($C$5="Total",SUMIFS(OFFSET(REL_D,,MATCH($A31,IND,0)-2),REL_D,O$4,NwID,$C$4),SUMIFS(OFFSET(REL_D,,MATCH($A31,IND,0)-2),REL_D,O$4,OrgID,$C$5)) -> 3982 | P31: =IF($C$5="Total",SUMIFS(OFFSET(REL_D,,MATCH($A31,IND,0)-2),REL_D,P$4,NwID,$C$4),SUMIFS(OFFSET(REL_D,,MATCH($A31,IND,0)-2),REL_D,P$4,OrgID,$C$5)) -> 4074 | Q31: =IF($C$5="Total",SUMIFS(OFFSET(REL_D,,MATCH($A31,IND,0)-2),REL_D,Q$4,NwID,$C$4),SUMIFS(OFFSET(REL_D,,MATCH($A31,IND,0)-2),REL_D,Q$4,OrgID,$C$5)) -> 4071 | R31: =SUMIFS(OFFSET(REL_D,,MATCH($A31,IND,0)-1),REL_D,R$4,IF(LEFT($C$5,1)="N",NwID,OrgID),$C$5) -> 0
A32: ='Control Panel'!B27 -> %LDP.03: CHD Register | B32: %LDP.03: CHD Register | C32: ='Control Panel'!D27 -> % list size | D32: =IFERROR(D31/D8,"N/A") -> 0.016 | E32: 0.016 | F32: =IFERROR(F31/F8,"N/A") -> 0.016 | G32: =IFERROR(G31/G8,"N/A") -> 0.016 | H32: 0.016 | I32: 0.016 | J32: 0.016 | K32: 0.016 | L32: 0.016 | M32: 0.016 | N32: 0.016 | O32: 0.016 | P32: 0.016 | Q32: 0.016 | R32: =IFERROR(R31/R8,"N/A") -> N/A
A33: ='Control Panel'!B28 -> LDP.03.04: CHD Cholesterol recorded (last 12m) | B33: LDP.03.04: CHD Cholesterol recorded (last 12m) | C33: ='Control Panel'!D28 -> Cholesterol (last 12m) | D33: =IF($C$5="Total",SUMIFS(OFFSET(REL_D,,MATCH($A33,IND,0)-2),REL_D,D$4,NwID,$C$4),SUMIFS(OFFSET(REL_D,,MATCH($A33,IND,0)-2),REL_D,D$4,OrgID,$C$5)) -> 81 | E33: =IF($C$5="Total",SUMIFS(OFFSET(REL_D,,MATCH($A33,IND,0)-2),REL_D,E$4,NwID,$C$4),SUMIFS(OFFSET(REL_D,,MATCH($A33,IND,0)-2),REL_D,E$4,OrgID,$C$5)) -> 131 | F33: =IF($C$5="Total",SUMIFS(OFFSET(REL_D,,MATCH($A33,IND,0)-2),REL_D,F$4,NwID,$C$4),SUMIFS(OFFSET(REL_D,,MATCH($A33,IND,0)-2),REL_D,F$4,OrgID,$C$5)) -> 130 | G33: =IF($C$5="Total",SUMIFS(OFFSET(REL_D,,MATCH($A33,IND,0)-2),REL_D,G$4,NwID,$C$4),SUMIFS(OFFSET(REL_D,,MATCH($A33,IND,0)-2),REL_D,G$4,OrgID,$C$5)) -> 128 | H33: =IF($C$5="Total",SUMIFS(OFFSET(REL_D,,MATCH($A33,IND,0)-2),REL_D,H$4,NwID,$C$4),SUMIFS(OFFSET(REL_D,,MATCH($A33,IND,0)-2),REL_D,H$4,OrgID,$C$5)) -> 102 | I33: =IF($C$5="Total",SUMIFS(OFFSET(REL_D,,MATCH($A33,IND,0)-2),REL_D,I$4,NwID,$C$4),SUMIFS(OFFSET(REL_D,,MATCH($A33,IND,0)-2),REL_D,I$4,OrgID,$C$5)) -> 91 | J33: =IF($C$5="Total",SUMIFS(OFFSET(REL_D,,MATCH($A33,IND,0)-2),REL_D,J$4,NwID,$C$4),SUMIFS(OFFSET(REL_D,,MATCH($A33,IND,0)-2),REL_D,J$4,OrgID,$C$5)) -> 104 | K33: =IF($C$5="Total",SUMIFS(OFFSET(REL_D,,MATCH($A33,IND,0)-2),REL_D,K$4,NwID,$C$4),SUMIFS(OFFSET(REL_D,,MATCH($A33,IND,0)-2),REL_D,K$4,OrgID,$C$5)) -> 107 | L33: =IF($C$5="Total",SUMIFS(OFFSET(REL_D,,MATCH($A33,IND,0)-2),REL_D,L$4,NwID,$C$4),SUMIFS(OFFSET(REL_D,,MATCH($A33,IND,0)-2),REL_D,L$4,OrgID,$C$5)) -> 115 | M33: =IF($C$5="Total",SUMIFS(OFFSET(REL_D,,MATCH($A33,IND,0)-2),REL_D,M$4,NwID,$C$4),SUMIFS(OFFSET(REL_D,,MATCH($A33,IND,0)-2),REL_D,M$4,OrgID,$C$5)) -> 119 | N33: =IF($C$5="Total",SUMIFS(OFFSET(REL_D,,MATCH($A33,IND,0)-2),REL_D,N$4,NwID,$C$4),SUMIFS(OFFSET(REL_D,,MATCH($A33,IND,0)-2),REL_D,N$4,OrgID,$C$5)) -> 132 | O33: =IF($C$5="Total",SUMIFS(OFFSET(REL_D,,MATCH($A33,IND,0)-2),REL_D,O$4,NwID,$C$4),SUMIFS(OFFSET(REL_D,,MATCH($A33,IND,0)-2),REL_D,O$4,OrgID,$C$5)) -> 134 | P33: =IF($C$5="Total",SUMIFS(OFFSET(REL_D,,MATCH($A33,IND,0)-2),REL_D,P$4,NwID,$C$4),SUMIFS(OFFSET(REL_D,,MATCH($A33,IND,0)-2),REL_D,P$4,OrgID,$C$5)) -> 137 | Q33: =IF($C$5="Total",SUMIFS(OFFSET(REL_D,,MATCH($A33,IND,0)-2),REL_D,Q$4,NwID,$C$4),SUMIFS(OFFSET(REL_D,,MATCH($A33,IND,0)-2),REL_D,Q$4,OrgID,$C$5)) -> 146 | R33: =SUMIFS(OFFSET(REL_D,,MATCH($A33,IND,0)-1),REL_D,R$4,IF(LEFT($C$5,1)="N",NwID,OrgID),$C$5) -> 0
A34: ='Control Panel'!B29 -> %LDP.03.04: CHD Cholesterol recorded (last 12m) | B34: %LDP.03.04: CHD Cholesterol recorded (last 12m) | C34: ='Control Panel'!D29 -> % CHD register | D34: =IFERROR(D33/D31,"N/A") -> 0.022 | E34: 0.034 | F34: =IFERROR(F33/F31,"N/A") -> 0.034 | G34: =IFERROR(G33/G31,"N/A") -> 0.033 | H34: 0.026 | I34: 0.023 | J34: 0.026 | K34: 0.027 | L34: 0.029 | M34: 0.03 | N34: 0.033 | O34: 0.034 | P34: 0.034 | Q34: 0.036 | R34: =IFERROR(R33/R31,"N/A") -> N/A
A35: ='Control Panel'!B30 -> LDP.03.01: CHD Chol less than 5mmol (last 12m) | B35: LDP.03.01: CHD Chol less than 5mmol (last 12m) | C35: ='Control Panel'!D30 -> Cholesterol < 5 (last 12m) | D35: =IF($C$5="Total",SUMIFS(OFFSET(REL_D,,MATCH($A35,IND,0)-2),REL_D,D$4,NwID,$C$4),SUMIFS(OFFSET(REL_D,,MATCH($A35,IND,0)-2),REL_D,D$4,OrgID,$C$5)) -> 67 | E35: =IF($C$5="Total",SUMIFS(OFFSET(REL_D,,MATCH($A35,IND,0)-2),REL_D,E$4,NwID,$C$4),SUMIFS(OFFSET(REL_D,,MATCH($A35,IND,0)-2),REL_D,E$4,OrgID,$C$5)) -> 103 | F35: =IF($C$5="Total",SUMIFS(OFFSET(REL_D,,MATCH($A35,IND,0)-2),REL_D,F$4,NwID,$C$4),SUMIFS(OFFSET(REL_D,,MATCH($A35,IND,0)-2),REL_D,F$4,OrgID,$C$5)) -> 103 | G35: =IF($C$5="Total",SUMIFS(OFFSET(REL_D,,MATCH($A35,IND,0)-2),REL_D,G$4,NwID,$C$4),SUMIFS(OFFSET(REL_D,,MATCH($A35,IND,0)-2),REL_D,G$4,OrgID,$C$5)) -> 99 | H35: =IF($C$5="Total",SUMIFS(OFFSET(REL_D,,MATCH($A35,IND,0)-2),REL_D,H$4,NwID,$C$4),SUMIFS(OFFSET(REL_D,,MATCH($A35,IND,0)-2),REL_D,H$4,OrgID,$C$5)) -> 75 | I35: =IF($C$5="Total",SUMIFS(OFFSET(REL_D,,MATCH($A35,IND,0)-2),REL_D,I$4,NwID,$C$4),SUMIFS(OFFSET(REL_D,,MATCH($A35,IND,0)-2),REL_D,I$4,OrgID,$C$5)) -> 66 | J35: =IF($C$5="Total",SUMIFS(OFFSET(REL_D,,MATCH($A35,IND,0)-2),REL_D,J$4,NwID,$C$4),SUMIFS(OFFSET(REL_D,,MATCH($A35,IND,0)-2),REL_D,J$4,OrgID,$C$5)) -> 75 | K35: =IF($C$5="Total",SUMIFS(OFFSET(REL_D,,MATCH($A35,IND,0)-2),REL_D,K$4,NwID,$C$4),SUMIFS(OFFSET(REL_D,,MATCH($A35,IND,0)-2),REL_D,K$4,OrgID,$C$5)) -> 78 | L35: =IF($C$5="Total",SUMIFS(OFFSET(REL_D,,MATCH($A35,IND,0)-2),REL_D,L$4,NwID,$C$4),SUMIFS(OFFSET(REL_D,,MATCH($A35,IND,0)-2),REL_D,L$4,OrgID,$C$5)) -> 79 | M35: =IF($C$5="Total",SUMIFS(OFFSET(REL_D,,MATCH($A35,IND,0)-2),REL_D,M$4,NwID,$C$4),SUMIFS(OFFSET(REL_D,,MATCH($A35,IND,0)-2),REL_D,M$4,OrgID,$C$5)) -> 88 | N35: =IF($C$5="Total",SUMIFS(OFFSET(REL_D,,MATCH($A35,IND,0)-2),REL_D,N$4,NwID,$C$4),SUMIFS(OFFSET(REL_D,,MATCH($A35,IND,0)-2),REL_D,N$4,OrgID,$C$5)) -> 98 | O35: =IF($C$5="Total",SUMIFS(OFFSET(REL_D,,MATCH($A35,IND,0)-2),REL_D,O$4,NwID,$C$4),SUMIFS(OFFSET(REL_D,,MATCH($A35,IND,0)-2),REL_D,O$4,OrgID,$C$5)) -> 98 | P35: =IF($C$5="Total",SUMIFS(OFFSET(REL_D,,MATCH($A35,IND,0)-2),REL_D,P$4,NwID,$C$4),SUMIFS(OFFSET(REL_D,,MATCH($A35,IND,0)-2),REL_D,P$4,OrgID,$C$5)) -> 98 | Q35: =IF($C$5="Total",SUMIFS(OFFSET(REL_D,,MATCH($A35,IND,0)-2),REL_D,Q$4,NwID,$C$4),SUMIFS(OFFSET(REL_D,,MATCH($A35,IND,0)-2),REL_D,Q$4,OrgID,$C$5)) -> 106 | R35: =SUMIFS(OFFSET(REL_D,,MATCH($A35,IND,0)-1),REL_D,R$4,IF(LEFT($C$5,1)="N",NwID,OrgID),$C$5) -> 0
A36: ='Control Panel'!B31 -> %LDP.03.01: CHD Chol less than 5mmol (last 12m) | B36: %LDP.03.01: CHD Chol less than 5mmol (last 12m) | C36: ='Control Panel'!D31 -> % CHD register | D36: =IFERROR(D35/D31,"N/A") -> 0.018 | E36: 0.027 | F36: =IFERROR(F35/F31,"N/A") -> 0.027 | G36: =IFERROR(G35/G31,"N/A") -> 0.025 | H36: 0.019 | I36: 0.017 | J36: 0.019 | K36: 0.02 | L36: 0.02 | M36: 0.022 | N36: 0.025 | O36: 0.025 | P36: 0.024 | Q36: 0.026 | R36: =IFERROR(R35/R31,"N/A") -> N/A
A37: ='Control Panel'!B32 -> LDP.03.02: CHD BP less than or equal 150/90 (last 9m) | B37: LDP.03.02: CHD BP less than or equal 150/90 (last 9m) | C37: ='Control Panel'!D32 -> BP ≤ 150/90 (last 12m) | D37: =IF($C$5="Total",SUMIFS(OFFSET(REL_D,,MATCH($A37,IND,0)-2),REL_D,D$4,NwID,$C$4),SUMIFS(OFFSET(REL_D,,MATCH($A37,IND,0)-2),REL_D,D$4,OrgID,$C$5)) -> 1989 | E37: =IF($C$5="Total",SUMIFS(OFFSET(REL_D,,MATCH($A37,IND,0)-2),REL_D,E$4,NwID,$C$4),SUMIFS(OFFSET(REL_D,,MATCH($A37,IND,0)-2),REL_D,E$4,OrgID,$C$5)) -> 2553 | F37: =IF($C$5="Total",SUMIFS(OFFSET(REL_D,,MATCH($A37,IND,0)-2),REL_D,F$4,NwID,$C$4),SUMIFS(OFFSET(REL_D,,MATCH($A37,IND,0)-2),REL_D,F$4,OrgID,$C$5)) -> 2517 | G37: =IF($C$5="Total",SUMIFS(OFFSET(REL_D,,MATCH($A37,IND,0)-2),REL_D,G$4,NwID,$C$4),SUMIFS(OFFSET(REL_D,,MATCH($A37,IND,0)-2),REL_D,G$4,OrgID,$C$5)) -> 2462 | H37: =IF($C$5="Total",SUMIFS(OFFSET(REL_D,,MATCH($A37,IND,0)-2),REL_D,H$4,NwID,$C$4),SUMIFS(OFFSET(REL_D,,MATCH($A37,IND,0)-2),REL_D,H$4,OrgID,$C$5)) -> 2497 | I37: =IF($C$5="Total",SUMIFS(OFFSET(REL_D,,MATCH($A37,IND,0)-2),REL_D,I$4,NwID,$C$4),SUMIFS(OFFSET(REL_D,,MATCH($A37,IND,0)-2),REL_D,I$4,OrgID,$C$5)) -> 2538 | J37: =IF($C$5="Total",SUMIFS(OFFSET(REL_D,,MATCH($A37,IND,0)-2),REL_D,J$4,NwID,$C$4),SUMIFS(OFFSET(REL_D,,MATCH($A37,IND,0)-2),REL_D,J$4,OrgID,$C$5)) -> 2547 | K37: =IF($C$5="Total",SUMIFS(OFFSET(REL_D,,MATCH($A37,IND,0)-2),REL_D,K$4,NwID,$C$4),SUMIFS(OFFSET(REL_D,,MATCH($A37,IND,0)-2),REL_D,K$4,OrgID,$C$5)) -> 2548 | L37: =IF($C$5="Total",SUMIFS(OFFSET(REL_D,,MATCH($A37,IND,0)-2),REL_D,L$4,NwID,$C$4),SUMIFS(OFFSET(REL_D,,MATCH($A37,IND,0)-2),REL_D,L$4,OrgID,$C$5)) -> 2563 | M37: =IF($C$5="Total",SUMIFS(OFFSET(REL_D,,MATCH($A37,IND,0)-2),REL_D,M$4,NwID,$C$4),SUMIFS(OFFSET(REL_D,,MATCH($A37,IND,0)-2),REL_D,M$4,OrgID,$C$5)) -> 2603 | N37: =IF($C$5="Total",SUMIFS(OFFSET(REL_D,,MATCH($A37,IND,0)-2),REL_D,N$4,NwID,$C$4),SUMIFS(OFFSET(REL_D,,MATCH($A37,IND,0)-2),REL_D,N$4,OrgID,$C$5)) -> 2635 | O37: =IF($C$5="Total",SUMIFS(OFFSET(REL_D,,MATCH($A37,IND,0)-2),REL_D,O$4,NwID,$C$4),SUMIFS(OFFSET(REL_D,,MATCH($A37,IND,0)-2),REL_D,O$4,OrgID,$C$5)) -> 2675 | P37: =IF($C$5="Total",SUMIFS(OFFSET(REL_D,,MATCH($A37,IND,0)-2),REL_D,P$4,NwID,$C$4),SUMIFS(OFFSET(REL_D,,MATCH($A37,IND,0)-2),REL_D,P$4,OrgID,$C$5)) -> 2782 | Q37: =IF($C$5="Total",SUMIFS(OFFSET(REL_D,,MATCH($A37,IND,0)-2),REL_D,Q$4,NwID,$C$4),SUMIFS(OFFSET(REL_D,,MATCH($A37,IND,0)-2),REL_D,Q$4,OrgID,$C$5)) -> 2799 | R37: =SUMIFS(OFFSET(REL_D,,MATCH($A37,IND,0)-1),REL_D,R$4,IF(LEFT($C$5,1)="N",NwID,OrgID),$C$5) -> 0
A38: ='Control Panel'!B33 -> %LDP.03.02: CHD BP less than or equal 150/90 (last 9m) | B38: %LDP.03.02: CHD BP less than or equal 150/90 (last 9m) | C38: ='Control Panel'!D33 -> % CHD register | D38: =IFERROR(D37/D31,"N/A") -> 0.539 | E38: 0.67 | F38: =IFERROR(F37/F31,"N/A") -> 0.657 | G38: =IFERROR(G37/G31,"N/A") -> 0.633 | H38: 0.633 | I38: 0.641 | J38: 0.641 | K38: 0.641 | L38: 0.643 | M38: 0.655 | N38: 0.663 | O38: 0.672 | P38: 0.683 | Q38: 0.688 | R38: N/A
A39: Stroke/TIA | C39: Stroke/TIA
A40: LDP.10 Stroke or TIA register | C40: Stroke/TIA register | D40: =IF($C$5="Total",SUMIFS(OFFSET(REL_D,,MATCH($A40,IND,0)-2),REL_D,D$4,NwID,$C$4),SUMIFS(OFFSET(REL_D,,MATCH($A40,IND,0)-2),REL_D,D$4,OrgID,$C$5)) -> 2078 | E40: =IF($C$5="Total",SUMIFS(OFFSET(REL_D,,MATCH($A40,IND,0)-2),REL_D,E$4,NwID,$C$4),SUMIFS(OFFSET(REL_D,,MATCH($A40,IND,0)-2),REL_D,E$4,OrgID,$C$5)) -> 2263 | F40: =IF($C$5="Total",SUMIFS(OFFSET(REL_D,,MATCH($A40,IND,0)-2),REL_D,F$4,NwID,$C$4),SUMIFS(OFFSET(REL_D,,MATCH($A40,IND,0)-2),REL_D,F$4,OrgID,$C$5)) -> 2289 | G40: =IF($C$5="Total",SUMIFS(OFFSET(REL_D,,MATCH($A40,IND,0)-2),REL_D,G$4,NwID,$C$4),SUMIFS(OFFSET(REL_D,,MATCH($A40,IND,0)-2),REL_D,G$4,OrgID,$C$5)) -> 2321 | H40: =IF($C$5="Total",SUMIFS(OFFSET(REL_D,,MATCH($A40,IND,0)-2),REL_D,H$4,NwID,$C$4),SUMIFS(OFFSET(REL_D,,MATCH($A40,IND,0)-2),REL_D,H$4,OrgID,$C$5)) -> 2340 | I40: =IF($C$5="Total",SUMIFS(OFFSET(REL_D,,MATCH($A40,IND,0)-2),REL_D,I$4,NwID,$C$4),SUMIFS(OFFSET(REL_D,,MATCH($A40,IND,0)-2),REL_D,I$4,OrgID,$C$5)) -> 2340 | J40: =IF($C$5="Total",SUMIFS(OFFSET(REL_D,,MATCH($A40,IND,0)-2),REL_D,J$4,NwID,$C$4),SUMIFS(OFFSET(REL_D,,MATCH($A40,IND,0)-2),REL_D,J$4,OrgID,$C$5)) -> 2420 | K40: =IF($C$5="Total",SUMIFS(OFFSET(REL_D,,MATCH($A40,IND,0)-2),REL_D,K$4,NwID,$C$4),SUMIFS(OFFSET(REL_D,,MATCH($A40,IND,0)-2),REL_D,K$4,OrgID,$C$5)) -> 2414 | L40: =IF($C$5="Total",SUMIFS(OFFSET(REL_D,,MATCH($A40,IND,0)-2),REL_D,L$4,NwID,$C$4),SUMIFS(OFFSET(REL_D,,MATCH($A40,IND,0)-2),REL_D,L$4,OrgID,$C$5)) -> 2422 | M40: =IF($C$5="Total",SUMIFS(OFFSET(REL_D,,MATCH($A40,IND,0)-2),REL_D,M$4,NwID,$C$4),SUMIFS(OFFSET(REL_D,,MATCH($A40,IND,0)-2),REL_D,M$4,OrgID,$C$5)) -> 2426 | N40: =IF($C$5="Total",SUMIFS(OFFSET(REL_D,,MATCH($A40,IND,0)-2),REL_D,N$4,NwID,$C$4),SUMIFS(OFFSET(REL_D,,MATCH($A40,IND,0)-2),REL_D,N$4,OrgID,$C$5)) -> 2427 | O40: =IF($C$5="Total",SUMIFS(OFFSET(REL_D,,MATCH($A40,IND,0)-2),REL_D,O$4,NwID,$C$4),SUMIFS(OFFSET(REL_D,,MATCH($A40,IND,0)-2),REL_D,O$4,OrgID,$C$5)) -> 2420 | P40: =IF($C$5="Total",SUMIFS(OFFSET(REL_D,,MATCH($A40,IND,0)-2),REL_D,P$4,NwID,$C$4),SUMIFS(OFFSET(REL_D,,MATCH($A40,IND,0)-2),REL_D,P$4,OrgID,$C$5)) -> 2476 | Q40: =IF($C$5="Total",SUMIFS(OFFSET(REL_D,,MATCH($A40,IND,0)-2),REL_D,Q$4,NwID,$C$4),SUMIFS(OFFSET(REL_D,,MATCH($A40,IND,0)-2),REL_D,Q$4,OrgID,$C$5)) -> 2476 | R40: -
A41: %LDP.10 Stroke or TIA register | C41: % list size | D41: =IFERROR(D40/D8,"N/A") -> 0.009 | E41: 0.009 | F41: =IFERROR(F40/F8,"N/A") -> 0.009 | G41: =IFERROR(G40/G8,"N/A") -> 0.01 | H41: 0.01 | I41: 0.009 | J41: 0.01 | K41: 0.01 | L41: 0.01 | M41: 0.01 | N41: 0.01 | O41: 0.01 | P41: 0.01 | Q41: 0.01 | R41: -
A42: LDP.10.01: Stroke/TIA BP recorded (last 12m) | C42: Patients on Stroke/TIA register with BP recorded | D42: =IF($C$5="Total",SUMIFS(OFFSET(REL_D,,MATCH($A42,IND,0)-2),REL_D,D$4,NwID,$C$4),SUMIFS(OFFSET(REL_D,,MATCH($A42,IND,0)-2),REL_D,D$4,OrgID,$C$5)) -> 1537 | E42: =IF($C$5="Total",SUMIFS(OFFSET(REL_D,,MATCH($A42,IND,0)-2),REL_D,E$4,NwID,$C$4),SUMIFS(OFFSET(REL_D,,MATCH($A42,IND,0)-2),REL_D,E$4,OrgID,$C$5)) -> 1992 | F42: =IF($C$5="Total",SUMIFS(OFFSET(REL_D,,MATCH($A42,IND,0)-2),REL_D,F$4,NwID,$C$4),SUMIFS(OFFSET(REL_D,,MATCH($A42,IND,0)-2),REL_D,F$4,OrgID,$C$5)) -> 1993 | G42: =IF($C$5="Total",SUMIFS(OFFSET(REL_D,,MATCH($A42,IND,0)-2),REL_D,G$4,NwID,$C$4),SUMIFS(OFFSET(REL_D,,MATCH($A42,IND,0)-2),REL_D,G$4,OrgID,$C$5)) -> 1993 | H42: =IF($C$5="Total",SUMIFS(OFFSET(REL_D,,MATCH($A42,IND,0)-2),REL_D,H$4,NwID,$C$4),SUMIFS(OFFSET(REL_D,,MATCH($A42,IND,0)-2),REL_D,H$4,OrgID,$C$5)) -> 2006 | I42: =IF($C$5="Total",SUMIFS(OFFSET(REL_D,,MATCH($A42,IND,0)-2),REL_D,I$4,NwID,$C$4),SUMIFS(OFFSET(REL_D,,MATCH($A42,IND,0)-2),REL_D,I$4,OrgID,$C$5)) -> 2025 | J42: =IF($C$5="Total",SUMIFS(OFFSET(REL_D,,MATCH($A42,IND,0)-2),REL_D,J$4,NwID,$C$4),SUMIFS(OFFSET(REL_D,,MATCH($A42,IND,0)-2),REL_D,J$4,OrgID,$C$5)) -> 2072 | K42: =IF($C$5="Total",SUMIFS(OFFSET(REL_D,,MATCH($A42,IND,0)-2),REL_D,K$4,NwID,$C$4),SUMIFS(OFFSET(REL_D,,MATCH($A42,IND,0)-2),REL_D,K$4,OrgID,$C$5)) -> 2054 | L42: =IF($C$5="Total",SUMIFS(OFFSET(REL_D,,MATCH($A42,IND,0)-2),REL_D,L$4,NwID,$C$4),SUMIFS(OFFSET(REL_D,,MATCH($A42,IND,0)-2),REL_D,L$4,OrgID,$C$5)) -> 2053 | M42: =IF($C$5="Total",SUMIFS(OFFSET(REL_D,,MATCH($A42,IND,0)-2),REL_D,M$4,NwID,$C$4),SUMIFS(OFFSET(REL_D,,MATCH($A42,IND,0)-2),REL_D,M$4,OrgID,$C$5)) -> 2072 | N42: =IF($C$5="Total",SUMIFS(OFFSET(REL_D,,MATCH($A42,IND,0)-2),REL_D,N$4,NwID,$C$4),SUMIFS(OFFSET(REL_D,,MATCH($A42,IND,0)-2),REL_D,N$4,OrgID,$C$5)) -> 2103 | O42: =IF($C$5="Total",SUMIFS(OFFSET(REL_D,,MATCH($A42,IND,0)-2),REL_D,O$4,NwID,$C$4),SUMIFS(OFFSET(REL_D,,MATCH($A42,IND,0)-2),REL_D,O$4,OrgID,$C$5)) -> 2099 | P42: =IF($C$5="Total",SUMIFS(OFFSET(REL_D,,MATCH($A42,IND,0)-2),REL_D,P$4,NwID,$C$4),SUMIFS(OFFSET(REL_D,,MATCH($A42,IND,0)-2),REL_D,P$4,OrgID,$C$5)) -> 2170 | Q42: =IF($C$5="Total",SUMIFS(OFFSET(REL_D,,MATCH($A42,IND,0)-2),REL_D,Q$4,NwID,$C$4),SUMIFS(OFFSET(REL_D,,MATCH($A42,IND,0)-2),REL_D,Q$4,OrgID,$C$5)) -> 2171 | R42: -
A43: %LDP.10.01: Stroke/TIA BP recorded (last 12m) | C43: % of stroke register | D43: =IFERROR(D42/D40,"N/A") -> 0.74 | E43: 0.88 | F43: =IFERROR(F42/F40,"N/A") -> 0.871 | G43: =IFERROR(G42/G40,"N/A") -> 0.859 | H43: 0.857 | I43: 0.865 | J43: 0.856 | K43: 0.851 | L43: 0.848 | M43: 0.854 | N43: 0.867 | O43: 0.867 | P43: 0.876 | Q43: 0.877 | R43: -
A44: LDP.10.02 Patients on Stroke/TIA register with BP <140/90 (12m) | C44: Patients on Stroke/TIA register with BP <140/90 (12m) | D44: =IF($C$5="Total",SUMIFS(OFFSET(REL_D,,MATCH($A44,IND,0)-2),REL_D,D$4,NwID,$C$4),SUMIFS(OFFSET(REL_D,,MATCH($A44,IND,0)-2),REL_D,D$4,OrgID,$C$5)) -> 1077 | E44: =IF($C$5="Total",SUMIFS(OFFSET(REL_D,,MATCH($A44,IND,0)-2),REL_D,E$4,NwID,$C$4),SUMIFS(OFFSET(REL_D,,MATCH($A44,IND,0)-2),REL_D,E$4,OrgID,$C$5)) -> 1483 | F44: =IF($C$5="Total",SUMIFS(OFFSET(REL_D,,MATCH($A44,IND,0)-2),REL_D,F$4,NwID,$C$4),SUMIFS(OFFSET(REL_D,,MATCH($A44,IND,0)-2),REL_D,F$4,OrgID,$C$5)) -> 1464 | G44: =IF($C$5="Total",SUMIFS(OFFSET(REL_D,,MATCH($A44,IND,0)-2),REL_D,G$4,NwID,$C$4),SUMIFS(OFFSET(REL_D,,MATCH($A44,IND,0)-2),REL_D,G$4,OrgID,$C$5)) -> 1470 | H44: =IF($C$5="Total",SUMIFS(OFFSET(REL_D,,MATCH($A44,IND,0)-2),REL_D,H$4,NwID,$C$4),SUMIFS(OFFSET(REL_D,,MATCH($A44,IND,0)-2),REL_D,H$4,OrgID,$C$5)) -> 1474 | I44: =IF($C$5="Total",SUMIFS(OFFSET(REL_D,,MATCH($A44,IND,0)-2),REL_D,I$4,NwID,$C$4),SUMIFS(OFFSET(REL_D,,MATCH($A44,IND,0)-2),REL_D,I$4,OrgID,$C$5)) -> 1519 | J44: =IF($C$5="Total",SUMIFS(OFFSET(REL_D,,MATCH($A44,IND,0)-2),REL_D,J$4,NwID,$C$4),SUMIFS(OFFSET(REL_D,,MATCH($A44,IND,0)-2),REL_D,J$4,OrgID,$C$5)) -> 1553 | K44: =IF($C$5="Total",SUMIFS(OFFSET(REL_D,,MATCH($A44,IND,0)-2),REL_D,K$4,NwID,$C$4),SUMIFS(OFFSET(REL_D,,MATCH($A44,IND,0)-2),REL_D,K$4,OrgID,$C$5)) -> 1535 | L44: =IF($C$5="Total",SUMIFS(OFFSET(REL_D,,MATCH($A44,IND,0)-2),REL_D,L$4,NwID,$C$4),SUMIFS(OFFSET(REL_D,,MATCH($A44,IND,0)-2),REL_D,L$4,OrgID,$C$5)) -> 1536 | M44: =IF($C$5="Total",SUMIFS(OFFSET(REL_D,,MATCH($A44,IND,0)-2),REL_D,M$4,NwID,$C$4),SUMIFS(OFFSET(REL_D,,MATCH($A44,IND,0)-2),REL_D,M$4,OrgID,$C$5)) -> 1515 | N44: =IF($C$5="Total",SUMIFS(OFFSET(REL_D,,MATCH($A44,IND,0)-2),REL_D,N$4,NwID,$C$4),SUMIFS(OFFSET(REL_D,,MATCH($A44,IND,0)-2),REL_D,N$4,OrgID,$C$5)) -> 1543 | O44: =IF($C$5="Total",SUMIFS(OFFSET(REL_D,,MATCH($A44,IND,0)-2),REL_D,O$4,NwID,$C$4),SUMIFS(OFFSET(REL_D,,MATCH($A44,IND,0)-2),REL_D,O$4,OrgID,$C$5)) -> 1554 | P44: =IF($C$5="Total",SUMIFS(OFFSET(REL_D,,MATCH($A44,IND,0)-2),REL_D,P$4,NwID,$C$4),SUMIFS(OFFSET(REL_D,,MATCH($A44,IND,0)-2),REL_D,P$4,OrgID,$C$5)) -> 1596 | Q44: =IF($C$5="Total",SUMIFS(OFFSET(REL_D,,MATCH($A44,IND,0)-2),REL_D,Q$4,NwID,$C$4),SUMIFS(OFFSET(REL_D,,MATCH($A44,IND,0)-2),REL_D,Q$4,OrgID,$C$5)) -> 1616 | R44: -
A45: %LDP.10.02 Patients on Stroke/TIA register with BP <140/90 (12m) | C45: % of stroke register | D45: =IFERROR(D44/D40,"N/A") -> 0.518 | E45: 0.655 | F45: =IFERROR(F44/F40,"N/A") -> 0.64 | G45: =IFERROR(G44/G40,"N/A") -> 0.633 | H45: 0.63 | I45: 0.649 | J45: 0.642 | K45: 0.636 | L45: 0.634 | M45: 0.624 | N45: 0.636 | O45: 0.642 | P45: 0.645 | Q45: 0.653 | R45: -
A46: ='Control Panel'!B48 -> CVD Risk | B46: CVD Risk | C46: ='Control Panel'!B48 -> CVD Risk
A47: ='Control Panel'!B49 -> LDP.05: CVD 25-84yrs (excl CVD) | B47: LDP.05: CVD 25-84yrs (excl CVD) | C47: Aged 25 to 84 (exc CVD) | D47: =IF($C$5="Total",SUMIFS(OFFSET(REL_D,,MATCH($A47,IND,0)-2),REL_D,D$4,NwID,$C$4),SUMIFS(OFFSET(REL_D,,MATCH($A47,IND,0)-2),REL_D,D$4,OrgID,$C$5)) -> 135913 | E47: =IF($C$5="Total",SUMIFS(OFFSET(REL_D,,MATCH($A47,IND,0)-2),REL_D,E$4,NwID,$C$4),SUMIFS(OFFSET(REL_D,,MATCH($A47,IND,0)-2),REL_D,E$4,OrgID,$C$5)) -> 139794 | F47: =IF($C$5="Total",SUMIFS(OFFSET(REL_D,,MATCH($A47,IND,0)-2),REL_D,F$4,NwID,$C$4),SUMIFS(OFFSET(REL_D,,MATCH($A47,IND,0)-2),REL_D,F$4,OrgID,$C$5)) -> 140558 | G47: =IF($C$5="Total",SUMIFS(OFFSET(REL_D,,MATCH($A47,IND,0)-2),REL_D,G$4,NwID,$C$4),SUMIFS(OFFSET(REL_D,,MATCH($A47,IND,0)-2),REL_D,G$4,OrgID,$C$5)) -> 141902 | H47: =IF($C$5="Total",SUMIFS(OFFSET(REL_D,,MATCH($A47,IND,0)-2),REL_D,H$4,NwID,$C$4),SUMIFS(OFFSET(REL_D,,MATCH($A47,IND,0)-2),REL_D,H$4,OrgID,$C$5)) -> 143544 | I47: =IF($C$5="Total",SUMIFS(OFFSET(REL_D,,MATCH($A47,IND,0)-2),REL_D,I$4,NwID,$C$4),SUMIFS(OFFSET(REL_D,,MATCH($A47,IND,0)-2),REL_D,I$4,OrgID,$C$5)) -> 143969 | J47: =IF($C$5="Total",SUMIFS(OFFSET(REL_D,,MATCH($A47,IND,0)-2),REL_D,J$4,NwID,$C$4),SUMIFS(OFFSET(REL_D,,MATCH($A47,IND,0)-2),REL_D,J$4,OrgID,$C$5)) -> 144374 | K47: =IF($C$5="Total",SUMIFS(OFFSET(REL_D,,MATCH($A47,IND,0)-2),REL_D,K$4,NwID,$C$4),SUMIFS(OFFSET(REL_D,,MATCH($A47,IND,0)-2),REL_D,K$4,OrgID,$C$5)) -> 144804 | L47: =IF($C$5="Total",SUMIFS(OFFSET(REL_D,,MATCH($A47,IND,0)-2),REL_D,L$4,NwID,$C$4),SUMIFS(OFFSET(REL_D,,MATCH($A47,IND,0)-2),REL_D,L$4,OrgID,$C$5)) -> 145543 | M47: =IF($C$5="Total",SUMIFS(OFFSET(REL_D,,MATCH($A47,IND,0)-2),REL_D,M$4,NwID,$C$4),SUMIFS(OFFSET(REL_D,,MATCH($A47,IND,0)-2),REL_D,M$4,OrgID,$C$5)) -> 146233 | N47: =IF($C$5="Total",SUMIFS(OFFSET(REL_D,,MATCH($A47,IND,0)-2),REL_D,N$4,NwID,$C$4),SUMIFS(OFFSET(REL_D,,MATCH($A47,IND,0)-2),REL_D,N$4,OrgID,$C$5)) -> 146657 | O47: =IF($C$5="Total",SUMIFS(OFFSET(REL_D,,MATCH($A47,IND,0)-2),REL_D,O$4,NwID,$C$4),SUMIFS(OFFSET(REL_D,,MATCH($A47,IND,0)-2),REL_D,O$4,OrgID,$C$5)) -> 146977 | P47: =IF($C$5="Total",SUMIFS(OFFSET(REL_D,,MATCH($A47,IND,0)-2),REL_D,P$4,NwID,$C$4),SUMIFS(OFFSET(REL_D,,MATCH($A47,IND,0)-2),REL_D,P$4,OrgID,$C$5)) -> 150215 | Q47: =IF($C$5="Total",SUMIFS(OFFSET(REL_D,,MATCH($A47,IND,0)-2),REL_D,Q$4,NwID,$C$4),SUMIFS(OFFSET(REL_D,,MATCH($A47,IND,0)-2),REL_D,Q$4,OrgID,$C$5)) -> 149990 | R47: =SUMIFS(OFFSET(REL_D,,MATCH($A47,IND,0)-1),REL_D,R$4,IF(LEFT($C$5,1)="N",NwID,OrgID),$C$5) -> 0
A48: ='Control Panel'!B50 -> LDP.05.02: Cardiovascular Risk Score Done (5y) | B48: LDP.05.02: Cardiovascular Risk Score Done (5y) | C48: QRISK recorded (5 years) | D48: =IF($C$5="Total",SUMIFS(OFFSET(REL_D,,MATCH($A48,IND,0)-2),REL_D,D$4,NwID,$C$4),SUMIFS(OFFSET(REL_D,,MATCH($A48,IND,0)-2),REL_D,D$4,OrgID,$C$5)) -> 47263 | E48: =IF($C$5="Total",SUMIFS(OFFSET(REL_D,,MATCH($A48,IND,0)-2),REL_D,E$4,NwID,$C$4),SUMIFS(OFFSET(REL_D,,MATCH($A48,IND,0)-2),REL_D,E$4,OrgID,$C$5)) -> 51148 | F48: =IF($C$5="Total",SUMIFS(OFFSET(REL_D,,MATCH($A48,IND,0)-2),REL_D,F$4,NwID,$C$4),SUMIFS(OFFSET(REL_D,,MATCH($A48,IND,0)-2),REL_D,F$4,OrgID,$C$5)) -> 51496 | G48: =IF($C$5="Total",SUMIFS(OFFSET(REL_D,,MATCH($A48,IND,0)-2),REL_D,G$4,NwID,$C$4),SUMIFS(OFFSET(REL_D,,MATCH($A48,IND,0)-2),REL_D,G$4,OrgID,$C$5)) -> 52227 | H48: =IF($C$5="Total",SUMIFS(OFFSET(REL_D,,MATCH($A48,IND,0)-2),REL_D,H$4,NwID,$C$4),SUMIFS(OFFSET(REL_D,,MATCH($A48,IND,0)-2),REL_D,H$4,OrgID,$C$5)) -> 53001 | I48: =IF($C$5="Total",SUMIFS(OFFSET(REL_D,,MATCH($A48,IND,0)-2),REL_D,I$4,NwID,$C$4),SUMIFS(OFFSET(REL_D,,MATCH($A48,IND,0)-2),REL_D,I$4,OrgID,$C$5)) -> 53424 | J48: =IF($C$5="Total",SUMIFS(OFFSET(REL_D,,MATCH($A48,IND,0)-2),REL_D,J$4,NwID,$C$4),SUMIFS(OFFSET(REL_D,,MATCH($A48,IND,0)-2),REL_D,J$4,OrgID,$C$5)) -> 54261 | K48: =IF($C$5="Total",SUMIFS(OFFSET(REL_D,,MATCH($A48,IND,0)-2),REL_D,K$4,NwID,$C$4),SUMIFS(OFFSET(REL_D,,MATCH($A48,IND,0)-2),REL_D,K$4,OrgID,$C$5)) -> 54815 | L48: =IF($C$5="Total",SUMIFS(OFFSET(REL_D,,MATCH($A48,IND,0)-2),REL_D,L$4,NwID,$C$4),SUMIFS(OFFSET(REL_D,,MATCH($A48,IND,0)-2),REL_D,L$4,OrgID,$C$5)) -> 55584 | M48: =IF($C$5="Total",SUMIFS(OFFSET(REL_D,,MATCH($A48,IND,0)-2),REL_D,M$4,NwID,$C$4),SUMIFS(OFFSET(REL_D,,MATCH($A48,IND,0)-2),REL_D,M$4,OrgID,$C$5)) -> 56325 | N48: =IF($C$5="Total",SUMIFS(OFFSET(REL_D,,MATCH($A48,IND,0)-2),REL_D,N$4,NwID,$C$4),SUMIFS(OFFSET(REL_D,,MATCH($A48,IND,0)-2),REL_D,N$4,OrgID,$C$5)) -> 57057 | O48: =IF($C$5="Total",SUMIFS(OFFSET(REL_D,,MATCH($A48,IND,0)-2),REL_D,O$4,NwID,$C$4),SUMIFS(OFFSET(REL_D,,MATCH($A48,IND,0)-2),REL_D,O$4,OrgID,$C$5)) -> 56800 | P48: =IF($C$5="Total",SUMIFS(OFFSET(REL_D,,MATCH($A48,IND,0)-2),REL_D,P$4,NwID,$C$4),SUMIFS(OFFSET(REL_D,,MATCH($A48,IND,0)-2),REL_D,P$4,OrgID,$C$5)) -> 57310 | Q48: =IF($C$5="Total",SUMIFS(OFFSET(REL_D,,MATCH($A48,IND,0)-2),REL_D,Q$4,NwID,$C$4),SUMIFS(OFFSET(REL_D,,MATCH($A48,IND,0)-2),REL_D,Q$4,OrgID,$C$5)) -> 57197 | R48: =SUMIFS(OFFSET(REL_D,,MATCH($A48,IND,0)-1),REL_D,R$4,IF(LEFT($C$5,1)="N",NwID,OrgID),$C$5) -> 0
A49: ='Control Panel'!B51 -> %LDP.05.02: Cardiovascular Risk Score Done (5y) | B49: %LDP.05.02: Cardiovascular Risk Score Done (5y) | C49: % of patients aged 25 to 84 (exc CVD) | D49: =IFERROR(D47/D8,"N/A") -> 0.604 | E49: 0.583 | F49: =IFERROR(F47/F8,"N/A") -> 0.583 | G49: =IFERROR(G47/G8,"N/A") -> 0.583 | H49: 0.583 | I49: 0.583 | J49: 0.583 | K49: 0.584 | L49: 0.585 | M49: 0.585 | N49: 0.585 | O49: 0.585 | P49: 0.585 | Q49: 0.585 | R49: =IFERROR(R48/R8,"N/A") -> N/A
A50: ='Control Panel'!B52 -> LDP.05.01: CVD QRISK greater than or equal 20% | B50: LDP.05.01: CVD QRISK greater than or equal 20% | C50: QRISK ≥ 20% | D50: =IF($C$5="Total",SUMIFS(OFFSET(REL_D,,MATCH($A50,IND,0)-2),REL_D,D$4,NwID,$C$4),SUMIFS(OFFSET(REL_D,,MATCH($A50,IND,0)-2),REL_D,D$4,OrgID,$C$5)) -> 5982 | E50: =IF($C$5="Total",SUMIFS(OFFSET(REL_D,,MATCH($A50,IND,0)-2),REL_D,E$4,NwID,$C$4),SUMIFS(OFFSET(REL_D,,MATCH($A50,IND,0)-2),REL_D,E$4,OrgID,$C$5)) -> 6896 | F50: =IF($C$5="Total",SUMIFS(OFFSET(REL_D,,MATCH($A50,IND,0)-2),REL_D,F$4,NwID,$C$4),SUMIFS(OFFSET(REL_D,,MATCH($A50,IND,0)-2),REL_D,F$4,OrgID,$C$5)) -> 6974 | G50: =IF($C$5="Total",SUMIFS(OFFSET(REL_D,,MATCH($A50,IND,0)-2),REL_D,G$4,NwID,$C$4),SUMIFS(OFFSET(REL_D,,MATCH($A50,IND,0)-2),REL_D,G$4,OrgID,$C$5)) -> 7070 | H50: =IF($C$5="Total",SUMIFS(OFFSET(REL_D,,MATCH($A50,IND,0)-2),REL_D,H$4,NwID,$C$4),SUMIFS(OFFSET(REL_D,,MATCH($A50,IND,0)-2),REL_D,H$4,OrgID,$C$5)) -> 7187 | I50: =IF($C$5="Total",SUMIFS(OFFSET(REL_D,,MATCH($A50,IND,0)-2),REL_D,I$4,NwID,$C$4),SUMIFS(OFFSET(REL_D,,MATCH($A50,IND,0)-2),REL_D,I$4,OrgID,$C$5)) -> 7266 | J50: =IF($C$5="Total",SUMIFS(OFFSET(REL_D,,MATCH($A50,IND,0)-2),REL_D,J$4,NwID,$C$4),SUMIFS(OFFSET(REL_D,,MATCH($A50,IND,0)-2),REL_D,J$4,OrgID,$C$5)) -> 7352 | K50: =IF($C$5="Total",SUMIFS(OFFSET(REL_D,,MATCH($A50,IND,0)-2),REL_D,K$4,NwID,$C$4),SUMIFS(OFFSET(REL_D,,MATCH($A50,IND,0)-2),REL_D,K$4,OrgID,$C$5)) -> 7389 | L50: =IF($C$5="Total",SUMIFS(OFFSET(REL_D,,MATCH($A50,IND,0)-2),REL_D,L$4,NwID,$C$4),SUMIFS(OFFSET(REL_D,,MATCH($A50,IND,0)-2),REL_D,L$4,OrgID,$C$5)) -> 7474 | M50: =IF($C$5="Total",SUMIFS(OFFSET(REL_D,,MATCH($A50,IND,0)-2),REL_D,M$4,NwID,$C$4),SUMIFS(OFFSET(REL_D,,MATCH($A50,IND,0)-2),REL_D,M$4,OrgID,$C$5)) -> 7541 | N50: =IF($C$5="Total",SUMIFS(OFFSET(REL_D,,MATCH($A50,IND,0)-2),REL_D,N$4,NwID,$C$4),SUMIFS(OFFSET(REL_D,,MATCH($A50,IND,0)-2),REL_D,N$4,OrgID,$C$5)) -> 7589 | O50: =IF($C$5="Total",SUMIFS(OFFSET(REL_D,,MATCH($A50,IND,0)-2),REL_D,O$4,NwID,$C$4),SUMIFS(OFFSET(REL_D,,MATCH($A50,IND,0)-2),REL_D,O$4,OrgID,$C$5)) -> 7655 | P50: =IF($C$5="Total",SUMIFS(OFFSET(REL_D,,MATCH($A50,IND,0)-2),REL_D,P$4,NwID,$C$4),SUMIFS(OFFSET(REL_D,,MATCH($A50,IND,0)-2),REL_D,P$4,OrgID,$C$5)) -> 7945 | Q50: =IF($C$5="Total",SUMIFS(OFFSET(REL_D,,MATCH($A50,IND,0)-2),REL_D,Q$4,NwID,$C$4),SUMIFS(OFFSET(REL_D,,MATCH($A50,IND,0)-2),REL_D,Q$4,OrgID,$C$5)) -> 8015 | R50: =SUMIFS(OFFSET(REL_D,,MATCH($A50,IND,0)-1),REL_D,R$4,IF(LEFT($C$5,1)="N",NwID,OrgID),$C$5) -> 0
A51: ='Control Panel'!B53 -> %LDP.05.01: CVD QRISK greater than or equal 20% | B51: %LDP.05.01: CVD QRISK greater than or equal 20% | C51: % QRISK Score recorded | D51: =IFERROR(D50/D48,"N/A") -> 0.127 | E51: 0.135 | F51: =IFERROR(F50/F48,"N/A") -> 0.135 | G51: =IFERROR(G50/G48,"N/A") -> 0.135 | H51: 0.136 | I51: 0.136 | J51: 0.135 | K51: 0.135 | L51: 0.134 | M51: 0.134 | N51: 0.133 | O51: 0.135 | P51: 0.139 | Q51: 0.14 | R51: =IFERROR(R50/R48,"N/A") -> N/A
A52: ='Control Panel'!B54 -> LDP.05.01.01: CVD Proxy Annual Review (last 12m) | B52: LDP.05.01.01: CVD Proxy Annual Review (last 12m) | C52: QRISK ≥ 20% and proxy review (BP and Chol last 12m) | D52: =IF($C$5="Total",SUMIFS(OFFSET(REL_D,,MATCH($A52,IND,0)-2),REL_D,D$4,NwID,$C$4),SUMIFS(OFFSET(REL_D,,MATCH($A52,IND,0)-2),REL_D,D$4,OrgID,$C$5)) -> 148 | E52: =IF($C$5="Total",SUMIFS(OFFSET(REL_D,,MATCH($A52,IND,0)-2),REL_D,E$4,NwID,$C$4),SUMIFS(OFFSET(REL_D,,MATCH($A52,IND,0)-2),REL_D,E$4,OrgID,$C$5)) -> 296 | F52: =IF($C$5="Total",SUMIFS(OFFSET(REL_D,,MATCH($A52,IND,0)-2),REL_D,F$4,NwID,$C$4),SUMIFS(OFFSET(REL_D,,MATCH($A52,IND,0)-2),REL_D,F$4,OrgID,$C$5)) -> 301 | G52: =IF($C$5="Total",SUMIFS(OFFSET(REL_D,,MATCH($A52,IND,0)-2),REL_D,G$4,NwID,$C$4),SUMIFS(OFFSET(REL_D,,MATCH($A52,IND,0)-2),REL_D,G$4,OrgID,$C$5)) -> 295 | H52: =IF($C$5="Total",SUMIFS(OFFSET(REL_D,,MATCH($A52,IND,0)-2),REL_D,H$4,NwID,$C$4),SUMIFS(OFFSET(REL_D,,MATCH($A52,IND,0)-2),REL_D,H$4,OrgID,$C$5)) -> 239 | I52: =IF($C$5="Total",SUMIFS(OFFSET(REL_D,,MATCH($A52,IND,0)-2),REL_D,I$4,NwID,$C$4),SUMIFS(OFFSET(REL_D,,MATCH($A52,IND,0)-2),REL_D,I$4,OrgID,$C$5)) -> 229 | J52: =IF($C$5="Total",SUMIFS(OFFSET(REL_D,,MATCH($A52,IND,0)-2),REL_D,J$4,NwID,$C$4),SUMIFS(OFFSET(REL_D,,MATCH($A52,IND,0)-2),REL_D,J$4,OrgID,$C$5)) -> 223 | K52: =IF($C$5="Total",SUMIFS(OFFSET(REL_D,,MATCH($A52,IND,0)-2),REL_D,K$4,NwID,$C$4),SUMIFS(OFFSET(REL_D,,MATCH($A52,IND,0)-2),REL_D,K$4,OrgID,$C$5)) -> 226 | L52: =IF($C$5="Total",SUMIFS(OFFSET(REL_D,,MATCH($A52,IND,0)-2),REL_D,L$4,NwID,$C$4),SUMIFS(OFFSET(REL_D,,MATCH($A52,IND,0)-2),REL_D,L$4,OrgID,$C$5)) -> 241 | M52: =IF($C$5="Total",SUMIFS(OFFSET(REL_D,,MATCH($A52,IND,0)-2),REL_D,M$4,NwID,$C$4),SUMIFS(OFFSET(REL_D,,MATCH($A52,IND,0)-2),REL_D,M$4,OrgID,$C$5)) -> 234 | N52: =IF($C$5="Total",SUMIFS(OFFSET(REL_D,,MATCH($A52,IND,0)-2),REL_D,N$4,NwID,$C$4),SUMIFS(OFFSET(REL_D,,MATCH($A52,IND,0)-2),REL_D,N$4,OrgID,$C$5)) -> 247 | O52: =IF($C$5="Total",SUMIFS(OFFSET(REL_D,,MATCH($A52,IND,0)-2),REL_D,O$4,NwID,$C$4),SUMIFS(OFFSET(REL_D,,MATCH($A52,IND,0)-2),REL_D,O$4,OrgID,$C$5)) -> 252 | P52: =IF($C$5="Total",SUMIFS(OFFSET(REL_D,,MATCH($A52,IND,0)-2),REL_D,P$4,NwID,$C$4),SUMIFS(OFFSET(REL_D,,MATCH($A52,IND,0)-2),REL_D,P$4,OrgID,$C$5)) -> 265 | Q52: =IF($C$5="Total",SUMIFS(OFFSET(REL_D,,MATCH($A52,IND,0)-2),REL_D,Q$4,NwID,$C$4),SUMIFS(OFFSET(REL_D,,MATCH($A52,IND,0)-2),REL_D,Q$4,OrgID,$C$5)) -> 273 | R52: =SUMIFS(OFFSET(REL_D,,MATCH($A52,IND,0)-1),REL_D,R$4,IF(LEFT($C$5,1)="N",NwID,OrgID),$C$5) -> 0
A53: ='Control Panel'!B55 -> %LDP.05.01.01: CVD Proxy Annual Review (last 12m) | B53: %LDP.05.01.01: CVD Proxy Annual Review (last 12m) | C53: % Patients with QRISK ≥ 20% | D53: =IFERROR(D52/D48,"N/A") -> 0.003 | E53: 0.006 | F53: =IFERROR(F52/F48,"N/A") -> 0.006 | G53: =IFERROR(G52/G48,"N/A") -> 0.006 | H53: 0.005 | I53: 0.004 | J53: 0.004 | K53: 0.004 | L53: 0.004 | M53: 0.004 | N53: 0.004 | O53: 0.004 | P53: 0.005 | Q53: 0.005 | R53: =IFERROR(R52/R48,"N/A") -> N/A
A54: LDP.05.03: CVD QRISK >=10 & <20 | B54: LDP.05.03: CVD QRISK >=10 & <20 | C54: QRISK >=10 & <20 | D54: =IF($C$5="Total",SUMIFS(OFFSET(REL_D,,MATCH($A54,IND,0)-2),REL_D,D$4,NwID,$C$4),SUMIFS(OFFSET(REL_D,,MATCH($A54,IND,0)-2),REL_D,D$4,OrgID,$C$5)) -> 0 | E54: =IF($C$5="Total",SUMIFS(OFFSET(REL_D,,MATCH($A54,IND,0)-2),REL_D,E$4,NwID,$C$4),SUMIFS(OFFSET(REL_D,,MATCH($A54,IND,0)-2),REL_D,E$4,OrgID,$C$5)) -> 0 | F54: =IF($C$5="Total",SUMIFS(OFFSET(REL_D,,MATCH($A54,IND,0)-2),REL_D,F$4,NwID,$C$4),SUMIFS(OFFSET(REL_D,,MATCH($A54,IND,0)-2),REL_D,F$4,OrgID,$C$5)) -> 0 | G54: =IF($C$5="Total",SUMIFS(OFFSET(REL_D,,MATCH($A54,IND,0)-2),REL_D,G$4,NwID,$C$4),SUMIFS(OFFSET(REL_D,,MATCH($A54,IND,0)-2),REL_D,G$4,OrgID,$C$5)) -> 0 | H54: =IF($C$5="Total",SUMIFS(OFFSET(REL_D,,MATCH($A54,IND,0)-2),REL_D,H$4,NwID,$C$4),SUMIFS(OFFSET(REL_D,,MATCH($A54,IND,0)-2),REL_D,H$4,OrgID,$C$5)) -> 0 | I54: =IF($C$5="Total",SUMIFS(OFFSET(REL_D,,MATCH($A54,IND,0)-2),REL_D,I$4,NwID,$C$4),SUMIFS(OFFSET(REL_D,,MATCH($A54,IND,0)-2),REL_D,I$4,OrgID,$C$5)) -> 0 | J54: =IF($C$5="Total",SUMIFS(OFFSET(REL_D,,MATCH($A54,IND,0)-2),REL_D,J$4,NwID,$C$4),SUMIFS(OFFSET(REL_D,,MATCH($A54,IND,0)-2),REL_D,J$4,OrgID,$C$5)) -> 11630 | K54: =IF($C$5="Total",SUMIFS(OFFSET(REL_D,,MATCH($A54,IND,0)-2),REL_D,K$4,NwID,$C$4),SUMIFS(OFFSET(REL_D,,MATCH($A54,IND,0)-2),REL_D,K$4,OrgID,$C$5)) -> 11763 | L54: =IF($C$5="Total",SUMIFS(OFFSET(REL_D,,MATCH($A54,IND,0)-2),REL_D,L$4,NwID,$C$4),SUMIFS(OFFSET(REL_D,,MATCH($A54,IND,0)-2),REL_D,L$4,OrgID,$C$5)) -> 11910 | M54: =IF($C$5="Total",SUMIFS(OFFSET(REL_D,,MATCH($A54,IND,0)-2),REL_D,M$4,NwID,$C$4),SUMIFS(OFFSET(REL_D,,MATCH($A54,IND,0)-2),REL_D,M$4,OrgID,$C$5)) -> 12056 | N54: =IF($C$5="Total",SUMIFS(OFFSET(REL_D,,MATCH($A54,IND,0)-2),REL_D,N$4,NwID,$C$4),SUMIFS(OFFSET(REL_D,,MATCH($A54,IND,0)-2),REL_D,N$4,OrgID,$C$5)) -> 12180 | O54: =IF($C$5="Total",SUMIFS(OFFSET(REL_D,,MATCH($A54,IND,0)-2),REL_D,O$4,NwID,$C$4),SUMIFS(OFFSET(REL_D,,MATCH($A54,IND,0)-2),REL_D,O$4,OrgID,$C$5)) -> 12350 | P54: =IF($C$5="Total",SUMIFS(OFFSET(REL_D,,MATCH($A54,IND,0)-2),REL_D,P$4,NwID,$C$4),SUMIFS(OFFSET(REL_D,,MATCH($A54,IND,0)-2),REL_D,P$4,OrgID,$C$5)) -> 12652 | Q54: =IF($C$5="Total",SUMIFS(OFFSET(REL_D,,MATCH($A54,IND,0)-2),REL_D,Q$4,NwID,$C$4),SUMIFS(OFFSET(REL_D,,MATCH($A54,IND,0)-2),REL_D,Q$4,OrgID,$C$5)) -> 12713
C55: % QRISK >=10 & <20 | D55: =IFERROR(D54/D48,"N/A") -> 0 | E55: 0 | F55: 0 | G55: 0 | H55: 0 | I55: 0 | J55: =IFERROR(J54/J48,"N/A") -> 0.214 | K55: =IFERROR(K54/K48,"N/A") -> 0.215 | L55: 0.214 | M55: 0.214 | N55: 0.213 | O55: 0.217 | P55: 0.221 | Q55: 0.222
A56: ='Control Panel'!B56 -> Diabetes | B56: Diabetes | C56: ='Control Panel'!B56 -> Diabetes
A57: ='Control Panel'!B57 -> LDP.04: Diabetes Register | B57: LDP.04: Diabetes Register | C57: Diabetes register | D57: =IF($C$5="Total",SUMIFS(OFFSET(REL_D,,MATCH($A57,IND,0)-2),REL_D,D$4,NwID,$C$4),SUMIFS(OFFSET(REL_D,,MATCH($A57,IND,0)-2),REL_D,D$4,OrgID,$C$5)) -> 14905 | E57: =IF($C$5="Total",SUMIFS(OFFSET(REL_D,,MATCH($A57,IND,0)-2),REL_D,E$4,NwID,$C$4),SUMIFS(OFFSET(REL_D,,MATCH($A57,IND,0)-2),REL_D,E$4,OrgID,$C$5)) -> 16712 | F57: =IF($C$5="Total",SUMIFS(OFFSET(REL_D,,MATCH($A57,IND,0)-2),REL_D,F$4,NwID,$C$4),SUMIFS(OFFSET(REL_D,,MATCH($A57,IND,0)-2),REL_D,F$4,OrgID,$C$5)) -> 16914 | G57: =IF($C$5="Total",SUMIFS(OFFSET(REL_D,,MATCH($A57,IND,0)-2),REL_D,G$4,NwID,$C$4),SUMIFS(OFFSET(REL_D,,MATCH($A57,IND,0)-2),REL_D,G$4,OrgID,$C$5)) -> 17192 | H57: =IF($C$5="Total",SUMIFS(OFFSET(REL_D,,MATCH($A57,IND,0)-2),REL_D,H$4,NwID,$C$4),SUMIFS(OFFSET(REL_D,,MATCH($A57,IND,0)-2),REL_D,H$4,OrgID,$C$5)) -> 17468 | I57: =IF($C$5="Total",SUMIFS(OFFSET(REL_D,,MATCH($A57,IND,0)-2),REL_D,I$4,NwID,$C$4),SUMIFS(OFFSET(REL_D,,MATCH($A57,IND,0)-2),REL_D,I$4,OrgID,$C$5)) -> 17626 | J57: =IF($C$5="Total",SUMIFS(OFFSET(REL_D,,MATCH($A57,IND,0)-2),REL_D,J$4,NwID,$C$4),SUMIFS(OFFSET(REL_D,,MATCH($A57,IND,0)-2),REL_D,J$4,OrgID,$C$5)) -> 17746 | K57: =IF($C$5="Total",SUMIFS(OFFSET(REL_D,,MATCH($A57,IND,0)-2),REL_D,K$4,NwID,$C$4),SUMIFS(OFFSET(REL_D,,MATCH($A57,IND,0)-2),REL_D,K$4,OrgID,$C$5)) -> 17787 | L57: =IF($C$5="Total",SUMIFS(OFFSET(REL_D,,MATCH($A57,IND,0)-2),REL_D,L$4,NwID,$C$4),SUMIFS(OFFSET(REL_D,,MATCH($A57,IND,0)-2),REL_D,L$4,OrgID,$C$5)) -> 17940 | M57: =IF($C$5="Total",SUMIFS(OFFSET(REL_D,,MATCH($A57,IND,0)-2),REL_D,M$4,NwID,$C$4),SUMIFS(OFFSET(REL_D,,MATCH($A57,IND,0)-2),REL_D,M$4,OrgID,$C$5)) -> 18036 | N57: =IF($C$5="Total",SUMIFS(OFFSET(REL_D,,MATCH($A57,IND,0)-2),REL_D,N$4,NwID,$C$4),SUMIFS(OFFSET(REL_D,,MATCH($A57,IND,0)-2),REL_D,N$4,OrgID,$C$5)) -> 18132 | O57: =IF($C$5="Total",SUMIFS(OFFSET(REL_D,,MATCH($A57,IND,0)-2),REL_D,O$4,NwID,$C$4),SUMIFS(OFFSET(REL_D,,MATCH($A57,IND,0)-2),REL_D,O$4,OrgID,$C$5)) -> 18201 | P57: =IF($C$5="Total",SUMIFS(OFFSET(REL_D,,MATCH($A57,IND,0)-2),REL_D,P$4,NwID,$C$4),SUMIFS(OFFSET(REL_D,,MATCH($A57,IND,0)-2),REL_D,P$4,OrgID,$C$5)) -> 18789 | Q57: =IF($C$5="Total",SUMIFS(OFFSET(REL_D,,MATCH($A57,IND,0)-2),REL_D,Q$4,NwID,$C$4),SUMIFS(OFFSET(REL_D,,MATCH($A57,IND,0)-2),REL_D,Q$4,OrgID,$C$5)) -> 18907 | R57: =SUMIFS(OFFSET(REL_D,,MATCH($A57,IND,0)-1),REL_D,R$4,IF(LEFT($C$5,1)="N",NwID,OrgID),$C$5) -> 0
A58: ='Control Panel'!B58 -> %LDP.04: Diabetes Register | B58: %LDP.04: Diabetes Register | C58: % List size | D58: =IFERROR(D57/D8,"N/A") -> 0.066 | E58: 0.07 | F58: =IFERROR(F57/F8,"N/A") -> 0.07 | G58: =IFERROR(G57/G8,"N/A") -> 0.071 | H58: 0.071 | I58: 0.071 | J58: 0.072 | K58: 0.072 | L58: 0.072 | M58: 0.072 | N58: 0.072 | O58: 0.072 | P58: 0.073 | Q58: 0.074 | R58: N/A
A59: ='Control Panel'!B61 -> LDP.04.11: Diabetes and BP in last 12 months | B59: LDP.04.11: Diabetes and BP in last 12 months | C59: BP (last 12m) | D59: =IF($C$5="Total",SUMIFS(OFFSET(REL_D,,MATCH($A59,IND,0)-2),REL_D,D$4,NwID,$C$4),SUMIFS(OFFSET(REL_D,,MATCH($A59,IND,0)-2),REL_D,D$4,OrgID,$C$5)) -> 11961 | E59: =IF($C$5="Total",SUMIFS(OFFSET(REL_D,,MATCH($A59,IND,0)-2),REL_D,E$4,NwID,$C$4),SUMIFS(OFFSET(REL_D,,MATCH($A59,IND,0)-2),REL_D,E$4,OrgID,$C$5)) -> 15404 | F59: =IF($C$5="Total",SUMIFS(OFFSET(REL_D,,MATCH($A59,IND,0)-2),REL_D,F$4,NwID,$C$4),SUMIFS(OFFSET(REL_D,,MATCH($A59,IND,0)-2),REL_D,F$4,OrgID,$C$5)) -> 15445 | G59: =IF($C$5="Total",SUMIFS(OFFSET(REL_D,,MATCH($A59,IND,0)-2),REL_D,G$4,NwID,$C$4),SUMIFS(OFFSET(REL_D,,MATCH($A59,IND,0)-2),REL_D,G$4,OrgID,$C$5)) -> 15362 | H59: =IF($C$5="Total",SUMIFS(OFFSET(REL_D,,MATCH($A59,IND,0)-2),REL_D,H$4,NwID,$C$4),SUMIFS(OFFSET(REL_D,,MATCH($A59,IND,0)-2),REL_D,H$4,OrgID,$C$5)) -> 15478 | I59: =IF($C$5="Total",SUMIFS(OFFSET(REL_D,,MATCH($A59,IND,0)-2),REL_D,I$4,NwID,$C$4),SUMIFS(OFFSET(REL_D,,MATCH($A59,IND,0)-2),REL_D,I$4,OrgID,$C$5)) -> 15660 | J59: =IF($C$5="Total",SUMIFS(OFFSET(REL_D,,MATCH($A59,IND,0)-2),REL_D,J$4,NwID,$C$4),SUMIFS(OFFSET(REL_D,,MATCH($A59,IND,0)-2),REL_D,J$4,OrgID,$C$5)) -> 15804 | K59: =IF($C$5="Total",SUMIFS(OFFSET(REL_D,,MATCH($A59,IND,0)-2),REL_D,K$4,NwID,$C$4),SUMIFS(OFFSET(REL_D,,MATCH($A59,IND,0)-2),REL_D,K$4,OrgID,$C$5)) -> 15811 | L59: =IF($C$5="Total",SUMIFS(OFFSET(REL_D,,MATCH($A59,IND,0)-2),REL_D,L$4,NwID,$C$4),SUMIFS(OFFSET(REL_D,,MATCH($A59,IND,0)-2),REL_D,L$4,OrgID,$C$5)) -> 16055 | M59: =IF($C$5="Total",SUMIFS(OFFSET(REL_D,,MATCH($A59,IND,0)-2),REL_D,M$4,NwID,$C$4),SUMIFS(OFFSET(REL_D,,MATCH($A59,IND,0)-2),REL_D,M$4,OrgID,$C$5)) -> 16237 | N59: =IF($C$5="Total",SUMIFS(OFFSET(REL_D,,MATCH($A59,IND,0)-2),REL_D,N$4,NwID,$C$4),SUMIFS(OFFSET(REL_D,,MATCH($A59,IND,0)-2),REL_D,N$4,OrgID,$C$5)) -> 16408 | O59: =IF($C$5="Total",SUMIFS(OFFSET(REL_D,,MATCH($A59,IND,0)-2),REL_D,O$4,NwID,$C$4),SUMIFS(OFFSET(REL_D,,MATCH($A59,IND,0)-2),REL_D,O$4,OrgID,$C$5)) -> 16604 | P59: =IF($C$5="Total",SUMIFS(OFFSET(REL_D,,MATCH($A59,IND,0)-2),REL_D,P$4,NwID,$C$4),SUMIFS(OFFSET(REL_D,,MATCH($A59,IND,0)-2),REL_D,P$4,OrgID,$C$5)) -> 17308 | Q59: =IF($C$5="Total",SUMIFS(OFFSET(REL_D,,MATCH($A59,IND,0)-2),REL_D,Q$4,NwID,$C$4),SUMIFS(OFFSET(REL_D,,MATCH($A59,IND,0)-2),REL_D,Q$4,OrgID,$C$5)) -> 17490 | R59: =SUMIFS(OFFSET(REL_D,,MATCH($A59,IND,0)-1),REL_D,R$4,IF(LEFT($C$5,1)="N",NwID,OrgID),$C$5) -> 0
A60: ='Control Panel'!B62 -> %LDP.04.11: Diabetes and BP in last 12 months | B60: %LDP.04.11: Diabetes and BP in last 12 months | C60: % Diabetes Register | D60: =IFERROR(D59/D57,"N/A") -> 0.802 | E60: 0.922 | F60: =IFERROR(F59/F57,"N/A") -> 0.913 | G60: =IFERROR(G59/G57,"N/A") -> 0.894 | H60: 0.886 | I60: 0.888 | J60: 0.891 | K60: 0.889 | L60: 0.895 | M60: 0.9 | N60: 0.905 | O60: 0.912 | P60: 0.921 | Q60: 0.925 | R60: =IFERROR(R59/R57,"N/A") -> N/A
A61: ='Control Panel'!B63 -> LDP.04.09: Diabetes BP less than 145/85 (last 12m) | B61: LDP.04.09: Diabetes BP less than 145/85 (last 12m) | C61: BP < 145/85 (last 12m) | D61: =IF($C$5="Total",SUMIFS(OFFSET(REL_D,,MATCH($A61,IND,0)-2),REL_D,D$4,NwID,$C$4),SUMIFS(OFFSET(REL_D,,MATCH($A61,IND,0)-2),REL_D,D$4,OrgID,$C$5)) -> 9158 | E61: =IF($C$5="Total",SUMIFS(OFFSET(REL_D,,MATCH($A61,IND,0)-2),REL_D,E$4,NwID,$C$4),SUMIFS(OFFSET(REL_D,,MATCH($A61,IND,0)-2),REL_D,E$4,OrgID,$C$5)) -> 12393 | F61: =IF($C$5="Total",SUMIFS(OFFSET(REL_D,,MATCH($A61,IND,0)-2),REL_D,F$4,NwID,$C$4),SUMIFS(OFFSET(REL_D,,MATCH($A61,IND,0)-2),REL_D,F$4,OrgID,$C$5)) -> 12302 | G61: =IF($C$5="Total",SUMIFS(OFFSET(REL_D,,MATCH($A61,IND,0)-2),REL_D,G$4,NwID,$C$4),SUMIFS(OFFSET(REL_D,,MATCH($A61,IND,0)-2),REL_D,G$4,OrgID,$C$5)) -> 12081 | H61: =IF($C$5="Total",SUMIFS(OFFSET(REL_D,,MATCH($A61,IND,0)-2),REL_D,H$4,NwID,$C$4),SUMIFS(OFFSET(REL_D,,MATCH($A61,IND,0)-2),REL_D,H$4,OrgID,$C$5)) -> 12183 | I61: =IF($C$5="Total",SUMIFS(OFFSET(REL_D,,MATCH($A61,IND,0)-2),REL_D,I$4,NwID,$C$4),SUMIFS(OFFSET(REL_D,,MATCH($A61,IND,0)-2),REL_D,I$4,OrgID,$C$5)) -> 12269 | J61: =IF($C$5="Total",SUMIFS(OFFSET(REL_D,,MATCH($A61,IND,0)-2),REL_D,J$4,NwID,$C$4),SUMIFS(OFFSET(REL_D,,MATCH($A61,IND,0)-2),REL_D,J$4,OrgID,$C$5)) -> 12320 | K61: =IF($C$5="Total",SUMIFS(OFFSET(REL_D,,MATCH($A61,IND,0)-2),REL_D,K$4,NwID,$C$4),SUMIFS(OFFSET(REL_D,,MATCH($A61,IND,0)-2),REL_D,K$4,OrgID,$C$5)) -> 12231 | L61: =IF($C$5="Total",SUMIFS(OFFSET(REL_D,,MATCH($A61,IND,0)-2),REL_D,L$4,NwID,$C$4),SUMIFS(OFFSET(REL_D,,MATCH($A61,IND,0)-2),REL_D,L$4,OrgID,$C$5)) -> 12321 | M61: =IF($C$5="Total",SUMIFS(OFFSET(REL_D,,MATCH($A61,IND,0)-2),REL_D,M$4,NwID,$C$4),SUMIFS(OFFSET(REL_D,,MATCH($A61,IND,0)-2),REL_D,M$4,OrgID,$C$5)) -> 12406 | N61: =IF($C$5="Total",SUMIFS(OFFSET(REL_D,,MATCH($A61,IND,0)-2),REL_D,N$4,NwID,$C$4),SUMIFS(OFFSET(REL_D,,MATCH($A61,IND,0)-2),REL_D,N$4,OrgID,$C$5)) -> 12472 | O61: =IF($C$5="Total",SUMIFS(OFFSET(REL_D,,MATCH($A61,IND,0)-2),REL_D,O$4,NwID,$C$4),SUMIFS(OFFSET(REL_D,,MATCH($A61,IND,0)-2),REL_D,O$4,OrgID,$C$5)) -> 12570 | P61: =IF($C$5="Total",SUMIFS(OFFSET(REL_D,,MATCH($A61,IND,0)-2),REL_D,P$4,NwID,$C$4),SUMIFS(OFFSET(REL_D,,MATCH($A61,IND,0)-2),REL_D,P$4,OrgID,$C$5)) -> 13045 | Q61: =IF($C$5="Total",SUMIFS(OFFSET(REL_D,,MATCH($A61,IND,0)-2),REL_D,Q$4,NwID,$C$4),SUMIFS(OFFSET(REL_D,,MATCH($A61,IND,0)-2),REL_D,Q$4,OrgID,$C$5)) -> 13279 | R61: =SUMIFS(OFFSET(REL_D,,MATCH($A61,IND,0)-1),REL_D,R$4,IF(LEFT($C$5,1)="N",NwID,OrgID),$C$5) -> 0
A62: ='Control Panel'!B64 -> %LDP.04.09: Diabetes BP less than 145/85 (last 12m) | B62: %LDP.04.09: Diabetes BP less than 145/85 (last 12m) | C62: % Diabetes Register | D62: =IFERROR(D61/D57,"N/A") -> 0.614 | E62: 0.742 | F62: =IFERROR(F61/F57,"N/A") -> 0.727 | G62: =IFERROR(G61/G57,"N/A") -> 0.703 | H62: 0.697 | I62: 0.696 | J62: 0.694 | K62: 0.688 | L62: 0.687 | M62: 0.688 | N62: 0.688 | O62: 0.691 | P62: 0.694 | Q62: 0.702 | R62: =IFERROR(R61/R57,"N/A") -> N/A
A63: ='Control Panel'!B67 -> LDP.04.08: Diabetes Chol less than 5mmol (last 12m) | B63: LDP.04.08: Diabetes Chol less than 5mmol (last 12m) | C63: Cholesterol < 5mmols (last 12m) | D63: =IF($C$5="Total",SUMIFS(OFFSET(REL_D,,MATCH($A63,IND,0)-2),REL_D,D$4,NwID,$C$4),SUMIFS(OFFSET(REL_D,,MATCH($A63,IND,0)-2),REL_D,D$4,OrgID,$C$5)) -> 243 | E63: =IF($C$5="Total",SUMIFS(OFFSET(REL_D,,MATCH($A63,IND,0)-2),REL_D,E$4,NwID,$C$4),SUMIFS(OFFSET(REL_D,,MATCH($A63,IND,0)-2),REL_D,E$4,OrgID,$C$5)) -> 572 | F63: =IF($C$5="Total",SUMIFS(OFFSET(REL_D,,MATCH($A63,IND,0)-2),REL_D,F$4,NwID,$C$4),SUMIFS(OFFSET(REL_D,,MATCH($A63,IND,0)-2),REL_D,F$4,OrgID,$C$5)) -> 583 | G63: =IF($C$5="Total",SUMIFS(OFFSET(REL_D,,MATCH($A63,IND,0)-2),REL_D,G$4,NwID,$C$4),SUMIFS(OFFSET(REL_D,,MATCH($A63,IND,0)-2),REL_D,G$4,OrgID,$C$5)) -> 568 | H63: =IF($C$5="Total",SUMIFS(OFFSET(REL_D,,MATCH($A63,IND,0)-2),REL_D,H$4,NwID,$C$4),SUMIFS(OFFSET(REL_D,,MATCH($A63,IND,0)-2),REL_D,H$4,OrgID,$C$5)) -> 437 | I63: =IF($C$5="Total",SUMIFS(OFFSET(REL_D,,MATCH($A63,IND,0)-2),REL_D,I$4,NwID,$C$4),SUMIFS(OFFSET(REL_D,,MATCH($A63,IND,0)-2),REL_D,I$4,OrgID,$C$5)) -> 394 | J63: =IF($C$5="Total",SUMIFS(OFFSET(REL_D,,MATCH($A63,IND,0)-2),REL_D,J$4,NwID,$C$4),SUMIFS(OFFSET(REL_D,,MATCH($A63,IND,0)-2),REL_D,J$4,OrgID,$C$5)) -> 375 | K63: =IF($C$5="Total",SUMIFS(OFFSET(REL_D,,MATCH($A63,IND,0)-2),REL_D,K$4,NwID,$C$4),SUMIFS(OFFSET(REL_D,,MATCH($A63,IND,0)-2),REL_D,K$4,OrgID,$C$5)) -> 365 | L63: =IF($C$5="Total",SUMIFS(OFFSET(REL_D,,MATCH($A63,IND,0)-2),REL_D,L$4,NwID,$C$4),SUMIFS(OFFSET(REL_D,,MATCH($A63,IND,0)-2),REL_D,L$4,OrgID,$C$5)) -> 382 | M63: =IF($C$5="Total",SUMIFS(OFFSET(REL_D,,MATCH($A63,IND,0)-2),REL_D,M$4,NwID,$C$4),SUMIFS(OFFSET(REL_D,,MATCH($A63,IND,0)-2),REL_D,M$4,OrgID,$C$5)) -> 389 | N63: =IF($C$5="Total",SUMIFS(OFFSET(REL_D,,MATCH($A63,IND,0)-2),REL_D,N$4,NwID,$C$4),SUMIFS(OFFSET(REL_D,,MATCH($A63,IND,0)-2),REL_D,N$4,OrgID,$C$5)) -> 379 | O63: =IF($C$5="Total",SUMIFS(OFFSET(REL_D,,MATCH($A63,IND,0)-2),REL_D,O$4,NwID,$C$4),SUMIFS(OFFSET(REL_D,,MATCH($A63,IND,0)-2),REL_D,O$4,OrgID,$C$5)) -> 380 | P63: =IF($C$5="Total",SUMIFS(OFFSET(REL_D,,MATCH($A63,IND,0)-2),REL_D,P$4,NwID,$C$4),SUMIFS(OFFSET(REL_D,,MATCH($A63,IND,0)-2),REL_D,P$4,OrgID,$C$5)) -> 390 | Q63: =IF($C$5="Total",SUMIFS(OFFSET(REL_D,,MATCH($A63,IND,0)-2),REL_D,Q$4,NwID,$C$4),SUMIFS(OFFSET(REL_D,,MATCH($A63,IND,0)-2),REL_D,Q$4,OrgID,$C$5)) -> 405 | R63: =SUMIFS(OFFSET(REL_D,,MATCH($A63,IND,0)-1),REL_D,R$4,IF(LEFT($C$5,1)="N",NwID,OrgID),$C$5) -> 0
A64: ='Control Panel'!B68 -> %LDP.04.08: Diabetes Chol less than 5mmol (last 12m) | B64: %LDP.04.08: Diabetes Chol less than 5mmol (last 12m) | C64: % Diabetes Register | D64: =IFERROR(D63/D57,"N/A") -> 0.016 | E64: 0.034 | F64: =IFERROR(F63/F57,"N/A") -> 0.034 | G64: =IFERROR(G63/G57,"N/A") -> 0.033 | H64: 0.025 | I64: 0.022 | J64: 0.021 | K64: 0.021 | L64: 0.021 | M64: 0.022 | N64: 0.021 | O64: 0.021 | P64: 0.021 | Q64: 0.021 | R64: =IFERROR(R63/R57,"N/A") -> N/A
A65: ='Control Panel'!B69 -> LDP.04.01: Diabetes HbA1c <7.5% OR <59mmol (last 12m) | B65: LDP.04.01: Diabetes HbA1c <7.5% OR <59mmol (last 12m) | C65: HbA1c < 59 (last 12m) | D65: =IF($C$5="Total",SUMIFS(OFFSET(REL_D,,MATCH($A65,IND,0)-2),REL_D,D$4,NwID,$C$4),SUMIFS(OFFSET(REL_D,,MATCH($A65,IND,0)-2),REL_D,D$4,OrgID,$C$5)) -> 6888 | E65: =IF($C$5="Total",SUMIFS(OFFSET(REL_D,,MATCH($A65,IND,0)-2),REL_D,E$4,NwID,$C$4),SUMIFS(OFFSET(REL_D,,MATCH($A65,IND,0)-2),REL_D,E$4,OrgID,$C$5)) -> 8289 | F65: =IF($C$5="Total",SUMIFS(OFFSET(REL_D,,MATCH($A65,IND,0)-2),REL_D,F$4,NwID,$C$4),SUMIFS(OFFSET(REL_D,,MATCH($A65,IND,0)-2),REL_D,F$4,OrgID,$C$5)) -> 8227 | G65: =IF($C$5="Total",SUMIFS(OFFSET(REL_D,,MATCH($A65,IND,0)-2),REL_D,G$4,NwID,$C$4),SUMIFS(OFFSET(REL_D,,MATCH($A65,IND,0)-2),REL_D,G$4,OrgID,$C$5)) -> 8179 | H65: =IF($C$5="Total",SUMIFS(OFFSET(REL_D,,MATCH($A65,IND,0)-2),REL_D,H$4,NwID,$C$4),SUMIFS(OFFSET(REL_D,,MATCH($A65,IND,0)-2),REL_D,H$4,OrgID,$C$5)) -> 8282 | I65: =IF($C$5="Total",SUMIFS(OFFSET(REL_D,,MATCH($A65,IND,0)-2),REL_D,I$4,NwID,$C$4),SUMIFS(OFFSET(REL_D,,MATCH($A65,IND,0)-2),REL_D,I$4,OrgID,$C$5)) -> 8295 | J65: =IF($C$5="Total",SUMIFS(OFFSET(REL_D,,MATCH($A65,IND,0)-2),REL_D,J$4,NwID,$C$4),SUMIFS(OFFSET(REL_D,,MATCH($A65,IND,0)-2),REL_D,J$4,OrgID,$C$5)) -> 8779 | K65: =IF($C$5="Total",SUMIFS(OFFSET(REL_D,,MATCH($A65,IND,0)-2),REL_D,K$4,NwID,$C$4),SUMIFS(OFFSET(REL_D,,MATCH($A65,IND,0)-2),REL_D,K$4,OrgID,$C$5)) -> 8801 | L65: =IF($C$5="Total",SUMIFS(OFFSET(REL_D,,MATCH($A65,IND,0)-2),REL_D,L$4,NwID,$C$4),SUMIFS(OFFSET(REL_D,,MATCH($A65,IND,0)-2),REL_D,L$4,OrgID,$C$5)) -> 8977 | M65: =IF($C$5="Total",SUMIFS(OFFSET(REL_D,,MATCH($A65,IND,0)-2),REL_D,M$4,NwID,$C$4),SUMIFS(OFFSET(REL_D,,MATCH($A65,IND,0)-2),REL_D,M$4,OrgID,$C$5)) -> 9105 | N65: =IF($C$5="Total",SUMIFS(OFFSET(REL_D,,MATCH($A65,IND,0)-2),REL_D,N$4,NwID,$C$4),SUMIFS(OFFSET(REL_D,,MATCH($A65,IND,0)-2),REL_D,N$4,OrgID,$C$5)) -> 9252 | O65: =IF($C$5="Total",SUMIFS(OFFSET(REL_D,,MATCH($A65,IND,0)-2),REL_D,O$4,NwID,$C$4),SUMIFS(OFFSET(REL_D,,MATCH($A65,IND,0)-2),REL_D,O$4,OrgID,$C$5)) -> 9360 | P65: =IF($C$5="Total",SUMIFS(OFFSET(REL_D,,MATCH($A65,IND,0)-2),REL_D,P$4,NwID,$C$4),SUMIFS(OFFSET(REL_D,,MATCH($A65,IND,0)-2),REL_D,P$4,OrgID,$C$5)) -> 9670 | Q65: =IF($C$5="Total",SUMIFS(OFFSET(REL_D,,MATCH($A65,IND,0)-2),REL_D,Q$4,NwID,$C$4),SUMIFS(OFFSET(REL_D,,MATCH($A65,IND,0)-2),REL_D,Q$4,OrgID,$C$5)) -> 9784 | R65: =SUMIFS(OFFSET(REL_D,,MATCH($A65,IND,0)-1),REL_D,R$4,IF(LEFT($C$5,1)="N",NwID,OrgID),$C$5) -> 0
A66: ='Control Panel'!B70 -> %LDP.04.01: Diabetes HbA1c <7.5% OR <59mmol (last 12m) | B66: %LDP.04.01: Diabetes HbA1c <7.5% OR <59mmol (last 12m) | C66: % Diabetes register | D66: =IFERROR(D65/D57,"N/A") -> 0.462 | E66: 0.496 | F66: =IFERROR(F65/F57,"N/A") -> 0.486 | G66: =IFERROR(G65/G57,"N/A") -> 0.476 | H66: 0.474 | I66: 0.471 | J66: 0.495 | K66: 0.495 | L66: 0.5 | M66: 0.505 | N66: 0.51 | O66: 0.514 | P66: 0.515 | Q66: 0.517 | R66: =IFERROR(R65/R57,"N/A") -> N/A
A67: ='Control Panel'!B81 -> LDP.04.07: Diabetes Influenza Vaccinations (From August 2018) | B67: LDP.04.07: Diabetes Influenza Vaccinations (last 12m) | C67: Flu jab (From August 2023) | D67: =IF($C$5="Total",SUMIFS(OFFSET(REL_D,,MATCH($A67,IND,0)-2),REL_D,D$4,NwID,$C$4),SUMIFS(OFFSET(REL_D,,MATCH($A67,IND,0)-2),REL_D,D$4,OrgID,$C$5)) -> 0 | E67: =IF($C$5="Total",SUMIFS(OFFSET(REL_D,,MATCH($A67,IND,0)-2),REL_D,E$4,NwID,$C$4),SUMIFS(OFFSET(REL_D,,MATCH($A67,IND,0)-2),REL_D,E$4,OrgID,$C$5)) -> 10534 | F67: =IF($C$5="Total",SUMIFS(OFFSET(REL_D,,MATCH($A67,IND,0)-2),REL_D,F$4,NwID,$C$4),SUMIFS(OFFSET(REL_D,,MATCH($A67,IND,0)-2),REL_D,F$4,OrgID,$C$5)) -> 0 | G67: =IF($C$5="Total",SUMIFS(OFFSET(REL_D,,MATCH($A67,IND,0)-2),REL_D,G$4,NwID,$C$4),SUMIFS(OFFSET(REL_D,,MATCH($A67,IND,0)-2),REL_D,G$4,OrgID,$C$5)) -> 0 | H67: =IF($C$5="Total",SUMIFS(OFFSET(REL_D,,MATCH($A67,IND,0)-2),REL_D,H$4,NwID,$C$4),SUMIFS(OFFSET(REL_D,,MATCH($A67,IND,0)-2),REL_D,H$4,OrgID,$C$5)) -> 0 | I67: =IF($C$5="Total",SUMIFS(OFFSET(REL_D,,MATCH($A67,IND,0)-2),REL_D,I$4,NwID,$C$4),SUMIFS(OFFSET(REL_D,,MATCH($A67,IND,0)-2),REL_D,I$4,OrgID,$C$5)) -> 0 | J67: =IF($C$5="Total",SUMIFS(OFFSET(REL_D,,MATCH($A67,IND,0)-2),REL_D,J$4,NwID,$C$4),SUMIFS(OFFSET(REL_D,,MATCH($A67,IND,0)-2),REL_D,J$4,OrgID,$C$5)) -> 8 | K67: =IF($C$5="Total",SUMIFS(OFFSET(REL_D,,MATCH($A67,IND,0)-2),REL_D,K$4,NwID,$C$4),SUMIFS(OFFSET(REL_D,,MATCH($A67,IND,0)-2),REL_D,K$4,OrgID,$C$5)) -> 3816 | L67: =IF($C$5="Total",SUMIFS(OFFSET(REL_D,,MATCH($A67,IND,0)-2),REL_D,L$4,NwID,$C$4),SUMIFS(OFFSET(REL_D,,MATCH($A67,IND,0)-2),REL_D,L$4,OrgID,$C$5)) -> 8364 | M67: =IF($C$5="Total",SUMIFS(OFFSET(REL_D,,MATCH($A67,IND,0)-2),REL_D,M$4,NwID,$C$4),SUMIFS(OFFSET(REL_D,,MATCH($A67,IND,0)-2),REL_D,M$4,OrgID,$C$5)) -> 9739 | N67: =IF($C$5="Total",SUMIFS(OFFSET(REL_D,,MATCH($A67,IND,0)-2),REL_D,N$4,NwID,$C$4),SUMIFS(OFFSET(REL_D,,MATCH($A67,IND,0)-2),REL_D,N$4,OrgID,$C$5)) -> 10206 | O67: =IF($C$5="Total",SUMIFS(OFFSET(REL_D,,MATCH($A67,IND,0)-2),REL_D,O$4,NwID,$C$4),SUMIFS(OFFSET(REL_D,,MATCH($A67,IND,0)-2),REL_D,O$4,OrgID,$C$5)) -> 10432 | P67: =IF($C$5="Total",SUMIFS(OFFSET(REL_D,,MATCH($A67,IND,0)-2),REL_D,P$4,NwID,$C$4),SUMIFS(OFFSET(REL_D,,MATCH($A67,IND,0)-2),REL_D,P$4,OrgID,$C$5)) -> 10784 | Q67: =IF($C$5="Total",SUMIFS(OFFSET(REL_D,,MATCH($A67,IND,0)-2),REL_D,Q$4,NwID,$C$4),SUMIFS(OFFSET(REL_D,,MATCH($A67,IND,0)-2),REL_D,Q$4,OrgID,$C$5)) -> 10830 | R67: =SUMIFS(OFFSET(REL_D,,MATCH($A67,IND,0)-1),REL_D,R$4,IF(LEFT($C$5,1)="N",NwID,OrgID),$C$5) -> 0
A68: ='Control Panel'!B82 -> %LDP.04.07: Diabetes Influenza Vaccinations (From August 2018) | B68: %LDP.04.07: Diabetes Influenza Vaccinations (last 12m) | C68: % Diabetes Register | D68: =IFERROR(D67/D57,"N/A") -> 0 | E68: 0.63 | F68: =IFERROR(F67/F57,"N/A") -> 0 | G68: =IFERROR(G67/G57,"N/A") -> 0 | H68: 0 | I68: 0 | J68: 0 | K68: 0.215 | L68: 0.466 | M68: 0.54 | N68: 0.563 | O68: 0.573 | P68: 0.574 | Q68: 0.573 | R68: =IFERROR(R67/R57,"N/A") -> N/A
C69: ='Control Panel'!B107 -> Mental Health
A70: ='Control Panel'!B108 -> CSPMH.01 SMI Register | B70: CSPMH.01 SMI Register | C70: ='Control Panel'!D108 -> Mental Health register | D70: =IF($C$5="Total",SUMIFS(OFFSET(REL_D,,MATCH($A70,IND,0)-2),REL_D,D$4,NwID,$C$4),SUMIFS(OFFSET(REL_D,,MATCH($A70,IND,0)-2),REL_D,D$4,OrgID,$C$5)) -> 1862 | E70: =IF($C$5="Total",SUMIFS(OFFSET(REL_D,,MATCH($A70,IND,0)-2),REL_D,E$4,NwID,$C$4),SUMIFS(OFFSET(REL_D,,MATCH($A70,IND,0)-2),REL_D,E$4,OrgID,$C$5)) -> 1954 | F70: =IF($C$5="Total",SUMIFS(OFFSET(REL_D,,MATCH($A70,IND,0)-2),REL_D,F$4,NwID,$C$4),SUMIFS(OFFSET(REL_D,,MATCH($A70,IND,0)-2),REL_D,F$4,OrgID,$C$5)) -> 1965 | G70: =IF($C$5="Total",SUMIFS(OFFSET(REL_D,,MATCH($A70,IND,0)-2),REL_D,G$4,NwID,$C$4),SUMIFS(OFFSET(REL_D,,MATCH($A70,IND,0)-2),REL_D,G$4,OrgID,$C$5)) -> 1989 | H70: =IF($C$5="Total",SUMIFS(OFFSET(REL_D,,MATCH($A70,IND,0)-2),REL_D,H$4,NwID,$C$4),SUMIFS(OFFSET(REL_D,,MATCH($A70,IND,0)-2),REL_D,H$4,OrgID,$C$5)) -> 2003 | I70: =IF($C$5="Total",SUMIFS(OFFSET(REL_D,,MATCH($A70,IND,0)-2),REL_D,I$4,NwID,$C$4),SUMIFS(OFFSET(REL_D,,MATCH($A70,IND,0)-2),REL_D,I$4,OrgID,$C$5)) -> 2022 | J70: =IF($C$5="Total",SUMIFS(OFFSET(REL_D,,MATCH($A70,IND,0)-2),REL_D,J$4,NwID,$C$4),SUMIFS(OFFSET(REL_D,,MATCH($A70,IND,0)-2),REL_D,J$4,OrgID,$C$5)) -> 2061 | K70: =IF($C$5="Total",SUMIFS(OFFSET(REL_D,,MATCH($A70,IND,0)-2),REL_D,K$4,NwID,$C$4),SUMIFS(OFFSET(REL_D,,MATCH($A70,IND,0)-2),REL_D,K$4,OrgID,$C$5)) -> 2072 | L70: =IF($C$5="Total",SUMIFS(OFFSET(REL_D,,MATCH($A70,IND,0)-2),REL_D,L$4,NwID,$C$4),SUMIFS(OFFSET(REL_D,,MATCH($A70,IND,0)-2),REL_D,L$4,OrgID,$C$5)) -> 2088 | M70: =IF($C$5="Total",SUMIFS(OFFSET(REL_D,,MATCH($A70,IND,0)-2),REL_D,M$4,NwID,$C$4),SUMIFS(OFFSET(REL_D,,MATCH($A70,IND,0)-2),REL_D,M$4,OrgID,$C$5)) -> 2087 | N70: =IF($C$5="Total",SUMIFS(OFFSET(REL_D,,MATCH($A70,IND,0)-2),REL_D,N$4,NwID,$C$4),SUMIFS(OFFSET(REL_D,,MATCH($A70,IND,0)-2),REL_D,N$4,OrgID,$C$5)) -> 2102 | O70: =IF($C$5="Total",SUMIFS(OFFSET(REL_D,,MATCH($A70,IND,0)-2),REL_D,O$4,NwID,$C$4),SUMIFS(OFFSET(REL_D,,MATCH($A70,IND,0)-2),REL_D,O$4,OrgID,$C$5)) -> 2109 | P70: =IF($C$5="Total",SUMIFS(OFFSET(REL_D,,MATCH($A70,IND,0)-2),REL_D,P$4,NwID,$C$4),SUMIFS(OFFSET(REL_D,,MATCH($A70,IND,0)-2),REL_D,P$4,OrgID,$C$5)) -> 2175 | Q70: =IF($C$5="Total",SUMIFS(OFFSET(REL_D,,MATCH($A70,IND,0)-2),REL_D,Q$4,NwID,$C$4),SUMIFS(OFFSET(REL_D,,MATCH($A70,IND,0)-2),REL_D,Q$4,OrgID,$C$5)) -> 2165 | R70: =SUMIFS(OFFSET(REL_D,,MATCH($A70,IND,0)-1),REL_D,R$4,IF(LEFT($C$5,1)="N",NwID,OrgID),$C$5) -> 0
A71: ='Control Panel'!B109 -> %CSPMH.01 SMI Register | B71: %CSPMH.01 SMI Register | C71: ='Control Panel'!D109 -> % list size | D71: =IFERROR(D70/D8,"N/A") -> 0.008 | E71: 0.008 | F71: =IFERROR(F70/F8,"N/A") -> 0.008 | G71: =IFERROR(G70/G8,"N/A") -> 0.008 | H71: 0.008 | I71: 0.008 | J71: 0.008 | K71: 0.008 | L71: 0.008 | M71: 0.008 | N71: 0.008 | O71: 0.008 | P71: 0.008 | Q71: 0.008 | R71: N/A
A72: ='Control Panel'!B110 -> CSPMH.01.02 Smoking Status Recorded (12m) | B72: CSPMH.01.02 Smoking Status Recorded (12m) | C72: ='Control Panel'!D110 -> No. of Mental Health Patients with smoking status recorded (last 12m) or never smoked | D72: =IF($C$5="Total",SUMIFS(OFFSET(REL_D,,MATCH($A72,IND,0)-2),REL_D,D$4,NwID,$C$4),SUMIFS(OFFSET(REL_D,,MATCH($A72,IND,0)-2),REL_D,D$4,OrgID,$C$5)) -> 1553 | E72: =IF($C$5="Total",SUMIFS(OFFSET(REL_D,,MATCH($A72,IND,0)-2),REL_D,E$4,NwID,$C$4),SUMIFS(OFFSET(REL_D,,MATCH($A72,IND,0)-2),REL_D,E$4,OrgID,$C$5)) -> 1702 | F72: =IF($C$5="Total",SUMIFS(OFFSET(REL_D,,MATCH($A72,IND,0)-2),REL_D,F$4,NwID,$C$4),SUMIFS(OFFSET(REL_D,,MATCH($A72,IND,0)-2),REL_D,F$4,OrgID,$C$5)) -> 1693 | G72: =IF($C$5="Total",SUMIFS(OFFSET(REL_D,,MATCH($A72,IND,0)-2),REL_D,G$4,NwID,$C$4),SUMIFS(OFFSET(REL_D,,MATCH($A72,IND,0)-2),REL_D,G$4,OrgID,$C$5)) -> 1697 | H72: =IF($C$5="Total",SUMIFS(OFFSET(REL_D,,MATCH($A72,IND,0)-2),REL_D,H$4,NwID,$C$4),SUMIFS(OFFSET(REL_D,,MATCH($A72,IND,0)-2),REL_D,H$4,OrgID,$C$5)) -> 1696 | I72: =IF($C$5="Total",SUMIFS(OFFSET(REL_D,,MATCH($A72,IND,0)-2),REL_D,I$4,NwID,$C$4),SUMIFS(OFFSET(REL_D,,MATCH($A72,IND,0)-2),REL_D,I$4,OrgID,$C$5)) -> 1701 | J72: =IF($C$5="Total",SUMIFS(OFFSET(REL_D,,MATCH($A72,IND,0)-2),REL_D,J$4,NwID,$C$4),SUMIFS(OFFSET(REL_D,,MATCH($A72,IND,0)-2),REL_D,J$4,OrgID,$C$5)) -> 1736 | K72: =IF($C$5="Total",SUMIFS(OFFSET(REL_D,,MATCH($A72,IND,0)-2),REL_D,K$4,NwID,$C$4),SUMIFS(OFFSET(REL_D,,MATCH($A72,IND,0)-2),REL_D,K$4,OrgID,$C$5)) -> 1754 | L72: =IF($C$5="Total",SUMIFS(OFFSET(REL_D,,MATCH($A72,IND,0)-2),REL_D,L$4,NwID,$C$4),SUMIFS(OFFSET(REL_D,,MATCH($A72,IND,0)-2),REL_D,L$4,OrgID,$C$5)) -> 1767 | M72: =IF($C$5="Total",SUMIFS(OFFSET(REL_D,,MATCH($A72,IND,0)-2),REL_D,M$4,NwID,$C$4),SUMIFS(OFFSET(REL_D,,MATCH($A72,IND,0)-2),REL_D,M$4,OrgID,$C$5)) -> 1779 | N72: =IF($C$5="Total",SUMIFS(OFFSET(REL_D,,MATCH($A72,IND,0)-2),REL_D,N$4,NwID,$C$4),SUMIFS(OFFSET(REL_D,,MATCH($A72,IND,0)-2),REL_D,N$4,OrgID,$C$5)) -> 1797 | O72: =IF($C$5="Total",SUMIFS(OFFSET(REL_D,,MATCH($A72,IND,0)-2),REL_D,O$4,NwID,$C$4),SUMIFS(OFFSET(REL_D,,MATCH($A72,IND,0)-2),REL_D,O$4,OrgID,$C$5)) -> 1807 | P72: =IF($C$5="Total",SUMIFS(OFFSET(REL_D,,MATCH($A72,IND,0)-2),REL_D,P$4,NwID,$C$4),SUMIFS(OFFSET(REL_D,,MATCH($A72,IND,0)-2),REL_D,P$4,OrgID,$C$5)) -> 1904 | Q72: =IF($C$5="Total",SUMIFS(OFFSET(REL_D,,MATCH($A72,IND,0)-2),REL_D,Q$4,NwID,$C$4),SUMIFS(OFFSET(REL_D,,MATCH($A72,IND,0)-2),REL_D,Q$4,OrgID,$C$5)) -> 1910 | R72: =SUMIFS(OFFSET(REL_D,,MATCH($A72,IND,0)-1),REL_D,R$4,IF(LEFT($C$5,1)="N",NwID,OrgID),$C$5) -> 0
A73: ='Control Panel'!B111 -> %CSPMH.01.02 Smoking Status Recorded (12m) | B73: %CSPMH.01.02 Smoking Status Recorded (12m) | C73: ='Control Panel'!D111 -> % Mental Health Register | D73: =IFERROR(D72/D70,"N/A") -> 0.834 | E73: 0.871 | F73: =IFERROR(F72/F70,"N/A") -> 0.862 | G73: =IFERROR(G72/G70,"N/A") -> 0.853 | H73: 0.847 | I73: 0.841 | J73: 0.842 | K73: 0.847 | L73: 0.846 | M73: 0.852 | N73: 0.855 | O73: 0.857 | P73: 0.875 | Q73: 0.882 | R73: =IFERROR(R72/R70,"N/A") -> N/A
A74: ='Control Panel'!B112 -> CSPMH.01.02.01 Current Smoker (12m) | B74: CSPMH.01.02.01 Current Smoker (15m) | C74: ='Control Panel'!D112 -> No. of Mental Health patients recorded as a Smoker | D74: =IF($C$5="Total",SUMIFS(OFFSET(REL_D,,MATCH($A74,IND,0)-2),REL_D,D$4,NwID,$C$4),SUMIFS(OFFSET(REL_D,,MATCH($A74,IND,0)-2),REL_D,D$4,OrgID,$C$5)) -> 493 | E74: =IF($C$5="Total",SUMIFS(OFFSET(REL_D,,MATCH($A74,IND,0)-2),REL_D,E$4,NwID,$C$4),SUMIFS(OFFSET(REL_D,,MATCH($A74,IND,0)-2),REL_D,E$4,OrgID,$C$5)) -> 608 | F74: =IF($C$5="Total",SUMIFS(OFFSET(REL_D,,MATCH($A74,IND,0)-2),REL_D,F$4,NwID,$C$4),SUMIFS(OFFSET(REL_D,,MATCH($A74,IND,0)-2),REL_D,F$4,OrgID,$C$5)) -> 589 | G74: =IF($C$5="Total",SUMIFS(OFFSET(REL_D,,MATCH($A74,IND,0)-2),REL_D,G$4,NwID,$C$4),SUMIFS(OFFSET(REL_D,,MATCH($A74,IND,0)-2),REL_D,G$4,OrgID,$C$5)) -> 583 | H74: =IF($C$5="Total",SUMIFS(OFFSET(REL_D,,MATCH($A74,IND,0)-2),REL_D,H$4,NwID,$C$4),SUMIFS(OFFSET(REL_D,,MATCH($A74,IND,0)-2),REL_D,H$4,OrgID,$C$5)) -> 582 | I74: =IF($C$5="Total",SUMIFS(OFFSET(REL_D,,MATCH($A74,IND,0)-2),REL_D,I$4,NwID,$C$4),SUMIFS(OFFSET(REL_D,,MATCH($A74,IND,0)-2),REL_D,I$4,OrgID,$C$5)) -> 580 | J74: =IF($C$5="Total",SUMIFS(OFFSET(REL_D,,MATCH($A74,IND,0)-2),REL_D,J$4,NwID,$C$4),SUMIFS(OFFSET(REL_D,,MATCH($A74,IND,0)-2),REL_D,J$4,OrgID,$C$5)) -> 577 | K74: =IF($C$5="Total",SUMIFS(OFFSET(REL_D,,MATCH($A74,IND,0)-2),REL_D,K$4,NwID,$C$4),SUMIFS(OFFSET(REL_D,,MATCH($A74,IND,0)-2),REL_D,K$4,OrgID,$C$5)) -> 581 | L74: =IF($C$5="Total",SUMIFS(OFFSET(REL_D,,MATCH($A74,IND,0)-2),REL_D,L$4,NwID,$C$4),SUMIFS(OFFSET(REL_D,,MATCH($A74,IND,0)-2),REL_D,L$4,OrgID,$C$5)) -> 590 | M74: =IF($C$5="Total",SUMIFS(OFFSET(REL_D,,MATCH($A74,IND,0)-2),REL_D,M$4,NwID,$C$4),SUMIFS(OFFSET(REL_D,,MATCH($A74,IND,0)-2),REL_D,M$4,OrgID,$C$5)) -> 594 | N74: =IF($C$5="Total",SUMIFS(OFFSET(REL_D,,MATCH($A74,IND,0)-2),REL_D,N$4,NwID,$C$4),SUMIFS(OFFSET(REL_D,,MATCH($A74,IND,0)-2),REL_D,N$4,OrgID,$C$5)) -> 591 | O74: =IF($C$5="Total",SUMIFS(OFFSET(REL_D,,MATCH($A74,IND,0)-2),REL_D,O$4,NwID,$C$4),SUMIFS(OFFSET(REL_D,,MATCH($A74,IND,0)-2),REL_D,O$4,OrgID,$C$5)) -> 597 | P74: =IF($C$5="Total",SUMIFS(OFFSET(REL_D,,MATCH($A74,IND,0)-2),REL_D,P$4,NwID,$C$4),SUMIFS(OFFSET(REL_D,,MATCH($A74,IND,0)-2),REL_D,P$4,OrgID,$C$5)) -> 639 | Q74: =IF($C$5="Total",SUMIFS(OFFSET(REL_D,,MATCH($A74,IND,0)-2),REL_D,Q$4,NwID,$C$4),SUMIFS(OFFSET(REL_D,,MATCH($A74,IND,0)-2),REL_D,Q$4,OrgID,$C$5)) -> 649 | R74: =SUMIFS(OFFSET(REL_D,,MATCH($A74,IND,0)-1),REL_D,R$4,IF(LEFT($C$5,1)="N",NwID,OrgID),$C$5) -> 0
A75: ='Control Panel'!B113 -> %CSPMH.01.02.01 Current Smoker (12m) | B75: %CSPMH.01.02.01 Current Smoker (15m) | C75: ='Control Panel'!D113 -> % Mental Health Register | D75: =IFERROR(D74/D70,"N/A") -> 0.265 | E75: 0.311 | F75: =IFERROR(F74/F70,"N/A") -> 0.3 | G75: =IFERROR(G74/G70,"N/A") -> 0.293 | H75: 0.291 | I75: 0.287 | J75: 0.28 | K75: 0.28 | L75: 0.283 | M75: 0.285 | N75: 0.281 | O75: 0.283 | P75: 0.294 | Q75: 0.3 | R75: =IFERROR(R74/R70,"N/A") -> N/A
A76: ='Control Panel'!B114 -> CSPMH 01.02.01.01 Ref to clinic 12m | B76: CSPMH 01.02.01.01 Ref to clinic 15m | C76: ='Control Panel'!D114 -> No. of Mental Health Patients who are current smokers & referred to the Stop Smoking Clinic | D76: =IF($C$5="Total",SUMIFS(OFFSET(REL_D,,MATCH($A76,IND,0)-2),REL_D,D$4,NwID,$C$4),SUMIFS(OFFSET(REL_D,,MATCH($A76,IND,0)-2),REL_D,D$4,OrgID,$C$5)) -> 11 | E76: =IF($C$5="Total",SUMIFS(OFFSET(REL_D,,MATCH($A76,IND,0)-2),REL_D,E$4,NwID,$C$4),SUMIFS(OFFSET(REL_D,,MATCH($A76,IND,0)-2),REL_D,E$4,OrgID,$C$5)) -> 19 | F76: =IF($C$5="Total",SUMIFS(OFFSET(REL_D,,MATCH($A76,IND,0)-2),REL_D,F$4,NwID,$C$4),SUMIFS(OFFSET(REL_D,,MATCH($A76,IND,0)-2),REL_D,F$4,OrgID,$C$5)) -> 20 | G76: =IF($C$5="Total",SUMIFS(OFFSET(REL_D,,MATCH($A76,IND,0)-2),REL_D,G$4,NwID,$C$4),SUMIFS(OFFSET(REL_D,,MATCH($A76,IND,0)-2),REL_D,G$4,OrgID,$C$5)) -> 17 | H76: =IF($C$5="Total",SUMIFS(OFFSET(REL_D,,MATCH($A76,IND,0)-2),REL_D,H$4,NwID,$C$4),SUMIFS(OFFSET(REL_D,,MATCH($A76,IND,0)-2),REL_D,H$4,OrgID,$C$5)) -> 16 | I76: =IF($C$5="Total",SUMIFS(OFFSET(REL_D,,MATCH($A76,IND,0)-2),REL_D,I$4,NwID,$C$4),SUMIFS(OFFSET(REL_D,,MATCH($A76,IND,0)-2),REL_D,I$4,OrgID,$C$5)) -> 22 | J76: =IF($C$5="Total",SUMIFS(OFFSET(REL_D,,MATCH($A76,IND,0)-2),REL_D,J$4,NwID,$C$4),SUMIFS(OFFSET(REL_D,,MATCH($A76,IND,0)-2),REL_D,J$4,OrgID,$C$5)) -> 24 | K76: =IF($C$5="Total",SUMIFS(OFFSET(REL_D,,MATCH($A76,IND,0)-2),REL_D,K$4,NwID,$C$4),SUMIFS(OFFSET(REL_D,,MATCH($A76,IND,0)-2),REL_D,K$4,OrgID,$C$5)) -> 27 | L76: =IF($C$5="Total",SUMIFS(OFFSET(REL_D,,MATCH($A76,IND,0)-2),REL_D,L$4,NwID,$C$4),SUMIFS(OFFSET(REL_D,,MATCH($A76,IND,0)-2),REL_D,L$4,OrgID,$C$5)) -> 27 | M76: =IF($C$5="Total",SUMIFS(OFFSET(REL_D,,MATCH($A76,IND,0)-2),REL_D,M$4,NwID,$C$4),SUMIFS(OFFSET(REL_D,,MATCH($A76,IND,0)-2),REL_D,M$4,OrgID,$C$5)) -> 27 | N76: =IF($C$5="Total",SUMIFS(OFFSET(REL_D,,MATCH($A76,IND,0)-2),REL_D,N$4,NwID,$C$4),SUMIFS(OFFSET(REL_D,,MATCH($A76,IND,0)-2),REL_D,N$4,OrgID,$C$5)) -> 24 | O76: =IF($C$5="Total",SUMIFS(OFFSET(REL_D,,MATCH($A76,IND,0)-2),REL_D,O$4,NwID,$C$4),SUMIFS(OFFSET(REL_D,,MATCH($A76,IND,0)-2),REL_D,O$4,OrgID,$C$5)) -> 23 | P76: =IF($C$5="Total",SUMIFS(OFFSET(REL_D,,MATCH($A76,IND,0)-2),REL_D,P$4,NwID,$C$4),SUMIFS(OFFSET(REL_D,,MATCH($A76,IND,0)-2),REL_D,P$4,OrgID,$C$5)) -> 23 | Q76: =IF($C$5="Total",SUMIFS(OFFSET(REL_D,,MATCH($A76,IND,0)-2),REL_D,Q$4,NwID,$C$4),SUMIFS(OFFSET(REL_D,,MATCH($A76,IND,0)-2),REL_D,Q$4,OrgID,$C$5)) -> 21 | R76: =SUMIFS(OFFSET(REL_D,,MATCH($A76,IND,0)-1),REL_D,R$4,IF(LEFT($C$5,1)="N",NwID,OrgID),$C$5) -> 0
A77: ='Control Panel'!B115 -> %CSPMH 01.02.01.01 Ref to clinic 12m | B77: %CSPMH 01.02.01.01 Ref to clinic 15m | C77: ='Control Panel'!D115 -> % Mental Health Register | D77: =IFERROR(D76/D70,"N/A") -> 0.006 | E77: 0.01 | F77: =IFERROR(F76/F70,"N/A") -> 0.01 | G77: =IFERROR(G76/G70,"N/A") -> 0.009 | H77: 0.008 | I77: 0.011 | J77: 0.012 | K77: 0.013 | L77: 0.013 | M77: 0.013 | N77: 0.011 | O77: 0.011 | P77: 0.011 | Q77: 0.01 | R77: =IFERROR(R76/R70,"N/A") -> N/A
A78: ='Control Panel'!B116 -> CSPMH.01.02.02 Ex-smoker Recorded (latest 12m) | B78: CSPMH.01.02.02 Ex-smoker Recorded (latest 15m) | C78: ='Control Panel'!D116 -> No. Of Mental Health Patients who are recorded as quitters | D78: =IF($C$5="Total",SUMIFS(OFFSET(REL_D,,MATCH($A78,IND,0)-2),REL_D,D$4,NwID,$C$4),SUMIFS(OFFSET(REL_D,,MATCH($A78,IND,0)-2),REL_D,D$4,OrgID,$C$5)) -> 104 | E78: =IF($C$5="Total",SUMIFS(OFFSET(REL_D,,MATCH($A78,IND,0)-2),REL_D,E$4,NwID,$C$4),SUMIFS(OFFSET(REL_D,,MATCH($A78,IND,0)-2),REL_D,E$4,OrgID,$C$5)) -> 163 | F78: =IF($C$5="Total",SUMIFS(OFFSET(REL_D,,MATCH($A78,IND,0)-2),REL_D,F$4,NwID,$C$4),SUMIFS(OFFSET(REL_D,,MATCH($A78,IND,0)-2),REL_D,F$4,OrgID,$C$5)) -> 166 | G78: =IF($C$5="Total",SUMIFS(OFFSET(REL_D,,MATCH($A78,IND,0)-2),REL_D,G$4,NwID,$C$4),SUMIFS(OFFSET(REL_D,,MATCH($A78,IND,0)-2),REL_D,G$4,OrgID,$C$5)) -> 167 | H78: =IF($C$5="Total",SUMIFS(OFFSET(REL_D,,MATCH($A78,IND,0)-2),REL_D,H$4,NwID,$C$4),SUMIFS(OFFSET(REL_D,,MATCH($A78,IND,0)-2),REL_D,H$4,OrgID,$C$5)) -> 177 | I78: =IF($C$5="Total",SUMIFS(OFFSET(REL_D,,MATCH($A78,IND,0)-2),REL_D,I$4,NwID,$C$4),SUMIFS(OFFSET(REL_D,,MATCH($A78,IND,0)-2),REL_D,I$4,OrgID,$C$5)) -> 176 | J78: =IF($C$5="Total",SUMIFS(OFFSET(REL_D,,MATCH($A78,IND,0)-2),REL_D,J$4,NwID,$C$4),SUMIFS(OFFSET(REL_D,,MATCH($A78,IND,0)-2),REL_D,J$4,OrgID,$C$5)) -> 185 | K78: =IF($C$5="Total",SUMIFS(OFFSET(REL_D,,MATCH($A78,IND,0)-2),REL_D,K$4,NwID,$C$4),SUMIFS(OFFSET(REL_D,,MATCH($A78,IND,0)-2),REL_D,K$4,OrgID,$C$5)) -> 193 | L78: =IF($C$5="Total",SUMIFS(OFFSET(REL_D,,MATCH($A78,IND,0)-2),REL_D,L$4,NwID,$C$4),SUMIFS(OFFSET(REL_D,,MATCH($A78,IND,0)-2),REL_D,L$4,OrgID,$C$5)) -> 185 | M78: =IF($C$5="Total",SUMIFS(OFFSET(REL_D,,MATCH($A78,IND,0)-2),REL_D,M$4,NwID,$C$4),SUMIFS(OFFSET(REL_D,,MATCH($A78,IND,0)-2),REL_D,M$4,OrgID,$C$5)) -> 189 | N78: =IF($C$5="Total",SUMIFS(OFFSET(REL_D,,MATCH($A78,IND,0)-2),REL_D,N$4,NwID,$C$4),SUMIFS(OFFSET(REL_D,,MATCH($A78,IND,0)-2),REL_D,N$4,OrgID,$C$5)) -> 202 | O78: =IF($C$5="Total",SUMIFS(OFFSET(REL_D,,MATCH($A78,IND,0)-2),REL_D,O$4,NwID,$C$4),SUMIFS(OFFSET(REL_D,,MATCH($A78,IND,0)-2),REL_D,O$4,OrgID,$C$5)) -> 210 | P78: =IF($C$5="Total",SUMIFS(OFFSET(REL_D,,MATCH($A78,IND,0)-2),REL_D,P$4,NwID,$C$4),SUMIFS(OFFSET(REL_D,,MATCH($A78,IND,0)-2),REL_D,P$4,OrgID,$C$5)) -> 221 | Q78: =IF($C$5="Total",SUMIFS(OFFSET(REL_D,,MATCH($A78,IND,0)-2),REL_D,Q$4,NwID,$C$4),SUMIFS(OFFSET(REL_D,,MATCH($A78,IND,0)-2),REL_D,Q$4,OrgID,$C$5)) -> 225 | R78: =SUMIFS(OFFSET(REL_D,,MATCH($A78,IND,0)-1),REL_D,R$4,IF(LEFT($C$5,1)="N",NwID,OrgID),$C$5) -> 0
A79: ='Control Panel'!B117 -> %CSPMH.01.02.02 Ex-smoker Recorded (latest 12m) | B79: %CSPMH.01.02.02 Ex-smoker Recorded (latest 15m) | C79: ='Control Panel'!D117 -> % Mental Health Register | D79: =IFERROR(D78/D70,"N/A") -> 0.056 | E79: 0.083 | F79: =IFERROR(F78/F70,"N/A") -> 0.084 | G79: =IFERROR(G78/G70,"N/A") -> 0.084 | H79: 0.088 | I79: 0.087 | J79: 0.09 | K79: 0.093 | L79: 0.089 | M79: 0.091 | N79: 0.096 | O79: 0.1 | P79: 0.102 | Q79: 0.104 | R79: =IFERROR(R78/R70,"N/A") -> N/A
A80: ='Control Panel'!B118 -> CSPMH. 01.03 QRisk Recorded (12m) | B80: CSPMH. 01.03 QRisk Recorded (12m) | C80: ='Control Panel'!D118 -> Patients with Mental Health with QRISK recorded in the last 12m | D80: =IF($C$5="Total",SUMIFS(OFFSET(REL_D,,MATCH($A80,IND,0)-2),REL_D,D$4,NwID,$C$4),SUMIFS(OFFSET(REL_D,,MATCH($A80,IND,0)-2),REL_D,D$4,OrgID,$C$5)) -> 330 | E80: =IF($C$5="Total",SUMIFS(OFFSET(REL_D,,MATCH($A80,IND,0)-2),REL_D,E$4,NwID,$C$4),SUMIFS(OFFSET(REL_D,,MATCH($A80,IND,0)-2),REL_D,E$4,OrgID,$C$5)) -> 529 | F80: =IF($C$5="Total",SUMIFS(OFFSET(REL_D,,MATCH($A80,IND,0)-2),REL_D,F$4,NwID,$C$4),SUMIFS(OFFSET(REL_D,,MATCH($A80,IND,0)-2),REL_D,F$4,OrgID,$C$5)) -> 545 | G80: =IF($C$5="Total",SUMIFS(OFFSET(REL_D,,MATCH($A80,IND,0)-2),REL_D,G$4,NwID,$C$4),SUMIFS(OFFSET(REL_D,,MATCH($A80,IND,0)-2),REL_D,G$4,OrgID,$C$5)) -> 546 | H80: =IF($C$5="Total",SUMIFS(OFFSET(REL_D,,MATCH($A80,IND,0)-2),REL_D,H$4,NwID,$C$4),SUMIFS(OFFSET(REL_D,,MATCH($A80,IND,0)-2),REL_D,H$4,OrgID,$C$5)) -> 548 | I80: =IF($C$5="Total",SUMIFS(OFFSET(REL_D,,MATCH($A80,IND,0)-2),REL_D,I$4,NwID,$C$4),SUMIFS(OFFSET(REL_D,,MATCH($A80,IND,0)-2),REL_D,I$4,OrgID,$C$5)) -> 540 | J80: =IF($C$5="Total",SUMIFS(OFFSET(REL_D,,MATCH($A80,IND,0)-2),REL_D,J$4,NwID,$C$4),SUMIFS(OFFSET(REL_D,,MATCH($A80,IND,0)-2),REL_D,J$4,OrgID,$C$5)) -> 530 | K80: =IF($C$5="Total",SUMIFS(OFFSET(REL_D,,MATCH($A80,IND,0)-2),REL_D,K$4,NwID,$C$4),SUMIFS(OFFSET(REL_D,,MATCH($A80,IND,0)-2),REL_D,K$4,OrgID,$C$5)) -> 526 | L80: =IF($C$5="Total",SUMIFS(OFFSET(REL_D,,MATCH($A80,IND,0)-2),REL_D,L$4,NwID,$C$4),SUMIFS(OFFSET(REL_D,,MATCH($A80,IND,0)-2),REL_D,L$4,OrgID,$C$5)) -> 499 | M80: =IF($C$5="Total",SUMIFS(OFFSET(REL_D,,MATCH($A80,IND,0)-2),REL_D,M$4,NwID,$C$4),SUMIFS(OFFSET(REL_D,,MATCH($A80,IND,0)-2),REL_D,M$4,OrgID,$C$5)) -> 503 | N80: =IF($C$5="Total",SUMIFS(OFFSET(REL_D,,MATCH($A80,IND,0)-2),REL_D,N$4,NwID,$C$4),SUMIFS(OFFSET(REL_D,,MATCH($A80,IND,0)-2),REL_D,N$4,OrgID,$C$5)) -> 501 | O80: =IF($C$5="Total",SUMIFS(OFFSET(REL_D,,MATCH($A80,IND,0)-2),REL_D,O$4,NwID,$C$4),SUMIFS(OFFSET(REL_D,,MATCH($A80,IND,0)-2),REL_D,O$4,OrgID,$C$5)) -> 505 | P80: =IF($C$5="Total",SUMIFS(OFFSET(REL_D,,MATCH($A80,IND,0)-2),REL_D,P$4,NwID,$C$4),SUMIFS(OFFSET(REL_D,,MATCH($A80,IND,0)-2),REL_D,P$4,OrgID,$C$5)) -> 507 | Q80: =IF($C$5="Total",SUMIFS(OFFSET(REL_D,,MATCH($A80,IND,0)-2),REL_D,Q$4,NwID,$C$4),SUMIFS(OFFSET(REL_D,,MATCH($A80,IND,0)-2),REL_D,Q$4,OrgID,$C$5)) -> 501 | R80: =SUMIFS(OFFSET(REL_D,,MATCH($A80,IND,0)-1),REL_D,R$4,IF(LEFT($C$5,1)="N",NwID,OrgID),$C$5) -> 0
A81: ='Control Panel'!B119 -> %CSPMH. 01.03 QRisk Recorded (12m) | B81: %CSPMH. 01.03 QRisk Recorded (12m) | C81: ='Control Panel'!D119 -> % Mental Health Register | D81: =IFERROR(D80/D70,"N/A") -> 0.177 | E81: 0.271 | F81: =IFERROR(F80/F70,"N/A") -> 0.277 | G81: =IFERROR(G80/G70,"N/A") -> 0.275 | H81: 0.274 | I81: 0.267 | J81: 0.257 | K81: 0.254 | L81: 0.239 | M81: 0.241 | N81: 0.238 | O81: 0.239 | P81: 0.233 | Q81: 0.231 | R81: =IFERROR(R80/R70,"N/A") -> N/A
A82: ='Control Panel'!B120 -> CSPMH. 01.03.02 Qrisk>=20 (12m) | B82: CSPMH. 01.03.02 Qrisk>=20 (12m) | C82: ='Control Panel'!D120 -> Patients with Mental Health with QRISK 20% or higher in the last 12m | D82: =IF($C$5="Total",SUMIFS(OFFSET(REL_D,,MATCH($A82,IND,0)-2),REL_D,D$4,NwID,$C$4),SUMIFS(OFFSET(REL_D,,MATCH($A82,IND,0)-2),REL_D,D$4,OrgID,$C$5)) -> 53 | E82: =IF($C$5="Total",SUMIFS(OFFSET(REL_D,,MATCH($A82,IND,0)-2),REL_D,E$4,NwID,$C$4),SUMIFS(OFFSET(REL_D,,MATCH($A82,IND,0)-2),REL_D,E$4,OrgID,$C$5)) -> 84 | F82: =IF($C$5="Total",SUMIFS(OFFSET(REL_D,,MATCH($A82,IND,0)-2),REL_D,F$4,NwID,$C$4),SUMIFS(OFFSET(REL_D,,MATCH($A82,IND,0)-2),REL_D,F$4,OrgID,$C$5)) -> 89 | G82: =IF($C$5="Total",SUMIFS(OFFSET(REL_D,,MATCH($A82,IND,0)-2),REL_D,G$4,NwID,$C$4),SUMIFS(OFFSET(REL_D,,MATCH($A82,IND,0)-2),REL_D,G$4,OrgID,$C$5)) -> 91 | H82: =IF($C$5="Total",SUMIFS(OFFSET(REL_D,,MATCH($A82,IND,0)-2),REL_D,H$4,NwID,$C$4),SUMIFS(OFFSET(REL_D,,MATCH($A82,IND,0)-2),REL_D,H$4,OrgID,$C$5)) -> 92 | I82: =IF($C$5="Total",SUMIFS(OFFSET(REL_D,,MATCH($A82,IND,0)-2),REL_D,I$4,NwID,$C$4),SUMIFS(OFFSET(REL_D,,MATCH($A82,IND,0)-2),REL_D,I$4,OrgID,$C$5)) -> 87 | J82: =IF($C$5="Total",SUMIFS(OFFSET(REL_D,,MATCH($A82,IND,0)-2),REL_D,J$4,NwID,$C$4),SUMIFS(OFFSET(REL_D,,MATCH($A82,IND,0)-2),REL_D,J$4,OrgID,$C$5)) -> 86 | K82: =IF($C$5="Total",SUMIFS(OFFSET(REL_D,,MATCH($A82,IND,0)-2),REL_D,K$4,NwID,$C$4),SUMIFS(OFFSET(REL_D,,MATCH($A82,IND,0)-2),REL_D,K$4,OrgID,$C$5)) -> 81 | L82: =IF($C$5="Total",SUMIFS(OFFSET(REL_D,,MATCH($A82,IND,0)-2),REL_D,L$4,NwID,$C$4),SUMIFS(OFFSET(REL_D,,MATCH($A82,IND,0)-2),REL_D,L$4,OrgID,$C$5)) -> 82 | M82: =IF($C$5="Total",SUMIFS(OFFSET(REL_D,,MATCH($A82,IND,0)-2),REL_D,M$4,NwID,$C$4),SUMIFS(OFFSET(REL_D,,MATCH($A82,IND,0)-2),REL_D,M$4,OrgID,$C$5)) -> 79 | N82: =IF($C$5="Total",SUMIFS(OFFSET(REL_D,,MATCH($A82,IND,0)-2),REL_D,N$4,NwID,$C$4),SUMIFS(OFFSET(REL_D,,MATCH($A82,IND,0)-2),REL_D,N$4,OrgID,$C$5)) -> 84 | O82: =IF($C$5="Total",SUMIFS(OFFSET(REL_D,,MATCH($A82,IND,0)-2),REL_D,O$4,NwID,$C$4),SUMIFS(OFFSET(REL_D,,MATCH($A82,IND,0)-2),REL_D,O$4,OrgID,$C$5)) -> 82 | P82: =IF($C$5="Total",SUMIFS(OFFSET(REL_D,,MATCH($A82,IND,0)-2),REL_D,P$4,NwID,$C$4),SUMIFS(OFFSET(REL_D,,MATCH($A82,IND,0)-2),REL_D,P$4,OrgID,$C$5)) -> 84 | Q82: =IF($C$5="Total",SUMIFS(OFFSET(REL_D,,MATCH($A82,IND,0)-2),REL_D,Q$4,NwID,$C$4),SUMIFS(OFFSET(REL_D,,MATCH($A82,IND,0)-2),REL_D,Q$4,OrgID,$C$5)) -> 88 | R82: =SUMIFS(OFFSET(REL_D,,MATCH($A82,IND,0)-1),REL_D,R$4,IF(LEFT($C$5,1)="N",NwID,OrgID),$C$5) -> 0
A83: ='Control Panel'!B121 -> %CSPMH. 01.03.02 Qrisk>=20 (12m) | B83: %CSPMH. 01.03.02 Qrisk>=20 (12m) | C83: ='Control Panel'!D121 -> % patients with QRISK recorded | D83: =IFERROR(D82/D70,"N/A") -> 0.028 | E83: 0.043 | F83: =IFERROR(F82/F70,"N/A") -> 0.045 | G83: =IFERROR(G82/G70,"N/A") -> 0.046 | H83: 0.046 | I83: 0.043 | J83: 0.042 | K83: 0.039 | L83: 0.039 | M83: 0.038 | N83: 0.04 | O83: 0.039 | P83: 0.039 | Q83: 0.041 | R83: =IFERROR(R82/R70,"N/A") -> N/A
A84: ='Control Panel'!B122 -> CSPMH. 01.03.01 BP recorded on same day as QRisk (12m) | B84: CSPMH. 01.03.01 BP recorded on same day as QRisk (12m) | C84: ='Control Panel'!D122 -> Patients with Mental Health with BP & QRisk on the same day in the last 12m | D84: =IF($C$5="Total",SUMIFS(OFFSET(REL_D,,MATCH($A84,IND,0)-2),REL_D,D$4,NwID,$C$4),SUMIFS(OFFSET(REL_D,,MATCH($A84,IND,0)-2),REL_D,D$4,OrgID,$C$5)) -> 177 | E84: =IF($C$5="Total",SUMIFS(OFFSET(REL_D,,MATCH($A84,IND,0)-2),REL_D,E$4,NwID,$C$4),SUMIFS(OFFSET(REL_D,,MATCH($A84,IND,0)-2),REL_D,E$4,OrgID,$C$5)) -> 234 | F84: =IF($C$5="Total",SUMIFS(OFFSET(REL_D,,MATCH($A84,IND,0)-2),REL_D,F$4,NwID,$C$4),SUMIFS(OFFSET(REL_D,,MATCH($A84,IND,0)-2),REL_D,F$4,OrgID,$C$5)) -> 239 | G84: =IF($C$5="Total",SUMIFS(OFFSET(REL_D,,MATCH($A84,IND,0)-2),REL_D,G$4,NwID,$C$4),SUMIFS(OFFSET(REL_D,,MATCH($A84,IND,0)-2),REL_D,G$4,OrgID,$C$5)) -> 231 | H84: =IF($C$5="Total",SUMIFS(OFFSET(REL_D,,MATCH($A84,IND,0)-2),REL_D,H$4,NwID,$C$4),SUMIFS(OFFSET(REL_D,,MATCH($A84,IND,0)-2),REL_D,H$4,OrgID,$C$5)) -> 226 | I84: =IF($C$5="Total",SUMIFS(OFFSET(REL_D,,MATCH($A84,IND,0)-2),REL_D,I$4,NwID,$C$4),SUMIFS(OFFSET(REL_D,,MATCH($A84,IND,0)-2),REL_D,I$4,OrgID,$C$5)) -> 218 | J84: =IF($C$5="Total",SUMIFS(OFFSET(REL_D,,MATCH($A84,IND,0)-2),REL_D,J$4,NwID,$C$4),SUMIFS(OFFSET(REL_D,,MATCH($A84,IND,0)-2),REL_D,J$4,OrgID,$C$5)) -> 211 | K84: =IF($C$5="Total",SUMIFS(OFFSET(REL_D,,MATCH($A84,IND,0)-2),REL_D,K$4,NwID,$C$4),SUMIFS(OFFSET(REL_D,,MATCH($A84,IND,0)-2),REL_D,K$4,OrgID,$C$5)) -> 213 | L84: =IF($C$5="Total",SUMIFS(OFFSET(REL_D,,MATCH($A84,IND,0)-2),REL_D,L$4,NwID,$C$4),SUMIFS(OFFSET(REL_D,,MATCH($A84,IND,0)-2),REL_D,L$4,OrgID,$C$5)) -> 206 | M84: =IF($C$5="Total",SUMIFS(OFFSET(REL_D,,MATCH($A84,IND,0)-2),REL_D,M$4,NwID,$C$4),SUMIFS(OFFSET(REL_D,,MATCH($A84,IND,0)-2),REL_D,M$4,OrgID,$C$5)) -> 212 | N84: =IF($C$5="Total",SUMIFS(OFFSET(REL_D,,MATCH($A84,IND,0)-2),REL_D,N$4,NwID,$C$4),SUMIFS(OFFSET(REL_D,,MATCH($A84,IND,0)-2),REL_D,N$4,OrgID,$C$5)) -> 206 | O84: =IF($C$5="Total",SUMIFS(OFFSET(REL_D,,MATCH($A84,IND,0)-2),REL_D,O$4,NwID,$C$4),SUMIFS(OFFSET(REL_D,,MATCH($A84,IND,0)-2),REL_D,O$4,OrgID,$C$5)) -> 208 | P84: =IF($C$5="Total",SUMIFS(OFFSET(REL_D,,MATCH($A84,IND,0)-2),REL_D,P$4,NwID,$C$4),SUMIFS(OFFSET(REL_D,,MATCH($A84,IND,0)-2),REL_D,P$4,OrgID,$C$5)) -> 210 | Q84: =IF($C$5="Total",SUMIFS(OFFSET(REL_D,,MATCH($A84,IND,0)-2),REL_D,Q$4,NwID,$C$4),SUMIFS(OFFSET(REL_D,,MATCH($A84,IND,0)-2),REL_D,Q$4,OrgID,$C$5)) -> 215 | R84: =SUMIFS(OFFSET(REL_D,,MATCH($A84,IND,0)-1),REL_D,R$4,IF(LEFT($C$5,1)="N",NwID,OrgID),$C$5) -> 0
A85: ='Control Panel'!B123 -> %CSPMH. 01.03.01 BP recorded on same day as QRisk (12m) | B85: %CSPMH. 01.03.01 BP recorded on same day as QRisk (12m) | C85: ='Control Panel'!D123 -> % Mental Health Register | D85: =IFERROR(D84/D70,"N/A") -> 0.095 | E85: 0.12 | F85: =IFERROR(F84/F70,"N/A") -> 0.122 | G85: =IFERROR(G84/G70,"N/A") -> 0.116 | H85: 0.113 | I85: 0.108 | J85: 0.102 | K85: 0.103 | L85: 0.099 | M85: 0.102 | N85: 0.098 | O85: 0.099 | P85: 0.097 | Q85: 0.099 | R85: =IFERROR(R84/R70,"N/A") -> N/A
C86: ='Control Panel'!B124 -> CKD
A87: =VLOOKUP(C87,'Control Panel'!A124:B250,2,FALSE) -> LDP.08 CKD Register | B87: LDP.08 CKD Register | C87: ='Control Panel'!D125 -> No. of patients on CKD register | D87: =IF($C$5="Total",SUMIFS(OFFSET(REL_D,,MATCH($A87,IND,0)-2),REL_D,D$4,NwID,$C$4),SUMIFS(OFFSET(REL_D,,MATCH($A87,IND,0)-2),REL_D,D$4,OrgID,$C$5)) -> 3466 | E87: =IF($C$5="Total",SUMIFS(OFFSET(REL_D,,MATCH($A87,IND,0)-2),REL_D,E$4,NwID,$C$4),SUMIFS(OFFSET(REL_D,,MATCH($A87,IND,0)-2),REL_D,E$4,OrgID,$C$5)) -> 5107 | F87: =IF($C$5="Total",SUMIFS(OFFSET(REL_D,,MATCH($A87,IND,0)-2),REL_D,F$4,NwID,$C$4),SUMIFS(OFFSET(REL_D,,MATCH($A87,IND,0)-2),REL_D,F$4,OrgID,$C$5)) -> 5147 | G87: =IF($C$5="Total",SUMIFS(OFFSET(REL_D,,MATCH($A87,IND,0)-2),REL_D,G$4,NwID,$C$4),SUMIFS(OFFSET(REL_D,,MATCH($A87,IND,0)-2),REL_D,G$4,OrgID,$C$5)) -> 5274 | H87: =IF($C$5="Total",SUMIFS(OFFSET(REL_D,,MATCH($A87,IND,0)-2),REL_D,H$4,NwID,$C$4),SUMIFS(OFFSET(REL_D,,MATCH($A87,IND,0)-2),REL_D,H$4,OrgID,$C$5)) -> 5393 | I87: =IF($C$5="Total",SUMIFS(OFFSET(REL_D,,MATCH($A87,IND,0)-2),REL_D,I$4,NwID,$C$4),SUMIFS(OFFSET(REL_D,,MATCH($A87,IND,0)-2),REL_D,I$4,OrgID,$C$5)) -> 5477 | J87: =IF($C$5="Total",SUMIFS(OFFSET(REL_D,,MATCH($A87,IND,0)-2),REL_D,J$4,NwID,$C$4),SUMIFS(OFFSET(REL_D,,MATCH($A87,IND,0)-2),REL_D,J$4,OrgID,$C$5)) -> 5510 | K87: =IF($C$5="Total",SUMIFS(OFFSET(REL_D,,MATCH($A87,IND,0)-2),REL_D,K$4,NwID,$C$4),SUMIFS(OFFSET(REL_D,,MATCH($A87,IND,0)-2),REL_D,K$4,OrgID,$C$5)) -> 5557 | L87: =IF($C$5="Total",SUMIFS(OFFSET(REL_D,,MATCH($A87,IND,0)-2),REL_D,L$4,NwID,$C$4),SUMIFS(OFFSET(REL_D,,MATCH($A87,IND,0)-2),REL_D,L$4,OrgID,$C$5)) -> 5582 | M87: =IF($C$5="Total",SUMIFS(OFFSET(REL_D,,MATCH($A87,IND,0)-2),REL_D,M$4,NwID,$C$4),SUMIFS(OFFSET(REL_D,,MATCH($A87,IND,0)-2),REL_D,M$4,OrgID,$C$5)) -> 5620 | N87: =IF($C$5="Total",SUMIFS(OFFSET(REL_D,,MATCH($A87,IND,0)-2),REL_D,N$4,NwID,$C$4),SUMIFS(OFFSET(REL_D,,MATCH($A87,IND,0)-2),REL_D,N$4,OrgID,$C$5)) -> 5635 | O87: =IF($C$5="Total",SUMIFS(OFFSET(REL_D,,MATCH($A87,IND,0)-2),REL_D,O$4,NwID,$C$4),SUMIFS(OFFSET(REL_D,,MATCH($A87,IND,0)-2),REL_D,O$4,OrgID,$C$5)) -> 5633 | P87: =IF($C$5="Total",SUMIFS(OFFSET(REL_D,,MATCH($A87,IND,0)-2),REL_D,P$4,NwID,$C$4),SUMIFS(OFFSET(REL_D,,MATCH($A87,IND,0)-2),REL_D,P$4,OrgID,$C$5)) -> 5815 | Q87: =IF($C$5="Total",SUMIFS(OFFSET(REL_D,,MATCH($A87,IND,0)-2),REL_D,Q$4,NwID,$C$4),SUMIFS(OFFSET(REL_D,,MATCH($A87,IND,0)-2),REL_D,Q$4,OrgID,$C$5)) -> 5838 | R87: =SUMIFS(OFFSET(REL_D,,MATCH($A87,IND,0)-1),REL_D,R$4,IF(LEFT($C$5,1)="N",NwID,OrgID),$C$5) -> 0
A88: =VLOOKUP(C88,'Control Panel'!A125:B251,2,FALSE) -> %LDP.08 CKD Register | B88: %LDP.08 CKD Register | C88: ='Control Panel'!D126 -> % List Size | D88: =IFERROR(D87/D8,"N/A") -> 0.015 | E88: 0.021 | F88: =IFERROR(F87/F8,"N/A") -> 0.021 | G88: =IFERROR(G87/G8,"N/A") -> 0.022 | H88: 0.022 | I88: 0.022 | J88: 0.022 | K88: 0.022 | L88: 0.022 | M88: 0.022 | N88: 0.022 | O88: 0.022 | P88: 0.023 | Q88: 0.023 | R88: N/A
A89: =VLOOKUP(C89,'Control Panel'!A126:B252,2,FALSE) -> LDP.08.03 CKD and BP Recorded (last 12 m) | B89: LDP.08.03 CKD and BP Recorded (last 12 m) | C89: ='Control Panel'!D127 -> BP Recorded (last 12m) | D89: =IF($C$5="Total",SUMIFS(OFFSET(REL_D,,MATCH($A89,IND,0)-2),REL_D,D$4,NwID,$C$4),SUMIFS(OFFSET(REL_D,,MATCH($A89,IND,0)-2),REL_D,D$4,OrgID,$C$5)) -> 2543 | E89: =IF($C$5="Total",SUMIFS(OFFSET(REL_D,,MATCH($A89,IND,0)-2),REL_D,E$4,NwID,$C$4),SUMIFS(OFFSET(REL_D,,MATCH($A89,IND,0)-2),REL_D,E$4,OrgID,$C$5)) -> 4425 | F89: =IF($C$5="Total",SUMIFS(OFFSET(REL_D,,MATCH($A89,IND,0)-2),REL_D,F$4,NwID,$C$4),SUMIFS(OFFSET(REL_D,,MATCH($A89,IND,0)-2),REL_D,F$4,OrgID,$C$5)) -> 4438 | G89: =IF($C$5="Total",SUMIFS(OFFSET(REL_D,,MATCH($A89,IND,0)-2),REL_D,G$4,NwID,$C$4),SUMIFS(OFFSET(REL_D,,MATCH($A89,IND,0)-2),REL_D,G$4,OrgID,$C$5)) -> 4441 | H89: =IF($C$5="Total",SUMIFS(OFFSET(REL_D,,MATCH($A89,IND,0)-2),REL_D,H$4,NwID,$C$4),SUMIFS(OFFSET(REL_D,,MATCH($A89,IND,0)-2),REL_D,H$4,OrgID,$C$5)) -> 4513 | I89: =IF($C$5="Total",SUMIFS(OFFSET(REL_D,,MATCH($A89,IND,0)-2),REL_D,I$4,NwID,$C$4),SUMIFS(OFFSET(REL_D,,MATCH($A89,IND,0)-2),REL_D,I$4,OrgID,$C$5)) -> 4593 | J89: =IF($C$5="Total",SUMIFS(OFFSET(REL_D,,MATCH($A89,IND,0)-2),REL_D,J$4,NwID,$C$4),SUMIFS(OFFSET(REL_D,,MATCH($A89,IND,0)-2),REL_D,J$4,OrgID,$C$5)) -> 4618 | K89: =IF($C$5="Total",SUMIFS(OFFSET(REL_D,,MATCH($A89,IND,0)-2),REL_D,K$4,NwID,$C$4),SUMIFS(OFFSET(REL_D,,MATCH($A89,IND,0)-2),REL_D,K$4,OrgID,$C$5)) -> 4640 | L89: =IF($C$5="Total",SUMIFS(OFFSET(REL_D,,MATCH($A89,IND,0)-2),REL_D,L$4,NwID,$C$4),SUMIFS(OFFSET(REL_D,,MATCH($A89,IND,0)-2),REL_D,L$4,OrgID,$C$5)) -> 4683 | M89: =IF($C$5="Total",SUMIFS(OFFSET(REL_D,,MATCH($A89,IND,0)-2),REL_D,M$4,NwID,$C$4),SUMIFS(OFFSET(REL_D,,MATCH($A89,IND,0)-2),REL_D,M$4,OrgID,$C$5)) -> 4743 | N89: =IF($C$5="Total",SUMIFS(OFFSET(REL_D,,MATCH($A89,IND,0)-2),REL_D,N$4,NwID,$C$4),SUMIFS(OFFSET(REL_D,,MATCH($A89,IND,0)-2),REL_D,N$4,OrgID,$C$5)) -> 4786 | O89: =IF($C$5="Total",SUMIFS(OFFSET(REL_D,,MATCH($A89,IND,0)-2),REL_D,O$4,NwID,$C$4),SUMIFS(OFFSET(REL_D,,MATCH($A89,IND,0)-2),REL_D,O$4,OrgID,$C$5)) -> 4810 | P89: =IF($C$5="Total",SUMIFS(OFFSET(REL_D,,MATCH($A89,IND,0)-2),REL_D,P$4,NwID,$C$4),SUMIFS(OFFSET(REL_D,,MATCH($A89,IND,0)-2),REL_D,P$4,OrgID,$C$5)) -> 5027 | Q89: =IF($C$5="Total",SUMIFS(OFFSET(REL_D,,MATCH($A89,IND,0)-2),REL_D,Q$4,NwID,$C$4),SUMIFS(OFFSET(REL_D,,MATCH($A89,IND,0)-2),REL_D,Q$4,OrgID,$C$5)) -> 5063 | R89: =SUMIFS(OFFSET(REL_D,,MATCH($A89,IND,0)-1),REL_D,R$4,IF(LEFT($C$5,1)="N",NwID,OrgID),$C$5) -> 0
A90: =VLOOKUP(C90,'Control Panel'!A127:B253,2,FALSE) -> %LDP.08.03 CKD and BP Recorded (last 12 m) | B90: %LDP.08.03 CKD and BP Recorded (last 12 m) | C90: ='Control Panel'!D128 -> % CKD register | D90: =IFERROR(D89/D87,"N/A") -> 0.734 | E90: 0.866 | F90: =IFERROR(F89/F87,"N/A") -> 0.862 | G90: =IFERROR(G89/G87,"N/A") -> 0.842 | H90: 0.837 | I90: 0.839 | J90: 0.838 | K90: 0.835 | L90: 0.839 | M90: 0.844 | N90: 0.849 | O90: 0.854 | P90: 0.864 | Q90: 0.867 | R90: =IFERROR(R89/R87,"N/A") -> N/A
A91: LDP.08.01 CKD and BP less than 140/90 (last 12 m) | B91: LDP.08.01 CKD and BP less than 140/90 (last 12 m) | C91: ='Control Panel'!D129 -> BP < 140/90 | D91: =IF($C$5="Total",SUMIFS(OFFSET(REL_D,,MATCH($A91,IND,0)-2),REL_D,D$4,NwID,$C$4),SUMIFS(OFFSET(REL_D,,MATCH($A91,IND,0)-2),REL_D,D$4,OrgID,$C$5)) -> 1696 | E91: =IF($C$5="Total",SUMIFS(OFFSET(REL_D,,MATCH($A91,IND,0)-2),REL_D,E$4,NwID,$C$4),SUMIFS(OFFSET(REL_D,,MATCH($A91,IND,0)-2),REL_D,E$4,OrgID,$C$5)) -> 3176 | F91: =IF($C$5="Total",SUMIFS(OFFSET(REL_D,,MATCH($A91,IND,0)-2),REL_D,F$4,NwID,$C$4),SUMIFS(OFFSET(REL_D,,MATCH($A91,IND,0)-2),REL_D,F$4,OrgID,$C$5)) -> 3140 | G91: =IF($C$5="Total",SUMIFS(OFFSET(REL_D,,MATCH($A91,IND,0)-2),REL_D,G$4,NwID,$C$4),SUMIFS(OFFSET(REL_D,,MATCH($A91,IND,0)-2),REL_D,G$4,OrgID,$C$5)) -> 3108 | H91: =IF($C$5="Total",SUMIFS(OFFSET(REL_D,,MATCH($A91,IND,0)-2),REL_D,H$4,NwID,$C$4),SUMIFS(OFFSET(REL_D,,MATCH($A91,IND,0)-2),REL_D,H$4,OrgID,$C$5)) -> 3172 | I91: =IF($C$5="Total",SUMIFS(OFFSET(REL_D,,MATCH($A91,IND,0)-2),REL_D,I$4,NwID,$C$4),SUMIFS(OFFSET(REL_D,,MATCH($A91,IND,0)-2),REL_D,I$4,OrgID,$C$5)) -> 3217 | J91: =IF($C$5="Total",SUMIFS(OFFSET(REL_D,,MATCH($A91,IND,0)-2),REL_D,J$4,NwID,$C$4),SUMIFS(OFFSET(REL_D,,MATCH($A91,IND,0)-2),REL_D,J$4,OrgID,$C$5)) -> 3254 | K91: =IF($C$5="Total",SUMIFS(OFFSET(REL_D,,MATCH($A91,IND,0)-2),REL_D,K$4,NwID,$C$4),SUMIFS(OFFSET(REL_D,,MATCH($A91,IND,0)-2),REL_D,K$4,OrgID,$C$5)) -> 3293 | L91: =IF($C$5="Total",SUMIFS(OFFSET(REL_D,,MATCH($A91,IND,0)-2),REL_D,L$4,NwID,$C$4),SUMIFS(OFFSET(REL_D,,MATCH($A91,IND,0)-2),REL_D,L$4,OrgID,$C$5)) -> 3312 | M91: =IF($C$5="Total",SUMIFS(OFFSET(REL_D,,MATCH($A91,IND,0)-2),REL_D,M$4,NwID,$C$4),SUMIFS(OFFSET(REL_D,,MATCH($A91,IND,0)-2),REL_D,M$4,OrgID,$C$5)) -> 3351 | N91: =IF($C$5="Total",SUMIFS(OFFSET(REL_D,,MATCH($A91,IND,0)-2),REL_D,N$4,NwID,$C$4),SUMIFS(OFFSET(REL_D,,MATCH($A91,IND,0)-2),REL_D,N$4,OrgID,$C$5)) -> 3397 | O91: =IF($C$5="Total",SUMIFS(OFFSET(REL_D,,MATCH($A91,IND,0)-2),REL_D,O$4,NwID,$C$4),SUMIFS(OFFSET(REL_D,,MATCH($A91,IND,0)-2),REL_D,O$4,OrgID,$C$5)) -> 3395 | P91: =IF($C$5="Total",SUMIFS(OFFSET(REL_D,,MATCH($A91,IND,0)-2),REL_D,P$4,NwID,$C$4),SUMIFS(OFFSET(REL_D,,MATCH($A91,IND,0)-2),REL_D,P$4,OrgID,$C$5)) -> 3593 | Q91: =IF($C$5="Total",SUMIFS(OFFSET(REL_D,,MATCH($A91,IND,0)-2),REL_D,Q$4,NwID,$C$4),SUMIFS(OFFSET(REL_D,,MATCH($A91,IND,0)-2),REL_D,Q$4,OrgID,$C$5)) -> 3641 | R91: =SUMIFS(OFFSET(REL_D,,MATCH($A91,IND,0)-1),REL_D,R$4,IF(LEFT($C$5,1)="N",NwID,OrgID),$C$5) -> 0
A92: =VLOOKUP(C92,'Control Panel'!A129:B255,2,FALSE) -> %LDP.08.01 CKD and BP less than 140/90 (last 12 m) | B92: %LDP.08.01 CKD and BP less than 140/90 (last 12 m) | C92: ='Control Panel'!D130 -> % CKD register | D92: =IFERROR(D91/D87,"N/A") -> 0.489 | E92: 0.622 | F92: =IFERROR(F91/F87,"N/A") -> 0.61 | G92: =IFERROR(G91/G87,"N/A") -> 0.589 | H92: 0.588 | I92: 0.587 | J92: 0.591 | K92: 0.593 | L92: 0.593 | M92: 0.596 | N92: 0.603 | O92: 0.603 | P92: 0.618 | Q92: 0.624 | R92: =IFERROR(R91/R87,"N/A") -> N/A
A93: =VLOOKUP(C93,'Control Panel'!A130:B256,2,FALSE) -> LDP.08.02 CKD Diagnosed (Last 6m) | B93: LDP.08.02 CKD Diagnosed (Last 6m) | C93: ='Control Panel'!D131 -> No of patients with new diagnosis of CKD (last 6m) | D93: =IF($C$5="Total",SUMIFS(OFFSET(REL_D,,MATCH($A93,IND,0)-2),REL_D,D$4,NwID,$C$4),SUMIFS(OFFSET(REL_D,,MATCH($A93,IND,0)-2),REL_D,D$4,OrgID,$C$5)) -> 220 | E93: =IF($C$5="Total",SUMIFS(OFFSET(REL_D,,MATCH($A93,IND,0)-2),REL_D,E$4,NwID,$C$4),SUMIFS(OFFSET(REL_D,,MATCH($A93,IND,0)-2),REL_D,E$4,OrgID,$C$5)) -> 812 | F93: =IF($C$5="Total",SUMIFS(OFFSET(REL_D,,MATCH($A93,IND,0)-2),REL_D,F$4,NwID,$C$4),SUMIFS(OFFSET(REL_D,,MATCH($A93,IND,0)-2),REL_D,F$4,OrgID,$C$5)) -> 796 | G93: =IF($C$5="Total",SUMIFS(OFFSET(REL_D,,MATCH($A93,IND,0)-2),REL_D,G$4,NwID,$C$4),SUMIFS(OFFSET(REL_D,,MATCH($A93,IND,0)-2),REL_D,G$4,OrgID,$C$5)) -> 581 | H93: =IF($C$5="Total",SUMIFS(OFFSET(REL_D,,MATCH($A93,IND,0)-2),REL_D,H$4,NwID,$C$4),SUMIFS(OFFSET(REL_D,,MATCH($A93,IND,0)-2),REL_D,H$4,OrgID,$C$5)) -> 536 | I93: =IF($C$5="Total",SUMIFS(OFFSET(REL_D,,MATCH($A93,IND,0)-2),REL_D,I$4,NwID,$C$4),SUMIFS(OFFSET(REL_D,,MATCH($A93,IND,0)-2),REL_D,I$4,OrgID,$C$5)) -> 498 | J93: =IF($C$5="Total",SUMIFS(OFFSET(REL_D,,MATCH($A93,IND,0)-2),REL_D,J$4,NwID,$C$4),SUMIFS(OFFSET(REL_D,,MATCH($A93,IND,0)-2),REL_D,J$4,OrgID,$C$5)) -> 510 | K93: =IF($C$5="Total",SUMIFS(OFFSET(REL_D,,MATCH($A93,IND,0)-2),REL_D,K$4,NwID,$C$4),SUMIFS(OFFSET(REL_D,,MATCH($A93,IND,0)-2),REL_D,K$4,OrgID,$C$5)) -> 438 | L93: =IF($C$5="Total",SUMIFS(OFFSET(REL_D,,MATCH($A93,IND,0)-2),REL_D,L$4,NwID,$C$4),SUMIFS(OFFSET(REL_D,,MATCH($A93,IND,0)-2),REL_D,L$4,OrgID,$C$5)) -> 447 | M93: =IF($C$5="Total",SUMIFS(OFFSET(REL_D,,MATCH($A93,IND,0)-2),REL_D,M$4,NwID,$C$4),SUMIFS(OFFSET(REL_D,,MATCH($A93,IND,0)-2),REL_D,M$4,OrgID,$C$5)) -> 449 | N93: =IF($C$5="Total",SUMIFS(OFFSET(REL_D,,MATCH($A93,IND,0)-2),REL_D,N$4,NwID,$C$4),SUMIFS(OFFSET(REL_D,,MATCH($A93,IND,0)-2),REL_D,N$4,OrgID,$C$5)) -> 409 | O93: =IF($C$5="Total",SUMIFS(OFFSET(REL_D,,MATCH($A93,IND,0)-2),REL_D,O$4,NwID,$C$4),SUMIFS(OFFSET(REL_D,,MATCH($A93,IND,0)-2),REL_D,O$4,OrgID,$C$5)) -> 348 | P93: =IF($C$5="Total",SUMIFS(OFFSET(REL_D,,MATCH($A93,IND,0)-2),REL_D,P$4,NwID,$C$4),SUMIFS(OFFSET(REL_D,,MATCH($A93,IND,0)-2),REL_D,P$4,OrgID,$C$5)) -> 420 | Q93: =IF($C$5="Total",SUMIFS(OFFSET(REL_D,,MATCH($A93,IND,0)-2),REL_D,Q$4,NwID,$C$4),SUMIFS(OFFSET(REL_D,,MATCH($A93,IND,0)-2),REL_D,Q$4,OrgID,$C$5)) -> 434 | R93: =SUMIFS(OFFSET(REL_D,,MATCH($A93,IND,0)-1),REL_D,R$4,IF(LEFT($C$5,1)="N",NwID,OrgID),$C$5) -> 0
A94: =VLOOKUP(C94,'Control Panel'!A131:B257,2,FALSE) -> %LDP.08.02 CKD Diagnosed (Last 6m) | B94: %LDP.08.02 CKD Diagnosed (Last 6m) | C94: ='Control Panel'!D132 -> % CKD register | D94: =IFERROR(D93/D87,"N/A") -> 0.063 | E94: 0.159 | F94: =IFERROR(F93/F87,"N/A") -> 0.155 | G94: =IFERROR(G93/G87,"N/A") -> 0.11 | H94: 0.099 | I94: 0.091 | J94: 0.093 | K94: 0.079 | L94: 0.08 | M94: 0.08 | N94: 0.073 | O94: 0.062 | P94: 0.072 | Q94: 0.074 | R94: =IFERROR(R93/R87,"N/A") -> N/A
C95: ='Control Panel'!B133 -> COPD
A96: LDP.09 COPD Register | B96: LDP.09 COPD Register | C96: ='Control Panel'!C134 -> No. of patients on COPD register | D96: =IF($C$5="Total",SUMIFS(OFFSET(REL_D,,MATCH($A96,IND,0)-2),REL_D,D$4,NwID,$C$4),SUMIFS(OFFSET(REL_D,,MATCH($A96,IND,0)-2),REL_D,D$4,OrgID,$C$5)) -> 2955 | E96: =IF($C$5="Total",SUMIFS(OFFSET(REL_D,,MATCH($A96,IND,0)-2),REL_D,E$4,NwID,$C$4),SUMIFS(OFFSET(REL_D,,MATCH($A96,IND,0)-2),REL_D,E$4,OrgID,$C$5)) -> 3175 | F96: =IF($C$5="Total",SUMIFS(OFFSET(REL_D,,MATCH($A96,IND,0)-2),REL_D,F$4,NwID,$C$4),SUMIFS(OFFSET(REL_D,,MATCH($A96,IND,0)-2),REL_D,F$4,OrgID,$C$5)) -> 3186 | G96: =IF($C$5="Total",SUMIFS(OFFSET(REL_D,,MATCH($A96,IND,0)-2),REL_D,G$4,NwID,$C$4),SUMIFS(OFFSET(REL_D,,MATCH($A96,IND,0)-2),REL_D,G$4,OrgID,$C$5)) -> 3228 | H96: =IF($C$5="Total",SUMIFS(OFFSET(REL_D,,MATCH($A96,IND,0)-2),REL_D,H$4,NwID,$C$4),SUMIFS(OFFSET(REL_D,,MATCH($A96,IND,0)-2),REL_D,H$4,OrgID,$C$5)) -> 3289 | I96: =IF($C$5="Total",SUMIFS(OFFSET(REL_D,,MATCH($A96,IND,0)-2),REL_D,I$4,NwID,$C$4),SUMIFS(OFFSET(REL_D,,MATCH($A96,IND,0)-2),REL_D,I$4,OrgID,$C$5)) -> 3302 | J96: =IF($C$5="Total",SUMIFS(OFFSET(REL_D,,MATCH($A96,IND,0)-2),REL_D,J$4,NwID,$C$4),SUMIFS(OFFSET(REL_D,,MATCH($A96,IND,0)-2),REL_D,J$4,OrgID,$C$5)) -> 3381 | K96: =IF($C$5="Total",SUMIFS(OFFSET(REL_D,,MATCH($A96,IND,0)-2),REL_D,K$4,NwID,$C$4),SUMIFS(OFFSET(REL_D,,MATCH($A96,IND,0)-2),REL_D,K$4,OrgID,$C$5)) -> 3378 | L96: =IF($C$5="Total",SUMIFS(OFFSET(REL_D,,MATCH($A96,IND,0)-2),REL_D,L$4,NwID,$C$4),SUMIFS(OFFSET(REL_D,,MATCH($A96,IND,0)-2),REL_D,L$4,OrgID,$C$5)) -> 3390 | M96: =IF($C$5="Total",SUMIFS(OFFSET(REL_D,,MATCH($A96,IND,0)-2),REL_D,M$4,NwID,$C$4),SUMIFS(OFFSET(REL_D,,MATCH($A96,IND,0)-2),REL_D,M$4,OrgID,$C$5)) -> 3377 | N96: =IF($C$5="Total",SUMIFS(OFFSET(REL_D,,MATCH($A96,IND,0)-2),REL_D,N$4,NwID,$C$4),SUMIFS(OFFSET(REL_D,,MATCH($A96,IND,0)-2),REL_D,N$4,OrgID,$C$5)) -> 3377 | O96: =IF($C$5="Total",SUMIFS(OFFSET(REL_D,,MATCH($A96,IND,0)-2),REL_D,O$4,NwID,$C$4),SUMIFS(OFFSET(REL_D,,MATCH($A96,IND,0)-2),REL_D,O$4,OrgID,$C$5)) -> 3375 | P96: =IF($C$5="Total",SUMIFS(OFFSET(REL_D,,MATCH($A96,IND,0)-2),REL_D,P$4,NwID,$C$4),SUMIFS(OFFSET(REL_D,,MATCH($A96,IND,0)-2),REL_D,P$4,OrgID,$C$5)) -> 3382 | Q96: =IF($C$5="Total",SUMIFS(OFFSET(REL_D,,MATCH($A96,IND,0)-2),REL_D,Q$4,NwID,$C$4),SUMIFS(OFFSET(REL_D,,MATCH($A96,IND,0)-2),REL_D,Q$4,OrgID,$C$5)) -> 3376 | R96: =SUMIFS(OFFSET(REL_D,,MATCH($A96,IND,0)-1),REL_D,R$4,IF(LEFT($C$5,1)="N",NwID,OrgID),$C$5) -> 0
A97: ="%"&A96 -> %LDP.09 COPD Register | B97: %LDP.09 COPD Register | C97: ='Control Panel'!C135 -> % List Size | D97: =IFERROR(D96/D8,"N/A") -> 0.013 | E97: 0.013 | F97: =IFERROR(F96/F8,"N/A") -> 0.013 | G97: =IFERROR(G96/G8,"N/A") -> 0.013 | H97: 0.013 | I97: 0.013 | J97: 0.014 | K97: 0.014 | L97: 0.014 | M97: 0.014 | N97: 0.013 | O97: 0.013 | P97: 0.013 | Q97: 0.013 | R97: N/A
A98: LDP.09.01 Patients with severe or very severe COPD (FEV1<50) | B98: LDP.09.01 Patients with severe or very severe COPD (FEV1<50) | C98: ='Control Panel'!C136 -> No of patients with severe or very severe COPD (FEV1<50) | D98: =IF($C$5="Total",SUMIFS(OFFSET(REL_D,,MATCH($A98,IND,0)-2),REL_D,D$4,NwID,$C$4),SUMIFS(OFFSET(REL_D,,MATCH($A98,IND,0)-2),REL_D,D$4,OrgID,$C$5)) -> 458 | E98: =IF($C$5="Total",SUMIFS(OFFSET(REL_D,,MATCH($A98,IND,0)-2),REL_D,E$4,NwID,$C$4),SUMIFS(OFFSET(REL_D,,MATCH($A98,IND,0)-2),REL_D,E$4,OrgID,$C$5)) -> 507 | F98: =IF($C$5="Total",SUMIFS(OFFSET(REL_D,,MATCH($A98,IND,0)-2),REL_D,F$4,NwID,$C$4),SUMIFS(OFFSET(REL_D,,MATCH($A98,IND,0)-2),REL_D,F$4,OrgID,$C$5)) -> 505 | G98: =IF($C$5="Total",SUMIFS(OFFSET(REL_D,,MATCH($A98,IND,0)-2),REL_D,G$4,NwID,$C$4),SUMIFS(OFFSET(REL_D,,MATCH($A98,IND,0)-2),REL_D,G$4,OrgID,$C$5)) -> 510 | H98: =IF($C$5="Total",SUMIFS(OFFSET(REL_D,,MATCH($A98,IND,0)-2),REL_D,H$4,NwID,$C$4),SUMIFS(OFFSET(REL_D,,MATCH($A98,IND,0)-2),REL_D,H$4,OrgID,$C$5)) -> 521 | I98: =IF($C$5="Total",SUMIFS(OFFSET(REL_D,,MATCH($A98,IND,0)-2),REL_D,I$4,NwID,$C$4),SUMIFS(OFFSET(REL_D,,MATCH($A98,IND,0)-2),REL_D,I$4,OrgID,$C$5)) -> 522 | J98: =IF($C$5="Total",SUMIFS(OFFSET(REL_D,,MATCH($A98,IND,0)-2),REL_D,J$4,NwID,$C$4),SUMIFS(OFFSET(REL_D,,MATCH($A98,IND,0)-2),REL_D,J$4,OrgID,$C$5)) -> 525 | K98: =IF($C$5="Total",SUMIFS(OFFSET(REL_D,,MATCH($A98,IND,0)-2),REL_D,K$4,NwID,$C$4),SUMIFS(OFFSET(REL_D,,MATCH($A98,IND,0)-2),REL_D,K$4,OrgID,$C$5)) -> 524 | L98: =IF($C$5="Total",SUMIFS(OFFSET(REL_D,,MATCH($A98,IND,0)-2),REL_D,L$4,NwID,$C$4),SUMIFS(OFFSET(REL_D,,MATCH($A98,IND,0)-2),REL_D,L$4,OrgID,$C$5)) -> 523 | M98: =IF($C$5="Total",SUMIFS(OFFSET(REL_D,,MATCH($A98,IND,0)-2),REL_D,M$4,NwID,$C$4),SUMIFS(OFFSET(REL_D,,MATCH($A98,IND,0)-2),REL_D,M$4,OrgID,$C$5)) -> 521 | N98: =IF($C$5="Total",SUMIFS(OFFSET(REL_D,,MATCH($A98,IND,0)-2),REL_D,N$4,NwID,$C$4),SUMIFS(OFFSET(REL_D,,MATCH($A98,IND,0)-2),REL_D,N$4,OrgID,$C$5)) -> 517 | O98: =IF($C$5="Total",SUMIFS(OFFSET(REL_D,,MATCH($A98,IND,0)-2),REL_D,O$4,NwID,$C$4),SUMIFS(OFFSET(REL_D,,MATCH($A98,IND,0)-2),REL_D,O$4,OrgID,$C$5)) -> 511 | P98: =IF($C$5="Total",SUMIFS(OFFSET(REL_D,,MATCH($A98,IND,0)-2),REL_D,P$4,NwID,$C$4),SUMIFS(OFFSET(REL_D,,MATCH($A98,IND,0)-2),REL_D,P$4,OrgID,$C$5)) -> 503 | Q98: =IF($C$5="Total",SUMIFS(OFFSET(REL_D,,MATCH($A98,IND,0)-2),REL_D,Q$4,NwID,$C$4),SUMIFS(OFFSET(REL_D,,MATCH($A98,IND,0)-2),REL_D,Q$4,OrgID,$C$5)) -> 497 | R98: =SUMIFS(OFFSET(REL_D,,MATCH($A98,IND,0)-1),REL_D,R$4,IF(LEFT($C$5,1)="N",NwID,OrgID),$C$5) -> 0
A99: ="%"&A98 -> %LDP.09.01 Patients with severe or very severe COPD (FEV1<50) | B99: %LDP.09.01 Patients with severe or very severe COPD (FEV1<50) | C99: ='Control Panel'!C137 -> % COPD register | D99: =IFERROR(D98/D96,"N/A") -> 0.155 | E99: 0.16 | F99: =IFERROR(F98/F96,"N/A") -> 0.159 | G99: =IFERROR(G98/G96,"N/A") -> 0.158 | H99: 0.158 | I99: 0.158 | J99: 0.155 | K99: 0.155 | L99: 0.154 | M99: 0.154 | N99: 0.153 | O99: 0.151 | P99: 0.149 | Q99: 0.147 | R99: =IFERROR(R98/R96,"N/A") -> N/A
A100: LDP.09.02 Patients with smoking status recorded (last 12m) or never smoked | B100: LDP.09.02 Patients with smoking status recorded (last 12m) or never smoked | C100: ='Control Panel'!C138 -> No. of COPD Patients with smoking status recorded (last 12m) or never smoked | D100: =IF($C$5="Total",SUMIFS(OFFSET(REL_D,,MATCH($A100,IND,0)-2),REL_D,D$4,NwID,$C$4),SUMIFS(OFFSET(REL_D,,MATCH($A100,IND,0)-2),REL_D,D$4,OrgID,$C$5)) -> 2596 | E100: =IF($C$5="Total",SUMIFS(OFFSET(REL_D,,MATCH($A100,IND,0)-2),REL_D,E$4,NwID,$C$4),SUMIFS(OFFSET(REL_D,,MATCH($A100,IND,0)-2),REL_D,E$4,OrgID,$C$5)) -> 2986 | F100: =IF($C$5="Total",SUMIFS(OFFSET(REL_D,,MATCH($A100,IND,0)-2),REL_D,F$4,NwID,$C$4),SUMIFS(OFFSET(REL_D,,MATCH($A100,IND,0)-2),REL_D,F$4,OrgID,$C$5)) -> 2971 | G100: =IF($C$5="Total",SUMIFS(OFFSET(REL_D,,MATCH($A100,IND,0)-2),REL_D,G$4,NwID,$C$4),SUMIFS(OFFSET(REL_D,,MATCH($A100,IND,0)-2),REL_D,G$4,OrgID,$C$5)) -> 2963 | H100: =IF($C$5="Total",SUMIFS(OFFSET(REL_D,,MATCH($A100,IND,0)-2),REL_D,H$4,NwID,$C$4),SUMIFS(OFFSET(REL_D,,MATCH($A100,IND,0)-2),REL_D,H$4,OrgID,$C$5)) -> 3014 | I100: =IF($C$5="Total",SUMIFS(OFFSET(REL_D,,MATCH($A100,IND,0)-2),REL_D,I$4,NwID,$C$4),SUMIFS(OFFSET(REL_D,,MATCH($A100,IND,0)-2),REL_D,I$4,OrgID,$C$5)) -> 3036 | J100: =IF($C$5="Total",SUMIFS(OFFSET(REL_D,,MATCH($A100,IND,0)-2),REL_D,J$4,NwID,$C$4),SUMIFS(OFFSET(REL_D,,MATCH($A100,IND,0)-2),REL_D,J$4,OrgID,$C$5)) -> 3110 | K100: =IF($C$5="Total",SUMIFS(OFFSET(REL_D,,MATCH($A100,IND,0)-2),REL_D,K$4,NwID,$C$4),SUMIFS(OFFSET(REL_D,,MATCH($A100,IND,0)-2),REL_D,K$4,OrgID,$C$5)) -> 3103 | L100: =IF($C$5="Total",SUMIFS(OFFSET(REL_D,,MATCH($A100,IND,0)-2),REL_D,L$4,NwID,$C$4),SUMIFS(OFFSET(REL_D,,MATCH($A100,IND,0)-2),REL_D,L$4,OrgID,$C$5)) -> 3103 | M100: =IF($C$5="Total",SUMIFS(OFFSET(REL_D,,MATCH($A100,IND,0)-2),REL_D,M$4,NwID,$C$4),SUMIFS(OFFSET(REL_D,,MATCH($A100,IND,0)-2),REL_D,M$4,OrgID,$C$5)) -> 3115 | N100: =IF($C$5="Total",SUMIFS(OFFSET(REL_D,,MATCH($A100,IND,0)-2),REL_D,N$4,NwID,$C$4),SUMIFS(OFFSET(REL_D,,MATCH($A100,IND,0)-2),REL_D,N$4,OrgID,$C$5)) -> 3120 | O100: =IF($C$5="Total",SUMIFS(OFFSET(REL_D,,MATCH($A100,IND,0)-2),REL_D,O$4,NwID,$C$4),SUMIFS(OFFSET(REL_D,,MATCH($A100,IND,0)-2),REL_D,O$4,OrgID,$C$5)) -> 3134 | P100: =IF($C$5="Total",SUMIFS(OFFSET(REL_D,,MATCH($A100,IND,0)-2),REL_D,P$4,NwID,$C$4),SUMIFS(OFFSET(REL_D,,MATCH($A100,IND,0)-2),REL_D,P$4,OrgID,$C$5)) -> 3159 | Q100: =IF($C$5="Total",SUMIFS(OFFSET(REL_D,,MATCH($A100,IND,0)-2),REL_D,Q$4,NwID,$C$4),SUMIFS(OFFSET(REL_D,,MATCH($A100,IND,0)-2),REL_D,Q$4,OrgID,$C$5)) -> 3147 | R100: =SUMIFS(OFFSET(REL_D,,MATCH($A100,IND,0)-1),REL_D,R$4,IF(LEFT($C$5,1)="N",NwID,OrgID),$C$5) -> 0
A101: ="%"&A100 -> %LDP.09.02 Patients with smoking status recorded (last 12m) or never smoked | B101: %LDP.09.02 Patients with smoking status recorded (last 12m) or never smoked | C101: ='Control Panel'!C139 -> % COPD | D101: =IFERROR(D100/D96,"N/A") -> 0.879 | E101: 0.94 | F101: =IFERROR(F100/F96,"N/A") -> 0.933 | G101: =IFERROR(G100/G96,"N/A") -> 0.918 | H101: 0.916 | I101: 0.919 | J101: 0.92 | K101: 0.919 | L101: 0.915 | M101: 0.922 | N101: 0.924 | O101: 0.929 | P101: 0.934 | Q101: 0.932 | R101: =IFERROR(R100/R96,"N/A") -> N/A
A102: LDP.09.03 COPD patients recorded as a Smoker | B102: LDP.09.03 COPD patients recorded as a Smoker | C102: ='Control Panel'!C140 -> No. of COPD patients recorded as a Smoker | D102: =IF($C$5="Total",SUMIFS(OFFSET(REL_D,,MATCH($A102,IND,0)-2),REL_D,D$4,NwID,$C$4),SUMIFS(OFFSET(REL_D,,MATCH($A102,IND,0)-2),REL_D,D$4,OrgID,$C$5)) -> 1030 | E102: =IF($C$5="Total",SUMIFS(OFFSET(REL_D,,MATCH($A102,IND,0)-2),REL_D,E$4,NwID,$C$4),SUMIFS(OFFSET(REL_D,,MATCH($A102,IND,0)-2),REL_D,E$4,OrgID,$C$5)) -> 1188 | F102: =IF($C$5="Total",SUMIFS(OFFSET(REL_D,,MATCH($A102,IND,0)-2),REL_D,F$4,NwID,$C$4),SUMIFS(OFFSET(REL_D,,MATCH($A102,IND,0)-2),REL_D,F$4,OrgID,$C$5)) -> 1175 | G102: =IF($C$5="Total",SUMIFS(OFFSET(REL_D,,MATCH($A102,IND,0)-2),REL_D,G$4,NwID,$C$4),SUMIFS(OFFSET(REL_D,,MATCH($A102,IND,0)-2),REL_D,G$4,OrgID,$C$5)) -> 1153 | H102: =IF($C$5="Total",SUMIFS(OFFSET(REL_D,,MATCH($A102,IND,0)-2),REL_D,H$4,NwID,$C$4),SUMIFS(OFFSET(REL_D,,MATCH($A102,IND,0)-2),REL_D,H$4,OrgID,$C$5)) -> 1178 | I102: =IF($C$5="Total",SUMIFS(OFFSET(REL_D,,MATCH($A102,IND,0)-2),REL_D,I$4,NwID,$C$4),SUMIFS(OFFSET(REL_D,,MATCH($A102,IND,0)-2),REL_D,I$4,OrgID,$C$5)) -> 1177 | J102: =IF($C$5="Total",SUMIFS(OFFSET(REL_D,,MATCH($A102,IND,0)-2),REL_D,J$4,NwID,$C$4),SUMIFS(OFFSET(REL_D,,MATCH($A102,IND,0)-2),REL_D,J$4,OrgID,$C$5)) -> 1196 | K102: =IF($C$5="Total",SUMIFS(OFFSET(REL_D,,MATCH($A102,IND,0)-2),REL_D,K$4,NwID,$C$4),SUMIFS(OFFSET(REL_D,,MATCH($A102,IND,0)-2),REL_D,K$4,OrgID,$C$5)) -> 1200 | L102: =IF($C$5="Total",SUMIFS(OFFSET(REL_D,,MATCH($A102,IND,0)-2),REL_D,L$4,NwID,$C$4),SUMIFS(OFFSET(REL_D,,MATCH($A102,IND,0)-2),REL_D,L$4,OrgID,$C$5)) -> 1191 | M102: =IF($C$5="Total",SUMIFS(OFFSET(REL_D,,MATCH($A102,IND,0)-2),REL_D,M$4,NwID,$C$4),SUMIFS(OFFSET(REL_D,,MATCH($A102,IND,0)-2),REL_D,M$4,OrgID,$C$5)) -> 1214 | N102: =IF($C$5="Total",SUMIFS(OFFSET(REL_D,,MATCH($A102,IND,0)-2),REL_D,N$4,NwID,$C$4),SUMIFS(OFFSET(REL_D,,MATCH($A102,IND,0)-2),REL_D,N$4,OrgID,$C$5)) -> 1222 | O102: =IF($C$5="Total",SUMIFS(OFFSET(REL_D,,MATCH($A102,IND,0)-2),REL_D,O$4,NwID,$C$4),SUMIFS(OFFSET(REL_D,,MATCH($A102,IND,0)-2),REL_D,O$4,OrgID,$C$5)) -> 1234 | P102: =IF($C$5="Total",SUMIFS(OFFSET(REL_D,,MATCH($A102,IND,0)-2),REL_D,P$4,NwID,$C$4),SUMIFS(OFFSET(REL_D,,MATCH($A102,IND,0)-2),REL_D,P$4,OrgID,$C$5)) -> 1239 | Q102: =IF($C$5="Total",SUMIFS(OFFSET(REL_D,,MATCH($A102,IND,0)-2),REL_D,Q$4,NwID,$C$4),SUMIFS(OFFSET(REL_D,,MATCH($A102,IND,0)-2),REL_D,Q$4,OrgID,$C$5)) -> 1224 | R102: =SUMIFS(OFFSET(REL_D,,MATCH($A102,IND,0)-1),REL_D,R$4,IF(LEFT($C$5,1)="N",NwID,OrgID),$C$5) -> 0
A103: ="%"&A102 -> %LDP.09.03 COPD patients recorded as a Smoker | B103: %LDP.09.03 COPD patients recorded as a Smoker | C103: ='Control Panel'!C141 -> % COPD | D103: =IFERROR(D102/D96,"N/A") -> 0.349 | E103: 0.374 | F103: =IFERROR(F102/F96,"N/A") -> 0.369 | G103: =IFERROR(G102/G96,"N/A") -> 0.357 | H103: 0.358 | I103: 0.356 | J103: 0.354 | K103: 0.355 | L103: 0.351 | M103: 0.359 | N103: 0.362 | O103: 0.366 | P103: 0.366 | Q103: 0.363 | R103: =IFERROR(R102/R96,"N/A") -> N/A
A104: LDP.09.04 COPD Patients who are current smokers & referred to the Stop Smoking C | B104: LDP.09.04 COPD Patients who are current smokers & referred to the Stop Smoking C | C104: ='Control Panel'!C142 -> No. of COPD Patients who are current smokers & referred to the Stop Smoking Clinic (12m) | D104: =IF($C$5="Total",SUMIFS(OFFSET(REL_D,,MATCH($A104,IND,0)-2),REL_D,D$4,NwID,$C$4),SUMIFS(OFFSET(REL_D,,MATCH($A104,IND,0)-2),REL_D,D$4,OrgID,$C$5)) -> 24 | E104: =IF($C$5="Total",SUMIFS(OFFSET(REL_D,,MATCH($A104,IND,0)-2),REL_D,E$4,NwID,$C$4),SUMIFS(OFFSET(REL_D,,MATCH($A104,IND,0)-2),REL_D,E$4,OrgID,$C$5)) -> 47 | F104: =IF($C$5="Total",SUMIFS(OFFSET(REL_D,,MATCH($A104,IND,0)-2),REL_D,F$4,NwID,$C$4),SUMIFS(OFFSET(REL_D,,MATCH($A104,IND,0)-2),REL_D,F$4,OrgID,$C$5)) -> 48 | G104: =IF($C$5="Total",SUMIFS(OFFSET(REL_D,,MATCH($A104,IND,0)-2),REL_D,G$4,NwID,$C$4),SUMIFS(OFFSET(REL_D,,MATCH($A104,IND,0)-2),REL_D,G$4,OrgID,$C$5)) -> 48 | H104: =IF($C$5="Total",SUMIFS(OFFSET(REL_D,,MATCH($A104,IND,0)-2),REL_D,H$4,NwID,$C$4),SUMIFS(OFFSET(REL_D,,MATCH($A104,IND,0)-2),REL_D,H$4,OrgID,$C$5)) -> 50 | I104: =IF($C$5="Total",SUMIFS(OFFSET(REL_D,,MATCH($A104,IND,0)-2),REL_D,I$4,NwID,$C$4),SUMIFS(OFFSET(REL_D,,MATCH($A104,IND,0)-2),REL_D,I$4,OrgID,$C$5)) -> 50 | J104: =IF($C$5="Total",SUMIFS(OFFSET(REL_D,,MATCH($A104,IND,0)-2),REL_D,J$4,NwID,$C$4),SUMIFS(OFFSET(REL_D,,MATCH($A104,IND,0)-2),REL_D,J$4,OrgID,$C$5)) -> 56 | K104: =IF($C$5="Total",SUMIFS(OFFSET(REL_D,,MATCH($A104,IND,0)-2),REL_D,K$4,NwID,$C$4),SUMIFS(OFFSET(REL_D,,MATCH($A104,IND,0)-2),REL_D,K$4,OrgID,$C$5)) -> 57 | L104: =IF($C$5="Total",SUMIFS(OFFSET(REL_D,,MATCH($A104,IND,0)-2),REL_D,L$4,NwID,$C$4),SUMIFS(OFFSET(REL_D,,MATCH($A104,IND,0)-2),REL_D,L$4,OrgID,$C$5)) -> 56 | M104: =IF($C$5="Total",SUMIFS(OFFSET(REL_D,,MATCH($A104,IND,0)-2),REL_D,M$4,NwID,$C$4),SUMIFS(OFFSET(REL_D,,MATCH($A104,IND,0)-2),REL_D,M$4,OrgID,$C$5)) -> 53 | N104: =IF($C$5="Total",SUMIFS(OFFSET(REL_D,,MATCH($A104,IND,0)-2),REL_D,N$4,NwID,$C$4),SUMIFS(OFFSET(REL_D,,MATCH($A104,IND,0)-2),REL_D,N$4,OrgID,$C$5)) -> 52 | O104: =IF($C$5="Total",SUMIFS(OFFSET(REL_D,,MATCH($A104,IND,0)-2),REL_D,O$4,NwID,$C$4),SUMIFS(OFFSET(REL_D,,MATCH($A104,IND,0)-2),REL_D,O$4,OrgID,$C$5)) -> 55 | P104: =IF($C$5="Total",SUMIFS(OFFSET(REL_D,,MATCH($A104,IND,0)-2),REL_D,P$4,NwID,$C$4),SUMIFS(OFFSET(REL_D,,MATCH($A104,IND,0)-2),REL_D,P$4,OrgID,$C$5)) -> 55 | Q104: =IF($C$5="Total",SUMIFS(OFFSET(REL_D,,MATCH($A104,IND,0)-2),REL_D,Q$4,NwID,$C$4),SUMIFS(OFFSET(REL_D,,MATCH($A104,IND,0)-2),REL_D,Q$4,OrgID,$C$5)) -> 54 | R104: =SUMIFS(OFFSET(REL_D,,MATCH($A104,IND,0)-1),REL_D,R$4,IF(LEFT($C$5,1)="N",NwID,OrgID),$C$5) -> 0
A105: ="%"&A104 -> %LDP.09.04 COPD Patients who are current smokers & referred to the Stop Smoking C | B105: %LDP.09.04 COPD Patients who are current smokers & referred to the Stop Smoking C | C105: ='Control Panel'!C143 -> % of current COPD smokers | D105: =IFERROR(D104/D102,"N/A") -> 0.023 | E105: 0.04 | F105: =IFERROR(F104/F102,"N/A") -> 0.041 | G105: =IFERROR(G104/G102,"N/A") -> 0.042 | H105: 0.042 | I105: 0.042 | J105: 0.047 | K105: 0.048 | L105: 0.047 | M105: 0.044 | N105: 0.043 | O105: 0.045 | P105: 0.044 | Q105: 0.044 | R105: =IFERROR(R104/R102,"N/A") -> N/A
A106: LDP.09.05 No of COPD with flu vaccination (From August 2018) | B106: LDP.09.05 No of COPD with flu vaccination (12m) | C106: ='Control Panel'!C144 -> No of COPD with flu vaccination (From August 2023) | D106: =IF($C$5="Total",SUMIFS(OFFSET(REL_D,,MATCH($A106,IND,0)-2),REL_D,D$4,NwID,$C$4),SUMIFS(OFFSET(REL_D,,MATCH($A106,IND,0)-2),REL_D,D$4,OrgID,$C$5)) -> 0 | E106: =IF($C$5="Total",SUMIFS(OFFSET(REL_D,,MATCH($A106,IND,0)-2),REL_D,E$4,NwID,$C$4),SUMIFS(OFFSET(REL_D,,MATCH($A106,IND,0)-2),REL_D,E$4,OrgID,$C$5)) -> 2272 | F106: =IF($C$5="Total",SUMIFS(OFFSET(REL_D,,MATCH($A106,IND,0)-2),REL_D,F$4,NwID,$C$4),SUMIFS(OFFSET(REL_D,,MATCH($A106,IND,0)-2),REL_D,F$4,OrgID,$C$5)) -> 0 | G106: =IF($C$5="Total",SUMIFS(OFFSET(REL_D,,MATCH($A106,IND,0)-2),REL_D,G$4,NwID,$C$4),SUMIFS(OFFSET(REL_D,,MATCH($A106,IND,0)-2),REL_D,G$4,OrgID,$C$5)) -> 0 | H106: =IF($C$5="Total",SUMIFS(OFFSET(REL_D,,MATCH($A106,IND,0)-2),REL_D,H$4,NwID,$C$4),SUMIFS(OFFSET(REL_D,,MATCH($A106,IND,0)-2),REL_D,H$4,OrgID,$C$5)) -> 0 | I106: =IF($C$5="Total",SUMIFS(OFFSET(REL_D,,MATCH($A106,IND,0)-2),REL_D,I$4,NwID,$C$4),SUMIFS(OFFSET(REL_D,,MATCH($A106,IND,0)-2),REL_D,I$4,OrgID,$C$5)) -> 0 | J106: =IF($C$5="Total",SUMIFS(OFFSET(REL_D,,MATCH($A106,IND,0)-2),REL_D,J$4,NwID,$C$4),SUMIFS(OFFSET(REL_D,,MATCH($A106,IND,0)-2),REL_D,J$4,OrgID,$C$5)) -> 2 | K106: =IF($C$5="Total",SUMIFS(OFFSET(REL_D,,MATCH($A106,IND,0)-2),REL_D,K$4,NwID,$C$4),SUMIFS(OFFSET(REL_D,,MATCH($A106,IND,0)-2),REL_D,K$4,OrgID,$C$5)) -> 1029 | L106: =IF($C$5="Total",SUMIFS(OFFSET(REL_D,,MATCH($A106,IND,0)-2),REL_D,L$4,NwID,$C$4),SUMIFS(OFFSET(REL_D,,MATCH($A106,IND,0)-2),REL_D,L$4,OrgID,$C$5)) -> 1904 | M106: =IF($C$5="Total",SUMIFS(OFFSET(REL_D,,MATCH($A106,IND,0)-2),REL_D,M$4,NwID,$C$4),SUMIFS(OFFSET(REL_D,,MATCH($A106,IND,0)-2),REL_D,M$4,OrgID,$C$5)) -> 2123 | N106: =IF($C$5="Total",SUMIFS(OFFSET(REL_D,,MATCH($A106,IND,0)-2),REL_D,N$4,NwID,$C$4),SUMIFS(OFFSET(REL_D,,MATCH($A106,IND,0)-2),REL_D,N$4,OrgID,$C$5)) -> 2212 | O106: =IF($C$5="Total",SUMIFS(OFFSET(REL_D,,MATCH($A106,IND,0)-2),REL_D,O$4,NwID,$C$4),SUMIFS(OFFSET(REL_D,,MATCH($A106,IND,0)-2),REL_D,O$4,OrgID,$C$5)) -> 2237 | P106: =IF($C$5="Total",SUMIFS(OFFSET(REL_D,,MATCH($A106,IND,0)-2),REL_D,P$4,NwID,$C$4),SUMIFS(OFFSET(REL_D,,MATCH($A106,IND,0)-2),REL_D,P$4,OrgID,$C$5)) -> 2262 | Q106: =IF($C$5="Total",SUMIFS(OFFSET(REL_D,,MATCH($A106,IND,0)-2),REL_D,Q$4,NwID,$C$4),SUMIFS(OFFSET(REL_D,,MATCH($A106,IND,0)-2),REL_D,Q$4,OrgID,$C$5)) -> 2262 | R106: =SUMIFS(OFFSET(REL_D,,MATCH($A106,IND,0)-1),REL_D,R$4,IF(LEFT($C$5,1)="N",NwID,OrgID),$C$5) -> 0
A107: ="%"&A106 -> %LDP.09.05 No of COPD with flu vaccination (From August 2018) | B107: %LDP.09.05 No of COPD with flu vaccination (12m) | C107: ='Control Panel'!C145 -> % of COPD register | D107: =IFERROR(D106/D96,"N/A") -> 0 | E107: 0.716 | F107: =IFERROR(F106/F96,"N/A") -> 0 | G107: =IFERROR(G106/G96,"N/A") -> 0 | H107: 0 | I107: 0 | J107: 0.001 | K107: 0.305 | L107: 0.562 | M107: 0.629 | N107: 0.655 | O107: 0.663 | P107: 0.669 | Q107: 0.67 | R107: =IFERROR(R106/R96,"N/A") -> N/A
A108: LDP.09.06 No of COPD with pneumococcal vaccination ever | B108: LDP.09.06 No of COPD with pneumococcal vaccination ever | C108: ='Control Panel'!C146 -> No of COPD with pneumococcal vaccination ever | D108: =IF($C$5="Total",SUMIFS(OFFSET(REL_D,,MATCH($A108,IND,0)-2),REL_D,D$4,NwID,$C$4),SUMIFS(OFFSET(REL_D,,MATCH($A108,IND,0)-2),REL_D,D$4,OrgID,$C$5)) -> 2303 | E108: =IF($C$5="Total",SUMIFS(OFFSET(REL_D,,MATCH($A108,IND,0)-2),REL_D,E$4,NwID,$C$4),SUMIFS(OFFSET(REL_D,,MATCH($A108,IND,0)-2),REL_D,E$4,OrgID,$C$5)) -> 2370 | F108: =IF($C$5="Total",SUMIFS(OFFSET(REL_D,,MATCH($A108,IND,0)-2),REL_D,F$4,NwID,$C$4),SUMIFS(OFFSET(REL_D,,MATCH($A108,IND,0)-2),REL_D,F$4,OrgID,$C$5)) -> 2372 | G108: =IF($C$5="Total",SUMIFS(OFFSET(REL_D,,MATCH($A108,IND,0)-2),REL_D,G$4,NwID,$C$4),SUMIFS(OFFSET(REL_D,,MATCH($A108,IND,0)-2),REL_D,G$4,OrgID,$C$5)) -> 2394 | H108: =IF($C$5="Total",SUMIFS(OFFSET(REL_D,,MATCH($A108,IND,0)-2),REL_D,H$4,NwID,$C$4),SUMIFS(OFFSET(REL_D,,MATCH($A108,IND,0)-2),REL_D,H$4,OrgID,$C$5)) -> 2425 | I108: =IF($C$5="Total",SUMIFS(OFFSET(REL_D,,MATCH($A108,IND,0)-2),REL_D,I$4,NwID,$C$4),SUMIFS(OFFSET(REL_D,,MATCH($A108,IND,0)-2),REL_D,I$4,OrgID,$C$5)) -> 2433 | J108: =IF($C$5="Total",SUMIFS(OFFSET(REL_D,,MATCH($A108,IND,0)-2),REL_D,J$4,NwID,$C$4),SUMIFS(OFFSET(REL_D,,MATCH($A108,IND,0)-2),REL_D,J$4,OrgID,$C$5)) -> 2490 | K108: =IF($C$5="Total",SUMIFS(OFFSET(REL_D,,MATCH($A108,IND,0)-2),REL_D,K$4,NwID,$C$4),SUMIFS(OFFSET(REL_D,,MATCH($A108,IND,0)-2),REL_D,K$4,OrgID,$C$5)) -> 2502 | L108: =IF($C$5="Total",SUMIFS(OFFSET(REL_D,,MATCH($A108,IND,0)-2),REL_D,L$4,NwID,$C$4),SUMIFS(OFFSET(REL_D,,MATCH($A108,IND,0)-2),REL_D,L$4,OrgID,$C$5)) -> 2537 | M108: =IF($C$5="Total",SUMIFS(OFFSET(REL_D,,MATCH($A108,IND,0)-2),REL_D,M$4,NwID,$C$4),SUMIFS(OFFSET(REL_D,,MATCH($A108,IND,0)-2),REL_D,M$4,OrgID,$C$5)) -> 2538 | N108: =IF($C$5="Total",SUMIFS(OFFSET(REL_D,,MATCH($A108,IND,0)-2),REL_D,N$4,NwID,$C$4),SUMIFS(OFFSET(REL_D,,MATCH($A108,IND,0)-2),REL_D,N$4,OrgID,$C$5)) -> 2544 | O108: =IF($C$5="Total",SUMIFS(OFFSET(REL_D,,MATCH($A108,IND,0)-2),REL_D,O$4,NwID,$C$4),SUMIFS(OFFSET(REL_D,,MATCH($A108,IND,0)-2),REL_D,O$4,OrgID,$C$5)) -> 2540 | P108: =IF($C$5="Total",SUMIFS(OFFSET(REL_D,,MATCH($A108,IND,0)-2),REL_D,P$4,NwID,$C$4),SUMIFS(OFFSET(REL_D,,MATCH($A108,IND,0)-2),REL_D,P$4,OrgID,$C$5)) -> 2547 | Q108: =IF($C$5="Total",SUMIFS(OFFSET(REL_D,,MATCH($A108,IND,0)-2),REL_D,Q$4,NwID,$C$4),SUMIFS(OFFSET(REL_D,,MATCH($A108,IND,0)-2),REL_D,Q$4,OrgID,$C$5)) -> 2544 | R108: =SUMIFS(OFFSET(REL_D,,MATCH($A108,IND,0)-1),REL_D,R$4,IF(LEFT($C$5,1)="N",NwID,OrgID),$C$5) -> 0
A109: ="%"&A108 -> %LDP.09.06 No of COPD with pneumococcal vaccination ever | B109: %LDP.09.06 No of COPD with pneumococcal vaccination ever | C109: ='Control Panel'!C147 -> % of COPD register | D109: =IFERROR(D108/D96,"N/A") -> 0.779 | E109: 0.746 | F109: =IFERROR(F108/F96,"N/A") -> 0.745 | G109: =IFERROR(G108/G96,"N/A") -> 0.742 | H109: 0.737 | I109: 0.737 | J109: 0.736 | K109: 0.741 | L109: 0.748 | M109: 0.752 | N109: 0.753 | O109: 0.753 | P109: 0.753 | Q109: 0.754 | R109: =IFERROR(R108/R96,"N/A") -> N/A
A110: LDP.09.07 No of COPD patients referred to pulmonary rehab ever | B110: LDP.09.07 No of COPD patients referred to pulmonary rehab ever | C110: ='Control Panel'!C148 -> No of COPD patients referred to pulmonary rehab ever | D110: =IF($C$5="Total",SUMIFS(OFFSET(REL_D,,MATCH($A110,IND,0)-2),REL_D,D$4,NwID,$C$4),SUMIFS(OFFSET(REL_D,,MATCH($A110,IND,0)-2),REL_D,D$4,OrgID,$C$5)) -> 1598 | E110: =IF($C$5="Total",SUMIFS(OFFSET(REL_D,,MATCH($A110,IND,0)-2),REL_D,E$4,NwID,$C$4),SUMIFS(OFFSET(REL_D,,MATCH($A110,IND,0)-2),REL_D,E$4,OrgID,$C$5)) -> 1916 | F110: =IF($C$5="Total",SUMIFS(OFFSET(REL_D,,MATCH($A110,IND,0)-2),REL_D,F$4,NwID,$C$4),SUMIFS(OFFSET(REL_D,,MATCH($A110,IND,0)-2),REL_D,F$4,OrgID,$C$5)) -> 1912 | G110: =IF($C$5="Total",SUMIFS(OFFSET(REL_D,,MATCH($A110,IND,0)-2),REL_D,G$4,NwID,$C$4),SUMIFS(OFFSET(REL_D,,MATCH($A110,IND,0)-2),REL_D,G$4,OrgID,$C$5)) -> 1950 | H110: =IF($C$5="Total",SUMIFS(OFFSET(REL_D,,MATCH($A110,IND,0)-2),REL_D,H$4,NwID,$C$4),SUMIFS(OFFSET(REL_D,,MATCH($A110,IND,0)-2),REL_D,H$4,OrgID,$C$5)) -> 1983 | I110: =IF($C$5="Total",SUMIFS(OFFSET(REL_D,,MATCH($A110,IND,0)-2),REL_D,I$4,NwID,$C$4),SUMIFS(OFFSET(REL_D,,MATCH($A110,IND,0)-2),REL_D,I$4,OrgID,$C$5)) -> 2000 | J110: =IF($C$5="Total",SUMIFS(OFFSET(REL_D,,MATCH($A110,IND,0)-2),REL_D,J$4,NwID,$C$4),SUMIFS(OFFSET(REL_D,,MATCH($A110,IND,0)-2),REL_D,J$4,OrgID,$C$5)) -> 2060 | K110: =IF($C$5="Total",SUMIFS(OFFSET(REL_D,,MATCH($A110,IND,0)-2),REL_D,K$4,NwID,$C$4),SUMIFS(OFFSET(REL_D,,MATCH($A110,IND,0)-2),REL_D,K$4,OrgID,$C$5)) -> 2076 | L110: =IF($C$5="Total",SUMIFS(OFFSET(REL_D,,MATCH($A110,IND,0)-2),REL_D,L$4,NwID,$C$4),SUMIFS(OFFSET(REL_D,,MATCH($A110,IND,0)-2),REL_D,L$4,OrgID,$C$5)) -> 2081 | M110: =IF($C$5="Total",SUMIFS(OFFSET(REL_D,,MATCH($A110,IND,0)-2),REL_D,M$4,NwID,$C$4),SUMIFS(OFFSET(REL_D,,MATCH($A110,IND,0)-2),REL_D,M$4,OrgID,$C$5)) -> 2093 | N110: =IF($C$5="Total",SUMIFS(OFFSET(REL_D,,MATCH($A110,IND,0)-2),REL_D,N$4,NwID,$C$4),SUMIFS(OFFSET(REL_D,,MATCH($A110,IND,0)-2),REL_D,N$4,OrgID,$C$5)) -> 2110 | O110: =IF($C$5="Total",SUMIFS(OFFSET(REL_D,,MATCH($A110,IND,0)-2),REL_D,O$4,NwID,$C$4),SUMIFS(OFFSET(REL_D,,MATCH($A110,IND,0)-2),REL_D,O$4,OrgID,$C$5)) -> 2159 | P110: =IF($C$5="Total",SUMIFS(OFFSET(REL_D,,MATCH($A110,IND,0)-2),REL_D,P$4,NwID,$C$4),SUMIFS(OFFSET(REL_D,,MATCH($A110,IND,0)-2),REL_D,P$4,OrgID,$C$5)) -> 2199 | Q110: =IF($C$5="Total",SUMIFS(OFFSET(REL_D,,MATCH($A110,IND,0)-2),REL_D,Q$4,NwID,$C$4),SUMIFS(OFFSET(REL_D,,MATCH($A110,IND,0)-2),REL_D,Q$4,OrgID,$C$5)) -> 2222 | R110: =SUMIFS(OFFSET(REL_D,,MATCH($A110,IND,0)-1),REL_D,R$4,IF(LEFT($C$5,1)="N",NwID,OrgID),$C$5) -> 0
A111: ="%"&A110 -> %LDP.09.07 No of COPD patients referred to pulmonary rehab ever | B111: %LDP.09.07 No of COPD patients referred to pulmonary rehab ever | C111: ='Control Panel'!C149 -> % of COPD register | D111: =IFERROR(D110/D96,"N/A") -> 0.541 | E111: 0.603 | F111: =IFERROR(F110/F96,"N/A") -> 0.6 | G111: =IFERROR(G110/G96,"N/A") -> 0.604 | H111: 0.603 | I111: 0.606 | J111: 0.609 | K111: 0.615 | L111: 0.614 | M111: 0.62 | N111: 0.625 | O111: 0.64 | P111: 0.65 | Q111: 0.658 | R111: =IFERROR(R110/R96,"N/A") -> N/A

Sheet General Health
C1: 01. Listsize | D1: =INDEX('Control Panel'!$B$3:$B$17,COLUMN(D1)-COLUMN($C$1)+1) -> LDP.01: Aged 16yrs+ | E1: =INDEX('Control Panel'!$B$3:$B$17,COLUMN(E1)-COLUMN($C$1)+1) -> %LDP.01: Aged 16yrs+ | F1: =INDEX('Control Panel'!$B$3:$B$17,COLUMN(F1)-COLUMN($C$1)+1) -> LDP.01.01: Obesity BMI recorded (last 12m) | G1: =INDEX('Control Panel'!$B$3:$B$17,COLUMN(G1)-COLUMN($C$1)+1) -> %LDP.01.01: Obesity BMI recorded (last 12m) | H1: =INDEX('Control Panel'!$B$3:$B$17,COLUMN(H1)-COLUMN($C$1)+1) -> LDP.01.01.02: Obesity BMI between 30-35 (last 12m) | I1: =INDEX('Control Panel'!$B$3:$B$17,COLUMN(I1)-COLUMN($C$1)+1) -> %LDP.01.01.02: Obesity BMI between 30-35 (last 12m) | J1: =INDEX('Control Panel'!$B$3:$B$17,COLUMN(J1)-COLUMN($C$1)+1) -> LDP.01.01.01: Obesity BMI more than or equal to 35 less than 40 (last 12m) | K1: =INDEX('Control Panel'!$B$3:$B$17,COLUMN(K1)-COLUMN($C$1)+1) -> %LDP.01.01.01: Obesity BMI more than or equal to 35 less than 40 (last 12m) | L1: =INDEX('Control Panel'!$B$3:$B$17,COLUMN(L1)-COLUMN($C$1)+1) -> LDP.01.01.03: Obesity BMI equal to or over 40 (last 12m) | M1: =INDEX('Control Panel'!$B$3:$B$17,COLUMN(M1)-COLUMN($C$1)+1) -> %LDP.01.01.03: Obesity BMI equal to or over 40 (last 12m) | N1: =INDEX('Control Panel'!$B$3:$B$17,COLUMN(N1)-COLUMN($C$1)+1) -> LDP.01.02: Smoking Status (last 12m) or Never Smoked (25yrs+) | O1: =INDEX('Control Panel'!$B$3:$B$17,COLUMN(O1)-COLUMN($C$1)+1) -> %LDP.01.02: Smoking Status (last 12m) or Never Smoked (25yrs+) | P1: =INDEX('Control Panel'!$B$3:$B$17,COLUMN(P1)-COLUMN($C$1)+1) -> LDP.01.03: Current Smoker (last 12m) | Q1: =INDEX('Control Panel'!$B$3:$B$17,COLUMN(Q1)-COLUMN($C$1)+1) -> %LDP.01.03: Current Smoker (last 12m)
C2: Barking and Dagenham - Practice Clinical Trends (LDP) Report
B3: =VLOOKUP(C3,'Control Panel'!O16:P27,2,FALSE) -> 2024-04-01 | C3: March 2024 | D3: =VLOOKUP(C3,'Control Panel'!O16:P27,2,FALSE) -> 2024-04-01
B4: 2019-07-01 | C4: ='Control Panel'!B2 -> General Health
A5: Home | B5: 2019-10-01 | C5: =VLOOKUP(C1,'Control Panel'!$B$3:$C$132,2,FALSE) -> List Size | D5: =VLOOKUP(D1,'Control Panel'!$B$3:$D$132,3,FALSE) -> Age 16+ | E5: =VLOOKUP(E1,'Control Panel'!$B$3:$D$132,3,FALSE) -> % list size | F5: =VLOOKUP(F1,'Control Panel'!$B$3:$D$132,3,FALSE) -> 16+ and BMI (last 12m) | G5: =VLOOKUP(G1,'Control Panel'!$B$3:$D$132,3,FALSE) -> % 16+ | H5: =VLOOKUP(H1,'Control Panel'!$B$3:$D$132,3,FALSE) -> BMI ≥30 & <35 | I5: =VLOOKUP(I1,'Control Panel'!$B$3:$D$132,3,FALSE) -> % 16+ | J5: =VLOOKUP(J1,'Control Panel'!$B$3:$D$132,3,FALSE) -> BMI ≥ 35 & <40 | K5: =VLOOKUP(K1,'Control Panel'!$B$3:$D$132,3,FALSE) -> %16+ | L5: =VLOOKUP(L1,'Control Panel'!$B$3:$D$132,3,FALSE) -> BMI ≥ 40 | M5: =VLOOKUP(M1,'Control Panel'!$B$3:$D$132,3,FALSE) -> %16+ | N5: =VLOOKUP(N1,'Control Panel'!$B$3:$D$132,3,FALSE) -> Smoking status (last 12m) incl. never smoked | O5: =VLOOKUP(O1,'Control Panel'!$B$3:$D$132,3,FALSE) -> % 16+ | P5: =VLOOKUP(P1,'Control Panel'!$B$3:$D$132,3,FALSE) -> Age 16+ and current smoker (last 12m) | Q5: =VLOOKUP(Q1,'Control Panel'!$B$3:$D$132,3,FALSE) -> % 16+
A6: Practice Name | C6: =SUM(C7:C52) -> 256485 | D6: =SUM(D7:D37) -> 191185 | E6: =IFERROR(D6/C6,"N/A") -> 0.745 | F6: =SUM(F7:F37) -> 67095 | G6: =IFERROR(F6/D6,"N/A") -> 0.351 | H6: =SUM(H7:H37) -> 14766 | I6: =IFERROR(H6/D6,"N/A") -> 0.077 | J6: =SUM(J7:J37) -> 6490 | K6: =IFERROR(J6/D6,"N/A") -> 0.034 | L6: =SUM(L7:L37) -> 4172 | M6: =IFERROR(L6/D6,"N/A") -> 0.022 | N6: =SUM(N7:N37) -> 125974 | O6: =IFERROR(N6/D6,"N/A") -> 0.659 | P6: =SUM(P7:P37) -> 12304 | Q6: =IFERROR(P6/D6,"N/A") -> 0.064
A7: Church Elm Lane Medical Practice | B7: F82005 | C7: =SUMIFS(OFFSET(REL_D,,MATCH(C$1,IND,0)-2),REL_D,$D$3,OrgID,$B7) -> 6977 | D7: 5176 | E7: =IFERROR(D7/$C7,"N/A") -> 0.742 | F7: =SUMIFS(OFFSET(REL_D,,MATCH(F$1,IND,0)-2),REL_D,$D$3,OrgID,$B7) -> 2304 | G7: =IFERROR(F7/$D7,"N/A") -> 0.445 | H7: =SUMIFS(OFFSET(REL_D,,MATCH(H$1,IND,0)-2),REL_D,$D$3,OrgID,$B7) -> 451 | I7: =IFERROR(H7/$D7,"N/A") -> 0.087 | J7: =SUMIFS(OFFSET(REL_D,,MATCH(J$1,IND,0)-2),REL_D,$D$3,OrgID,$B7) -> 203 | K7: =IFERROR(J7/$D7,"N/A") -> 0.039 | L7: =SUMIFS(OFFSET(REL_D,,MATCH(L$1,IND,0)-2),REL_D,$D$3,OrgID,$B7) -> 149 | M7: =IFERROR(L7/$D7,"N/A") -> 0.029 | N7: =SUMIFS(OFFSET(REL_D,,MATCH(N$1,IND,0)-2),REL_D,$D$3,OrgID,$B7) -> 3640 | O7: =IFERROR(N7/$D7,"N/A") -> 0.703 | P7: =SUMIFS(OFFSET(REL_D,,MATCH(P$1,IND,0)-2),REL_D,$D$3,OrgID,$B7) -> 403 | Q7: =IFERROR(P7/$D7,"N/A") -> 0.078
A8: Broad Street Medical Centre | B8: Y01719 | C8: 8589 | D8: 6306 | E8: 0.734 | F8: 2597 | G8: 0.412 | H8: 560 | I8: 0.089 | J8: 257 | K8: 0.041 | L8: 148 | M8: 0.023 | N8: 4468 | O8: 0.709 | P8: 562 | Q8: 0.089
A9: Porters Avenue Doctors Surgery | B9: Y02575 | C9: 21262 | D9: 15378 | E9: 0.723 | F9: 4972 | G9: 0.323 | H9: 1110 | I9: 0.072 | J9: 439 | K9: 0.029 | L9: 268 | M9: 0.017 | N9: 9977 | O9: 0.649 | P9: 785 | Q9: 0.051
A10: First Avenue Surgery | B10: F82003 | C10: 5854 | D10: 4460 | E10: 0.762 | F10: 1357 | G10: 0.304 | H10: 277 | I10: 0.062 | J10: 130 | K10: 0.029 | L10: 95 | M10: 0.021 | N10: 2954 | O10: 0.662 | P10: 265 | Q10: 0.059
A11: Hedgemans Surgery | B11: F82015 | C11: 5283 | D11: 4169 | E11: 0.789 | F11: 1615 | G11: 0.387 | H11: 368 | I11: 0.088 | J11: 164 | K11: 0.039 | L11: 111 | M11: 0.027 | N11: 2710 | O11: 0.65 | P11: 373 | Q11: 0.089
A12: St Albans Surgery | B12: F82017 | C12: 8711 | D12: 6750 | E12: 0.775 | F12: 2381 | G12: 0.353 | H12: 523 | I12: 0.077 | J12: 295 | K12: 0.044 | L12: 205 | M12: 0.03 | N12: 4475 | O12: 0.663 | P12: 597 | Q12: 0.088
A13: Heathway Medical Centre | B13: F82634 | C13: 6272 | D13: 4869 | E13: 0.776 | F13: 1829 | G13: 0.376 | H13: 396 | I13: 0.081 | J13: 160 | K13: 0.033 | L13: 89 | M13: 0.018 | N13: 3261 | O13: 0.67 | P13: 463 | Q13: 0.095
A14: Dr Alkaisy Surgery | B14: F82678 | C14: 5104 | D14: 4049 | E14: 0.793 | F14: 1372 | G14: 0.339 | H14: 271 | I14: 0.067 | J14: 138 | K14: 0.034 | L14: 112 | M14: 0.028 | N14: 2676 | O14: 0.661 | P14: 263 | Q14: 0.065
A15: Parkview Medical Practice | B15: F82679 | C15: 5753 | D15: 4504 | E15: 0.783 | F15: 1542 | G15: 0.342 | H15: 372 | I15: 0.083 | J15: 173 | K15: 0.038 | L15: 89 | M15: 0.02 | N15: 3062 | O15: 0.68 | P15: 285 | Q15: 0.063
A16: Victoria Medical Centre | B16: F82034 | C16: 6330 | D16: 4902 | E16: 0.774 | F16: 1197 | G16: 0.244 | H16: 266 | I16: 0.054 | J16: 104 | K16: 0.021 | L16: 61 | M16: 0.012 | N16: 2763 | O16: 0.564 | P16: 201 | Q16: 0.041
A17: Aurora Medcare | B17: F82042 | C17: 19977 | D17: 15027 | E17: 0.752 | F17: 5000 | G17: 0.333 | H17: 1185 | I17: 0.079 | J17: 514 | K17: 0.034 | L17: 315 | M17: 0.021 | N17: 10006 | O17: 0.666 | P17: 838 | Q17: 0.056
A18: Abbey Medical centre | B18: F82625 | C18: 7608 | D18: 6019 | E18: 0.791 | F18: 2547 | G18: 0.423 | H18: 533 | I18: 0.089 | J18: 227 | K18: 0.038 | L18: 126 | M18: 0.021 | N18: 4347 | O18: 0.722 | P18: 361 | Q18: 0.06
A19: Shifa Medical Practice | B19: Y01280 | C19: 2418 | D19: 1906 | E19: 0.788 | F19: 985 | G19: 0.517 | H19: 244 | I19: 0.128 | J19: 70 | K19: 0.037 | L19: 29 | M19: 0.015 | N19: 1429 | O19: 0.75 | P19: 142 | Q19: 0.075
A20: Halbutt Street Surgery | B20: F82001 | C20: 5905 | D20: 4553 | E20: 0.771 | F20: 1635 | G20: 0.359 | H20: 394 | I20: 0.087 | J20: 178 | K20: 0.039 | L20: 141 | M20: 0.031 | N20: 2896 | O20: 0.636 | P20: 315 | Q20: 0.069
A21: Barking Medical Group Practice | B21: F82018 | C21: 11536 | D21: 8994 | E21: 0.78 | F21: 2961 | G21: 0.329 | H21: 616 | I21: 0.068 | J21: 245 | K21: 0.027 | L21: 122 | M21: 0.014 | N21: 5941 | O21: 0.661 | P21: 434 | Q21: 0.048
A22: John Smith House | B22: F82040 | C22: 3850 | D22: 3056 | E22: 0.794 | F22: 966 | G22: 0.316 | H22: 194 | I22: 0.063 | J22: 98 | K22: 0.032 | L22: 54 | M22: 0.018 | N22: 1698 | O22: 0.556 | P22: 214 | Q22: 0.07
A23: The White House | B23: F82612 | C23: 11832 | D23: 9176 | E23: 0.776 | F23: 3236 | G23: 0.353 | H23: 586 | I23: 0.064 | J23: 236 | K23: 0.026 | L23: 151 | M23: 0.016 | N23: 6138 | O23: 0.669 | P23: 405 | Q23: 0.044
A24: Dr Gupta & Partner | B24: F82647 | C24: 4793 | D24: 4013 | E24: 0.837 | F24: 1226 | G24: 0.306 | H24: 286 | I24: 0.071 | J24: 81 | K24: 0.02 | L24: 41 | M24: 0.01 | N24: 2776 | O24: 0.692 | P24: 156 | Q24: 0.039
A25: Ripple Road Medical Centre | B25: F82650 | C25: 9920 | D25: 7607 | E25: 0.767 | F25: 2264 | G25: 0.298 | H25: 507 | I25: 0.067 | J25: 198 | K25: 0.026 | L25: 127 | M25: 0.017 | N25: 5217 | O25: 0.686 | P25: 510 | Q25: 0.067
A26: Highgrove Surgery | B26: F82680 | C26: 11490 | D26: 9259 | E26: 0.806 | F26: 4302 | G26: 0.465 | H26: 939 | I26: 0.101 | J26: 388 | K26: 0.042 | L26: 224 | M26: 0.024 | N26: 5218 | O26: 0.564 | P26: 625 | Q26: 0.068
A27: Faircross Health Centre | B27: F82027 | C27: 2140 | D27: 1782 | E27: 0.833 | F27: 523 | G27: 0.293 | H27: 95 | I27: 0.053 | J27: 36 | K27: 0.02 | L27: 23 | M27: 0.013 | N27: 1227 | O27: 0.689 | P27: 67 | Q27: 0.038
A28: Five Elms | B28: F82012 | C28: 4176 | D28: 3288 | E28: 0.787 | F28: 1389 | G28: 0.422 | H28: 307 | I28: 0.093 | J28: 131 | K28: 0.04 | L28: 82 | M28: 0.025 | N28: 2089 | O28: 0.635 | P28: 253 | Q28: 0.077
A29: Julia Engwell Surgery | B29: F82025 | C29: 5879 | D29: 4473 | E29: 0.761 | F29: 1401 | G29: 0.313 | H29: 297 | I29: 0.066 | J29: 178 | K29: 0.04 | L29: 122 | M29: 0.027 | N29: 2837 | O29: 0.634 | P29: 259 | Q29: 0.058
A30: Laburnum Health centre | B30: F82051 | C30: 11335 | D30: 8782 | E30: 0.775 | F30: 2348 | G30: 0.267 | H30: 554 | I30: 0.063 | J30: 288 | K30: 0.033 | L30: 211 | M30: 0.024 | N30: 5066 | O30: 0.577 | P30: 556 | Q30: 0.063
A31: Gables Surgery | B31: F82642 | C31: 7116 | D31: 5408 | E31: 0.76 | F31: 2066 | G31: 0.382 | H31: 457 | I31: 0.085 | J31: 211 | K31: 0.039 | L31: 169 | M31: 0.031 | N31: 3467 | O31: 0.641 | P31: 393 | Q31: 0.073
A32: Green Lane Surgery | B32: F82661 | C32: 4135 | D32: 3222 | E32: 0.779 | F32: 875 | G32: 0.272 | H32: 206 | I32: 0.064 | J32: 97 | K32: 0.03 | L32: 47 | M32: 0.015 | N32: 2497 | O32: 0.775 | P32: 182 | Q32: 0.056
A33: The Surgery | B33: F86040 | C33: 5816 | D33: 4566 | E33: =IFERROR(D33/$C33,"N/A") -> 0.785 | F33: 1023 | G33: =IFERROR(F33/$D33,"N/A") -> 0.224 | H33: 258 | I33: =IFERROR(H33/$D33,"N/A") -> 0.057 | J33: 97 | K33: =IFERROR(J33/$D33,"N/A") -> 0.021 | L33: 62 | M33: =IFERROR(L33/$D33,"N/A") -> 0.014 | N33: 3314 | O33: =IFERROR(N33/$D33,"N/A") -> 0.726 | P33: 214 | Q33: =IFERROR(P33/$D33,"N/A") -> 0.047
A34: The Oval Practice | B34: Y01795 | C34: 6917 | D34: 5220 | E34: 0.755 | F34: 2000 | G34: 0.383 | H34: 439 | I34: 0.084 | J34: 200 | K34: 0.038 | L34: 121 | M34: 0.023 | N34: 3529 | O34: 0.676 | P34: 363 | Q34: 0.07
A35: Valence Medical Centre | B35: F82038 | C35: 5373 | D35: 4097 | E35: 0.763 | F35: 1249 | G35: 0.305 | H35: 294 | I35: 0.072 | J35: 131 | K35: 0.032 | L35: 89 | M35: 0.022 | N35: 2599 | O35: 0.634 | P35: 291 | Q35: 0.071
A36: Marks Gate Medical Practice | B36: F82604 | C36: 5823 | D36: 4237 | E36: =IFERROR(D36/$C36,"N/A") -> 0.728 | F36: 1485 | G36: =IFERROR(F36/$D36,"N/A") -> 0.35 | H36: 361 | I36: =IFERROR(H36/$D36,"N/A") -> 0.085 | J36: 158 | K36: =IFERROR(J36/$D36,"N/A") -> 0.037 | L36: 106 | M36: =IFERROR(L36/$D36,"N/A") -> 0.025 | N36: 2938 | O36: =IFERROR(N36/$D36,"N/A") -> 0.693 | P36: 362 | Q36: =IFERROR(P36/$D36,"N/A") -> 0.085
A37: Tulasi Medical Centre | B37: F82660 | C37: 20614 | D37: 15937 | E37: =IFERROR(D37/$C37,"N/A") -> 0.773 | F37: 6448 | G37: =IFERROR(F37/$D37,"N/A") -> 0.405 | H37: 1420 | I37: =IFERROR(H37/$D37,"N/A") -> 0.089 | J37: 665 | K37: =IFERROR(J37/$D37,"N/A") -> 0.042 | L37: 483 | M37: =IFERROR(L37/$D37,"N/A") -> 0.03 | N37: 10759 | O37: =IFERROR(N37/$D37,"N/A") -> 0.675 | P37: 1167 | Q37: =IFERROR(P37/$D37,"N/A") -> 0.073
A38: Becontree Medical Centre | B38: F82677 | C38: 7697 | D38: 5706 | E38: =IFERROR(D38/$C38,"N/A") -> 0.741 | F38: 2865 | G38: =IFERROR(F38/$D38,"N/A") -> 0.502 | H38: 615 | I38: =IFERROR(H38/$D38,"N/A") -> 0.108 | J38: 275 | K38: =IFERROR(J38/$D38,"N/A") -> 0.048 | L38: 179 | M38: =IFERROR(L38/$D38,"N/A") -> 0.031 | N38: 4224 | O38: =IFERROR(N38/$D38,"N/A") -> 0.74 | P38: 459 | Q38: =IFERROR(P38/$D38,"N/A") -> 0.08
B39: ='Practice list'!#REF! -> 
B40: ='Practice list'!#REF! -> 
B41: ='Practice list'!#REF! -> 
B42: ='Practice list'!#REF! -> 
B43: ='Practice list'!#REF! -> 
B44: ='Practice list'!#REF! -> 
B45: ='Practice list'!#REF! -> 
B46: ='Practice list'!#REF! -> 
B47: ='Practice list'!#REF! -> 
B48: ='Practice list'!#REF! -> 
B49: ='Practice list'!#REF! -> 
B50: ='Practice list'!#REF! -> 
B51: ='Practice list'!#REF! -> 
B52: ='Practice list'!#REF! -> 

Sheet Hypertension
C1: 01. Listsize | D1: =INDEX('Control Panel'!$B$19:$B$24,COLUMN(D1)-COLUMN($D$1)+1) -> LDP.02: Hypertension Register | E1: =INDEX('Control Panel'!$B$19:$B$24,COLUMN(E1)-COLUMN($D$1)+1) -> %LDP.02: Hypertension Register | F1: =INDEX('Control Panel'!$B$19:$B$24,COLUMN(F1)-COLUMN($D$1)+1) -> LDP.02.02: Hypertension BP recorded (last 12m) | G1: =INDEX('Control Panel'!$B$19:$B$24,COLUMN(G1)-COLUMN($D$1)+1) -> %LDP.02.02: Hypertension BP recorded (last 12m) | H1: =INDEX('Control Panel'!$B$19:$B$24,COLUMN(H1)-COLUMN($D$1)+1) -> LDP.02.01: Hypertension and BP < 140/90 (age under 80) < 150/90 (Age 80+) | I1: =INDEX('Control Panel'!$B$19:$B$24,COLUMN(I1)-COLUMN($D$1)+1) -> %LDP.02.01: Hypertension and BP < 140/90 (age under 80) < 150/90 (Age 80+)
C2: Barking and Dagenham - Practice Clinical Trends (LDP) Report
B3: =VLOOKUP(C3,'Control Panel'!O16:P27,2,FALSE) -> 2024-04-01 | C3: March 2024 | D3: =VLOOKUP(C3,'Control Panel'!O16:P27,2,FALSE) -> 2024-04-01
B4: 2019-07-01 | C4: ='Control Panel'!B18 -> Hypertension
A5: Home | B5: 2019-10-01 | C5: =VLOOKUP(C1,'Control Panel'!$B$3:$C$132,2,FALSE) -> List Size | D5: =VLOOKUP(D1,'Control Panel'!$B$3:$D$132,3,FALSE) -> Hypertension Register | E5: =VLOOKUP(E1,'Control Panel'!$B$3:$D$132,3,FALSE) -> % list size | F5: =VLOOKUP(F1,'Control Panel'!$B$3:$D$132,3,FALSE) -> Hypertension and BP (last 12m) | G5: =VLOOKUP(G1,'Control Panel'!$B$3:$D$132,3,FALSE) -> % Hypertension Register | H5: =VLOOKUP(H1,'Control Panel'!$B$3:$D$132,3,FALSE) -> Hypertension and BP < 140/90 (Patients aged under 80) < 150/90 ( Aged 80 and over) (last 12m) | I5: =VLOOKUP(I1,'Control Panel'!$B$3:$D$132,3,FALSE) -> % Hypertension Register
A6: Practice Name | C6: =SUM(C7:C38) -> 256485 | D6: =SUM(D7:D38) -> 30654 | E6: =IFERROR(D6/C6,"N/A") -> 0.12 | F6: =SUM(F7:F38) -> 26629 | G6: =IFERROR(F6/D6,"N/A") -> 0.869 | H6: =SUM(H7:H38) -> 18991 | I6: =IFERROR(H6/D6,"N/A") -> 0.62
A7: Church Elm Lane Medical Practice | B7: F82005 | C7: =SUMIFS(OFFSET(REL_D,,MATCH(C$1,IND,0)-2),REL_D,$D$3,OrgID,$B7) -> 6977 | D7: 861 | E7: =IFERROR(D7/C7,"N/A") -> 0.123 | F7: =SUMIFS(OFFSET(REL_D,,MATCH(F$1,IND,0)-2),REL_D,$D$3,OrgID,$B7) -> 769 | G7: =IFERROR(F7/D7,"N/A") -> 0.893 | H7: =SUMIFS(OFFSET(REL_D,,MATCH(H$1,IND,0)-2),REL_D,$D$3,OrgID,$B7) -> 524 | I7: =IFERROR(H7/D7,"N/A") -> 0.609
A8: Broad Street Medical Centre | B8: Y01719 | C8: 8589 | D8: 836 | E8: 0.097 | F8: 748 | G8: 0.895 | H8: 519 | I8: 0.621
A9: Porters Avenue Doctors Surgery | B9: Y02575 | C9: 21262 | D9: 1899 | E9: 0.089 | F9: 1577 | G9: 0.83 | H9: 1084 | I9: 0.571
A10: First Avenue Surgery | B10: F82003 | C10: 5854 | D10: 713 | E10: 0.122 | F10: 617 | G10: 0.865 | H10: 410 | I10: 0.575
A11: Hedgemans Surgery | B11: F82015 | C11: 5283 | D11: 751 | E11: 0.142 | F11: 710 | G11: 0.945 | H11: 565 | I11: 0.752
A12: St Albans Surgery | B12: F82017 | C12: 8711 | D12: 1411 | E12: 0.162 | F12: 1245 | G12: 0.882 | H12: 923 | I12: 0.654
A13: Heathway Medical Centre | B13: F82634 | C13: 6272 | D13: 733 | E13: 0.117 | F13: 612 | G13: 0.835 | H13: 424 | I13: 0.578
A14: Dr Alkaisy Surgery | B14: F82678 | C14: 5104 | D14: 906 | E14: 0.178 | F14: 728 | G14: 0.804 | H14: 449 | I14: 0.496
A15: Parkview Medical Practice | B15: F82679 | C15: 5753 | D15: 747 | E15: 0.13 | F15: 666 | G15: 0.892 | H15: 486 | I15: 0.651
A16: Victoria Medical Centre | B16: F82034 | C16: 6330 | D16: 510 | E16: 0.081 | F16: 456 | G16: 0.894 | H16: 340 | I16: 0.667
A17: Aurora Medcare | B17: F82042 | C17: 19977 | D17: 2157 | E17: 0.108 | F17: 1796 | G17: 0.833 | H17: 1300 | I17: 0.603
A18: Abbey Medical centre | B18: F82625 | C18: 7608 | D18: 860 | E18: 0.113 | F18: 791 | G18: 0.92 | H18: 604 | I18: 0.702
A19: Shifa Medical Practice | B19: Y01280 | C19: 2418 | D19: 177 | E19: 0.073 | F19: 160 | G19: 0.904 | H19: 142 | I19: 0.802
A20: Halbutt Street Surgery | B20: F82001 | C20: 5905 | D20: 774 | E20: 0.131 | F20: 682 | G20: 0.881 | H20: 511 | I20: 0.66
A21: Barking Medical Group Practice | B21: F82018 | C21: 11536 | D21: 1271 | E21: 0.11 | F21: 1109 | G21: 0.873 | H21: 803 | I21: 0.632
A22: John Smith House | B22: F82040 | C22: 3850 | D22: 373 | E22: 0.097 | F22: 335 | G22: 0.898 | H22: 223 | I22: 0.598
A23: The White House | B23: F82612 | C23: 11832 | D23: 1370 | E23: 0.116 | F23: 1190 | G23: 0.869 | H23: 813 | I23: 0.593
A24: Dr Gupta & Partner | B24: F82647 | C24: =SUMIFS(OFFSET(REL_D,,MATCH(C$1,IND,0)-2),REL_D,$D$3,OrgID,$B24) -> 4793 | D24: 492 | E24: 0.103 | F24: 439 | G24: 0.892 | H24: 337 | I24: 0.685
A25: Ripple Road Medical Centre | B25: F82650 | C25: 9920 | D25: 914 | E25: 0.092 | F25: 849 | G25: 0.929 | H25: 653 | I25: 0.714
A26: Highgrove Surgery | B26: F82680 | C26: 11490 | D26: 1740 | E26: 0.151 | F26: 1517 | G26: 0.872 | H26: 1066 | I26: 0.613
A27: Faircross Health Centre | B27: F82027 | C27: 2140 | D27: 337 | E27: 0.157 | F27: 288 | G27: 0.855 | H27: 166 | I27: 0.493
A28: Five Elms | B28: F82012 | C28: 4176 | D28: 559 | E28: 0.134 | F28: 519 | G28: 0.928 | H28: 335 | I28: 0.599
A29: Julia Engwell Surgery | B29: F82025 | C29: 5879 | D29: 758 | E29: 0.129 | F29: 632 | G29: 0.834 | H29: 456 | I29: 0.602
A30: Laburnum Health centre | B30: F82051 | C30: 11335 | D30: 1526 | E30: 0.135 | F30: 1131 | G30: 0.741 | H30: 758 | I30: 0.497
A31: Gables Surgery | B31: F82642 | C31: 7116 | D31: 842 | E31: 0.118 | F31: 722 | G31: 0.857 | H31: 525 | I31: 0.624
A32: Green Lane Surgery | B32: F82661 | C32: 4135 | D32: 429 | E32: 0.104 | F32: 411 | G32: 0.958 | H32: 315 | I32: 0.734
A33: The Surgery | B33: F86040 | C33: 5816 | D33: 541 | E33: 0.093 | F33: 502 | G33: 0.928 | H33: 401 | I33: 0.741
A34: The Oval Practice | B34: Y01795 | C34: 6917 | D34: 884 | E34: 0.128 | F34: 753 | G34: 0.852 | H34: 585 | I34: 0.662
A35: Valence Medical Centre | B35: F82038 | C35: 5373 | D35: 552 | E35: 0.103 | F35: 493 | G35: 0.893 | H35: 375 | I35: 0.679
A36: Marks Gate Medical Practice | B36: F82604 | C36: 5823 | D36: 625 | E36: 0.107 | F36: 549 | G36: 0.878 | H36: 385 | I36: 0.616
A37: Tulasi Medical Centre | B37: F82660 | C37: 20614 | D37: 3184 | E37: 0.154 | F37: 2776 | G37: 0.872 | H37: 1934 | I37: 0.607
A38: Becontree Medical Centre | B38: F82677 | C38: 7697 | D38: 922 | E38: =IFERROR(D38/C38,"N/A") -> 0.12 | F38: 857 | G38: =IFERROR(F38/D38,"N/A") -> 0.93 | H38: 580 | I38: =IFERROR(H38/D38,"N/A") -> 0.629

Sheet CHD
C1: 01. Listsize | D1: =INDEX('Control Panel'!$B$26:$B$39,COLUMN(D1)-COLUMN($D$1)+1) -> LDP.03: CHD Register | E1: =INDEX('Control Panel'!$B$26:$B$39,COLUMN(E1)-COLUMN($D$1)+1) -> %LDP.03: CHD Register | F1: =INDEX('Control Panel'!$B$26:$B$39,COLUMN(F1)-COLUMN($D$1)+1) -> LDP.03.04: CHD Cholesterol recorded (last 12m) | G1: =INDEX('Control Panel'!$B$26:$B$39,COLUMN(G1)-COLUMN($D$1)+1) -> %LDP.03.04: CHD Cholesterol recorded (last 12m) | H1: =INDEX('Control Panel'!$B$26:$B$39,COLUMN(H1)-COLUMN($D$1)+1) -> LDP.03.01: CHD Chol less than 5mmol (last 12m) | I1: =INDEX('Control Panel'!$B$26:$B$39,COLUMN(I1)-COLUMN($D$1)+1) -> %LDP.03.01: CHD Chol less than 5mmol (last 12m) | J1: =INDEX('Control Panel'!$B$26:$B$39,COLUMN(J1)-COLUMN($D$1)+1) -> LDP.03.02: CHD BP less than or equal 150/90 (last 9m) | K1: =INDEX('Control Panel'!$B$26:$B$39,COLUMN(K1)-COLUMN($D$1)+1) -> %LDP.03.02: CHD BP less than or equal 150/90 (last 9m)
C2: Barking and Dagenham - Practice Clinical Trends (LDP) Report
B3: =VLOOKUP(C3,'Control Panel'!O16:P27,2,FALSE) -> 2024-04-01 | C3: March 2024 | D3: =VLOOKUP(C3,'Control Panel'!O16:P27,2,FALSE) -> 2024-04-01
B4: 2019-07-01 | C4: ='Control Panel'!B25 -> CHD
A5: Home | B5: 2019-10-01 | C5: =VLOOKUP(C1,'Control Panel'!$B$3:$C$132,2,FALSE) -> List Size | D5: =VLOOKUP(D1,'Control Panel'!$B$3:$D$132,3,FALSE) -> CHD register | E5: =VLOOKUP(E1,'Control Panel'!$B$3:$D$132,3,FALSE) -> % list size | F5: =VLOOKUP(F1,'Control Panel'!$B$3:$D$132,3,FALSE) -> Cholesterol (last 12m) | G5: =VLOOKUP(G1,'Control Panel'!$B$3:$D$132,3,FALSE) -> % CHD register | H5: =VLOOKUP(H1,'Control Panel'!$B$3:$D$132,3,FALSE) -> Cholesterol < 5 (last 12m) | I5: =VLOOKUP(I1,'Control Panel'!$B$3:$D$132,3,FALSE) -> % CHD register | J5: =VLOOKUP(J1,'Control Panel'!$B$3:$D$132,3,FALSE) -> BP ≤ 150/90 (last 12m) | K5: =VLOOKUP(K1,'Control Panel'!$B$3:$D$132,3,FALSE) -> % CHD register
A6: Practice Name | C6: =SUM(C7:C38) -> 256485 | D6: =SUM(D7:D38) -> 4071 | E6: =IFERROR(D6/C6,"N/A") -> 0.016 | F6: =SUM(F7:F38) -> 146 | G6: =IFERROR(F6/D6,"N/A") -> 0.036 | H6: =SUM(H7:H38) -> 106 | I6: =IFERROR(H6/D6,"N/A") -> 0.026 | J6: =SUM(J7:J38) -> 2799 | K6: =IFERROR(J6/D6,"N/A") -> 0.688
A7: Church Elm Lane Medical Practice | B7: F82005 | C7: =SUMIFS(OFFSET(REL_D,,MATCH(C$1,IND,0)-2),REL_D,$D$3,OrgID,$B7) -> 6977 | D7: 98 | E7: =IFERROR(D7/C7,"N/A") -> 0.014 | F7: =SUMIFS(OFFSET(REL_D,,MATCH(F$1,IND,0)-2),REL_D,$D$3,OrgID,$B7) -> 3 | G7: =IFERROR(F7/$D7,"N/A") -> 0.031 | H7: =SUMIFS(OFFSET(REL_D,,MATCH(H$1,IND,0)-2),REL_D,$D$3,OrgID,$B7) -> 2 | I7: =IFERROR(H7/$D7,"N/A") -> 0.02 | J7: =SUMIFS(OFFSET(REL_D,,MATCH(J$1,IND,0)-2),REL_D,$D$3,OrgID,$B7) -> 68 | K7: =IFERROR(J7/$D7,"N/A") -> 0.694
A8: Broad Street Medical Centre | B8: Y01719 | C8: 8589 | D8: 99 | E8: 0.012 | F8: 8 | G8: 0.081 | H8: 5 | I8: 0.051 | J8: 71 | K8: 0.717
A9: Porters Avenue Doctors Surgery | B9: Y02575 | C9: 21262 | D9: 174 | E9: 0.008 | F9: 10 | G9: 0.057 | H9: 6 | I9: 0.034 | J9: 120 | K9: 0.69
A10: First Avenue Surgery | B10: F82003 | C10: 5854 | D10: 118 | E10: 0.02 | F10: 7 | G10: 0.059 | H10: 7 | I10: 0.059 | J10: 80 | K10: 0.678
A11: Hedgemans Surgery | B11: F82015 | C11: 5283 | D11: 84 | E11: 0.016 | F11: 7 | G11: 0.083 | H11: 5 | I11: 0.06 | J11: 66 | K11: 0.786
A12: St Albans Surgery | B12: F82017 | C12: 8711 | D12: 168 | E12: 0.019 | F12: 3 | G12: 0.018 | H12: 2 | I12: 0.012 | J12: 122 | K12: 0.726
A13: Heathway Medical Centre | B13: F82634 | C13: 6272 | D13: 83 | E13: 0.013 | F13: 5 | G13: 0.06 | H13: 3 | I13: 0.036 | J13: 54 | K13: 0.651
A14: Dr Alkaisy Surgery | B14: F82678 | C14: 5104 | D14: 116 | E14: 0.023 | F14: 1 | G14: 0.009 | H14: 1 | I14: 0.009 | J14: 61 | K14: 0.526
A15: Parkview Medical Practice | B15: F82679 | C15: 5753 | D15: 91 | E15: 0.016 | F15: 2 | G15: 0.022 | H15: 2 | I15: 0.022 | J15: 62 | K15: 0.681
A16: Victoria Medical Centre | B16: F82034 | C16: 6330 | D16: 52 | E16: 0.008 | F16: 5 | G16: 0.096 | H16: 4 | I16: 0.077 | J16: 42 | K16: 0.808
A17: Aurora Medcare | B17: F82042 | C17: 19977 | D17: 257 | E17: 0.013 | F17: 7 | G17: 0.027 | H17: 5 | I17: 0.019 | J17: 185 | K17: 0.72
A18: Abbey Medical centre | B18: F82625 | C18: 7608 | D18: 117 | E18: 0.015 | F18: 3 | G18: 0.026 | H18: 3 | I18: 0.026 | J18: 94 | K18: 0.803
A19: Shifa Medical Practice | B19: Y01280 | C19: 2418 | D19: 26 | E19: 0.011 | F19: 0 | G19: 0 | H19: 0 | I19: 0 | J19: 22 | K19: 0.846
A20: Halbutt Street Surgery | B20: F82001 | C20: 5905 | D20: 76 | E20: 0.013 | F20: 7 | G20: 0.092 | H20: 6 | I20: 0.079 | J20: 48 | K20: 0.632
A21: Barking Medical Group Practice | B21: F82018 | C21: 11536 | D21: 232 | E21: 0.02 | F21: 5 | G21: 0.022 | H21: 4 | I21: 0.017 | J21: 151 | K21: 0.651
A22: John Smith House | B22: F82040 | C22: 3850 | D22: 55 | E22: 0.014 | F22: 5 | G22: 0.091 | H22: 4 | I22: 0.073 | J22: 34 | K22: 0.618
A23: The White House | B23: F82612 | C23: 11832 | D23: 240 | E23: 0.02 | F23: 4 | G23: 0.017 | H23: 3 | I23: 0.013 | J23: 162 | K23: 0.675
A24: Dr Gupta & Partner | B24: F82647 | C24: =SUMIFS(OFFSET(REL_D,,MATCH(C$1,IND,0)-2),REL_D,$D$3,OrgID,$B24) -> 4793 | D24: 74 | E24: 0.015 | F24: 3 | G24: 0.041 | H24: 3 | I24: 0.041 | J24: 56 | K24: 0.757
A25: Ripple Road Medical Centre | B25: F82650 | C25: 9920 | D25: 166 | E25: 0.017 | F25: 4 | G25: 0.024 | H25: 3 | I25: 0.018 | J25: 130 | K25: 0.783
A26: Highgrove Surgery | B26: F82680 | C26: 11490 | D26: 241 | E26: 0.021 | F26: 1 | G26: 0.004 | H26: 1 | I26: 0.004 | J26: 171 | K26: 0.71
A27: Faircross Health Centre | B27: F82027 | C27: 2140 | D27: 51 | E27: 0.024 | F27: 2 | G27: 0.039 | H27: 1 | I27: 0.02 | J27: 32 | K27: 0.627
A28: Five Elms | B28: F82012 | C28: 4176 | D28: 77 | E28: 0.018 | F28: 2 | G28: 0.026 | H28: 1 | I28: 0.013 | J28: 45 | K28: 0.584
A29: Julia Engwell Surgery | B29: F82025 | C29: 5879 | D29: 99 | E29: 0.017 | F29: 6 | G29: 0.061 | H29: 3 | I29: 0.03 | J29: 71 | K29: 0.717
A30: Laburnum Health centre | B30: F82051 | C30: 11335 | D30: 209 | E30: 0.018 | F30: 4 | G30: 0.019 | H30: 2 | I30: 0.01 | J30: 129 | K30: 0.617
A31: Gables Surgery | B31: F82642 | C31: 7116 | D31: 135 | E31: 0.019 | F31: 4 | G31: 0.03 | H31: 3 | I31: 0.022 | J31: 84 | K31: 0.622
A32: Green Lane Surgery | B32: F82661 | C32: 4135 | D32: 43 | E32: 0.01 | F32: 6 | G32: 0.14 | H32: 3 | I32: 0.07 | J32: 30 | K32: 0.698
A33: The Surgery | B33: F86040 | C33: 5816 | D33: 85 | E33: 0.015 | F33: 5 | G33: 0.059 | H33: 4 | I33: 0.047 | J33: 69 | K33: 0.812
A34: The Oval Practice | B34: Y01795 | C34: 6917 | D34: 82 | E34: 0.012 | F34: 5 | G34: 0.061 | H34: 5 | I34: 0.061 | J34: 60 | K34: 0.732
A35: Valence Medical Centre | B35: F82038 | C35: 5373 | D35: 87 | E35: 0.016 | F35: 5 | G35: 0.057 | H35: 3 | I35: 0.034 | J35: 51 | K35: 0.586
A36: Marks Gate Medical Practice | B36: F82604 | C36: 5823 | D36: 96 | E36: 0.016 | F36: 6 | G36: 0.063 | H36: 4 | I36: 0.042 | J36: 62 | K36: 0.646
A37: Tulasi Medical Centre | B37: F82660 | C37: 20614 | D37: 413 | E37: =IFERROR(D37/C37,"N/A") -> 0.02 | F37: 5 | G37: =IFERROR(F37/$D37,"N/A") -> 0.012 | H37: 3 | I37: =IFERROR(H37/$D37,"N/A") -> 0.007 | J37: 267 | K37: 0.646
A38: Becontree Medical Centre | B38: F82677 | C38: 7697 | D38: 127 | E38: =IFERROR(D38/C38,"N/A") -> 0.016 | F38: 6 | G38: =IFERROR(F38/$D38,"N/A") -> 0.047 | H38: 5 | I38: =IFERROR(H38/$D38,"N/A") -> 0.039 | J38: 100 | K38: =IFERROR(J38/$D38,"N/A") -> 0.787

Sheet CVD Risk
C1: 01. Listsize | D1: =INDEX('Control Panel'!$B$49:$B$55,COLUMN(D1)-COLUMN($D$1)+1) -> LDP.05: CVD 25-84yrs (excl CVD) | E1: =INDEX('Control Panel'!$B$49:$B$55,COLUMN(E1)-COLUMN($D$1)+1) -> LDP.05.02: Cardiovascular Risk Score Done (5y) | F1: =INDEX('Control Panel'!$B$49:$B$55,COLUMN(F1)-COLUMN($D$1)+1) -> %LDP.05.02: Cardiovascular Risk Score Done (5y) | G1: =INDEX('Control Panel'!$B$49:$B$55,COLUMN(G1)-COLUMN($D$1)+1) -> LDP.05.01: CVD QRISK greater than or equal 20% | H1: =INDEX('Control Panel'!$B$49:$B$55,COLUMN(H1)-COLUMN($D$1)+1) -> %LDP.05.01: CVD QRISK greater than or equal 20% | I1: =INDEX('Control Panel'!$B$49:$B$55,COLUMN(I1)-COLUMN($D$1)+1) -> LDP.05.01.01: CVD Proxy Annual Review (last 12m) | J1: =INDEX('Control Panel'!$B$49:$B$55,COLUMN(J1)-COLUMN($D$1)+1) -> %LDP.05.01.01: CVD Proxy Annual Review (last 12m) | K1: LDP.05.03: CVD QRISK >=10 & <20 | L1: =INDEX('Control Panel'!$B$49:$B$55,COLUMN(L1)-COLUMN($D$1)+1) -> 
C2: Barking and Dagenham - Practice Clinical Trends (LDP) Report
C3: March 2024 | D3: =VLOOKUP(C3,'Control Panel'!O16:P27,2,FALSE) -> 2024-04-01
C4: ='Control Panel'!B48 -> CVD Risk
A5: Home | C5: =VLOOKUP(C1,'Control Panel'!$B$3:$C$132,2,FALSE) -> List Size | D5: =VLOOKUP(D1,'Control Panel'!$B$3:$D$132,3,FALSE) -> Aged 25 to 84 (exc CVD) | E5: =VLOOKUP(E1,'Control Panel'!$B$3:$D$132,3,FALSE) -> QRISK recorded (5 years) | F5: =VLOOKUP(F1,'Control Panel'!$B$3:$D$132,3,FALSE) -> % of patients aged 25 to 84 (exc CVD) | G5: =VLOOKUP(G1,'Control Panel'!$B$3:$D$132,3,FALSE) -> QRISK ≥ 20% | H5: =VLOOKUP(H1,'Control Panel'!$B$3:$D$132,3,FALSE) -> % QRISK Score recorded | I5: =VLOOKUP(I1,'Control Panel'!$B$3:$D$132,3,FALSE) -> QRISK ≥ 20% and proxy review (BP and Chol last 12m) | J5: =VLOOKUP(J1,'Control Panel'!$B$3:$D$132,3,FALSE) -> % Patients with QRISK ≥ 20% | K5: QRISK >=10 & <20 | L5: % QRISK >=10 & <20
A6: Practice Name | C6: =SUM(C7:C38) -> 256485 | D6: =SUM(D7:D38) -> 149990 | E6: =SUM(E7:E38) -> 57197 | F6: =IFERROR(E6/D6,"N/A") -> 0.381 | G6: =SUM(G7:G38) -> 8015 | H6: =IFERROR(G6/E6,"N/A") -> 0.14 | I6: =SUM(I7:I38) -> 273 | J6: =IFERROR(I6/G6,"N/A") -> 0.034 | K6: =SUM(K7:K38) -> 12713 | L6: =IFERROR(K6/E6,"N/A") -> 0.222
A7: Church Elm Lane Medical Practice | B7: F82005 | C7: =SUMIFS(OFFSET(REL_D,,MATCH(C$1,IND,0)-2),REL_D,$D$3,OrgID,$B7) -> 6977 | D7: 4161 | E7: 1890 | F7: =IFERROR(E7/$D7,"N/A") -> 0.454 | G7: =SUMIFS(OFFSET(REL_D,,MATCH(G$1,IND,0)-2),REL_D,$D$3,OrgID,$B7) -> 305 | H7: =IFERROR(G7/$E7,"N/A") -> 0.161 | I7: =SUMIFS(OFFSET(REL_D,,MATCH(I$1,IND,0)-2),REL_D,$D$3,OrgID,$B7) -> 8 | J7: =IFERROR(I7/$G7,"N/A") -> 0.026 | K7: 432 | L7: =IFERROR(K7/E7,"N/A") -> 0.229
A8: Broad Street Medical Centre | B8: Y01719 | C8: 8589 | D8: 5014 | E8: 1203 | F8: 0.24 | G8: 144 | H8: 0.12 | I8: 13 | J8: 0.09 | K8: 266 | L8: 0.221
A9: Porters Avenue Doctors Surgery | B9: Y02575 | C9: 21262 | D9: 12622 | E9: 4143 | F9: 0.328 | G9: 427 | H9: 0.103 | I9: 13 | J9: 0.03 | K9: 757 | L9: 0.183
A10: First Avenue Surgery | B10: F82003 | C10: 5854 | D10: 3519 | E10: 965 | F10: 0.274 | G10: 210 | H10: 0.218 | I10: 6 | J10: 0.029 | K10: 221 | L10: 0.229
A11: Hedgemans Surgery | B11: F82015 | C11: 5283 | D11: 3333 | E11: 1618 | F11: 0.485 | G11: 271 | H11: 0.167 | I11: 9 | J11: 0.033 | K11: 389 | L11: 0.24
A12: St Albans Surgery | B12: F82017 | C12: 8711 | D12: 5347 | E12: 1767 | F12: 0.33 | G12: 287 | H12: 0.162 | I12: 19 | J12: 0.066 | K12: 408 | L12: 0.231
A13: Heathway Medical Centre | B13: F82634 | C13: 6272 | D13: 3945 | E13: 1430 | F13: 0.362 | G13: 183 | H13: 0.128 | I13: 7 | J13: 0.038 | K13: 305 | L13: 0.213
A14: Dr Alkaisy Surgery | B14: F82678 | C14: 5104 | D14: 3081 | E14: 1365 | F14: 0.443 | G14: 204 | H14: 0.149 | I14: 7 | J14: 0.034 | K14: 303 | L14: 0.222
A15: Parkview Medical Practice | B15: F82679 | C15: 5753 | D15: 3532 | E15: 1502 | F15: 0.425 | G15: 241 | H15: 0.16 | I15: 4 | J15: 0.017 | K15: 359 | L15: 0.239
A16: Victoria Medical Centre | B16: F82034 | C16: 6330 | D16: 3874 | E16: 1411 | F16: 0.364 | G16: 157 | H16: 0.111 | I16: 5 | J16: 0.032 | K16: 239 | L16: 0.169
A17: Aurora Medcare | B17: F82042 | C17: 19977 | D17: 12151 | E17: 6581 | F17: 0.542 | G17: 470 | H17: 0.071 | I17: 13 | J17: 0.028 | K17: 1068 | L17: 0.162
A18: Abbey Medical centre | B18: F82625 | C18: 7608 | D18: 4776 | E18: 2016 | F18: 0.422 | G18: 301 | H18: 0.149 | I18: 8 | J18: 0.027 | K18: 474 | L18: 0.235
A19: Shifa Medical Practice | B19: Y01280 | C19: 2418 | D19: 1521 | E19: 115 | F19: 0.076 | G19: 19 | H19: 0.165 | I19: 1 | J19: 0.053 | K19: 50 | L19: 0.435
A20: Halbutt Street Surgery | B20: F82001 | C20: 5905 | D20: 3562 | E20: 1406 | F20: 0.395 | G20: 152 | H20: 0.108 | I20: 7 | J20: 0.046 | K20: 316 | L20: 0.225
A21: Barking Medical Group Practice | B21: F82018 | C21: 11536 | D21: 6961 | E21: 1669 | F21: 0.24 | G21: 235 | H21: 0.141 | I21: 11 | J21: 0.047 | K21: 479 | L21: 0.287
A22: John Smith House | B22: F82040 | C22: 3850 | D22: 2412 | E22: 1053 | F22: 0.437 | G22: 127 | H22: 0.121 | I22: 2 | J22: 0.016 | K22: 159 | L22: 0.151
A23: The White House | B23: F82612 | C23: 11832 | D23: 7344 | E23: 2391 | F23: 0.326 | G23: 492 | H23: 0.206 | I23: 16 | J23: 0.033 | K23: 598 | L23: 0.25
A24: Dr Gupta & Partner | B24: F82647 | C24: =SUMIFS(OFFSET(REL_D,,MATCH(C$1,IND,0)-2),REL_D,$D$3,OrgID,$B24) -> 4793 | D24: 3406 | E24: 1052 | F24: 0.309 | G24: 272 | H24: 0.259 | I24: 16 | J24: 0.059 | K24: 282 | L24: 0.268
A25: Ripple Road Medical Centre | B25: F82650 | C25: 9920 | D25: 6062 | E25: 2103 | F25: 0.347 | G25: 279 | H25: 0.133 | I25: 3 | J25: 0.011 | K25: 480 | L25: 0.228
A26: Highgrove Surgery | B26: F82680 | C26: 11490 | D26: 362 | E26: 113 | F26: 0.312 | G26: 104 | H26: 0.92 | I26: 0 | J26: 0 | K26: 74 | L26: 0.655
A27: Faircross Health Centre | B27: F82027 | C27: 2140 | D27: 1445 | E27: 438 | F27: 0.303 | G27: 83 | H27: 0.189 | I27: 4 | J27: 0.048 | K27: 145 | L27: 0.331
A28: Five Elms | B28: F82012 | C28: 4176 | D28: 2618 | E28: 786 | F28: 0.3 | G28: 142 | H28: 0.181 | I28: 3 | J28: 0.021 | K28: 220 | L28: 0.28
A29: Julia Engwell Surgery | B29: F82025 | C29: 5879 | D29: 3563 | E29: 1777 | F29: 0.499 | G29: 225 | H29: 0.127 | I29: 1 | J29: 0.004 | K29: 332 | L29: 0.187
A30: Laburnum Health centre | B30: F82051 | C30: 11335 | D30: 6899 | E30: 1993 | F30: 0.289 | G30: 270 | H30: 0.135 | I30: 8 | J30: 0.03 | K30: 566 | L30: 0.284
A31: Gables Surgery | B31: F82642 | C31: 7116 | D31: 4336 | E31: 1615 | F31: 0.372 | G31: 233 | H31: 0.144 | I31: 5 | J31: 0.021 | K31: 429 | L31: 0.266
A32: Green Lane Surgery | B32: F82661 | C32: 4135 | D32: 2633 | E32: 811 | F32: 0.308 | G32: 89 | H32: 0.11 | I32: 7 | J32: 0.079 | K32: 192 | L32: 0.237
A33: The Surgery | B33: F86040 | C33: 5816 | D33: 3691 | E33: 439 | F33: 0.119 | G33: 92 | H33: 0.21 | I33: 9 | J33: 0.098 | K33: 224 | L33: 0.51
A34: The Oval Practice | B34: Y01795 | C34: 6917 | D34: 4268 | E34: 2120 | F34: 0.497 | G34: 174 | H34: 0.082 | I34: 21 | J34: 0.121 | K34: 410 | L34: 0.193
A35: Valence Medical Centre | B35: F82038 | C35: 5373 | D35: 3284 | E35: 1025 | F35: 0.312 | G35: 156 | H35: 0.152 | I35: 6 | J35: 0.038 | K35: 229 | L35: 0.223
A36: Marks Gate Medical Practice | B36: F82604 | C36: 5823 | D36: 3347 | E36: 1228 | F36: 0.367 | G36: 188 | H36: 0.153 | I36: 9 | J36: 0.048 | K36: 281 | L36: 0.229
A37: Tulasi Medical Centre | B37: F82660 | C37: 20614 | D37: 12426 | E37: 7021 | F37: =IFERROR(E37/$D37,"N/A") -> 0.565 | G37: 1144 | H37: =IFERROR(G37/$E37,"N/A") -> 0.163 | I37: 15 | J37: =IFERROR(I37/$G37,"N/A") -> 0.013 | K37: 1527 | L37: 0.217
A38: Becontree Medical Centre | B38: F82677 | C38: 7697 | D38: 4495 | E38: 2151 | F38: =IFERROR(E38/$D38,"N/A") -> 0.479 | G38: 339 | H38: =IFERROR(G38/$E38,"N/A") -> 0.158 | I38: 17 | J38: =IFERROR(I38/$G38,"N/A") -> 0.05 | K38: 499 | L38: 0.232

Sheet Stroke
C1: 01. Listsize | D1: LDP.10 Stroke or TIA register | E1: %LDP.10 Stroke or TIA register | F1: LDP.10.01: Stroke/TIA BP recorded (last 12m) | G1: %LDP.10.01: Stroke/TIA BP recorded (last 12m) | H1: LDP.10.02 Patients on Stroke/TIA register with BP <140/90 (12m) | I1: %LDP.10.02 Patients on Stroke/TIA register with BP <140/90 (12m)
C2: Barking and Dagenham - Practice Clinical Trends (LDP) Report
B3: =VLOOKUP(C3,'Control Panel'!O16:P27,2,FALSE) -> 2024-04-01 | C3: March 2024 | D3: =VLOOKUP(C3,'Control Panel'!O16:P27,2,FALSE) -> 2024-04-01
B4: 2019-07-01 | C4: ='Control Panel'!B41 -> Stroke/TIA
A5: Home | B5: 2019-10-01 | C5: =VLOOKUP(C1,'Control Panel'!$B$3:$C$132,2,FALSE) -> List Size | D5: =VLOOKUP(D1,'Control Panel'!$B$3:$D$132,3,FALSE) -> Stroke/TIA register | E5: =VLOOKUP(E1,'Control Panel'!$B$3:$D$132,3,FALSE) -> % list size | F5: =VLOOKUP(F1,'Control Panel'!$B$3:$D$132,3,FALSE) -> Patients on Stroke/TIA register with BP recorded | G5: =VLOOKUP(G1,'Control Panel'!$B$3:$D$132,3,FALSE) -> % of stroke register | H5: =VLOOKUP(H1,'Control Panel'!$B$3:$D$132,3,FALSE) -> Patients on Stroke/TIA register with BP <140/90 (12m) | I5: =VLOOKUP(I1,'Control Panel'!$B$3:$D$132,3,FALSE) -> % of stroke register
A6: Practice Name | C6: =SUM(C7:C38) -> 256485 | D6: =SUM(D7:D38) -> 2476 | E6: =IFERROR(D6/C6,"N/A") -> 0.01 | F6: =SUM(F7:F38) -> 2171 | G6: =IFERROR(F6/D6,"N/A") -> 0.877 | H6: =SUM(H7:H38) -> 1616 | I6: =IFERROR(H6/D6,"N/A") -> 0.653
A7: Church Elm Lane Medical Practice | B7: F82005 | C7: =SUMIFS(OFFSET(REL_D,,MATCH(C$1,IND,0)-2),REL_D,$D$3,OrgID,$B7) -> 6977 | D7: 74 | E7: =IFERROR(D7/C7,"N/A") -> 0.011 | F7: =SUMIFS(OFFSET(REL_D,,MATCH(F$1,IND,0)-2),REL_D,$D$3,OrgID,$B7) -> 66 | G7: =IFERROR(F7/D7,"N/A") -> 0.892 | H7: =SUMIFS(OFFSET(REL_D,,MATCH(H$1,IND,0)-2),REL_D,$D$3,OrgID,$B7) -> 56 | I7: =IFERROR(H7/D7,"N/A") -> 0.757
A8: Broad Street Medical Centre | B8: Y01719 | C8: 8589 | D8: 83 | E8: 0.01 | F8: 77 | G8: 0.928 | H8: 56 | I8: 0.675
A9: Porters Avenue Doctors Surgery | B9: Y02575 | C9: 21262 | D9: 131 | E9: 0.006 | F9: 112 | G9: 0.855 | H9: 93 | I9: 0.71
A10: First Avenue Surgery | B10: F82003 | C10: 5854 | D10: 56 | E10: 0.01 | F10: 48 | G10: 0.857 | H10: 27 | I10: 0.482
A11: Hedgemans Surgery | B11: F82015 | C11: 5283 | D11: 43 | E11: 0.008 | F11: 40 | G11: 0.93 | H11: 32 | I11: 0.744
A12: St Albans Surgery | B12: F82017 | C12: 8711 | D12: 80 | E12: 0.009 | F12: 74 | G12: 0.925 | H12: 58 | I12: 0.725
A13: Heathway Medical Centre | B13: F82634 | C13: 6272 | D13: 60 | E13: 0.01 | F13: 53 | G13: 0.883 | H13: 38 | I13: 0.633
A14: Dr Alkaisy Surgery | B14: F82678 | C14: 5104 | D14: 115 | E14: 0.023 | F14: 88 | G14: 0.765 | H14: 59 | I14: 0.513
A15: Parkview Medical Practice | B15: F82679 | C15: 5753 | D15: 54 | E15: 0.009 | F15: 51 | G15: 0.944 | H15: 39 | I15: 0.722
A16: Victoria Medical Centre | B16: F82034 | C16: 6330 | D16: 34 | E16: 0.005 | F16: 30 | G16: 0.882 | H16: 21 | I16: 0.618
A17: Aurora Medcare | B17: F82042 | C17: 19977 | D17: 163 | E17: 0.008 | F17: 142 | G17: 0.871 | H17: 105 | I17: 0.644
A18: Abbey Medical centre | B18: F82625 | C18: 7608 | D18: 47 | E18: 0.006 | F18: 42 | G18: 0.894 | H18: 38 | I18: 0.809
A19: Shifa Medical Practice | B19: Y01280 | C19: 2418 | D19: 12 | E19: 0.005 | F19: 12 | G19: 1 | H19: 12 | I19: 1
A20: Halbutt Street Surgery | B20: F82001 | C20: 5905 | D20: 47 | E20: 0.008 | F20: 41 | G20: 0.872 | H20: 29 | I20: 0.617
A21: Barking Medical Group Practice | B21: F82018 | C21: 11536 | D21: 140 | E21: 0.012 | F21: 122 | G21: 0.871 | H21: 91 | I21: 0.65
A22: John Smith House | B22: F82040 | C22: 3850 | D22: 25 | E22: 0.006 | F22: 24 | G22: 0.96 | H22: 22 | I22: 0.88
A23: The White House | B23: F82612 | C23: 11832 | D23: 123 | E23: 0.01 | F23: 111 | G23: 0.902 | H23: 72 | I23: 0.585
A24: Dr Gupta & Partner | B24: F82647 | C24: =SUMIFS(OFFSET(REL_D,,MATCH(C$1,IND,0)-2),REL_D,$D$3,OrgID,$B24) -> 4793 | D24: 35 | E24: 0.007 | F24: 34 | G24: 0.971 | H24: 24 | I24: 0.686
A25: Ripple Road Medical Centre | B25: F82650 | C25: 9920 | D25: 71 | E25: 0.007 | F25: 64 | G25: 0.901 | H25: 50 | I25: 0.704
A26: Highgrove Surgery | B26: F82680 | C26: 11490 | D26: 141 | E26: 0.012 | F26: 130 | G26: 0.922 | H26: 101 | I26: 0.716
A27: Faircross Health Centre | B27: F82027 | C27: 2140 | D27: 32 | E27: 0.015 | F27: 28 | G27: 0.875 | H27: 21 | I27: 0.656
A28: Five Elms | B28: F82012 | C28: 4176 | D28: 35 | E28: 0.008 | F28: 33 | G28: 0.943 | H28: 26 | I28: 0.743
A29: Julia Engwell Surgery | B29: F82025 | C29: 5879 | D29: 59 | E29: 0.01 | F29: 49 | G29: 0.831 | H29: 32 | I29: 0.542
A30: Laburnum Health centre | B30: F82051 | C30: 11335 | D30: 154 | E30: 0.014 | F30: 113 | G30: 0.734 | H30: 78 | I30: 0.506
A31: Gables Surgery | B31: F82642 | C31: 7116 | D31: 94 | E31: 0.013 | F31: 78 | G31: 0.83 | H31: 59 | I31: 0.628
A32: Green Lane Surgery | B32: F82661 | C32: 4135 | D32: 31 | E32: 0.007 | F32: 29 | G32: 0.935 | H32: 21 | I32: 0.677
A33: The Surgery | B33: F86040 | C33: 5816 | D33: 51 | E33: 0.009 | F33: 50 | G33: 0.98 | H33: 32 | I33: 0.627
A34: The Oval Practice | B34: Y01795 | C34: 6917 | D34: 53 | E34: 0.008 | F34: 45 | G34: 0.849 | H34: 38 | I34: 0.717
A35: Valence Medical Centre | B35: F82038 | C35: 5373 | D35: 35 | E35: 0.007 | F35: 31 | G35: 0.886 | H35: 25 | I35: 0.714
A36: Marks Gate Medical Practice | B36: F82604 | C36: 5823 | D36: 69 | E36: 0.012 | F36: 64 | G36: 0.928 | H36: 48 | I36: 0.696
A37: Tulasi Medical Centre | B37: F82660 | C37: 20614 | D37: 254 | E37: 0.012 | F37: 219 | G37: 0.862 | H37: 155 | I37: 0.61
A38: Becontree Medical Centre | B38: F82677 | C38: 7697 | D38: 75 | E38: =IFERROR(D38/C38,"N/A") -> 0.01 | F38: 71 | G38: =IFERROR(F38/D38,"N/A") -> 0.947 | H38: 58 | I38: =IFERROR(H38/D38,"N/A") -> 0.773

Sheet Diabetes
C1: 01. Listsize | D1: ='Control Panel'!B57 -> LDP.04: Diabetes Register | E1: =INDEX('Control Panel'!$B$57:$B$106,COLUMN(E1)-COLUMN($D$1)+1) -> %LDP.04: Diabetes Register | F1: ='Control Panel'!B61 -> LDP.04.11: Diabetes and BP in last 12 months | G1: ='Control Panel'!B62 -> %LDP.04.11: Diabetes and BP in last 12 months | H1: ='Control Panel'!B63 -> LDP.04.09: Diabetes BP less than 145/85 (last 12m) | I1: ='Control Panel'!B64 -> %LDP.04.09: Diabetes BP less than 145/85 (last 12m) | J1: ='Control Panel'!B67 -> LDP.04.08: Diabetes Chol less than 5mmol (last 12m) | K1: ='Control Panel'!B68 -> %LDP.04.08: Diabetes Chol less than 5mmol (last 12m) | L1: ='Control Panel'!B69 -> LDP.04.01: Diabetes HbA1c <7.5% OR <59mmol (last 12m) | M1: ='Control Panel'!B70 -> %LDP.04.01: Diabetes HbA1c <7.5% OR <59mmol (last 12m) | N1: ='Control Panel'!B81 -> LDP.04.07: Diabetes Influenza Vaccinations (From August 2018) | O1: ='Control Panel'!B82 -> %LDP.04.07: Diabetes Influenza Vaccinations (From August 2018)
C2: Barking and Dagenham - Practice Clinical Trends (LDP) Report
C3: March 2024 | D3: =VLOOKUP(C3,'Control Panel'!O16:P27,2,FALSE) -> 2024-04-01
C4: ='Control Panel'!B56 -> Diabetes
A5: Home | C5: =VLOOKUP(C1,'Control Panel'!$B$3:$C$132,2,FALSE) -> List Size | D5: Diabetes register | E5: % List size | F5: BP (last 12m) | G5: % Diabetes Register | H5: BP < 145/85 (last 12m) | I5: % Diabetes Register | J5: Cholesterol < 5mmols (last 12m) | K5: % Diabetes Register | L5: HbA1c < 59 (last 12m) | M5: % Diabetes register | N5: Flu jab (From August 2023) | O5: % Diabetes Register
A6: Practice Name | C6: =SUM(C7:C38) -> 256485 | D6: =SUM(D7:D38) -> 18907 | E6: =IFERROR(D6/C6,"N/A") -> 0.074 | F6: =SUM(F7:F38) -> 17490 | G6: =IFERROR(F6/D6,"N/A") -> 0.925 | H6: =SUM(H7:H38) -> 13279 | I6: =IFERROR(H6/D6,"N/A") -> 0.702 | J6: =SUM(J7:J38) -> 405 | K6: =IFERROR(J6/D6,"N/A") -> 0.021 | L6: =SUM(L7:L38) -> 9784 | M6: =IFERROR(L6/D6,"N/A") -> 0.517 | N6: =SUM(N7:N38) -> 10830 | O6: =IFERROR(N6/D6,"N/A") -> 0.573
A7: Church Elm Lane Medical Practice | B7: F82005 | C7: =SUMIFS(OFFSET(REL_D,,MATCH(C$1,IND,0)-2),REL_D,$D$3,OrgID,$B7) -> 6977 | D7: 452 | E7: =IFERROR(D7/C7,"N/A") -> 0.065 | F7: =SUMIFS(OFFSET(REL_D,,MATCH(F$1,IND,0)-2),REL_D,$D$3,OrgID,$B7) -> 430 | G7: =IFERROR(F7/$D7,"N/A") -> 0.951 | H7: =SUMIFS(OFFSET(REL_D,,MATCH(H$1,IND,0)-2),REL_D,$D$3,OrgID,$B7) -> 358 | I7: =IFERROR(H7/$D7,"N/A") -> 0.792 | J7: =SUMIFS(OFFSET(REL_D,,MATCH(J$1,IND,0)-2),REL_D,$D$3,OrgID,$B7) -> 4 | K7: =IFERROR(J7/$D7,"N/A") -> 0.009 | L7: =SUMIFS(OFFSET(REL_D,,MATCH(L$1,IND,0)-2),REL_D,$D$3,OrgID,$B7) -> 218 | M7: =IFERROR(L7/$D7,"N/A") -> 0.482 | N7: =SUMIFS(OFFSET(REL_D,,MATCH(N$1,IND,0)-2),REL_D,$D$3,OrgID,$B7) -> 263 | O7: =IFERROR(N7/$D7,"N/A") -> 0.582
A8: Broad Street Medical Centre | B8: Y01719 | C8: 8589 | D8: 505 | E8: 0.059 | F8: 478 | G8: 0.947 | H8: 317 | I8: 0.628 | J8: 29 | K8: 0.057 | L8: 254 | M8: 0.503 | N8: 271 | O8: 0.537
A9: Porters Avenue Doctors Surgery | B9: Y02575 | C9: 21262 | D9: 1199 | E9: 0.056 | F9: 1059 | G9: 0.883 | H9: 746 | I9: 0.622 | J9: 23 | K9: 0.019 | L9: 581 | M9: 0.485 | N9: 630 | O9: 0.525
A10: First Avenue Surgery | B10: F82003 | C10: 5854 | D10: 438 | E10: 0.075 | F10: 406 | G10: 0.927 | H10: 289 | I10: 0.66 | J10: 6 | K10: 0.014 | L10: 220 | M10: 0.502 | N10: 244 | O10: 0.557
A11: Hedgemans Surgery | B11: F82015 | C11: 5283 | D11: 425 | E11: 0.08 | F11: 411 | G11: 0.967 | H11: 323 | I11: 0.76 | J11: 18 | K11: 0.042 | L11: 295 | M11: 0.694 | N11: 307 | O11: 0.722
A12: St Albans Surgery | B12: F82017 | C12: 8711 | D12: 687 | E12: 0.079 | F12: 648 | G12: 0.943 | H12: 513 | I12: 0.747 | J12: 7 | K12: 0.01 | L12: 357 | M12: 0.52 | N12: 389 | O12: 0.566
A13: Heathway Medical Centre | B13: F82634 | C13: 6272 | D13: 311 | E13: 0.05 | F13: 286 | G13: 0.92 | H13: 192 | I13: 0.617 | J13: 7 | K13: 0.023 | L13: 163 | M13: 0.524 | N13: 151 | O13: 0.486
A14: Dr Alkaisy Surgery | B14: F82678 | C14: 5104 | D14: 488 | E14: 0.096 | F14: 415 | G14: 0.85 | H14: 288 | I14: 0.59 | J14: 6 | K14: 0.012 | L14: 244 | M14: 0.5 | N14: 336 | O14: 0.689
A15: Parkview Medical Practice | B15: F82679 | C15: 5753 | D15: 401 | E15: 0.07 | F15: 381 | G15: 0.95 | H15: 279 | I15: 0.696 | J15: 8 | K15: 0.02 | L15: 206 | M15: 0.514 | N15: 245 | O15: 0.611
A16: Victoria Medical Centre | B16: F82034 | C16: 6330 | D16: 359 | E16: 0.057 | F16: 354 | G16: 0.986 | H16: 290 | I16: 0.808 | J16: 13 | K16: 0.036 | L16: 177 | M16: 0.493 | N16: 219 | O16: 0.61
A17: Aurora Medcare | B17: F82042 | C17: 19977 | D17: 1293 | E17: 0.065 | F17: 1200 | G17: 0.928 | H17: 932 | I17: 0.721 | J17: 23 | K17: 0.018 | L17: 691 | M17: 0.534 | N17: 667 | O17: 0.516
A18: Abbey Medical centre | B18: F82625 | C18: 7608 | D18: 659 | E18: 0.087 | F18: 645 | G18: 0.979 | H18: 517 | I18: 0.785 | J18: 12 | K18: 0.018 | L18: 360 | M18: 0.546 | N18: 427 | O18: 0.648
A19: Shifa Medical Practice | B19: Y01280 | C19: 2418 | D19: 124 | E19: 0.051 | F19: 112 | G19: 0.903 | H19: 105 | I19: 0.847 | J19: 2 | K19: 0.016 | L19: 45 | M19: 0.363 | N19: 117 | O19: 0.944
A20: Halbutt Street Surgery | B20: F82001 | C20: 5905 | D20: 405 | E20: 0.069 | F20: 374 | G20: 0.923 | H20: 285 | I20: 0.704 | J20: 11 | K20: 0.027 | L20: 194 | M20: 0.479 | N20: 230 | O20: 0.568
A21: Barking Medical Group Practice | B21: F82018 | C21: 11536 | D21: 1053 | E21: 0.091 | F21: 987 | G21: 0.937 | H21: 825 | I21: 0.783 | J21: 10 | K21: 0.009 | L21: 502 | M21: 0.477 | N21: 645 | O21: 0.613
A22: John Smith House | B22: F82040 | C22: 3850 | D22: 213 | E22: 0.055 | F22: 197 | G22: 0.925 | H22: 155 | I22: 0.728 | J22: 7 | K22: 0.033 | L22: 113 | M22: 0.531 | N22: 136 | O22: 0.638
A23: The White House | B23: F82612 | C23: 11832 | D23: 1094 | E23: 0.092 | F23: 1017 | G23: 0.93 | H23: 718 | I23: 0.656 | J23: 4 | K23: 0.004 | L23: 529 | M23: 0.484 | N23: 583 | O23: 0.533
A24: Dr Gupta & Partner | B24: F82647 | C24: =SUMIFS(OFFSET(REL_D,,MATCH(C$1,IND,0)-2),REL_D,$D$3,OrgID,$B24) -> 4793 | D24: 489 | E24: 0.102 | F24: 453 | G24: 0.926 | H24: 374 | I24: 0.765 | J24: 18 | K24: 0.037 | L24: 244 | M24: 0.499 | N24: 281 | O24: 0.575
A25: Ripple Road Medical Centre | B25: F82650 | C25: 9920 | D25: 747 | E25: 0.075 | F25: 710 | G25: 0.95 | H25: 609 | I25: 0.815 | J25: 5 | K25: 0.007 | L25: 391 | M25: 0.523 | N25: 418 | O25: 0.56
A26: Highgrove Surgery | B26: F82680 | C26: 11490 | D26: 683 | E26: 0.059 | F26: 646 | G26: 0.946 | H26: 481 | I26: 0.704 | J26: 5 | K26: 0.007 | L26: 428 | M26: 0.627 | N26: 386 | O26: 0.565
A27: Faircross Health Centre | B27: F82027 | C27: 2140 | D27: 223 | E27: 0.104 | F27: 208 | G27: 0.933 | H27: 136 | I27: 0.61 | J27: 5 | K27: 0.022 | L27: 119 | M27: 0.534 | N27: 139 | O27: 0.623
A28: Five Elms | B28: F82012 | C28: 4176 | D28: 342 | E28: 0.082 | F28: 321 | G28: 0.939 | H28: 231 | I28: 0.675 | J28: 4 | K28: 0.012 | L28: 192 | M28: 0.561 | N28: 201 | O28: 0.588
A29: Julia Engwell Surgery | B29: F82025 | C29: 5879 | D29: 386 | E29: 0.066 | F29: 358 | G29: 0.927 | H29: 303 | I29: 0.785 | J29: 4 | K29: 0.01 | L29: 184 | M29: 0.477 | N29: 271 | O29: 0.702
A30: Laburnum Health centre | B30: F82051 | C30: 11335 | D30: 876 | E30: 0.077 | F30: 726 | G30: 0.829 | H30: 558 | I30: 0.637 | J30: 9 | K30: 0.01 | L30: 445 | M30: 0.508 | N30: 443 | O30: 0.506
A31: Gables Surgery | B31: F82642 | C31: 7116 | D31: 510 | E31: 0.072 | F31: 443 | G31: 0.869 | H31: 321 | I31: 0.629 | J31: 6 | K31: 0.012 | L31: 232 | M31: 0.455 | N31: 244 | O31: 0.478
A32: Green Lane Surgery | B32: F82661 | C32: 4135 | D32: 256 | E32: 0.062 | F32: 235 | G32: 0.918 | H32: 176 | I32: 0.688 | J32: 15 | K32: 0.059 | L32: 143 | M32: 0.559 | N32: 167 | O32: 0.652
A33: The Surgery | B33: F86040 | C33: 5816 | D33: 458 | E33: 0.079 | F33: 437 | G33: 0.954 | H33: 383 | I33: 0.836 | J33: 24 | K33: 0.052 | L33: 219 | M33: 0.478 | N33: 335 | O33: 0.731
A34: The Oval Practice | B34: Y01795 | C34: 6917 | D34: 511 | E34: 0.074 | F34: 478 | G34: 0.935 | H34: 402 | I34: 0.787 | J34: 57 | K34: 0.112 | L34: 288 | M34: 0.564 | N34: 244 | O34: 0.477
A35: Valence Medical Centre | B35: F82038 | C35: 5373 | D35: 428 | E35: 0.08 | F35: 380 | G35: 0.888 | H35: 260 | I35: 0.607 | J35: 12 | K35: 0.028 | L35: 193 | M35: 0.451 | N35: 197 | O35: 0.46
A36: Marks Gate Medical Practice | B36: F82604 | C36: 5823 | D36: 394 | E36: 0.068 | F36: 369 | G36: 0.937 | H36: 301 | I36: 0.764 | J36: 11 | K36: 0.028 | L36: 197 | M36: 0.5 | N36: 231 | O36: 0.586
A37: Tulasi Medical Centre | B37: F82660 | C37: 20614 | D37: 1934 | E37: 0.094 | F37: 1772 | G37: 0.916 | H37: 1209 | I37: 0.625 | J37: 24 | K37: 0.012 | L37: 1042 | M37: 0.539 | N37: 1068 | O37: 0.552
A38: Becontree Medical Centre | B38: F82677 | C38: 7697 | D38: 564 | E38: =IFERROR(D38/C38,"N/A") -> 0.073 | F38: 554 | G38: =IFERROR(F38/$D38,"N/A") -> 0.982 | H38: 403 | I38: =IFERROR(H38/$D38,"N/A") -> 0.715 | J38: 16 | K38: =IFERROR(J38/$D38,"N/A") -> 0.028 | L38: 318 | M38: =IFERROR(L38/$D38,"N/A") -> 0.564 | N38: 345 | O38: =IFERROR(N38/$D38,"N/A") -> 0.612

Sheet Mental Health
C1: 01. Listsize | D1: =INDEX('Control Panel'!$B$108:$B$123,COLUMN(D1)-COLUMN($D$1)+1) -> CSPMH.01 SMI Register | E1: =INDEX('Control Panel'!$B$108:$B$123,COLUMN(E1)-COLUMN($D$1)+1) -> %CSPMH.01 SMI Register | F1: =INDEX('Control Panel'!$B$108:$B$123,COLUMN(F1)-COLUMN($D$1)+1) -> CSPMH.01.02 Smoking Status Recorded (12m) | G1: =INDEX('Control Panel'!$B$108:$B$123,COLUMN(G1)-COLUMN($D$1)+1) -> %CSPMH.01.02 Smoking Status Recorded (12m) | H1: =INDEX('Control Panel'!$B$108:$B$123,COLUMN(H1)-COLUMN($D$1)+1) -> CSPMH.01.02.01 Current Smoker (12m) | I1: =INDEX('Control Panel'!$B$108:$B$123,COLUMN(I1)-COLUMN($D$1)+1) -> %CSPMH.01.02.01 Current Smoker (12m) | J1: =INDEX('Control Panel'!$B$108:$B$123,COLUMN(J1)-COLUMN($D$1)+1) -> CSPMH 01.02.01.01 Ref to clinic 12m | K1: =INDEX('Control Panel'!$B$108:$B$123,COLUMN(K1)-COLUMN($D$1)+1) -> %CSPMH 01.02.01.01 Ref to clinic 12m | L1: =INDEX('Control Panel'!$B$108:$B$123,COLUMN(L1)-COLUMN($D$1)+1) -> CSPMH.01.02.02 Ex-smoker Recorded (latest 12m) | M1: =INDEX('Control Panel'!$B$108:$B$123,COLUMN(M1)-COLUMN($D$1)+1) -> %CSPMH.01.02.02 Ex-smoker Recorded (latest 12m) | N1: =INDEX('Control Panel'!$B$108:$B$123,COLUMN(N1)-COLUMN($D$1)+1) -> CSPMH. 01.03 QRisk Recorded (12m) | O1: =INDEX('Control Panel'!$B$108:$B$123,COLUMN(O1)-COLUMN($D$1)+1) -> %CSPMH. 01.03 QRisk Recorded (12m) | P1: =INDEX('Control Panel'!$B$108:$B$123,COLUMN(P1)-COLUMN($D$1)+1) -> CSPMH. 01.03.02 Qrisk>=20 (12m) | Q1: =INDEX('Control Panel'!$B$108:$B$123,COLUMN(Q1)-COLUMN($D$1)+1) -> %CSPMH. 01.03.02 Qrisk>=20 (12m) | R1: =INDEX('Control Panel'!$B$108:$B$123,COLUMN(R1)-COLUMN($D$1)+1) -> CSPMH. 01.03.01 BP recorded on same day as QRisk (12m) | S1: =INDEX('Control Panel'!$B$108:$B$123,COLUMN(S1)-COLUMN($D$1)+1) -> %CSPMH. 01.03.01 BP recorded on same day as QRisk (12m)
C2: Barking and Dagenham - Practice Clinical Trends (LDP) Report
B3: =VLOOKUP(C3,'Control Panel'!O16:P27,2,FALSE) -> 2024-04-01 | C3: March 2024 | D3: =VLOOKUP(C3,'Control Panel'!O16:P27,2,FALSE) -> 2024-04-01
B4: 2019-07-01 | C4: ='Control Panel'!B107 -> Mental Health
A5: Home | B5: 2019-10-01 | C5: =VLOOKUP(C1,'Control Panel'!$B$3:$C$132,2,FALSE) -> List Size | D5: =VLOOKUP(D1,'Control Panel'!$B$3:$D$132,3,FALSE) -> Mental Health register | E5: =VLOOKUP(E1,'Control Panel'!$B$3:$D$132,3,FALSE) -> % list size | F5: =VLOOKUP(F1,'Control Panel'!$B$3:$D$132,3,FALSE) -> No. of Mental Health Patients with smoking status recorded (last 12m) or never smoked | G5: =VLOOKUP(G1,'Control Panel'!$B$3:$D$132,3,FALSE) -> % Mental Health Register | H5: =VLOOKUP(H1,'Control Panel'!$B$3:$D$132,3,FALSE) -> No. of Mental Health patients recorded as a Smoker | I5: =VLOOKUP(I1,'Control Panel'!$B$3:$D$132,3,FALSE) -> % Mental Health Register | J5: =VLOOKUP(J1,'Control Panel'!$B$3:$D$132,3,FALSE) -> No. of Mental Health Patients who are current smokers & referred to the Stop Smoking Clinic | K5: =VLOOKUP(K1,'Control Panel'!$B$3:$D$132,3,FALSE) -> % Mental Health Register | L5: =VLOOKUP(L1,'Control Panel'!$B$3:$D$132,3,FALSE) -> No. Of Mental Health Patients who are recorded as quitters | M5: =VLOOKUP(M1,'Control Panel'!$B$3:$D$132,3,FALSE) -> % Mental Health Register | N5: =VLOOKUP(N1,'Control Panel'!$B$3:$D$132,3,FALSE) -> Patients with Mental Health with QRISK recorded in the last 12m | O5: =VLOOKUP(O1,'Control Panel'!$B$3:$D$132,3,FALSE) -> % Mental Health Register | P5: =VLOOKUP(P1,'Control Panel'!$B$3:$D$132,3,FALSE) -> Patients with Mental Health with QRISK 20% or higher in the last 12m | Q5: =VLOOKUP(Q1,'Control Panel'!$B$3:$D$132,3,FALSE) -> % patients with QRISK recorded | R5: =VLOOKUP(R1,'Control Panel'!$B$3:$D$132,3,FALSE) -> Patients with Mental Health with BP & QRisk on the same day in the last 12m | S5: =VLOOKUP(S1,'Control Panel'!$B$3:$D$132,3,FALSE) -> % Mental Health Register
A6: Practice Name | C6: =SUM(C7:C38) -> 256485 | D6: =SUM(D7:D38) -> 2165 | E6: =IFERROR(D6/C6,"N/A") -> 0.008 | F6: =SUM(F7:F38) -> 1910 | G6: =IFERROR(F6/D6,"N/A") -> 0.882 | H6: =SUM(H7:H38) -> 649 | I6: =IFERROR(H6/D6,"N/A") -> 0.3 | J6: =SUM(J7:J38) -> 21 | K6: =IFERROR(J6/D6,"N/A") -> 0.01 | L6: =SUM(L7:L38) -> 225 | M6: =IFERROR(L6/D6,"N/A") -> 0.104 | N6: =SUM(N7:N38) -> 501 | O6: =IFERROR(N6/D6,"N/A") -> 0.231 | P6: =SUM(P7:P38) -> 88 | Q6: =IFERROR(P6/N6,"N/A") -> 0.176 | R6: =SUM(R7:R38) -> 215 | S6: =IFERROR(R6/D6,"N/A") -> 0.099
A7: Church Elm Lane Medical Practice | B7: F82005 | C7: =SUMIFS(OFFSET(REL_D,,MATCH(C$1,IND,0)-2),REL_D,$D$3,OrgID,$B7) -> 6977 | D7: 55 | E7: =IFERROR(D7/C7,"N/A") -> 0.008 | F7: =SUMIFS(OFFSET(REL_D,,MATCH(F$1,IND,0)-2),REL_D,$D$3,OrgID,$B7) -> 48 | G7: =IFERROR(F7/$D7,"N/A") -> 0.873 | H7: =SUMIFS(OFFSET(REL_D,,MATCH(H$1,IND,0)-2),REL_D,$D$3,OrgID,$B7) -> 18 | I7: =IFERROR(H7/$D7,"N/A") -> 0.327 | J7: =SUMIFS(OFFSET(REL_D,,MATCH(J$1,IND,0)-2),REL_D,$D$3,OrgID,$B7) -> 0 | K7: =IFERROR(J7/$D7,"N/A") -> 0 | L7: =SUMIFS(OFFSET(REL_D,,MATCH(L$1,IND,0)-2),REL_D,$D$3,OrgID,$B7) -> 4 | M7: =IFERROR(L7/$D7,"N/A") -> 0.073 | N7: =SUMIFS(OFFSET(REL_D,,MATCH(N$1,IND,0)-2),REL_D,$D$3,OrgID,$B7) -> 18 | O7: =IFERROR(N7/$D7,"N/A") -> 0.327 | P7: =SUMIFS(OFFSET(REL_D,,MATCH(P$1,IND,0)-2),REL_D,$D$3,OrgID,$B7) -> 0 | Q7: =IFERROR(P7/$N7,"N/A") -> 0 | R7: =SUMIFS(OFFSET(REL_D,,MATCH(R$1,IND,0)-2),REL_D,$D$3,OrgID,$B7) -> 3 | S7: =IFERROR(R7/$D7,"N/A") -> 0.055
A8: Broad Street Medical Centre | B8: Y01719 | C8: 8589 | D8: 68 | E8: 0.008 | F8: 61 | G8: 0.897 | H8: 26 | I8: 0.382 | J8: 1 | K8: 0.015 | L8: 5 | M8: 0.074 | N8: 7 | O8: 0.103 | P8: 4 | Q8: 0.571 | R8: 7 | S8: 0.103
A9: Porters Avenue Doctors Surgery | B9: Y02575 | C9: 21262 | D9: 132 | E9: 0.006 | F9: 116 | G9: 0.879 | H9: 31 | I9: 0.235 | J9: 0 | K9: 0 | L9: 17 | M9: 0.129 | N9: 24 | O9: 0.182 | P9: 6 | Q9: 0.25 | R9: 17 | S9: 0.129
A10: First Avenue Surgery | B10: F82003 | C10: 5854 | D10: 52 | E10: 0.009 | F10: 45 | G10: 0.865 | H10: 14 | I10: 0.269 | J10: 0 | K10: 0 | L10: 5 | M10: 0.096 | N10: 8 | O10: 0.154 | P10: 1 | Q10: 0.125 | R10: 7 | S10: 0.135
A11: Hedgemans Surgery | B11: F82015 | C11: 5283 | D11: 60 | E11: 0.011 | F11: 51 | G11: 0.85 | H11: 17 | I11: 0.283 | J11: 0 | K11: 0 | L11: 9 | M11: 0.15 | N11: 26 | O11: 0.433 | P11: 6 | Q11: 0.231 | R11: 9 | S11: 0.15
A12: St Albans Surgery | B12: F82017 | C12: 8711 | D12: 70 | E12: 0.008 | F12: 59 | G12: 0.843 | H12: 28 | I12: 0.4 | J12: 1 | K12: 0.014 | L12: 6 | M12: 0.086 | N12: 8 | O12: 0.114 | P12: 2 | Q12: 0.25 | R12: 8 | S12: 0.114
A13: Heathway Medical Centre | B13: F82634 | C13: 6272 | D13: 33 | E13: 0.005 | F13: 31 | G13: 0.939 | H13: 8 | I13: 0.242 | J13: 0 | K13: 0 | L13: 3 | M13: 0.091 | N13: 8 | O13: 0.242 | P13: 2 | Q13: 0.25 | R13: 2 | S13: 0.061
A14: Dr Alkaisy Surgery | B14: F82678 | C14: 5104 | D14: 48 | E14: 0.009 | F14: 43 | G14: 0.896 | H14: 16 | I14: 0.333 | J14: 0 | K14: 0 | L14: 7 | M14: 0.146 | N14: 7 | O14: 0.146 | P14: 2 | Q14: 0.286 | R14: 6 | S14: 0.125
A15: Parkview Medical Practice | B15: F82679 | C15: 5753 | D15: 49 | E15: 0.009 | F15: 42 | G15: 0.857 | H15: 15 | I15: 0.306 | J15: 0 | K15: 0 | L15: 3 | M15: 0.061 | N15: 5 | O15: 0.102 | P15: 2 | Q15: 0.4 | R15: 0 | S15: 0
A16: Victoria Medical Centre | B16: F82034 | C16: 6330 | D16: 41 | E16: 0.006 | F16: 35 | G16: 0.854 | H16: 9 | I16: 0.22 | J16: 0 | K16: 0 | L16: 4 | M16: 0.098 | N16: 15 | O16: 0.366 | P16: 1 | Q16: 0.067 | R16: 10 | S16: 0.244
A17: Aurora Medcare | B17: F82042 | C17: 19977 | D17: 161 | E17: 0.008 | F17: 146 | G17: 0.907 | H17: 39 | I17: 0.242 | J17: 0 | K17: 0 | L17: 14 | M17: 0.087 | N17: 42 | O17: 0.261 | P17: 3 | Q17: 0.071 | R17: 13 | S17: 0.081
A18: Abbey Medical centre | B18: F82625 | C18: 7608 | D18: 86 | E18: 0.011 | F18: 81 | G18: 0.942 | H18: 25 | I18: 0.291 | J18: 0 | K18: 0 | L18: 6 | M18: 0.07 | N18: 20 | O18: 0.233 | P18: 4 | Q18: 0.2 | R18: 12 | S18: 0.14
A19: Shifa Medical Practice | B19: Y01280 | C19: 2418 | D19: 13 | E19: 0.005 | F19: 12 | G19: 0.923 | H19: 4 | I19: 0.308 | J19: 0 | K19: 0 | L19: 0 | M19: 0 | N19: 0 | O19: 0 | P19: 0 | Q19: =IFERROR(P19/$N19,"0.0%") -> 0.0% | R19: 0 | S19: 0
A20: Halbutt Street Surgery | B20: F82001 | C20: 5905 | D20: 48 | E20: 0.008 | F20: 43 | G20: 0.896 | H20: 20 | I20: 0.417 | J20: 0 | K20: 0 | L20: 5 | M20: 0.104 | N20: 11 | O20: 0.229 | P20: 2 | Q20: =IFERROR(P20/$N20,"0.0%") -> 0.182 | R20: 4 | S20: 0.083
A21: Barking Medical Group Practice | B21: F82018 | C21: 11536 | D21: 96 | E21: 0.008 | F21: 88 | G21: 0.917 | H21: 26 | I21: 0.271 | J21: 0 | K21: 0 | L21: 5 | M21: 0.052 | N21: 6 | O21: 0.063 | P21: 2 | Q21: 0.333 | R21: 5 | S21: 0.052
A22: John Smith House | B22: F82040 | C22: 3850 | D22: 33 | E22: 0.009 | F22: 31 | G22: 0.939 | H22: 12 | I22: 0.364 | J22: 0 | K22: 0 | L22: 2 | M22: 0.061 | N22: 13 | O22: 0.394 | P22: 3 | Q22: 0.231 | R22: 8 | S22: 0.242
A23: The White House | B23: F82612 | C23: 11832 | D23: 104 | E23: 0.009 | F23: 94 | G23: 0.904 | H23: 25 | I23: 0.24 | J23: 0 | K23: 0 | L23: 6 | M23: 0.058 | N23: 12 | O23: 0.115 | P23: 0 | Q23: 0 | R23: 5 | S23: 0.048
A24: Dr Gupta & Partner | B24: F82647 | C24: =SUMIFS(OFFSET(REL_D,,MATCH(C$1,IND,0)-2),REL_D,$D$3,OrgID,$B24) -> 4793 | D24: 34 | E24: 0.007 | F24: 32 | G24: 0.941 | H24: 9 | I24: 0.265 | J24: 0 | K24: 0 | L24: 3 | M24: 0.088 | N24: 12 | O24: 0.353 | P24: 3 | Q24: 0.25 | R24: 10 | S24: 0.294
A25: Ripple Road Medical Centre | B25: F82650 | C25: 9920 | D25: 66 | E25: 0.007 | F25: 59 | G25: 0.894 | H25: 17 | I25: 0.258 | J25: 0 | K25: 0 | L25: 5 | M25: 0.076 | N25: 13 | O25: 0.197 | P25: 1 | Q25: 0.077 | R25: 4 | S25: 0.061
A26: Highgrove Surgery | B26: F82680 | C26: 11490 | D26: 140 | E26: 0.012 | F26: 135 | G26: 0.964 | H26: 55 | I26: 0.393 | J26: 15 | K26: 0.107 | L26: 34 | M26: 0.243 | N26: 66 | O26: 0.471 | P26: 12 | Q26: 0.182 | R26: 8 | S26: 0.057
A27: Faircross Health Centre | B27: F82027 | C27: 2140 | D27: 15 | E27: 0.007 | F27: 13 | G27: 0.867 | H27: 4 | I27: 0.267 | J27: 0 | K27: 0 | L27: 1 | M27: 0.067 | N27: 3 | O27: 0.2 | P27: 0 | Q27: 0 | R27: 1 | S27: 0.067
A28: Five Elms | B28: F82012 | C28: 4176 | D28: 27 | E28: 0.006 | F28: 26 | G28: 0.963 | H28: 12 | I28: 0.444 | J28: 0 | K28: 0 | L28: 6 | M28: 0.222 | N28: 6 | O28: 0.222 | P28: 1 | Q28: 0.167 | R28: 4 | S28: 0.148
A29: Julia Engwell Surgery | B29: F82025 | C29: 5879 | D29: 27 | E29: 0.005 | F29: 25 | G29: 0.926 | H29: 9 | I29: 0.333 | J29: 1 | K29: 0.037 | L29: 3 | M29: 0.111 | N29: 8 | O29: 0.296 | P29: 2 | Q29: 0.25 | R29: 5 | S29: 0.185
A30: Laburnum Health centre | B30: F82051 | C30: 11335 | D30: 141 | E30: 0.012 | F30: 111 | G30: 0.787 | H30: 46 | I30: 0.326 | J30: 0 | K30: 0 | L30: 8 | M30: 0.057 | N30: 15 | O30: 0.106 | P30: 2 | Q30: 0.133 | R30: 8 | S30: 0.057
A31: Gables Surgery | B31: F82642 | C31: 7116 | D31: 71 | E31: 0.01 | F31: 54 | G31: 0.761 | H31: 22 | I31: 0.31 | J31: 1 | K31: 0.014 | L31: 9 | M31: 0.127 | N31: 15 | O31: 0.211 | P31: 3 | Q31: 0.2 | R31: 6 | S31: 0.085
A32: Green Lane Surgery | B32: F82661 | C32: 4135 | D32: 23 | E32: 0.006 | F32: 23 | G32: 1 | H32: 6 | I32: 0.261 | J32: 0 | K32: 0 | L32: 3 | M32: 0.13 | N32: 6 | O32: 0.261 | P32: 1 | Q32: 0.167 | R32: 4 | S32: 0.174
A33: The Surgery | B33: F86040 | C33: 5816 | D33: 47 | E33: 0.008 | F33: 47 | G33: 1 | H33: 17 | I33: 0.362 | J33: 2 | K33: 0.043 | L33: 9 | M33: 0.191 | N33: 8 | O33: 0.17 | P33: 2 | Q33: 0.25 | R33: 8 | S33: 0.17
A34: The Oval Practice | B34: Y01795 | C34: 6917 | D34: 46 | E34: 0.007 | F34: 40 | G34: 0.87 | H34: 10 | I34: 0.217 | J34: 0 | K34: 0 | L34: 7 | M34: 0.152 | N34: 3 | O34: 0.065 | P34: 0 | Q34: 0 | R34: 1 | S34: 0.022
A35: Valence Medical Centre | B35: F82038 | C35: 5373 | D35: 33 | E35: 0.006 | F35: 29 | G35: 0.879 | H35: 14 | I35: 0.424 | J35: 0 | K35: 0 | L35: 2 | M35: 0.061 | N35: 4 | O35: 0.121 | P35: 1 | Q35: 0.25 | R35: 3 | S35: 0.091
A36: Marks Gate Medical Practice | B36: F82604 | C36: 5823 | D36: 39 | E36: 0.007 | F36: 36 | G36: 0.923 | H36: 14 | I36: 0.359 | J36: 0 | K36: 0 | L36: 6 | M36: 0.154 | N36: 12 | O36: 0.308 | P36: 2 | Q36: 0.167 | R36: 6 | S36: 0.154
A37: Tulasi Medical Centre | B37: F82660 | C37: 20614 | D37: 257 | E37: =IFERROR(D37/C37,"N/A") -> 0.012 | F37: 209 | G37: =IFERROR(F37/$D37,"N/A") -> 0.813 | H37: 69 | I37: =IFERROR(H37/$D37,"N/A") -> 0.268 | J37: 0 | K37: =IFERROR(J37/$D37,"N/A") -> 0 | L37: 22 | M37: =IFERROR(L37/$D37,"N/A") -> 0.086 | N37: 84 | O37: =IFERROR(N37/$D37,"N/A") -> 0.327 | P37: 17 | Q37: 0.202 | R37: 18 | S37: =IFERROR(R37/$D37,"N/A") -> 0.07
A38: Becontree Medical Centre | B38: F82677 | C38: 7697 | D38: 50 | E38: =IFERROR(D38/C38,"N/A") -> 0.006 | F38: 45 | G38: =IFERROR(F38/$D38,"N/A") -> 0.9 | H38: 12 | I38: =IFERROR(H38/$D38,"N/A") -> 0.24 | J38: 0 | K38: =IFERROR(J38/$D38,"N/A") -> 0 | L38: 6 | M38: =IFERROR(L38/$D38,"N/A") -> 0.12 | N38: 16 | O38: =IFERROR(N38/$D38,"N/A") -> 0.32 | P38: 1 | Q38: =IFERROR(P38/$N38,"N/A") -> 0.063 | R38: 13 | S38: =IFERROR(R38/$D38,"N/A") -> 0.26

Sheet CKD
C1: 01. Listsize | D1: =INDEX('Control Panel'!$B$125:$B$136,COLUMN(D1)-COLUMN($D$1)+1) -> LDP.08 CKD Register | E1: =INDEX('Control Panel'!$B$125:$B$136,COLUMN(E1)-COLUMN($D$1)+1) -> %LDP.08 CKD Register | F1: =INDEX('Control Panel'!$B$125:$B$136,COLUMN(F1)-COLUMN($D$1)+1) -> LDP.08.03 CKD and BP Recorded (last 12 m) | G1: =INDEX('Control Panel'!$B$125:$B$136,COLUMN(G1)-COLUMN($D$1)+1) -> %LDP.08.03 CKD and BP Recorded (last 12 m) | H1: =INDEX('Control Panel'!$B$125:$B$136,COLUMN(H1)-COLUMN($D$1)+1) -> LDP.08.01 CKD and BP less than 140/90 (last 12 m) | I1: =INDEX('Control Panel'!$B$125:$B$136,COLUMN(I1)-COLUMN($D$1)+1) -> %LDP.08.01 CKD and BP less than 140/90 (last 12 m) | J1: =INDEX('Control Panel'!$B$125:$B$136,COLUMN(J1)-COLUMN($D$1)+1) -> LDP.08.02 CKD Diagnosed (Last 6m) | K1: =INDEX('Control Panel'!$B$125:$B$136,COLUMN(K1)-COLUMN($D$1)+1) -> %LDP.08.02 CKD Diagnosed (Last 6m)
C2: Barking and Dagenham - Practice Clinical Trends (LDP) Report
B3: =VLOOKUP(C3,'Control Panel'!O16:P27,2,FALSE) -> 2024-04-01 | C3: March 2024 | D3: =VLOOKUP(C3,'Control Panel'!O16:P27,2,FALSE) -> 2024-04-01
B4: 2019-07-01 | C4: ='Control Panel'!B124 -> CKD
A5: Home | B5: 2019-10-01 | C5: =VLOOKUP(C1,'Control Panel'!$B$3:$C$132,2,FALSE) -> List Size | D5: =VLOOKUP(D1,'Control Panel'!$B$3:$D$132,3,FALSE) -> No. of patients on CKD register | E5: =VLOOKUP(E1,'Control Panel'!$B$3:$D$132,3,FALSE) -> % List Size | F5: =VLOOKUP(F1,'Control Panel'!$B$3:$D$132,3,FALSE) -> BP Recorded (last 12m) | G5: =VLOOKUP(G1,'Control Panel'!$B$3:$D$132,3,FALSE) -> % CKD register | H5: =VLOOKUP(H1,'Control Panel'!$B$3:$D$132,3,FALSE) -> BP < 140/90 | I5: =VLOOKUP(I1,'Control Panel'!$B$3:$D$132,3,FALSE) -> % CKD register | J5: =VLOOKUP(J1,'Control Panel'!$B$3:$D$132,3,FALSE) -> No of patients with new diagnosis of CKD (last 6m) | K5: =VLOOKUP(K1,'Control Panel'!$B$3:$D$132,3,FALSE) -> % CKD register
A6: Practice Name | C6: =SUM(C7:C38) -> 256485 | D6: =SUM(D7:D38) -> 5838 | E6: =IFERROR(D6/C6,"N/A") -> 0.023 | F6: =SUM(F7:F38) -> 5063 | G6: =IFERROR(F6/D6,"N/A") -> 0.867 | H6: =SUM(H7:H38) -> 3641 | I6: =IFERROR(H6/D6,"N/A") -> 0.624 | J6: =SUM(J7:J38) -> 434 | K6: =IFERROR(J6/D6,"N/A") -> 0.074
A7: Church Elm Lane Medical Practice | B7: F82005 | C7: =SUMIFS(OFFSET(REL_D,,MATCH(C$1,IND,0)-2),REL_D,$D$3,OrgID,$B7) -> 6977 | D7: 160 | E7: =IFERROR(D7/C7,"N/A") -> 0.023 | F7: =SUMIFS(OFFSET(REL_D,,MATCH(F$1,IND,0)-2),REL_D,$D$3,OrgID,$B7) -> 145 | G7: =IFERROR(F7/$D7,"N/A") -> 0.906 | H7: =SUMIFS(OFFSET(REL_D,,MATCH(H$1,IND,0)-2),REL_D,$D$3,OrgID,$B7) -> 108 | I7: =IFERROR(H7/$D7,"N/A") -> 0.675 | J7: =SUMIFS(OFFSET(REL_D,,MATCH(J$1,IND,0)-2),REL_D,$D$3,OrgID,$B7) -> 7 | K7: =IFERROR(J7/$D7,"N/A") -> 0.044
A8: Broad Street Medical Centre | B8: Y01719 | C8: 8589 | D8: 79 | E8: 0.009 | F8: 69 | G8: 0.873 | H8: 46 | I8: 0.582 | J8: 3 | K8: 0.038
A9: Porters Avenue Doctors Surgery | B9: Y02575 | C9: 21262 | D9: 313 | E9: 0.015 | F9: 233 | G9: 0.744 | H9: 185 | I9: 0.591 | J9: 7 | K9: 0.022
A10: First Avenue Surgery | B10: F82003 | C10: 5854 | D10: 39 | E10: 0.007 | F10: 32 | G10: 0.821 | H10: 24 | I10: 0.615 | J10: 6 | K10: 0.154
A11: Hedgemans Surgery | B11: F82015 | C11: 5283 | D11: 58 | E11: 0.011 | F11: 56 | G11: 0.966 | H11: 42 | I11: 0.724 | J11: 8 | K11: 0.138
A12: St Albans Surgery | B12: F82017 | C12: 8711 | D12: 246 | E12: 0.028 | F12: 217 | G12: 0.882 | H12: 164 | I12: 0.667 | J12: 9 | K12: 0.037
A13: Heathway Medical Centre | B13: F82634 | C13: 6272 | D13: 109 | E13: 0.017 | F13: 95 | G13: 0.872 | H13: 61 | I13: 0.56 | J13: 5 | K13: 0.046
A14: Dr Alkaisy Surgery | B14: F82678 | C14: 5104 | D14: 206 | E14: 0.04 | F14: 160 | G14: 0.777 | H14: 112 | I14: 0.544 | J14: 0 | K14: 0
A15: Parkview Medical Practice | B15: F82679 | C15: 5753 | D15: 98 | E15: 0.017 | F15: 86 | G15: 0.878 | H15: 63 | I15: 0.643 | J15: 2 | K15: 0.02
A16: Victoria Medical Centre | B16: F82034 | C16: 6330 | D16: 70 | E16: 0.011 | F16: 60 | G16: 0.857 | H16: 40 | I16: 0.571 | J16: 2 | K16: 0.029
A17: Aurora Medcare | B17: F82042 | C17: 19977 | D17: 352 | E17: 0.018 | F17: 310 | G17: 0.881 | H17: 222 | I17: 0.631 | J17: 53 | K17: 0.151
A18: Abbey Medical centre | B18: F82625 | C18: 7608 | D18: 177 | E18: 0.023 | F18: 167 | G18: 0.944 | H18: 136 | I18: 0.768 | J18: 12 | K18: 0.068
A19: Shifa Medical Practice | B19: Y01280 | C19: 2418 | D19: 38 | E19: 0.016 | F19: 38 | G19: 1 | H19: 36 | I19: 0.947 | J19: 1 | K19: 0.026
A20: Halbutt Street Surgery | B20: F82001 | C20: 5905 | D20: 150 | E20: 0.025 | F20: 134 | G20: 0.893 | H20: 95 | I20: 0.633 | J20: 10 | K20: 0.067
A21: Barking Medical Group Practice | B21: F82018 | C21: 11536 | D21: 300 | E21: 0.026 | F21: 267 | G21: 0.89 | H21: 197 | I21: 0.657 | J21: 36 | K21: 0.12
A22: John Smith House | B22: F82040 | C22: 3850 | D22: 68 | E22: 0.018 | F22: 59 | G22: 0.868 | H22: 52 | I22: 0.765 | J22: 19 | K22: 0.279
A23: The White House | B23: F82612 | C23: 11832 | D23: 191 | E23: 0.016 | F23: 173 | G23: 0.906 | H23: 120 | I23: 0.628 | J23: 9 | K23: 0.047
A24: Dr Gupta & Partner | B24: F82647 | C24: =SUMIFS(OFFSET(REL_D,,MATCH(C$1,IND,0)-2),REL_D,$D$3,OrgID,$B24) -> 4793 | D24: 132 | E24: 0.028 | F24: 116 | G24: 0.879 | H24: 82 | I24: 0.621 | J24: 1 | K24: 0.008
A25: Ripple Road Medical Centre | B25: F82650 | C25: 9920 | D25: 214 | E25: 0.022 | F25: 191 | G25: 0.893 | H25: 137 | I25: 0.64 | J25: 20 | K25: 0.093
A26: Highgrove Surgery | B26: F82680 | C26: 11490 | D26: 396 | E26: 0.034 | F26: 361 | G26: 0.912 | H26: 279 | I26: 0.705 | J26: 33 | K26: 0.083
A27: Faircross Health Centre | B27: F82027 | C27: 2140 | D27: 119 | E27: 0.056 | F27: 91 | G27: 0.765 | H27: 59 | I27: 0.496 | J27: 10 | K27: 0.084
A28: Five Elms | B28: F82012 | C28: 4176 | D28: 141 | E28: 0.034 | F28: 120 | G28: 0.851 | H28: 85 | I28: 0.603 | J28: 3 | K28: 0.021
A29: Julia Engwell Surgery | B29: F82025 | C29: 5879 | D29: 155 | E29: 0.026 | F29: 130 | G29: 0.839 | H29: 94 | I29: 0.606 | J29: 6 | K29: 0.039
A30: Laburnum Health centre | B30: F82051 | C30: 11335 | D30: 401 | E30: 0.035 | F30: 319 | G30: 0.796 | H30: 207 | I30: 0.516 | J30: 31 | K30: 0.077
A31: Gables Surgery | B31: F82642 | C31: 7116 | D31: 207 | E31: 0.029 | F31: 177 | G31: 0.855 | H31: 132 | I31: 0.638 | J31: 10 | K31: 0.048
A32: Green Lane Surgery | B32: F82661 | C32: 4135 | D32: 35 | E32: 0.008 | F32: 31 | G32: 0.886 | H32: 18 | I32: 0.514 | J32: 2 | K32: 0.057
A33: The Surgery | B33: F86040 | C33: 5816 | D33: 72 | E33: 0.012 | F33: 68 | G33: 0.944 | H33: 50 | I33: 0.694 | J33: 4 | K33: 0.056
A34: The Oval Practice | B34: Y01795 | C34: 6917 | D34: 223 | E34: 0.032 | F34: 182 | G34: 0.816 | H34: 132 | I34: 0.592 | J34: 54 | K34: 0.242
A35: Valence Medical Centre | B35: F82038 | C35: 5373 | D35: 89 | E35: 0.017 | F35: 74 | G35: 0.831 | H35: 46 | I35: 0.517 | J35: 3 | K35: 0.034
A36: Marks Gate Medical Practice | B36: F82604 | C36: 5823 | D36: 137 | E36: 0.024 | F36: 122 | G36: 0.891 | H36: 99 | I36: 0.723 | J36: 11 | K36: 0.08
A37: Tulasi Medical Centre | B37: F82660 | C37: 20614 | D37: 688 | E37: =IFERROR(D37/C37,"N/A") -> 0.033 | F37: 612 | G37: =IFERROR(F37/$D37,"N/A") -> 0.89 | H37: 396 | I37: =IFERROR(H37/$D37,"N/A") -> 0.576 | J37: 47 | K37: =IFERROR(J37/$D37,"N/A") -> 0.068
A38: Becontree Medical Centre | B38: F82677 | C38: 7697 | D38: 175 | E38: =IFERROR(D38/C38,"N/A") -> 0.023 | F38: 168 | G38: =IFERROR(F38/$D38,"N/A") -> 0.96 | H38: 122 | I38: =IFERROR(H38/$D38,"N/A") -> 0.697 | J38: 10 | K38: =IFERROR(J38/$D38,"N/A") -> 0.057

Sheet COPD
C1: 01. Listsize | D1: LDP.09 COPD Register | E1: ="%"&D1 -> %LDP.09 COPD Register | F1: LDP.09.01 Patients with severe or very severe COPD (FEV1<50) | G1: ="%"&F1 -> %LDP.09.01 Patients with severe or very severe COPD (FEV1<50) | H1: LDP.09.02 Patients with smoking status recorded (last 12m) or never smoked | I1: ="%"&H1 -> %LDP.09.02 Patients with smoking status recorded (last 12m) or never smoked | J1: LDP.09.03 COPD patients recorded as a Smoker | K1: ="%"&J1 -> %LDP.09.03 COPD patients recorded as a Smoker | L1: LDP.09.04 COPD Patients who are current smokers & referred to the Stop Smoking C | M1: ="%"&L1 -> %LDP.09.04 COPD Patients who are current smokers & referred to the Stop Smoking C | N1: LDP.09.05 No of COPD with flu vaccination (From August 2018) | O1: ="%"&N1 -> %LDP.09.05 No of COPD with flu vaccination (From August 2018) | P1: LDP.09.06 No of COPD with pneumococcal vaccination ever | Q1: ="%"&P1 -> %LDP.09.06 No of COPD with pneumococcal vaccination ever | R1: LDP.09.07 No of COPD patients referred to pulmonary rehab ever | S1: ="%"&R1 -> %LDP.09.07 No of COPD patients referred to pulmonary rehab ever
C2: Barking and Dagenham - Practice Clinical Trends (LDP) Report
C3: March 2024 | D3: =VLOOKUP(C3,'Control Panel'!O16:P27,2,FALSE) -> 2024-04-01
C4: ='Control Panel'!B133 -> COPD | D4: 1 | E4: 2 | F4: 3 | G4: 4 | H4: 5 | I4: 6 | J4: 7 | K4: 8 | L4: 9 | M4: 10 | N4: 11 | O4: 12 | P4: 13 | Q4: 14 | R4: 15 | S4: 16
A5: Home | C5: List Size | D5: No. of patients on COPD register | E5: % List Size | F5: No of patients with severe or very severe COPD (FEV1<50) | G5: % COPD register | H5: No. of COPD Patients with smoking status recorded (last 12m) or never smoked | I5: % COPD | J5: No. of COPD patients recorded as a Smoker | K5: % COPD | L5: No. of COPD Patients who are current smokers & referred to the Stop Smoking Clinic (12m) | M5: % of current COPD smokers | N5: No of COPD with flu vaccination (From August 2023) | O5: % of COPD register | P5: No of COPD with pneumococcal vaccination ever | Q5: % of COPD register | R5: No of COPD patients referred to pulmonary rehab ever | S5: % of COPD register
A6: Practice Name | C6: =SUM(C7:C38) -> 256485 | D6: =SUM(D7:D38) -> 3376 | E6: =IFERROR(D6/C6,"N/A") -> 0.013 | F6: =SUM(F7:F38) -> 497 | G6: =IFERROR(F6/D6,"N/A") -> 0.147 | H6: =SUM(H7:H38) -> 3147 | I6: =IFERROR(H6/D6,"N/A") -> 0.932 | J6: =SUM(J7:J38) -> 1224 | K6: =IFERROR(J6/D6,"N/A") -> 0.363 | L6: =SUM(L7:L38) -> 54 | M6: =IFERROR(L6/J6,"N/A") -> 0.044 | N6: =SUM(N7:N38) -> 2262 | O6: =IFERROR(N6/D6,"N/A") -> 0.67 | P6: =SUM(P7:P38) -> 2544 | Q6: =IFERROR(P6/D6,"N/A") -> 0.754 | R6: =SUM(R7:R38) -> 2222 | S6: =IFERROR(R6/D6,"N/A") -> 0.658
A7: Church Elm Lane Medical Practice | B7: F82005 | C7: =SUMIFS(OFFSET(REL_D,,MATCH(C$1,IND,0)-2),REL_D,$D$3,OrgID,$B7) -> 6977 | D7: 118 | E7: =IFERROR(D7/C7,"N/A") -> 0.017 | F7: =SUMIFS(OFFSET(REL_D,,MATCH(F$1,IND,0)-2),REL_D,$D$3,OrgID,$B7) -> 27 | G7: =IFERROR(F7/$D7,"N/A") -> 0.229 | H7: =SUMIFS(OFFSET(REL_D,,MATCH(H$1,IND,0)-2),REL_D,$D$3,OrgID,$B7) -> 113 | I7: =IFERROR(H7/$D7,"N/A") -> 0.958 | J7: =SUMIFS(OFFSET(REL_D,,MATCH(J$1,IND,0)-2),REL_D,$D$3,OrgID,$B7) -> 41 | K7: =IFERROR(J7/$D7,"N/A") -> 0.347 | L7: =SUMIFS(OFFSET(REL_D,,MATCH(L$1,IND,0)-2),REL_D,$D$3,OrgID,$B7) -> 3 | M7: =IFERROR(L7/$J7,"N/A") -> 0.073 | N7: =SUMIFS(OFFSET(REL_D,,MATCH(N$1,IND,0)-2),REL_D,$D$3,OrgID,$B7) -> 88 | O7: =IFERROR(N7/$D7,"N/A") -> 0.746 | P7: =SUMIFS(OFFSET(REL_D,,MATCH(P$1,IND,0)-2),REL_D,$D$3,OrgID,$B7) -> 102 | Q7: =IFERROR(P7/$D7,"N/A") -> 0.864 | R7: =SUMIFS(OFFSET(REL_D,,MATCH(R$1,IND,0)-2),REL_D,$D$3,OrgID,$B7) -> 76 | S7: =IFERROR(R7/$D7,"N/A") -> 0.644
A8: Broad Street Medical Centre | B8: Y01719 | C8: 8589 | D8: 82 | E8: 0.01 | F8: 7 | G8: 0.085 | H8: 81 | I8: 0.988 | J8: 38 | K8: 0.463 | L8: 1 | M8: 0.026 | N8: 54 | O8: =IFERROR(N8/$D8,"N/A") -> 0.659 | P8: 51 | Q8: =IFERROR(P8/$D8,"N/A") -> 0.622 | R8: 59 | S8: =IFERROR(R8/$D8,"N/A") -> 0.72
A9: Porters Avenue Doctors Surgery | B9: Y02575 | C9: 21262 | D9: 100 | E9: 0.005 | F9: 12 | G9: 0.12 | H9: 91 | I9: 0.91 | J9: 37 | K9: 0.37 | L9: 5 | M9: 0.135 | N9: 61 | O9: =IFERROR(N9/$D9,"N/A") -> 0.61 | P9: 67 | Q9: =IFERROR(P9/$D9,"N/A") -> 0.67 | R9: 47 | S9: =IFERROR(R9/$D9,"N/A") -> 0.47
A10: First Avenue Surgery | B10: F82003 | C10: 5854 | D10: 78 | E10: 0.013 | F10: 5 | G10: 0.064 | H10: 77 | I10: 0.987 | J10: 33 | K10: 0.423 | L10: 0 | M10: 0 | N10: 57 | O10: =IFERROR(N10/$D10,"N/A") -> 0.731 | P10: 63 | Q10: =IFERROR(P10/$D10,"N/A") -> 0.808 | R10: 71 | S10: =IFERROR(R10/$D10,"N/A") -> 0.91
A11: Hedgemans Surgery | B11: F82015 | C11: 5283 | D11: 97 | E11: 0.018 | F11: 20 | G11: 0.206 | H11: 95 | I11: 0.979 | J11: 38 | K11: 0.392 | L11: 0 | M11: 0 | N11: 75 | O11: =IFERROR(N11/$D11,"N/A") -> 0.773 | P11: 88 | Q11: =IFERROR(P11/$D11,"N/A") -> 0.907 | R11: 82 | S11: =IFERROR(R11/$D11,"N/A") -> 0.845
A12: St Albans Surgery | B12: F82017 | C12: 8711 | D12: 232 | E12: 0.027 | F12: 21 | G12: 0.091 | H12: 220 | I12: 0.948 | J12: 90 | K12: 0.388 | L12: 3 | M12: 0.033 | N12: 160 | O12: =IFERROR(N12/$D12,"N/A") -> 0.69 | P12: 198 | Q12: =IFERROR(P12/$D12,"N/A") -> 0.853 | R12: 155 | S12: =IFERROR(R12/$D12,"N/A") -> 0.668
A13: Heathway Medical Centre | B13: F82634 | C13: 6272 | D13: 78 | E13: 0.012 | F13: 17 | G13: 0.218 | H13: 77 | I13: 0.987 | J13: 30 | K13: 0.385 | L13: 0 | M13: 0 | N13: 52 | O13: =IFERROR(N13/$D13,"N/A") -> 0.667 | P13: 52 | Q13: =IFERROR(P13/$D13,"N/A") -> 0.667 | R13: 31 | S13: =IFERROR(R13/$D13,"N/A") -> 0.397
A14: Dr Alkaisy Surgery | B14: F82678 | C14: 5104 | D14: 123 | E14: 0.024 | F14: 11 | G14: 0.089 | H14: 107 | I14: 0.87 | J14: 36 | K14: 0.293 | L14: 0 | M14: 0 | N14: 86 | O14: =IFERROR(N14/$D14,"N/A") -> 0.699 | P14: 105 | Q14: =IFERROR(P14/$D14,"N/A") -> 0.854 | R14: 85 | S14: =IFERROR(R14/$D14,"N/A") -> 0.691
A15: Parkview Medical Practice | B15: F82679 | C15: 5753 | D15: 71 | E15: 0.012 | F15: 10 | G15: 0.141 | H15: 71 | I15: 1 | J15: 22 | K15: 0.31 | L15: 0 | M15: 0 | N15: 52 | O15: =IFERROR(N15/$D15,"N/A") -> 0.732 | P15: 63 | Q15: =IFERROR(P15/$D15,"N/A") -> 0.887 | R15: 57 | S15: =IFERROR(R15/$D15,"N/A") -> 0.803
A16: Victoria Medical Centre | B16: F82034 | C16: 6330 | D16: 44 | E16: 0.007 | F16: 3 | G16: 0.068 | H16: 43 | I16: 0.977 | J16: 17 | K16: 0.386 | L16: 0 | M16: 0 | N16: 29 | O16: =IFERROR(N16/$D16,"N/A") -> 0.659 | P16: 28 | Q16: =IFERROR(P16/$D16,"N/A") -> 0.636 | R16: 20 | S16: =IFERROR(R16/$D16,"N/A") -> 0.455
A17: Aurora Medcare | B17: F82042 | C17: 19977 | D17: 190 | E17: 0.01 | F17: 19 | G17: 0.1 | H17: 169 | I17: 0.889 | J17: 71 | K17: 0.374 | L17: 0 | M17: 0 | N17: 122 | O17: =IFERROR(N17/$D17,"N/A") -> 0.642 | P17: 157 | Q17: =IFERROR(P17/$D17,"N/A") -> 0.826 | R17: 173 | S17: =IFERROR(R17/$D17,"N/A") -> 0.911
A18: Abbey Medical centre | B18: F82625 | C18: 7608 | D18: 62 | E18: 0.008 | F18: 7 | G18: 0.113 | H18: 59 | I18: 0.952 | J18: 30 | K18: 0.484 | L18: 0 | M18: 0 | N18: 46 | O18: =IFERROR(N18/$D18,"N/A") -> 0.742 | P18: 52 | Q18: =IFERROR(P18/$D18,"N/A") -> 0.839 | R18: 32 | S18: =IFERROR(R18/$D18,"N/A") -> 0.516
A19: Shifa Medical Practice | B19: Y01280 | C19: 2418 | D19: 7 | E19: 0.003 | F19: 0 | G19: 0 | H19: 7 | I19: 1 | J19: 3 | K19: 0.429 | L19: 0 | M19: 0 | N19: 7 | O19: =IFERROR(N19/$D19,"N/A") -> 1 | P19: 6 | Q19: =IFERROR(P19/$D19,"N/A") -> 0.857 | R19: 7 | S19: =IFERROR(R19/$D19,"N/A") -> 1
A20: Halbutt Street Surgery | B20: F82001 | C20: 5905 | D20: 70 | E20: 0.012 | F20: 21 | G20: 0.3 | H20: 68 | I20: 0.971 | J20: 30 | K20: 0.429 | L20: 0 | M20: 0 | N20: 40 | O20: =IFERROR(N20/$D20,"N/A") -> 0.571 | P20: 54 | Q20: =IFERROR(P20/$D20,"N/A") -> 0.771 | R20: 63 | S20: =IFERROR(R20/$D20,"N/A") -> 0.9
A21: Barking Medical Group Practice | B21: F82018 | C21: 11536 | D21: 80 | E21: 0.007 | F21: 17 | G21: 0.213 | H21: 72 | I21: 0.9 | J21: 21 | K21: 0.263 | L21: 0 | M21: 0 | N21: 58 | O21: =IFERROR(N21/$D21,"N/A") -> 0.725 | P21: 71 | Q21: =IFERROR(P21/$D21,"N/A") -> 0.888 | R21: 55 | S21: =IFERROR(R21/$D21,"N/A") -> 0.688
A22: John Smith House | B22: F82040 | C22: 3850 | D22: 42 | E22: 0.011 | F22: 6 | G22: 0.143 | H22: 41 | I22: 0.976 | J22: 21 | K22: 0.5 | L22: 0 | M22: 0 | N22: 29 | O22: =IFERROR(N22/$D22,"N/A") -> 0.69 | P22: 28 | Q22: =IFERROR(P22/$D22,"N/A") -> 0.667 | R22: 22 | S22: =IFERROR(R22/$D22,"N/A") -> 0.524
A23: The White House | B23: F82612 | C23: 11832 | D23: 115 | E23: 0.01 | F23: 6 | G23: 0.052 | H23: 105 | I23: 0.913 | J23: 39 | K23: 0.339 | L23: 1 | M23: 0.026 | N23: 74 | O23: =IFERROR(N23/$D23,"N/A") -> 0.643 | P23: 61 | Q23: =IFERROR(P23/$D23,"N/A") -> 0.53 | R23: 51 | S23: =IFERROR(R23/$D23,"N/A") -> 0.443
A24: Dr Gupta & Partner | B24: F82647 | C24: =SUMIFS(OFFSET(REL_D,,MATCH(C$1,IND,0)-2),REL_D,$D$3,OrgID,$B24) -> 4793 | D24: 28 | E24: 0.006 | F24: 8 | G24: 0.286 | H24: 26 | I24: 0.929 | J24: 6 | K24: 0.214 | L24: 0 | M24: 0 | N24: 17 | O24: =IFERROR(N24/$D24,"N/A") -> 0.607 | P24: 26 | Q24: =IFERROR(P24/$D24,"N/A") -> 0.929 | R24: 6 | S24: =IFERROR(R24/$D24,"N/A") -> 0.214
A25: Ripple Road Medical Centre | B25: F82650 | C25: 9920 | D25: 91 | E25: 0.009 | F25: 11 | G25: 0.121 | H25: 87 | I25: 0.956 | J25: 41 | K25: 0.451 | L25: 1 | M25: 0.024 | N25: 64 | O25: =IFERROR(N25/$D25,"N/A") -> 0.703 | P25: 74 | Q25: =IFERROR(P25/$D25,"N/A") -> 0.813 | R25: 67 | S25: =IFERROR(R25/$D25,"N/A") -> 0.736
A26: Highgrove Surgery | B26: F82680 | C26: 11490 | D26: 251 | E26: 0.022 | F26: 62 | G26: 0.247 | H26: 233 | I26: 0.928 | J26: 84 | K26: 0.335 | L26: 24 | M26: 0.286 | N26: 179 | O26: =IFERROR(N26/$D26,"N/A") -> 0.713 | P26: 110 | Q26: =IFERROR(P26/$D26,"N/A") -> 0.438 | R26: 184 | S26: =IFERROR(R26/$D26,"N/A") -> 0.733
A27: Faircross Health Centre | B27: F82027 | C27: 2140 | D27: 21 | E27: 0.01 | F27: 7 | G27: 0.333 | H27: 21 | I27: 1 | J27: 6 | K27: 0.286 | L27: 0 | M27: 0 | N27: 17 | O27: =IFERROR(N27/$D27,"N/A") -> 0.81 | P27: 19 | Q27: =IFERROR(P27/$D27,"N/A") -> 0.905 | R27: 19 | S27: =IFERROR(R27/$D27,"N/A") -> 0.905
A28: Five Elms | B28: F82012 | C28: 4176 | D28: 100 | E28: 0.024 | F28: 19 | G28: 0.19 | H28: 97 | I28: 0.97 | J28: 42 | K28: 0.42 | L28: 0 | M28: 0 | N28: 62 | O28: =IFERROR(N28/$D28,"N/A") -> 0.62 | P28: 79 | Q28: =IFERROR(P28/$D28,"N/A") -> 0.79 | R28: 34 | S28: =IFERROR(R28/$D28,"N/A") -> 0.34
A29: Julia Engwell Surgery | B29: F82025 | C29: 5879 | D29: 87 | E29: 0.015 | F29: 11 | G29: 0.126 | H29: 82 | I29: 0.943 | J29: 26 | K29: 0.299 | L29: 0 | M29: 0 | N29: 66 | O29: =IFERROR(N29/$D29,"N/A") -> 0.759 | P29: 77 | Q29: =IFERROR(P29/$D29,"N/A") -> 0.885 | R29: 58 | S29: =IFERROR(R29/$D29,"N/A") -> 0.667
A30: Laburnum Health centre | B30: F82051 | C30: 11335 | D30: 180 | E30: 0.016 | F30: 32 | G30: 0.178 | H30: 157 | I30: 0.872 | J30: 67 | K30: 0.372 | L30: 0 | M30: 0 | N30: 100 | O30: =IFERROR(N30/$D30,"N/A") -> 0.556 | P30: 131 | Q30: =IFERROR(P30/$D30,"N/A") -> 0.728 | R30: 120 | S30: =IFERROR(R30/$D30,"N/A") -> 0.667
A31: Gables Surgery | B31: F82642 | C31: 7116 | D31: 147 | E31: 0.021 | F31: 32 | G31: 0.218 | H31: 114 | I31: 0.776 | J31: 49 | K31: 0.333 | L31: 1 | M31: 0.02 | N31: 88 | O31: =IFERROR(N31/$D31,"N/A") -> 0.599 | P31: 106 | Q31: =IFERROR(P31/$D31,"N/A") -> 0.721 | R31: 63 | S31: =IFERROR(R31/$D31,"N/A") -> 0.429
A32: Green Lane Surgery | B32: F82661 | C32: 4135 | D32: 26 | E32: 0.006 | F32: 5 | G32: 0.192 | H32: 26 | I32: 1 | J32: 7 | K32: 0.269 | L32: 0 | M32: 0 | N32: 18 | O32: =IFERROR(N32/$D32,"N/A") -> 0.692 | P32: 11 | Q32: =IFERROR(P32/$D32,"N/A") -> 0.423 | R32: 17 | S32: =IFERROR(R32/$D32,"N/A") -> 0.654
A33: The Surgery | B33: F86040 | C33: 5816 | D33: 58 | E33: 0.01 | F33: 1 | G33: 0.017 | H33: 56 | I33: 0.966 | J33: 28 | K33: 0.483 | L33: 6 | M33: 0.214 | N33: 46 | O33: =IFERROR(N33/$D33,"N/A") -> 0.793 | P33: 50 | Q33: =IFERROR(P33/$D33,"N/A") -> 0.862 | R33: 31 | S33: =IFERROR(R33/$D33,"N/A") -> 0.534
A34: The Oval Practice | B34: Y01795 | C34: 6917 | D34: 82 | E34: 0.012 | F34: 9 | G34: 0.11 | H34: 79 | I34: 0.963 | J34: 33 | K34: 0.402 | L34: 1 | M34: 0.03 | N34: 55 | O34: =IFERROR(N34/$D34,"N/A") -> 0.671 | P34: 53 | Q34: =IFERROR(P34/$D34,"N/A") -> 0.646 | R34: 58 | S34: =IFERROR(R34/$D34,"N/A") -> 0.707
A35: Valence Medical Centre | B35: F82038 | C35: 5373 | D35: 89 | E35: 0.017 | F35: 3 | G35: 0.034 | H35: 79 | I35: 0.888 | J35: 19 | K35: 0.213 | L35: 1 | M35: 0.053 | N35: 49 | O35: =IFERROR(N35/$D35,"N/A") -> 0.551 | P35: 65 | Q35: =IFERROR(P35/$D35,"N/A") -> 0.73 | R35: 47 | S35: =IFERROR(R35/$D35,"N/A") -> 0.528
A36: Marks Gate Medical Practice | B36: F82604 | C36: 5823 | D36: 84 | E36: 0.014 | F36: 10 | G36: 0.119 | H36: 82 | I36: 0.976 | J36: 28 | K36: 0.333 | L36: 2 | M36: 0.071 | N36: 55 | O36: =IFERROR(N36/$D36,"N/A") -> 0.655 | P36: 67 | Q36: =IFERROR(P36/$D36,"N/A") -> 0.798 | R36: 50 | S36: =IFERROR(R36/$D36,"N/A") -> 0.595
A37: Tulasi Medical Centre | B37: F82660 | C37: 20614 | D37: 424 | E37: 0.021 | F37: 57 | G37: 0.134 | H37: 394 | I37: 0.929 | J37: 153 | K37: 0.361 | L37: 2 | M37: 0.013 | N37: 270 | O37: =IFERROR(N37/$D37,"N/A") -> 0.637 | P37: 328 | Q37: =IFERROR(P37/$D37,"N/A") -> 0.774 | R37: 288 | S37: =IFERROR(R37/$D37,"N/A") -> 0.679
A38: Becontree Medical Centre | B38: F82677 | C38: 7697 | D38: 119 | E38: =IFERROR(D38/C38,"N/A") -> 0.015 | F38: 21 | G38: =IFERROR(F38/$D38,"N/A") -> 0.176 | H38: 118 | I38: =IFERROR(H38/$D38,"N/A") -> 0.992 | J38: 38 | K38: =IFERROR(J38/$D38,"N/A") -> 0.319 | L38: 3 | M38: =IFERROR(L38/$J38,"N/A") -> 0.079 | N38: 86 | O38: =IFERROR(N38/$D38,"N/A") -> 0.723 | P38: 102 | Q38: =IFERROR(P38/$D38,"N/A") -> 0.857 | R38: 94 | S38: =IFERROR(R38/$D38,"N/A") -> 0.79

Sheet Practice list (hidden)
A1: Status | B1: Practice ID | C1: Practice | D1: Locality ID | E1: Locality | F1: SubLocality ID | G1: SubLocality | H1: PCN/Network | I1: PCN code | J1: Clinical System | K1: Address 1 | L1: Address 2 | M1: Postcode | N1: Grid Reference | O1: X (easting) | P1: Y (northing) | Q1: Latitude | R1: Longitude
A2: Active | B2: F82005 | C2: Church Elm Lane Medical Practice | D2: BK | E2: Barking and Dagenham | F2: BK-1 | G2: East | H2: Network East | I2: U86967 | J2: EMISweb | K2: Church Elm Lane | L2: Dagenham | M2: RM10 9RR | N2: TQ 49667 84556 | O2: 549667 | P2: 184556 | Q2: 51.540066 | R2: 0.15673988
A3: Active | B3: Y01719 | C3: Broad Street Medical Centre | D3: BK | E3: Barking and Dagenham | F3: BK-1 | G3: East | H3: Network East | I3: U86968 | J3: EMISweb | K3: Broad Street Resource Centre | L3: Dagenham | M3: RM10 9HU | N3: TQ 49367 83962 | O3: 549367 | P3: 183962 | Q3: 51.534808 | R3: 0.15216548
A4: Active | B4: Y02575 | C4: Porters Avenue Doctors Surgery | D4: BK | E4: Barking and Dagenham | F4: BK-1 | G4: East | H4: Network East | I4: U86969 | J4: EMISweb | K4: 234 Porters Avenue | L4: Dagenham | M4: RM8 2EQ | N4: TQ 47283 85077 | O4: 547283 | P4: 185077 | Q4: 51.545373 | R4: 0.12260706
A5: Active | B5: F82003 | C5: First Avenue Surgery | D5: BK | E5: Barking and Dagenham | F5: BK-2 | G5: East One | H5: Network East One | I5: U27362 | J5: EMISweb | K5: 2 First Avenue | L5: Dagenham | M5: RM10 9AT | N5: TQ 49762 83388 | O5: 549762 | P5: 183388 | Q5: 51.529546 | R5: 0.15761231
A6: Active | B6: F82015 | C6: Hedgemans Surgery | D6: BK | E6: Barking and Dagenham | F6: BK-2 | G6: East One | H6: Network East One | I6: U27362 | J6: EMISweb | K6: 92 Hedgemans Road | L6: Dagenham | M6: RM9 6HT | N6: TQ 48734 84495 | O6: 548734 | P6: 184495 | Q6: 51.539764 | R6: 0.14327082
A7: Active | B7: F82017 | C7: St Albans Surgery | D7: BK | E7: Barking and Dagenham | F7: BK-2 | G7: East One | H7: Network East One | I7: U27362 | J7: EMISweb | K7: Urswick Road | L7: Dagenham | M7: RM9 6EA | N7: TQ 48052 84181 | O7: 548052 | P7: 184181 | Q7: 51.537122 | R7: 0.13331215
A8: Active | B8: F82634 | C8: Heathway Medical Centre | D8: BK | E8: Barking and Dagenham | F8: BK-2 | G8: East One | H8: Network East One | I8: U27362 | J8: EMISweb | K8: Morland Road | L8: Dagenham | M8: RM10 9HU | N8: TQ 49367 83962 | O8: 549367 | P8: 183962 | Q8: 51.534808 | R8: 0.15216548
A9: Active | B9: F82678 | C9: Dr Alkaisy Surgery | D9: BK | E9: Barking and Dagenham | F9: BK-2 | G9: East One | H9: Network East One | I9: U27362 | J9: EMISweb | K9: Urswick Road | L9: Dagenham | M9: RM9 6EA | N9: TQ 48052 84181 | O9: 548052 | P9: 184181 | Q9: 51.537122 | R9: 0.13331215
A10: Active | B10: F82679 | C10: Parkview Medical Practice | D10: BK | E10: Barking and Dagenham | F10: BK-2 | G10: East One | H10: Network East One | I10: U27362 | J10: EMISweb | K10: 199 Reede Road | L10: Dagenham | M10: RM10 8EJ | N10: TQ 49877 85126 | O10: 549877 | P10: 185126 | Q10: 51.545131 | R10: 0.16000821
A11: Active | B11: F82034 | C11: Victoria Medical Centre | D11: BK | E11: Barking and Dagenham | F11: BK-3 | G11: New West | H11: Network New West | I11: U26744 | J11: EMISweb | K11: 1 Queens Road | L11: Barking | M11: IG11 8GD | N11: TQ 44085 84494 | O11: 544085 | P11: 184494 | Q11: 51.54096 | R11: 0.076282445
A12: Active | B12: F82042 | C12: Aurora Medcare | D12: BK | E12: Barking and Dagenham | F12: BK-3 | G12: New West | H12: Network New West | I12: U26744 | J12: EMISweb | K12: 1 King Edwards Road | L12: Barking | M12: IG11 7TB | N12: TQ 44643 83708 | O12: 544643 | P12: 183708 | Q12: 51.533755 | R12: 0.084000311
A13: Active | B13: F82625 | C13: Abbey Medical centre | D13: BK | E13: Barking and Dagenham | F13: BK-3 | G13: New West | H13: Network New West | I13: U26744 | J13: EMISweb | K13: 1 Harpour Road | L13: Barking | M13: IG11 8RJ | N13: TQ 44215 84642 | O13: 544215 | P13: 184642 | Q13: 51.542256 | R13: 0.078216284
A14: Active | B14: Y01280 | C14: Shifa Medical Practice | D14: BK | E14: Barking and Dagenham | F14: BK-3 | G14: New West | H14: Network New West | I14: U26744 | J14: EMISweb | K14: Gasgoine Road | L14: Barking | M14: IG11 7RS | N14: TQ 44478 83438 | O14: 544478 | P14: 183438 | Q14: 51.531371 | R14: 0.081512428
A15: Active | B15: F82027 | C15: Faircross Health Centre | D15: BK | E15: Barking and Dagenham | F15: BK-3 | G15: New West | H15: Network New West | I15: U26744 | J15: EMISweb | K15: 51 Upney Lane | L15: Barking | M15: IG11 9LP | N15: TQ 45367 84850 | O15: 545367 | P15: 184850 | Q15: 51.54383 | R15: 0.094902305
A16: Active | B16: F82001 | C16: Halbutt Street Surgery | D16: BK | E16: Barking and Dagenham | F16: BK-4 | G16: West One | H16: Network West One | I16: U11211 | J16: EMISweb | K16: 2 Halbutt Street | L16: Dagenham | M16: RM9 5AS | N16: TQ 48956 85305 | O16: 548956 | P16: 185305 | Q16: 51.546983 | R16: 0.14681208
A17: Active | B17: F82018 | C17: Barking Medical Group Practice | D17: BK | E17: Barking and Dagenham | F17: BK-4 | G17: West One | H17: Network West One | I17: U11211 | J17: EMISweb | K17: 130 Upney lane | L17: Barking | M17: IG11 9LT | N17: TQ 45536 84574 | O17: 545536 | P17: 184574 | Q17: 51.541307 | R17: 0.097223615
A18: Active | B18: F82040 | C18: John Smith House | D18: BK | E18: Barking and Dagenham | F18: BK-4 | G18: West One | H18: Network West One | I18: U11211 | J18: EMISweb | K18: 145-207 Bevan Avenue | L18: Barking | M18: IG11 9NS | N18: TQ 46496 84245 | O18: 546496 | P18: 184245 | Q18: 51.538102 | R18: 0.11091985
A19: Active | B19: F82612 | C19: The White House | D19: BK | E19: Barking and Dagenham | F19: BK-4 | G19: West One | H19: Network West One | I19: U11211 | J19: EMISweb | K19: 12 Movers Lane | L19: Barking | M19: IG11 7UN | N19: TQ 44930 83744 | O19: 544930 | P19: 183744 | Q19: 51.534005 | R19: 0.088149992
A20: Active | B20: F82647 | C20: Dr Gupta & Partner | D20: BK | E20: Barking and Dagenham | F20: BK-4 | G20: West One | H20: Network West One | I20: U11211 | J20: EMISweb | K20: 7 Salisbury Avenue | L20: Barking | M20: IG11 9XQ | N20: TQ 44605 84272 | O20: 544605 | P20: 184272 | Q20: 51.538832 | R20: 0.08368429
A21: Active | B21: F82650 | C21: Ripple Road Medical Centre | D21: BK | E21: Barking and Dagenham | F21: BK-4 | G21: West One | H21: Network West One | I21: U11211 | J21: EMISweb | K21: 343 Ripple Road | L21: Barking | M21: IG11 7RJ | N21: TQ 45217 83938 | O21: 545217 | P21: 183938 | Q21: 51.535674 | R21: 0.092364824
A22: Active | B22: F82680 | C22: Highgrove Surgery | D22: BK | E22: Barking and Dagenham | F22: BK-4 | G22: West One | H22: Network West One | I22: U11211 | J22: SystmOne | K22: Upney Lane | L22: Barking | M22: IG11 9LX | N22: TQ 45644 84306 | O22: 545644 | P22: 184306 | Q22: 51.538871 | R22: 0.098669045
A23: Active | B23: F82012 | C23: Five Elms | D23: BK | E23: Barking and Dagenham | F23: BK-5 | G23: North | H23: Network North | I23: U55387 | J23: EMISweb | K23: Five Elms Road | L23: Dagenham | M23: RM9 5TT | N23: TQ 48622 86004 | O23: 548622 | P23: 186004 | Q23: 51.553352 | R23: 0.14229391
A24: Active | B24: F82025 | C24: Julia Engwell Surgery | D24: BK | E24: Barking and Dagenham | F24: BK-5 | G24: North | H24: Network North | I24: U55387 | J24: EMISweb | K24: Woodward Road | L24: Dagenham | M24: RM9 4SR | N24: TQ 47520 84362 | O24: 547520 | P24: 184362 | Q24: 51.538887 | R24: 0.12572292
A25: Active | B25: F82051 | C25: Laburnum Health centre | D25: BK | E25: Barking and Dagenham | F25: BK-5 | G25: North | H25: Network North | I25: U55387 | J25: EMISweb | K25: 11 Althorne Way | L25: Dagenham | M25: RM10 7DF | N25: TQ 49234 86817 | O25: 549234 | P25: 186817 | Q25: 51.560495 | R25: 0.1514593
A26: Active | B26: F82642 | C26: Gables Surgery | D26: BK | E26: Barking and Dagenham | F26: BK-5 | G26: North | H26: Network North | I26: U55387 | J26: EMISweb | K26: Markyate Road | L26: Dagenham | M26: RM8 2LD | N26: TQ 46953 85105 | O26: 546953 | P26: 185105 | Q26: 51.545711 | R26: 0.11786324
A27: Active | B27: F82661 | C27: Green Lane Surgery | D27: BK | E27: Barking and Dagenham | F27: BK-5 | G27: North | H27: Network North | I27: U55387 | J27: EMISweb | K27: 872 Green Lane | L27: Dagenham | M27: RM8 1BX | N27: TQ 48005 86869 | O27: 548005 | P27: 186869 | Q27: 51.561286 | R27: 0.13376487
A28: Active | B28: F86040 | C28: The Surgery | D28: BK | E28: Barking and Dagenham | F28: BK-5 | G28: North | H28: Network North | I28: U55387 | J28: EMISweb | K28: 620 Longbridge Road | L28: Dagenham | M28: RM8 2AJ | N28: TQ 46755 85732 | O28: 546755 | P28: 185732 | Q28: 51.551396 | R28: 0.11527123
A29: Active | B29: Y01795 | C29: The Oval Practice | D29: BK | E29: Barking and Dagenham | F29: BK-5 | G29: North | H29: Network North | I29: U55388 | J29: EMISweb | K29: 69 Oval Road North | L29: Dagenham | M29: RM10 9ET | N29: TQ 49697 83763 | O29: 549697 | P29: 183763 | Q29: 51.532933 | R29: 0.15683523
A30: Active | B30: F82038 | C30: Valence Medical Centre | D30: BK | E30: Barking and Dagenham | F30: BK-5 | G30: North | H30: Network North | I30: U55389 | J30: EMISweb | K30: 563 Valence Avenue | L30: Dagenham | M30: RM8 3RH | N30: TQ 47822 85951 | O30: 547822 | P30: 185951 | Q30: 51.553086 | R30: 0.13074125
A31: Active | B31: F82604 | C31: Marks Gate Medical Practice | D31: BK | E31: Barking and Dagenham | F31: BK-6 | G31: Central | H31: Network Central | I31: U92874 | J31: EMISweb | K31: Lawn Farm Grove | L31: Dagenham | M31: RM6 5LL | N31: TQ 48155 89472 | O31: 548155 | P31: 189472 | Q31: 51.584635 | R31: 0.13702397
A32: Active | B32: F82660 | C32: Tulasi Medical Centre | D32: BK | E32: Barking and Dagenham | F32: BK-6 | G32: Central | H32: Network Central | I32: U92874 | J32: EMISweb | K32: 10 Bennetts Castle Lane | L32: Dagenham | M32: RM8 3XU | N32: TQ 47363 86819 | O32: 547363 | P32: 186819 | Q32: 51.561005 | R32: 0.12448914
A33: Active | B33: F82677 | C33: Becontree Medical Centre | D33: BK | E33: Barking and Dagenham | F33: BK-6 | G33: Central | H33: Network Central | I33: U92874 | J33: EMISweb | K33: 645 Becontree Avenue | L33: Dagenham | M33: RM8 3HP | N33: TQ 48516 86671 | O33: 548516 | P33: 186671 | Q33: 51.559373 | R33: 0.1410476

Sheet LDP TABLE (hidden)
A1: ProjectID | B1: Rel_D | C1: Run_D | D1: Search | E1: 01. Listsize | F1: LDP.04.11: Diabetes and BP in last 12 months | G1: LDP.05: CVD 25-84yrs (excl CVD) | H1: LDP.08.02 CKD Diagnosed (Last 6m) | I1: LDP.08.03 CKD and BP Recorded (last 12 m) | J1: CSPMH. 01.03 QRisk Recorded (12m) | K1: CSPMH. 01.03.01 BP recorded on same day as QRisk (12m) | L1: CSPMH. 01.03.02 Qrisk>=20 (12m) | M1: LDP.08.01 CKD and BP less than 140/90 (last 12 m) | N1: LDP.08 CKD Register | O1: LDP.05.01: CVD QRISK greater than or equal 20% | P1: LDP.05.01.01: CVD Proxy Annual Review (last 12m) | Q1: LDP.05.02: Cardiovascular Risk Score Done (5y) | R1: LDP.04.09: Diabetes BP less than 145/85 (last 12m) | S1: LDP.04.08: Diabetes Chol less than 5mmol (last 12m) | T1: LDP.01.01.01: Obesity BMI more than or equal to 35 less than 40 (last 12m) | U1: LDP.01.01.02: Obesity BMI between 30-35 (last 12m) | V1: LDP.01.01.03: Obesity BMI equal to or over 40 (last 12m) | W1: LDP.01.02: Smoking Status (last 12m) or Never Smoked (25yrs+) | X1: LDP.01.03: Current Smoker (last 12m) | Y1: LDP.01.01: Obesity BMI recorded (last 12m) | Z1: LDP.01: Aged 16yrs+ | AA1: CSPMH.01 SMI Register | AB1: CSPMH.01.02 Smoking Status Recorded (12m) | AC1: CSPMH.01.02.01 Current Smoker (12m) | AD1: CSPMH 01.02.01.01 Ref to clinic 12m | AE1: CSPMH.01.02.02 Ex-smoker Recorded (latest 12m) | AF1: LDP.02: Hypertension Register | AG1: LDP.02.01: Hypertension and BP < 140/90 (age under 80) < 150/90 (Age 80+) | AH1: LDP.04.07: Diabetes Influenza Vaccinations (From August 2018) | AI1: LDP.04.01: Diabetes HbA1c <7.5% OR <59mmol (last 12m) | AJ1: LDP.02.02: Hypertension BP recorded (last 12m) | AK1: LDP.03: CHD Register | AL1: LDP.03.01: CHD Chol less than 5mmol (last 12m) | AM1: LDP.03.04: CHD Cholesterol recorded (last 12m) | AN1: LDP.04: Diabetes Register | AO1: LDP.09 COPD Register | AP1: LDP.09.01 Patients with severe or very severe COPD (FEV1<50) | AQ1: LDP.09.02 Patients with smoking status recorded (last 12m) or never smoked | AR1: LDP.09.03 COPD patients recorded as a Smoker | AS1: LDP.09.04 COPD Patients who are current smokers & referred to the Stop Smoking C | AT1: LDP.09.05 No of COPD with flu vaccination (From August 2018) | AU1: LDP.09.06 No of COPD with pneumococcal vaccination ever | AV1: LDP.09.07 No of COPD patients referred to pulmonary rehab ever | AW1: LDP.03.02: CHD BP less than or equal 150/90 (last 9m) | AX1: LDP.10 Stroke or TIA register | AY1: LDP.10.01: Stroke/TIA BP recorded (last 12m) | AZ1: LDP.10.02 Patients on Stroke/TIA register with BP <140/90 (12m) | BA1: LDP.05.03: CVD QRISK >=10 & <20 | BB1: Practice | BC1: Locality ID | BD1: SubLocality ID | BE1: SubLocality
A2: CH_LDP | B2: 44287 | C2: 44827 | D2: F86023 | E2: 9278 | F2: 291 | G2: 6432 | H2: 12 | I2: 133 | J2: 15 | K2: 4 | L2: 4 | M2: 82 | N2: 208 | O2: 336 | P2: 87 | Q2: 1849 | R2: 199 | S2: 188 | T2: 76 | U2: 149 | V2: 26 | W2: 5121 | X2: 242 | Y2: 1110 | Z2: 7568 | AA2: 136 | AB2: 101 | AC2: 24 | AD2: 0 | AE2: 4 | AF2: 1275 | AG2: 422 | AH2: 0 | AI2: 218 | AJ2: 765 | AK2: 191 | AL2: 76 | AM2: 88 | AN2: 407 | AO2: 89 | AP2: 17 | AQ2: 83 | AR2: 24 | AS2: 0 | AT2: 0 | AU2: 79 | AV2: 57 | AW2: 81 | AX2: 137 | AY2: 100 | AZ2: 63
A3: CH_LDP | B3: 44287 | C3: 44827 | D3: F86028 | E3: 10395 | F3: 420 | G3: 6118 | H3: 4 | I3: 106 | J3: 8 | K3: 8 | L3: 0 | M3: 63 | N3: 187 | O3: 135 | P3: 2 | Q3: 1577 | R3: 304 | S3: 6 | T3: 87 | U3: 245 | V3: 52 | W3: 4935 | X3: 158 | Y3: 1093 | Z3: 7697 | AA3: 86 | AB3: 69 | AC3: 6 | AD3: 0 | AE3: 6 | AF3: 1149 | AG3: 323 | AH3: 0 | AI3: 282 | AJ3: 554 | AK3: 191 | AL3: 1 | AM3: 1 | AN3: 764 | AO3: 55 | AP3: 11 | AQ3: 40 | AR3: 4 | AS3: 0 | AT3: 0 | AU3: 49 | AV3: 21 | AW3: 66 | AX3: 106 | AY3: 68 | AZ3: 49
A4: CH_LDP | B4: 44287 | C4: 44827 | D4: F86032 | E4: 9349 | F4: 171 | G4: 6404 | H4: 25 | I4: 140 | J4: 5 | K4: 3 | L4: 1 | M4: 82 | N4: 299 | O4: 221 | P4: 37 | Q4: 1860 | R4: 138 | S4: 153 | T4: 59 | U4: 154 | V4: 26 | W4: 4811 | X4: 167 | Y4: 1054 | Z4: 7549 | AA4: 96 | AB4: 66 | AC4: 14 | AD4: 0 | AE4: 3 | AF4: 1154 | AG4: 241 | AH4: 0 | AI4: 133 | AJ4: 410 | AK4: 245 | AL4: 79 | AM4: 94 | AN4: 404 | AO4: 107 | AP4: 8 | AQ4: 68 | AR4: 13 | AS4: 0 | AT4: 0 | AU4: 74 | AV4: 17 | AW4: 56 | AX4: 135 | AY4: 58 | AZ4: 38
A5: CH_LDP | B5: 44287 | C5: 44827 | D5: F86012 | E5: 10056 | F5: 320 | G5: 6878 | H5: 1 | I5: 95 | J5: 10 | K5: 4 | L5: 2 | M5: 57 | N5: 127 | O5: 338 | P5: 78 | Q5: 1847 | R5: 271 | S5: 235 | T5: 78 | U5: 228 | V5: 46 | W5: 5681 | X5: 237 | Y5: 1539 | Z5: 8529 | AA5: 85 | AB5: 72 | AC5: 16 | AD5: 0 | AE5: 6 | AF5: 1321 | AG5: 472 | AH5: 0 | AI5: 231 | AJ5: 777 | AK5: 277 | AL5: 79 | AM5: 90 | AN5: 472 | AO5: 132 | AP5: 17 | AQ5: 123 | AR5: 22 | AS5: 0 | AT5: 0 | AU5: 116 | AV5: 98 | AW5: 121 | AX5: 134 | AY5: 92 | AZ5: 54
A6: CH_LDP | B6: 44287 | C6: 44827 | D6: F86020 | E6: 5686 | F6: 191 | G6: 4063 | H6: 2 | I6: 163 | J6: 15 | K6: 12 | L6: 5 | M6: 111 | N6: 251 | O6: 210 | P6: 75 | Q6: 1178 | R6: 132 | S6: 135 | T6: 52 | U6: 132 | V6: 27 | W6: 3488 | X6: 185 | Y6: 738 | Z6: 4693 | AA6: 34 | AB6: 27 | AC6: 6 | AD6: 0 | AE6: 2 | AF6: 744 | AG6: 351 | AH6: 0 | AI6: 106 | AJ6: 568 | AK6: 132 | AL6: 76 | AM6: 82 | AN6: 243 | AO6: 42 | AP6: 16 | AQ6: 33 | AR6: 6 | AS6: 0 | AT6: 0 | AU6: 38 | AV6: 19 | AW6: 58 | AX6: 64 | AY6: 52 | AZ6: 42
A7: CH_LDP | B7: 44287 | C7: 44827 | D7: F86022 | E7: 13958 | F7: 606 | G7: 8780 | H7: 16 | I7: 263 | J7: 76 | K7: 7 | L7: 20 | M7: 172 | N7: 396 | O7: 570 | P7: 7 | Q7: 3193 | R7: 396 | S7: 22 | T7: 80 | U7: 207 | V7: 41 | W7: 7166 | X7: 282 | Y7: 1254 | Z7: 10916 | AA7: 168 | AB7: 143 | AC7: 32 | AD7: 0 | AE7: 9 | AF7: 1594 | AG7: 743 | AH7: 0 | AI7: 489 | AJ7: 1095 | AK7: 321 | AL7: 2 | AM7: 3 | AN7: 1167 | AO7: 163 | AP7: 33 | AQ7: 122 | AR7: 26 | AS7: 0 | AT7: 0 | AU7: 134 | AV7: 34 | AW7: 146 | AX7: 183 | AY7: 129 | AZ7: 94
A8: CH_LDP | B8: 44287 | C8: 44827 | D8: F86034 | E8: 5665 | F8: 296 | G8: 3440 | H8: 1 | I8: 59 | J8: 25 | K8: 15 | L8: 7 | M8: 32 | N8: 92 | O8: 217 | P8: 9 | Q8: 946 | R8: 223 | S8: 10 | T8: 54 | U8: 106 | V8: 39 | W8: 2988 | X8: 188 | Y8: 522 | Z8: 4344 | AA8: 37 | AB8: 35 | AC8: 8 | AD8: 0 | AE8: 7 | AF8: 742 | AG8: 259 | AH8: 0 | AI8: 152 | AJ8: 394 | AK8: 155 | AL8: 1 | AM8: 1 | AN8: 406 | AO8: 61 | AP8: 16 | AQ8: 59 | AR8: 10 | AS8: 0 | AT8: 0 | AU8: 47 | AV8: 39 | AW8: 67 | AX8: 64 | AY8: 39 | AZ8: 26
A9: CH_LDP | B9: 44287 | C9: 44827 | D9: F86060 | E9: 15639 | F9: 734 | G9: 9683 | H9: 44 | I9: 195 | J9: 71 | K9: 16 | L9: 16 | M9: 138 | N9: 324 | O9: 763 | P9: 21 | Q9: 3777 | R9: 585 | S9: 41 | T9: 195 | U9: 546 | V9: 101 | W9: 7774 | X9: 259 | Y9: 2922 | Z9: 12045 | AA9: 109 | AB9: 102 | AC9: 16 | AD9: 0 | AE9: 8 | AF9: 1618 | AG9: 500 | AH9: 0 | AI9: 599 | AJ9: 751 | AK9: 322 | AL9: 13 | AM9: 16 | AN9: 1308 | AO9: 73 | AP9: 17 | AQ9: 61 | AR9: 14 | AS9: 1 | AT9: 0 | AU9: 57 | AV9: 17 | AW9: 132 | AX9: 145 | AY9: 88 | AZ9: 59
A10: CH_LDP | B10: 44287 | C10: 44827 | D10: F86064 | E10: 4838 | F10: 147 | G10: 3207 | H10: 2 | I10: 61 | J10: 13 | K10: 6 | L10: 1 | M10: 43 | N10: 103 | O10: 223 | P10: 36 | Q10: 1423 | R10: 111 | S10: 45 | T10: 49 | U10: 144 | V10: 22 | W10: 2616 | X10: 134 | Y10: 810 | Z10: 3942 | AA10: 43 | AB10: 35 | AC10: 8 | AD10: 0 | AE10: 4 | AF10: 624 | AG10: 203 | AH10: 0 | AI10: 83 | AJ10: 339 | AK10: 104 | AL10: 21 | AM10: 25 | AN10: 213 | AO10: 49 | AP10: 14 | AQ10: 46 | AR10: 12 | AS10: 0 | AT10: 0 | AU10: 45 | AV10: 16 | AW10: 33 | AX10: 56 | AY10: 32 | AZ10: 19
A11: CH_LDP | B11: 44287 | C11: 44827 | D11: F86066 | E11: 8140 | F11: 231 | G11: 5547 | H11: 5 | I11: 76 | J11: 9 | K11: 5 | L11: 2 | M11: 48 | N11: 120 | O11: 272 | P11: 94 | Q11: 1751 | R11: 159 | S11: 176 | T11: 87 | U11: 195 | V11: 35 | W11: 4289 | X11: 233 | Y11: 1278 | Z11: 6557 | AA11: 68 | AB11: 52 | AC11: 12 | AD11: 0 | AE11: 2 | AF11: 865 | AG11: 291 | AH11: 0 | AI11: 177 | AJ11: 486 | AK11: 144 | AL11: 72 | AM11: 84 | AN11: 338 | AO11: 93 | AP11: 15 | AQ11: 63 | AR11: 17 | AS11: 0 | AT11: 0 | AU11: 76 | AV11: 45 | AW11: 57 | AX11: 84 | AY11: 60 | AZ11: 37
A12: CH_LDP | B12: 44287 | C12: 44827 | D12: F86040 | E12: 5376 | F12: 162 | G12: 3354 | H12: 2 | I12: 13 | J12: 10 | K12: 9 | L12: 2 | M12: 9 | N12: 31 | O12: 74 | P12: 5 | Q12: 349 | R12: 149 | S12: 8 | T12: 17 | U12: 25 | V12: 4 | W12: 2828 | X12: 116 | Y12: 137 | Z12: 4111 | AA12: 41 | AB12: 37 | AC12: 8 | AD12: 1 | AE12: 2 | AF12: 498 | AG12: 117 | AH12: 0 | AI12: 102 | AJ12: 158 | AK12: 85 | AL12: 2 | AM12: 2 | AN12: 367 | AO12: 60 | AP12: 0 | AQ12: 36 | AR12: 14 | AS12: 2 | AT12: 0 | AU12: 44 | AV12: 16 | AW12: 27 | AX12: 39 | AY12: 17 | AZ12: 5 | BB12: The Surgery | BC12: BK | BD12: BK-5 | BE12: North
A13: CH_LDP | B13: 44287 | C13: 44827 | D13: F86042 | E13: 6525 | F13: 199 | G13: 3945 | H13: 5 | I13: 29 | J13: 27 | K13: 4 | L13: 3 | M13: 13 | N13: 77 | O13: 308 | P13: 8 | Q13: 1862 | R13: 170 | S13: 21 | T13: 48 | U13: 165 | V13: 18 | W13: 3536 | X13: 117 | Y13: 843 | Z13: 4755 | AA13: 47 | AB13: 41 | AC13: 9 | AD13: 1 | AE13: 4 | AF13: 676 | AG13: 178 | AH13: 0 | AI13: 259 | AJ13: 235 | AK13: 105 | AL13: 3 | AM13: 4 | AN13: 532 | AO13: 23 | AP13: 2 | AQ13: 16 | AR13: 2 | AS13: 0 | AT13: 0 | AU13: 22 | AV13: 4 | AW13: 29 | AX13: 42 | AY13: 12 | AZ13: 9
A14: CH_LDP | B14: 44287 | C14: 44827 | D14: F86057 | E14: 6594 | F14: 168 | G14: 4238 | H14: 0 | I14: 96 | J14: 11 | K14: 8 | L14: 1 | M14: 62 | N14: 153 | O14: 98 | P14: 3 | Q14: 555 | R14: 117 | S14: 11 | T14: 55 | U14: 138 | V14: 39 | W14: 3418 | X14: 516 | Y14: 908 | Z14: 5276 | AA14: 50 | AB14: 45 | AC14: 22 | AD14: 0 | AE14: 3 | AF14: 941 | AG14: 388 | AH14: 0 | AI14: 112 | AJ14: 599 | AK14: 204 | AL14: 5 | AM14: 5 | AN14: 266 | AO14: 91 | AP14: 10 | AQ14: 85 | AR14: 24 | AS14: 6 | AT14: 0 | AU14: 50 | AV14: 47 | AW14: 98 | AX14: 92 | AY14: 58 | AZ14: 36
A15: CH_LDP | B15: 44287 | C15: 44827 | D15: F86010 | E15: 13947 | F15: 696 | G15: 9099 | H15: 3 | I15: 120 | J15: 42 | K15: 22 | L15: 8 | M15: 69 | N15: 156 | O15: 900 | P15: 34 | Q15: 7848 | R15: 511 | S15: 53 | T15: 134 | U15: 426 | V15: 64 | W15: 6713 | X15: 327 | Y15: 2308 | Z15: 11288 | AA15: 118 | AB15: 95 | AC15: 16 | AD15: 0 | AE15: 16 | AF15: 1583 | AG15: 572 | AH15: 0 | AI15: 515 | AJ15: 967 | AK15: 386 | AL15: 19 | AM15: 24 | AN15: 990 | AO15: 139 | AP15: 19 | AQ15: 103 | AR15: 22 | AS15: 0 | AT15: 0 | AU15: 87 | AV15: 27 | AW15: 171 | AX15: 148 | AY15: 97 | AZ15: 63
A16: CH_LDP | B16: 44287 | C16: 44827 | D16: F82671 | E16: 3186 | F16: 177 | G16: 1889 | H16: 3 | I16: 35 | J16: 3 | K16: 2 | L16: 1 | M16: 23 | N16: 62 | O16: 44 | P16: 0 | Q16: 352 | R16: 137 | S16: 0 | T16: 63 | U16: 129 | V16: 31 | W16: 1614 | X16: 243 | Y16: 585 | Z16: 2423 | AA16: 50 | AB16: 37 | AC16: 16 | AD16: 0 | AE16: 2 | AF16: 444 | AG16: 246 | AH16: 0 | AI16: 96 | AJ16: 329 | AK16: 83 | AL16: 0 | AM16: 0 | AN16: 219 | AO16: 72 | AP16: 20 | AQ16: 58 | AR16: 27 | AS16: 0 | AT16: 0 | AU16: 50 | AV16: 30 | AW16: 44 | AX16: 51 | AY16: 42 | AZ16: 32
A17: CH_LDP | B17: 44287 | C17: 44827 | D17: F82674 | E17: 5109 | F17: 164 | G17: 3133 | H17: 93 | I17: 173 | J17: 15 | K17: 11 | L17: 4 | M17: 127 | N17: 307 | O17: 155 | P17: 0 | Q17: 688 | R17: 129 | S17: 0 | T17: 54 | U17: 108 | V17: 25 | W17: 2826 | X17: 105 | Y17: 664 | Z17: 4033 | AA17: 38 | AB17: 34 | AC17: 6 | AD17: 0 | AE17: 5 | AF17: 802 | AG17: 277 | AH17: 0 | AI17: 142 | AJ17: 470 | AK17: 125 | AL17: 0 | AM17: 0 | AN17: 246 | AO17: 87 | AP17: 3 | AQ17: 83 | AR17: 19 | AS17: 0 | AT17: 0 | AU17: 74 | AV17: 18 | AW17: 29 | AX17: 130 | AY17: 79 | AZ17: 64
A18: CH_LDP | B18: 44287 | C18: 44827 | D18: F82675 | E18: 3639 | F18: 144 | G18: 2476 | H18: 9 | I18: 77 | J18: 0 | K18: 0 | L18: 0 | M18: 56 | N18: 121 | O18: 95 | P18: 0 | Q18: 383 | R18: 114 | S18: 0 | T18: 37 | U18: 87 | V18: 16 | W18: 2057 | X18: 77 | Y18: 448 | Z18: 3083 | AA18: 15 | AB18: 14 | AC18: 3 | AD18: 0 | AE18: 0 | AF18: 482 | AG18: 155 | AH18: 0 | AI18: 112 | AJ18: 286 | AK18: 103 | AL18: 0 | AM18: 0 | AN18: 222 | AO18: 54 | AP18: 2 | AQ18: 39 | AR18: 5 | AS18: 0 | AT18: 0 | AU18: 45 | AV18: 17 | AW18: 52 | AX18: 54 | AY18: 39 | AZ18: 30
A19: CH_LDP | B19: 44287 | C19: 44827 | D19: F82663 | E19: 3815 | F19: 77 | G19: 2598 | H19: 0 | I19: 17 | J19: 0 | K19: 0 | L19: 0 | M19: 9 | N19: 39 | O19: 42 | P19: 0 | Q19: 226 | R19: 56 | S19: 1 | T19: 14 | U19: 29 | V19: 5 | W19: 1609 | X19: 155 | Y19: 109 | Z19: 3081 | AA19: 39 | AB19: 26 | AC19: 12 | AD19: 0 | AE19: 1 | AF19: 400 | AG19: 165 | AH19: 0 | AI19: 41 | AJ19: 228 | AK19: 58 | AL19: 0 | AM19: 0 | AN19: 125 | AO19: 44 | AP19: 0 | AQ19: 28 | AR19: 11 | AS19: 0 | AT19: 0 | AU19: 22 | AV19: 1 | AW19: 37 | AX19: 54 | AY19: 34 | AZ19: 23
A20: CH_LDP | B20: 44287 | C20: 44827 | D20: F82666 | E20: 4743 | F20: 136 | G20: 3176 | H20: 0 | I20: 37 | J20: 2 | K20: 2 | L20: 0 | M20: 23 | N20: 82 | O20: 216 | P20: 0 | Q20: 1010 | R20: 111 | S20: 0 | T20: 46 | U20: 115 | V20: 35 | W20: 2613 | X20: 187 | Y20: 558 | Z20: 3859 | AA20: 21 | AB20: 20 | AC20: 4 | AD20: 0 | AE20: 2 | AF20: 644 | AG20: 186 | AH20: 0 | AI20: 133 | AJ20: 264 | AK20: 115 | AL20: 2 | AM20: 2 | AN20: 257 | AO20: 65 | AP20: 13 | AQ20: 64 | AR20: 20 | AS20: 0 | AT20: 0 | AU20: 49 | AV20: 17 | AW20: 33 | AX20: 55 | AY20: 29 | AZ20: 20
A21: CH_LDP | B21: 44287 | C21: 44827 | D21: F82670 | E21: 2984 | F21: 180 | G21: 1785 | H21: 1 | I21: 25 | J21: 4 | K21: 3 | L21: 1 | M21: 17 | N21: 30 | O21: 45 | P21: 4 | Q21: 427 | R21: 149 | S21: 0 | T21: 40 | U21: 69 | V21: 25 | W21: 1152 | X21: 138 | Y21: 331 | Z21: 2202 | AA21: 31 | AB21: 25 | AC21: 7 | AD21: 0 | AE21: 1 | AF21: 249 | AG21: 172 | AH21: 0 | AI21: 110 | AJ21: 222 | AK21: 47 | AL21: 0 | AM21: 0 | AN21: 192 | AO21: 41 | AP21: 6 | AQ21: 35 | AR21: 17 | AS21: 0 | AT21: 0 | AU21: 32 | AV21: 17 | AW21: 36 | AX21: 30 | AY21: 28 | AZ21: 20
A22: CH_LDP | B22: 44287 | C22: 44827 | D22: F82677 | E22: 7158 | F22: 369 | G22: 4146 | H22: 9 | I22: 97 | J22: 2 | K22: 0 | L22: 0 | M22: 57 | N22: 115 | O22: 332 | P22: 3 | Q22: 2111 | R22: 239 | S22: 1 | T22: 135 | U22: 302 | V22: 102 | W22: 3366 | X22: 301 | Y22: 1379 | Z22: 5202 | AA22: 53 | AB22: 46 | AC22: 11 | AD22: 0 | AE22: 4 | AF22: 852 | AG22: 344 | AH22: 0 | AI22: 145 | AJ22: 578 | AK22: 123 | AL22: 0 | AM22: 0 | AN22: 448 | AO22: 114 | AP22: 25 | AQ22: 100 | AR22: 34 | AS22: 0 | AT22: 0 | AU22: 109 | AV22: 68 | AW22: 57 | AX22: 64 | AY22: 47 | AZ22: 38 | BB22: Becontree Medical Centre | BC22: BK | BD22: BK-6 | BE22: Central
A23: CH_LDP | B23: 44287 | C23: 44827 | D23: F86007 | E23: 13000 | F23: 512 | G23: 8350 | H23: 26 | I23: 236 | J23: 3 | K23: 1 | L23: 0 | M23: 129 | N23: 354 | O23: 313 | P23: 6 | Q23: 2151 | R23: 359 | S23: 16 | T23: 129 | U23: 298 | V23: 76 | W23: 6442 | X23: 502 | Y23: 1487 | Z23: 10184 | AA23: 150 | AB23: 111 | AC23: 18 | AD23: 0 | AE23: 8 | AF23: 1749 | AG23: 619 | AH23: 0 | AI23: 293 | AJ23: 1078 | AK23: 283 | AL23: 11 | AM23: 12 | AN23: 708 | AO23: 152 | AP23: 2 | AQ23: 82 | AR23: 26 | AS23: 0 | AT23: 0 | AU23: 114 | AV23: 25 | AW23: 122 | AX23: 214 | AY23: 142 | AZ23: 92
A24: CH_LDP | B24: 44287 | C24: 44827 | D24: F86008 | E24: 10102 | F24: 524 | G24: 6514 | H24: 49 | I24: 224 | J24: 11 | K24: 1 | L24: 2 | M24: 151 | N24: 333 | O24: 423 | P24: 30 | Q24: 2124 | R24: 422 | S24: 48 | T24: 78 | U24: 272 | V24: 39 | W24: 5797 | X24: 282 | Y24: 1742 | Z24: 8010 | AA24: 61 | AB24: 56 | AC24: 7 | AD24: 0 | AE24: 1 | AF24: 1325 | AG24: 537 | AH24: 0 | AI24: 399 | AJ24: 850 | AK24: 276 | AL24: 20 | AM24: 27 | AN24: 747 | AO24: 51 | AP24: 11 | AQ24: 37 | AR24: 5 | AS24: 1 | AT24: 0 | AU24: 38 | AV24: 14 | AW24: 110 | AX24: 107 | AY24: 73 | AZ24: 55
A25: CH_LDP | B25: 44287 | C25: 44827 | D25: F86009 | E25: 7376 | F25: 57 | G25: 4915 | H25: 0 | I25: 9 | J25: 10 | K25: 0 | L25: 0 | M25: 4 | N25: 98 | O25: 244 | P25: 0 | Q25: 1736 | R25: 43 | S25: 2 | T25: 28 | U25: 48 | V25: 19 | W25: 4229 | X25: 90 | Y25: 307 | Z25: 6123 | AA25: 78 | AB25: 62 | AC25: 2 | AD25: 0 | AE25: 3 | AF25: 1031 | AG25: 60 | AH25: 0 | AI25: 214 | AJ25: 101 | AK25: 185 | AL25: 1 | AM25: 1 | AN25: 648 | AO25: 48 | AP25: 7 | AQ25: 21 | AR25: 3 | AS25: 0 | AT25: 0 | AU25: 39 | AV25: 12 | AW25: 12 | AX25: 63 | AY25: 9 | AZ25: 6
A26: CH_LDP | B26: 44287 | C26: 44827 | D26: F82678 | E26: 4764 | F26: 290 | G26: 2874 | H26: 8 | I26: 62 | J26: 19 | K26: 11 | L26: 4 | M26: 36 | N26: 108 | O26: 151 | P26: 18 | Q26: 1327 | R26: 187 | S26: 23 | T26: 50 | U26: 115 | V26: 48 | W26: 2426 | X26: 216 | Y26: 607 | Z26: 3698 | AA26: 53 | AB26: 47 | AC26: 20 | AD26: 2 | AE26: 3 | AF26: 741 | AG26: 198 | AH26: 0 | AI26: 145 | AJ26: 406 | AK26: 118 | AL26: 7 | AM26: 7 | AN26: 378 | AO26: 121 | AP26: 7 | AQ26: 118 | AR26: 44 | AS26: 3 | AT26: 0 | AU26: 104 | AV26: 76 | AW26: 41 | AX26: 82 | AY26: 44 | AZ26: 28 | BB26: Dr Alkaisy Surgery | BC26: BK | BD26: BK-2 | BE26: East One
A27: CH_LDP | B27: 44287 | C27: 44827 | D27: F82679 | E27: 4859 | F27: 169 | G27: 2893 | H27: 14 | I27: 34 | J27: 20 | K27: 2 | L27: 2 | M27: 27 | N27: 74 | O27: 195 | P27: 0 | Q27: 1410 | R27: 123 | S27: 1 | T27: 68 | U27: 111 | V27: 38 | W27: 2248 | X27: 168 | Y27: 520 | Z27: 3715 | AA27: 41 | AB27: 26 | AC27: 4 | AD27: 0 | AE27: 0 | AF27: 649 | AG27: 180 | AH27: 0 | AI27: 106 | AJ27: 292 | AK27: 85 | AL27: 0 | AM27: 0 | AN27: 292 | AO27: 72 | AP27: 10 | AQ27: 49 | AR27: 24 | AS27: 1 | AT27: 0 | AU27: 64 | AV27: 27 | AW27: 31 | AX27: 47 | AY27: 22 | AZ27: 17 | BB27: Parkview Medical Practice | BC27: BK | BD27: BK-2 | BE27: East One
A28: CH_LDP | B28: 44287 | C28: 44827 | D28: F82686 | E28: 3308 | F28: 190 | G28: 2095 | H28: 5 | I28: 61 | J28: 3 | K28: 2 | L28: 0 | M28: 38 | N28: 73 | O28: 84 | P28: 1 | Q28: 652 | R28: 164 | S28: 8 | T28: 67 | U28: 139 | V28: 35 | W28: 1713 | X28: 117 | Y28: 625 | Z28: 2606 | AA28: 15 | AB28: 14 | AC28: 4 | AD28: 0 | AE28: 3 | AF28: 381 | AG28: 261 | AH28: 0 | AI28: 89 | AJ28: 327 | AK28: 54 | AL28: 3 | AM28: 3 | AN28: 206 | AO28: 13 | AP28: 2 | AQ28: 11 | AR28: 6 | AS28: 0 | AT28: 0 | AU28: 10 | AV28: 2 | AW28: 38 | AX28: 45 | AY28: 42 | AZ28: 25
